Workbook

Sheet 2025
J1: Приложение №2
J2: к Порядку составления, утверждения
J3: и ведения бюджетных смет Администрации
J4: Прионежского муниципального района
J5: и казенных учреждений, находящихся
J6: в ведении Администрации Прионежского
J7: муниципального района
J8: от 30 декабря 2022 № 1390
F9: УТВЕРЖДАЮ
F10: Глава Администрации Прионежского муниципального района
F11: (наименование должности лица, согласующего бюджетную смету)
F13: Администрация Прионежского муниципального района
F14: (наименование главного распорядителя (распорядителя) бюджетных средств; учреждения)
I16: Г.Н. Шемет
F17: (подпись) (расшифровка подписи)
H19: 17 декабря 2024
B21: БЮДЖЕТНАЯ СМЕТА НА 2025 ФИНАНСОВЫЙ ГОД И ПЛАНОВЫЙ ПЕРИОД 2026 и 2027 ГОДОВ
B24: СПРАВКА 015/00406/001 от 17 декабря 2024 г. | J24: КОДЫ
I25: Форма по ОКУД | J25: 0501012
I26: Дата | J26: =H19 -> 17 декабря 2024
B27: Муниципальное общеобразовательное учреждение Шуйская средняя общеобразовательная школа №1 | I27: по ОКПО | J27: 77446968
A28: Получатель бюджетных средств
A29: Распорядитель бюджетных средств | B29: Администрация Прионежского муниципального района
A30: Главный распорядитель бюджетных средств | B30: Администрация Прионежского муниципального района | I30: Глава по БК | J30: 015
A31: Наименование бюджета | B31: Бюджет Прионежского муниципального района | I31: по ОКТМО | J31: 86636470
A32: Единица измерения: | B32: руб. | I32: по ОКЕЙ | J32: 383
A33: Наименование показателя (детализация кода бюджетной классификации) | B33: РЗ | C33: ПР | D33: ЦСР | E33: Вид расхода | F33: Детализация | G33: Вид целевых средств | H33: Сумма на текущий год | I33: Сумма на первый год планового периода (руб) | J33: Сумма на второй год планового периода (руб.)
A35: 1 | B35: =SUM(A35+1) -> 2 | C35: 3 | D35: 4 | E35: 5 | F35: 6 | G35: 7 | H35: 8 | I35: 9 | J35: 10
A36: Средства местного бюджета (КЦ 1000)
A37: Заработная плата | B37: 07 | C37: 01 | D37: 0220170200 | E37: 111 | F37: 211000 | G37: 1000 | H37: 3,118,153.92 | I37: 3,118,153.92 | J37: 3,118,153.92
A38: Расходы по оплате проезда к месту отпуска и обратно отдельным категориям лиц (для лиц, работающих в районах Крайнего Севера и приравненных к ним местностях, и членов их семей) | B38: 07 | C38: 01 | D38: 0220170200 | E38: 112 | F38: 214000 | G38: 1000 | H38: 30,000.00 | I38: 20,000.00 | J38: 20,000.00
A39: Начисления на выплаты по оплате труда | B39: 07 | C39: 01 | D39: 0220170200 | E39: 119 | F39: 213000 | G39: 1000 | H39: 941,682.48 | I39: 941,682.48 | J39: 941,682.48
A40: Услуги связи (телефон) | B40: 07 | C40: 01 | D40: 0220170200 | E40: 244 | F40: 221100 | G40: 1000 | H40: 13,200.00 | I40: 13,200.00 | J40: 14,400.00
A41: Услуги связи (почта) | B41: 07 | C41: 01 | D41: 0220170200 | E41: 244 | F41: 221300 | G41: 1000
A42: Отопление, горячее водоснабжение и газоснабжение | B42: 07 | C42: 01 | D42: 0220170200 | E42: 247 | F42: 223100 | G42: 1000 | H42: 1,128,402.16 | I42: 1,663,178.53 | J42: 1,742,199.20
A43: Электроэнергия | B43: 07 | C43: 01 | D43: 0220170200 | E43: 247 | F43: 223200 | G43: 1000 | H43: 2,603,931.30 | I43: 3,686,539.68 | J43: 3,858,393.83
A44: Холодное водоснабжение | B44: 07 | C44: 01 | D44: 0220170200 | E44: 247 | F44: 223300 | G44: 1000 | H44: 191,606.53 | I44: 272,469.54 | J44: 287,640.02
A45: Водоотведение | B45: 07 | C45: 01 | D45: 0220170200 | E45: 247 | F45: 223400 | G45: 1000 | H45: 251,490.90 | I45: 536,497.88 | J45: 562,394.55
A46: Вывоз бытовых отходов | B46: 07 | C46: 01 | D46: 0220170200 | E46: 244 | F46: 223500 | G46: 1000 | H46: 91,133.73 | I46: 129,337.08 | J46: 131,873.02
A47: Санитарная и противопожарная (дезинфекция, дезинсекция, дератизация, газация, огнезащитная) обработка помещений | B47: 07 | C47: 01 | D47: 0220170200 | E47: 244 | F47: 225600 | G47: 1000 | H47: 185,400.00 | I47: 35,400.00 | J47: 39,000.00
A48: Содержание и обслуживание помещений | B48: 07 | C48: 01 | D48: 0220170200 | E48: 244 | F48: 225700 | G48: 1000 | H48: 249,550.00 | I48: 249,550.00 | J48: 263,500.00
A49: Другие расходы | B49: 07 | C49: 01 | D49: 0220170200 | E49: 244 | F49: 225900 | G49: 1000 | H49: 50,000.00 | I49: 50,000.00 | J49: 50,000.00
A50: Аттестация | B50: 07 | C50: 01 | D50: 0220170200 | E50: 244 | F50: 226200 | G50: 1000 | H50: 10,000.00 | I50: 10,000.00 | J50: 10,000.00
A51: Ведомственная, вневедомственная, пожарная охрана | B51: 07 | C51: 01 | D51: 0220170200 | E51: 244 | F51: 226400 | G51: 1000 | H51: 73,700.00 | I51: 78,564.20 | J51: 83,749.44
A52: Медицинский осмотр работников учрежждений, за исключением водителей транспортных средств | B52: 07 | C52: 01 | D52: 0220170200 | E52: 244 | F52: 226800 | G52: 1000 | H52: 222,129.84 | I52: 233,902.72 | J52: 243,492.73
A53: Другие расходы | B53: 07 | C53: 01 | D53: 0220170200 | E53: 244 | F53: 226900 | G53: 1000 | H53: 50,000.00 | I53: 50,000.00 | J53: 50,000.00
A54: Приобретение предметов длительного пользования (оборудование, мебель,компьютерная техника и т.п.) стоимостью свыше 3000 рублей | B54: 07 | C54: 01 | D54: 0220170200 | E54: 244 | F54: 310100 | G54: 1000 | H54: 40,000.00 | I54: 40,000.00 | J54: 40,000.00
A55: Другие расходы стоимостью до 3000,00 рублей | B55: 07 | C55: 01 | D55: 0220170200 | E55: 244 | F55: 310900 | G55: 1000 | H55: 30,000.00 | I55: 30,000.00 | J55: 30,000.00
A56: Продукты питания | B56: 07 | C56: 01 | D56: 0220170200 | E56: 244 | F56: 342000 | G56: 1000 | H56: 1,330,236.00 | I56: 1,330,236.00 | J56: 1,330,236.00
A57: Увеличение стоимости прочих оборотных запасов (материалов) | B57: 07 | C57: 01 | D57: 0220170200 | E57: 244 | F57: 346000 | G57: 1000 | H57: 80,000.00 | I57: 80,000.00 | J57: 80,000.00
A58: Налог на имущество | B58: 07 | C58: 01 | D58: 0220170200 | E58: 851 | F58: 291200 | G58: 1000 | H58: 1,256,402.00 | I58: 1,256,402.00 | J58: 1,256,402.00
A59: Земельный налог | B59: 07 | C59: 01 | D59: 0220170200 | E59: 851 | F59: 291300 | G59: 1000 | H59: 16,817.00 | I59: 16,817.00 | J59: 16,817.00
A60: Итого по КЦ 1000 | H60: =SUM(H37:H59) -> 11,963,835.86 | I60: =SUM(I37:I59) -> 13,841,931.03 | J60: 14,169,934.19
A61: Средства местного бюджета (КЦ 1000)
A62: Заработная плата | B62: 07 | C62: 02 | D62: 0220270210 | E62: 111 | F62: 211000 | G62: 1000 | H62: 4,488,786.72 | I62: 4,488,786.72 | J62: 4,488,786.72
A63: Расходы по оплате проезда к месту отпуска и обратно отдельным категориям лиц (для лиц, работающих в районах Крайнего Севера и приравненных к ним местностях, и членов их семей) | B63: 07 | C63: 02 | D63: 0220270210 | E63: 112 | F63: 214000 | G63: 1000 | H63: 30,000.00 | I63: 20,000.00 | J63: 20,000.00
A64: Начисления на выплаты по оплате труда | B64: 07 | C64: 02 | D64: 0220270210 | E64: 119 | F64: 213000 | G64: 1000 | H64: 1,355,613.59 | I64: 1,355,613.59 | J64: 1,355,613.59
A65: Услуги связи (телефон) | B65: 07 | C65: 02 | D65: 0220270210 | E65: 244 | F65: 221100 | G65: 1000
A66: Услуги связи (почта) | B66: 07 | C66: 02 | D66: 0220270210 | E66: 244 | F66: 221300 | G66: 1000
A67: Отопление, горячее водоснабжение и газоснабжение | B67: 07 | C67: 02 | D67: 0220270210 | E67: 247 | F67: 223100 | G67: 1000 | H67: 3,576,721.75 | I67: 4,226,794.10 | J67: 4,420,314.89
A68: Электроэнергия | B68: 07 | C68: 02 | D68: 0220270210 | E68: 247 | F68: 223200 | G68: 1000 | H68: 1,343,722.52 | I68: 1,902,380.60 | J68: 1,983,351.63
A69: Холодное водоснабжение | B69: 07 | C69: 02 | D69: 0220270210 | E69: 247 | F69: 223300 | G69: 1000 | H69: 121,057.60 | I69: 172,092.96 | J69: 179,678.20
A70: Водоотведение | B70: 07 | C70: 02 | D70: 0220270210 | E70: 247 | F70: 223400 | G70: 1000 | H70: 182,131.20 | I70: 295,668.96 | J70: 308,699.12
A71: Вывоз бытовых отходов | B71: 07 | C71: 02 | D71: 0220270210 | E71: 244 | F71: 223500 | G71: 1000 | H71: 59,536.40 | I71: 84,527.22 | J71: 86,184.55
A72: Санитарная и противопожарная (дезинфекция, дезинсекция, дератизация, газация, огнезащитная) обработка помещений | B72: 07 | C72: 02 | D72: 0220270210 | E72: 244 | F72: 225600 | G72: 1000 | H72: 13,200.00 | I72: 18,000.00 | J72: 22,500.00
A73: Содержание, обслуживание помещений и сетей инженерно-технического обеспечения | B73: 07 | C73: 02 | D73: 0220270210 | E73: 244 | F73: 225700 | G73: 1000 | H73: 68,400.00 | I73: 85,500.00 | J73: 106,875.00
A74: Другие расходы | B74: 07 | C74: 02 | D74: 0220270210 | E74: 244 | F74: 225900 | G74: 1000 | H74: 100,000.00 | I74: 100,000.00 | J74: 100,000.00
A75: Аттестация | B75: 07 | C75: 02 | D75: 0220270210 | E75: 244 | F75: 226200 | G75: 1000
A76: Ведомственная, вневедомственная, пожарная охрана | B76: 07 | C76: 02 | D76: 0220270210 | E76: 244 | F76: 226400 | G76: 1000 | H76: 79,400.00 | I76: 99,250.00 | J76: 124,062.50
A77: Медицинский осмотр водителей транспортных средств | B77: 07 | C77: 02 | D77: 0220270210 | E77: 244 | F77: 226500 | G77: 1000 | H77: 195,300.00 | I77: 244,125.00 | J77: 305,156.25
A78: Медицинский осмотр работников учрежждений, за исключением водителей транспортных средств | B78: 07 | C78: 02 | D78: 0220270210 | E78: 244 | F78: 226800 | G78: 1000 | H78: 335,000.00 | I78: 337,000.00 | J78: 337,000.00
A79: Другие расходы | B79: 07 | C79: 02 | D79: 0220270210 | E79: 244 | F79: 226900 | G79: 1000 | H79: 100,000.00 | I79: 100,000.00 | J79: 100,000.00
A80: Обязательное страхование автогражданской ответственности | B80: 07 | C80: 02 | D80: 0220270210 | E80: 244 | F80: 227200 | G80: 1000 | H80: 14,000.00 | I80: 14,000.00 | J80: 16,000.00
A81: Приобретение предметов длительного пользования (оборудование, мебель,компьютерная техника и т.п.) стоимостью свыше 3000 рублей | B81: 07 | C81: 02 | D81: 0220270210 | E81: 244 | F81: 310100 | G81: 1000 | H81: 40,000.00 | I81: 40,000.00 | J81: 40,000.00
A82: Другие расходы стоимостью до 3000,00 рублей | B82: 07 | C82: 02 | D82: 0220270210 | E82: 244 | F82: 310900 | G82: 1000 | H82: 30,000.00 | I82: 30,000.00 | J82: 30,000.00
A83: Приобретение строительных материалов | B83: 07 | C83: 02 | D83: 0220270210 | E83: 244 | F83: 344000 | G83: 1000 | H83: 40,000.00 | I83: 40,000.00 | J83: 40,000.00
A84: Мягкий инвентарь | B84: 07 | C84: 02 | D84: 0220270210 | E84: 244 | F84: 345000 | G84: 1000 | H84: 22,500.00 | I84: 22,500.00 | J84: 22,500.00
A85: Увеличение стоимости прочих оборотных запасов (материалов) | B85: 07 | C85: 02 | D85: 0220270210 | E85: 244 | F85: 346000 | G85: 1000 | H85: 80,000.00 | I85: 80,000.00 | J85: 80,000.00
A86: Налог на имущество | B86: 07 | C86: 02 | D86: 0220270210 | E86: 851 | F86: 291200 | G86: 1000 | H86: 60,238.00 | I86: 60,238.00 | J86: 60,238.00
A87: Земельный залог | B87: 07 | C87: 02 | D87: 0220270210 | E87: 851 | F87: 291300 | G87: 1000 | H87: 25,281.00 | I87: 25,281.00 | J87: 25,281.00
A88: Транспотный налог | B88: 07 | C88: 02 | D88: 0220270210 | E88: 852 | F88: 291400 | G88: 1000 | H88: 37,790.00 | I88: 37,790.00 | J88: 37,790.00
A89: Итого по КЦ 1000 | H89: =SUM(H62:H88) -> 12,398,678.78 | I89: =SUM(I62:I88) -> 13,879,548.15 | J89: 14,290,031.45
A90: Средства, полученные от оказания платных услуг, безвозмездных поступлений (КЦ 8000)
A91: Продукты питания | B91: 07 | C91: 01 | D91: 0220170200 | E91: 244 | F91: 342000 | G91: 8000 | H91: 5,000,000.00 | I91: 5,800,000.00 | J91: 5,800,000.00
A92: Итого по КЦ 8000 | H92: =SUM(H91) -> 5,000,000.00 | I92: =SUM(I91) -> 5,800,000.00 | J92: 5,800,000.00
A93: Субвенции на обеспечение гос.гарантий реализации прав на получение общедоступного и бесплатного дошкольного образования в муниципальных дошкольных образовательных организациях, общедоступного и бесплатного дошкольного, начального общего, основного общего, среднего общего образования в муниципальных общеобразовательных организациях, обеспечение дополнительного образования детей в муниципальных общеобразовательных организациях (КЦ 24219)
A95: Заработная плата | B95: 07 | C95: 01 | D95: 0220142190 | E95: 111 | F95: 211000 | G95: 23424219000219
A96: Начисления на выплаты по оплате труда | B96: 07 | C96: 01 | D96: 0220142190 | E96: 119 | F96: 213000 | G96: 23424219000219
A97: Услуги связи (интернет) | B97: 07 | C97: 01 | D97: 0220142190 | E97: 244 | F97: 221200 | G97: 23424219000219
A98: Итого субвенция 0701 (КЦ 24219) | H98: =SUM(H95:H97) -> 0.00 | I98: =SUM(I95:I97) -> 0.00 | J98: 0.00
A99: Заработная плата | B99: 07 | C99: 02 | D99: 0220242190 | E99: 111 | F99: 211000 | G99: 23424219000219
A100: Начисления на выплаты по оплате труда | B100: 07 | C100: 02 | D100: 0220242190 | E100: 119 | F100: 213000 | G100: 23424219000219
A101: Услуги связи (интернет) | B101: 07 | C101: 02 | D101: 0220242190 | E101: 244 | F101: 221200 | G101: 23424219000219
A102: Мероприятия по переподготовке и повышению квалификации кадров | B102: 07 | C102: 05 | D102: 0220242190 | E102: 244 | F102: 226700 | G102: 23424219000219
A103: Итого субвенция 0702 (КЦ 24219) | H103: =SUM(H99:H102) -> 0.00 | I103: =SUM(I99:I102) -> 0.00 | J103: 0.00
A104: Итого по КЦ 24219 | H104: =H98+H103 -> 0.00 | I104: =I98+I103 -> 0.00 | J104: 0.00
A105: Субсидии на проведение мероприятий по обеспечению деятельности советников директора по воспитанию и взаимодействию с детским общественными объединениями в образовательных организациях
A106: Заработная плата | B106: 07 | C106: 02 | D106: 022EВ51790 | E106: 111 | F106: 211000 | G106: 23-51790-00000-00000
A107: Начисления на выплаты по оплате труда | B107: 07 | C107: 02 | D107: 022EВ51790 | E107: 119 | F107: 213000 | G107: 23-51790-00000-00000
A108: Итого по КЦ 24320, 1000 | H108: =SUM(H106:H107) -> 0.00 | I108: =SUM(I106:I107) -> 0.00 | J108: 0.00
A109: Всего | H109: =H60+H89+H92+H104+H108 -> 29,362,514.64 | I109: =I60+I89+I92+I104+I108 -> 33,521,479.18 | J109: 34,259,965.64
A111: Директор | E111: О.В. Высоцкая
A112: (уполномоченное лицо) | B112: (подпись) | E112: (расшифровка подписи)
A114: Гл.бухгалтер МУ "ЦБ № 1" | F114: И.В. Ананьева
A115: (уполномоченное лицо) | B115: (подпись) | F115: (расшифровка подписи)
A117: Ведущий экономист ПЭО | F117: И.В. Пружинина
A118: (исполнитель) | B118: (подпись) | F118: (расшифровка подписи)

Sheet 14.01
N1: Приложение №2
N2: к Порядку составления, утверждения
N3: и ведения бюджетных смет Администрации
N4: Прионежского муниципального района
N5: и казенных учреждений, находящихся
N6: в ведении Администрации Прионежского
N7: муниципального района
N8: от 30 декабря 2022 № 1390
F9: УТВЕРЖДАЮ
F10: Глава Администрации Прионежского муниципального района
F11: (наименование должности лица, согласующего бюджетную смету)
F13: Администрация Прионежского муниципального района
F14: (наименование главного распорядителя (распорядителя) бюджетных средств; учреждения)
K16: Г.Н. Шемет
F17: (подпись) (расшифровка подписи)
H19: 14 января 2025 года
B21: ИЗМЕНЕНИЯ К БЮДЖЕТНОЙ СМЕТЕ НА 2025 ФИНАНСОВЫЙ ГОД И ПЛАНОВЫЙ ПЕРИОД 2026 и 2027 ГОДОВ
B24: СПРАВКА №№015/00406/004, 015/00406/004 от | G24: =H19 -> 14 января 2025 года | P24: КОДЫ
O25: Форма по ОКУД | P25: 0501012
O26: Дата | P26: =H19 -> 14 января 2025 года
B27: Муниципальное общеобразовательное учреждение Шуйская средняя общеобразовательная школа №1 | O27: по ОКПО | P27: 77446968
A28: Получатель бюджетных средств
A29: Распорядитель бюджетных средств | B29: Администрация Прионежского муниципального района
A30: Главный распорядитель бюджетных средств | B30: Администрация Прионежского муниципального района | O30: Глава по БК | P30: 015
A31: Наименование бюджета | B31: Бюджет Прионежского муниципального района | O31: по ОКТМО | P31: 86636470
A32: Единица измерения: | B32: руб. | O32: по ОКЕЙ | P32: 383
A33: Наименование показателя (детализация кода бюджетной классификации) | B33: РЗ | C33: ПР | D33: ЦСР | E33: Вид расхода | F33: Детализация | G33: Вид целевых средств | H33: Сумма на текущий год | K33: Сумма на первый год планового периода (руб) | N33: Сумма на второй год планового периода (руб.)
H34: 2024-12-17 | I34: изменения (+/-) | J34: ИТОГО | K34: 2024-12-17 | L34: изменения (+/-) | M34: ИТОГО | N34: 2024-12-17 | O34: изменения (+/-) | P34: ИТОГО
A35: 1 | B35: =SUM(A35+1) -> 2 | C35: 3 | D35: 4 | E35: 5 | F35: 6 | G35: 7 | H35: 8 | I35: 9 | J35: 10 | K35: 11 | L35: 12 | M35: 13 | N35: 14 | O35: 15 | P35: 16
A36: Средства местного бюджета (КЦ 1000)
A37: Заработная плата | B37: 07 | C37: 01 | D37: 0220170200 | E37: 111 | F37: 211000 | G37: 1000 | H37: 3,118,153.92 | J37: =H37+I37 -> 3,118,153.92 | K37: 3,118,153.92 | M37: =K37+L37 -> 3,118,153.92 | N37: 3,118,153.92 | P37: =N37+O37 -> 3,118,153.92
A38: Расходы по оплате проезда к месту отпуска и обратно отдельным категориям лиц (для лиц, работающих в районах Крайнего Севера и приравненных к ним местностях, и членов их семей) | B38: 07 | C38: 01 | D38: 0220170200 | E38: 112 | F38: 214000 | G38: 1000 | H38: 30,000.00 | J38: =H38+I38 -> 30,000.00 | K38: 20,000.00 | M38: =K38+L38 -> 20,000.00 | N38: 20,000.00 | P38: =N38+O38 -> 20,000.00
A39: Начисления на выплаты по оплате труда | B39: 07 | C39: 01 | D39: 0220170200 | E39: 119 | F39: 213000 | G39: 1000 | H39: 941,682.48 | J39: 941,682.48 | K39: 941,682.48 | M39: 941,682.48 | N39: 941,682.48 | P39: 941,682.48
A40: Услуги связи (телефон) | B40: 07 | C40: 01 | D40: 0220170200 | E40: 244 | F40: 221100 | G40: 1000 | H40: 13,200.00 | J40: 13,200.00 | K40: 13,200.00 | M40: 13,200.00 | N40: 14,400.00 | P40: 14,400.00
A41: Услуги связи (почта) | B41: 07 | C41: 01 | D41: 0220170200 | E41: 244 | F41: 221300 | G41: 1000 | J41: 0.00 | M41: 0.00 | P41: 0.00
A42: Отопление, горячее водоснабжение и газоснабжение | B42: 07 | C42: 01 | D42: 0220170200 | E42: 247 | F42: 223100 | G42: 1000 | H42: 1,128,402.16 | J42: 1,128,402.16 | K42: 1,663,178.53 | M42: 1,663,178.53 | N42: 1,742,199.20 | P42: 1,742,199.20
A43: Электроэнергия | B43: 07 | C43: 01 | D43: 0220170200 | E43: 247 | F43: 223200 | G43: 1000 | H43: 2,603,931.30 | J43: 2,603,931.30 | K43: 3,686,539.68 | M43: 3,686,539.68 | N43: 3,858,393.83 | P43: 3,858,393.83
A44: Холодное водоснабжение | B44: 07 | C44: 01 | D44: 0220170200 | E44: 247 | F44: 223300 | G44: 1000 | H44: 191,606.53 | J44: 191,606.53 | K44: 272,469.54 | M44: 272,469.54 | N44: 287,640.02 | P44: 287,640.02
A45: Водоотведение | B45: 07 | C45: 01 | D45: 0220170200 | E45: 247 | F45: 223400 | G45: 1000 | H45: 251,490.90 | J45: 251,490.90 | K45: 536,497.88 | M45: 536,497.88 | N45: 562,394.55 | P45: 562,394.55
A46: Вывоз бытовых отходов | B46: 07 | C46: 01 | D46: 0220170200 | E46: 244 | F46: 223500 | G46: 1000 | H46: 91,133.73 | J46: 91,133.73 | K46: 129,337.08 | M46: 129,337.08 | N46: 131,873.02 | P46: 131,873.02
A47: Санитарная и противопожарная (дезинфекция, дезинсекция, дератизация, газация, огнезащитная) обработка помещений | B47: 07 | C47: 01 | D47: 0220170200 | E47: 244 | F47: 225600 | G47: 1000 | H47: 185,400.00 | J47: 185,400.00 | K47: 35,400.00 | M47: 35,400.00 | N47: 39,000.00 | P47: 39,000.00
A48: Содержание и обслуживание помещений | B48: 07 | C48: 01 | D48: 0220170200 | E48: 244 | F48: 225700 | G48: 1000 | H48: 249,550.00 | I48: -25,800.00 | J48: 223,750.00 | K48: 249,550.00 | M48: 249,550.00 | N48: 263,500.00 | P48: 263,500.00
A49: Другие расходы | B49: 07 | C49: 01 | D49: 0220170200 | E49: 244 | F49: 225900 | G49: 1000 | H49: 50,000.00 | J49: 50,000.00 | K49: 50,000.00 | M49: 50,000.00 | N49: 50,000.00 | P49: 50,000.00
A50: Аттестация | B50: 07 | C50: 01 | D50: 0220170200 | E50: 244 | F50: 226200 | G50: 1000 | H50: 10,000.00 | J50: 10,000.00 | K50: 10,000.00 | M50: 10,000.00 | N50: 10,000.00 | P50: 10,000.00
A51: Ведомственная, вневедомственная, пожарная охрана | B51: 07 | C51: 01 | D51: 0220170200 | E51: 244 | F51: 226400 | G51: 1000 | H51: 73,700.00 | J51: 73,700.00 | K51: 78,564.20 | M51: 78,564.20 | N51: 83,749.44 | P51: 83,749.44
A52: Медицинский осмотр работников учрежждений, за исключением водителей транспортных средств | B52: 07 | C52: 01 | D52: 0220170200 | E52: 244 | F52: 226800 | G52: 1000 | H52: 222,129.84 | J52: 222,129.84 | K52: 233,902.72 | M52: 233,902.72 | N52: 243,492.73 | P52: 243,492.73
A53: Другие расходы | B53: 07 | C53: 01 | D53: 0220170200 | E53: 244 | F53: 226900 | G53: 1000 | H53: 50,000.00 | J53: 50,000.00 | K53: 50,000.00 | M53: 50,000.00 | N53: 50,000.00 | P53: 50,000.00
A54: Приобретение предметов длительного пользования (оборудование, мебель,компьютерная техника и т.п.) стоимостью свыше 3000 рублей | B54: 07 | C54: 01 | D54: 0220170200 | E54: 244 | F54: 310100 | G54: 1000 | H54: 40,000.00 | J54: 40,000.00 | K54: 40,000.00 | M54: 40,000.00 | N54: 40,000.00 | P54: 40,000.00
A55: Другие расходы стоимостью до 3000,00 рублей | B55: 07 | C55: 01 | D55: 0220170200 | E55: 244 | F55: 310900 | G55: 1000 | H55: 30,000.00 | J55: 30,000.00 | K55: 30,000.00 | M55: 30,000.00 | N55: 30,000.00 | P55: 30,000.00
A56: Продукты питания | B56: 07 | C56: 01 | D56: 0220170200 | E56: 244 | F56: 342000 | G56: 1000 | H56: 1,330,236.00 | J56: 1,330,236.00 | K56: 1,330,236.00 | M56: 1,330,236.00 | N56: 1,330,236.00 | P56: 1,330,236.00
A57: Увеличение стоимости прочих оборотных запасов (материалов) | B57: 07 | C57: 01 | D57: 0220170200 | E57: 244 | F57: 346000 | G57: 1000 | H57: 80,000.00 | J57: 80,000.00 | K57: 80,000.00 | M57: 80,000.00 | N57: 80,000.00 | P57: 80,000.00
A58: Налог на имущество | B58: 07 | C58: 01 | D58: 0220170200 | E58: 851 | F58: 291200 | G58: 1000 | H58: 1,256,402.00 | J58: 1,256,402.00 | K58: 1,256,402.00 | M58: 1,256,402.00 | N58: 1,256,402.00 | P58: 1,256,402.00
A59: Земельный налог | B59: 07 | C59: 01 | D59: 0220170200 | E59: 851 | F59: 291300 | G59: 1000 | H59: 16,817.00 | J59: 16,817.00 | K59: 16,817.00 | M59: 16,817.00 | N59: 16,817.00 | P59: 16,817.00
A60: Итого по КЦ 1000 | H60: =SUM(H37:H59) -> 11,963,835.86 | I60: =SUM(I37:I59) -> -25,800.00 | J60: 11,938,035.86 | K60: 13,841,931.03 | L60: 0.00 | M60: 13,841,931.03 | N60: 14,169,934.19 | O60: 0.00 | P60: 14,169,934.19
A61: Средства местного бюджета (КЦ 1000)
A62: Заработная плата | B62: 07 | C62: 02 | D62: 0220270210 | E62: 111 | F62: 211000 | G62: 1000 | H62: 4,488,786.72 | J62: =H62+I62 -> 4,488,786.72 | K62: 4,488,786.72 | M62: =K62+L62 -> 4,488,786.72 | N62: 4,488,786.72 | P62: =N62+O62 -> 4,488,786.72
A63: Расходы по оплате проезда к месту отпуска и обратно отдельным категориям лиц (для лиц, работающих в районах Крайнего Севера и приравненных к ним местностях, и членов их семей) | B63: 07 | C63: 02 | D63: 0220270210 | E63: 112 | F63: 214000 | G63: 1000 | H63: 30,000.00 | J63: =H63+I63 -> 30,000.00 | K63: 20,000.00 | M63: =K63+L63 -> 20,000.00 | N63: 20,000.00 | P63: =N63+O63 -> 20,000.00
A64: Начисления на выплаты по оплате труда | B64: 07 | C64: 02 | D64: 0220270210 | E64: 119 | F64: 213000 | G64: 1000 | H64: 1,355,613.59 | J64: 1,355,613.59 | K64: 1,355,613.59 | M64: 1,355,613.59 | N64: 1,355,613.59 | P64: 1,355,613.59
A65: Услуги связи (телефон) | B65: 07 | C65: 02 | D65: 0220270210 | E65: 244 | F65: 221100 | G65: 1000 | J65: 0.00 | M65: 0.00 | P65: 0.00
A66: Услуги связи (почта) | B66: 07 | C66: 02 | D66: 0220270210 | E66: 244 | F66: 221300 | G66: 1000 | J66: 0.00 | M66: 0.00 | P66: 0.00
A67: Отопление, горячее водоснабжение и газоснабжение | B67: 07 | C67: 02 | D67: 0220270210 | E67: 247 | F67: 223100 | G67: 1000 | H67: 3,576,721.75 | J67: 3,576,721.75 | K67: 4,226,794.10 | M67: 4,226,794.10 | N67: 4,420,314.89 | P67: 4,420,314.89
A68: Электроэнергия | B68: 07 | C68: 02 | D68: 0220270210 | E68: 247 | F68: 223200 | G68: 1000 | H68: 1,343,722.52 | J68: 1,343,722.52 | K68: 1,902,380.60 | M68: 1,902,380.60 | N68: 1,983,351.63 | P68: 1,983,351.63
A69: Холодное водоснабжение | B69: 07 | C69: 02 | D69: 0220270210 | E69: 247 | F69: 223300 | G69: 1000 | H69: 121,057.60 | J69: 121,057.60 | K69: 172,092.96 | M69: 172,092.96 | N69: 179,678.20 | P69: 179,678.20
A70: Водоотведение | B70: 07 | C70: 02 | D70: 0220270210 | E70: 247 | F70: 223400 | G70: 1000 | H70: 182,131.20 | J70: 182,131.20 | K70: 295,668.96 | M70: 295,668.96 | N70: 308,699.12 | P70: 308,699.12
A71: Вывоз бытовых отходов | B71: 07 | C71: 02 | D71: 0220270210 | E71: 244 | F71: 223500 | G71: 1000 | H71: 59,536.40 | J71: 59,536.40 | K71: 84,527.22 | M71: 84,527.22 | N71: 86,184.55 | P71: 86,184.55
A72: Санитарная и противопожарная (дезинфекция, дезинсекция, дератизация, газация, огнезащитная) обработка помещений | B72: 07 | C72: 02 | D72: 0220270210 | E72: 244 | F72: 225600 | G72: 1000 | H72: 13,200.00 | J72: 13,200.00 | K72: 18,000.00 | M72: 18,000.00 | N72: 22,500.00 | P72: 22,500.00
A73: Содержание, обслуживание помещений и сетей инженерно-технического обеспечения | B73: 07 | C73: 02 | D73: 0220270210 | E73: 244 | F73: 225700 | G73: 1000 | H73: 68,400.00 | I73: 25,800.00 | J73: 94,200.00 | K73: 85,500.00 | M73: 85,500.00 | N73: 106,875.00 | P73: 106,875.00
A74: Другие расходы | B74: 07 | C74: 02 | D74: 0220270210 | E74: 244 | F74: 225900 | G74: 1000 | H74: 100,000.00 | J74: 100,000.00 | K74: 100,000.00 | M74: 100,000.00 | N74: 100,000.00 | P74: 100,000.00
A75: Аттестация | B75: 07 | C75: 02 | D75: 0220270210 | E75: 244 | F75: 226200 | G75: 1000 | J75: 0.00 | M75: 0.00 | P75: 0.00
A76: Ведомственная, вневедомственная, пожарная охрана | B76: 07 | C76: 02 | D76: 0220270210 | E76: 244 | F76: 226400 | G76: 1000 | H76: 79,400.00 | J76: 79,400.00 | K76: 99,250.00 | M76: 99,250.00 | N76: 124,062.50 | P76: 124,062.50
A77: Медицинский осмотр водителей транспортных средств | B77: 07 | C77: 02 | D77: 0220270210 | E77: 244 | F77: 226500 | G77: 1000 | H77: 195,300.00 | J77: 195,300.00 | K77: 244,125.00 | M77: 244,125.00 | N77: 305,156.25 | P77: 305,156.25
A78: Медицинский осмотр работников учрежждений, за исключением водителей транспортных средств | B78: 07 | C78: 02 | D78: 0220270210 | E78: 244 | F78: 226800 | G78: 1000 | H78: 335,000.00 | J78: 335,000.00 | K78: 337,000.00 | M78: 337,000.00 | N78: 337,000.00 | P78: 337,000.00
A79: Другие расходы | B79: 07 | C79: 02 | D79: 0220270210 | E79: 244 | F79: 226900 | G79: 1000 | H79: 100,000.00 | J79: 100,000.00 | K79: 100,000.00 | M79: 100,000.00 | N79: 100,000.00 | P79: 100,000.00
A80: Обязательное страхование автогражданской ответственности | B80: 07 | C80: 02 | D80: 0220270210 | E80: 244 | F80: 227200 | G80: 1000 | H80: 14,000.00 | J80: 14,000.00 | K80: 14,000.00 | M80: 14,000.00 | N80: 16,000.00 | P80: 16,000.00
A81: Приобретение предметов длительного пользования (оборудование, мебель,компьютерная техника и т.п.) стоимостью свыше 3000 рублей | B81: 07 | C81: 02 | D81: 0220270210 | E81: 244 | F81: 310100 | G81: 1000 | H81: 40,000.00 | J81: 40,000.00 | K81: 40,000.00 | M81: 40,000.00 | N81: 40,000.00 | P81: 40,000.00
A82: Другие расходы стоимостью до 3000,00 рублей | B82: 07 | C82: 02 | D82: 0220270210 | E82: 244 | F82: 310900 | G82: 1000 | H82: 30,000.00 | J82: 30,000.00 | K82: 30,000.00 | M82: 30,000.00 | N82: 30,000.00 | P82: 30,000.00
A83: Приобретение строительных материалов | B83: 07 | C83: 02 | D83: 0220270210 | E83: 244 | F83: 344000 | G83: 1000 | H83: 40,000.00 | J83: 40,000.00 | K83: 40,000.00 | M83: 40,000.00 | N83: 40,000.00 | P83: 40,000.00
A84: Мягкий инвентарь | B84: 07 | C84: 02 | D84: 0220270210 | E84: 244 | F84: 345000 | G84: 1000 | H84: 22,500.00 | J84: 22,500.00 | K84: 22,500.00 | M84: 22,500.00 | N84: 22,500.00 | P84: 22,500.00
A85: Увеличение стоимости прочих оборотных запасов (материалов) | B85: 07 | C85: 02 | D85: 0220270210 | E85: 244 | F85: 346000 | G85: 1000 | H85: 80,000.00 | J85: 80,000.00 | K85: 80,000.00 | M85: 80,000.00 | N85: 80,000.00 | P85: 80,000.00
A86: Налог на имущество | B86: 07 | C86: 02 | D86: 0220270210 | E86: 851 | F86: 291200 | G86: 1000 | H86: 60,238.00 | J86: 60,238.00 | K86: 60,238.00 | M86: 60,238.00 | N86: 60,238.00 | P86: 60,238.00
A87: Земельный залог | B87: 07 | C87: 02 | D87: 0220270210 | E87: 851 | F87: 291300 | G87: 1000 | H87: 25,281.00 | J87: 25,281.00 | K87: 25,281.00 | M87: 25,281.00 | N87: 25,281.00 | P87: 25,281.00
A88: Транспотный налог | B88: 07 | C88: 02 | D88: 0220270210 | E88: 852 | F88: 291400 | G88: 1000 | H88: 37,790.00 | J88: 37,790.00 | K88: 37,790.00 | M88: 37,790.00 | N88: 37,790.00 | P88: 37,790.00
A89: Итого по КЦ 1000 | H89: =SUM(H62:H88) -> 12,398,678.78 | I89: =SUM(I62:I88) -> 25,800.00 | J89: 12,424,478.78 | K89: 13,879,548.15 | L89: 0.00 | M89: 13,879,548.15 | N89: 14,290,031.45 | O89: 0.00 | P89: 14,290,031.45
A90: Средства, полученные от оказания платных услуг, безвозмездных поступлений (КЦ 8000)
A91: Продукты питания | B91: 07 | C91: 01 | D91: 0220170200 | E91: 244 | F91: 342000 | G91: 8000 | H91: 5,000,000.00 | J91: =H91+I91 -> 5,000,000.00 | K91: 5,800,000.00 | M91: =K91+L91 -> 5,800,000.00 | N91: 5,800,000.00 | P91: =N91+O91 -> 5,800,000.00
A92: Итого по КЦ 8000 | H92: =SUM(H91) -> 5,000,000.00 | I92: =SUM(I91) -> 0.00 | J92: 5,000,000.00 | K92: 5,800,000.00 | L92: 0.00 | M92: 5,800,000.00 | N92: 5,800,000.00 | O92: 0.00 | P92: 5,800,000.00
A93: Субвенции на обеспечение гос.гарантий реализации прав на получение общедоступного и бесплатного дошкольного образования в муниципальных дошкольных образовательных организациях, общедоступного и бесплатного дошкольного, начального общего, основного общего, среднего общего образования в муниципальных общеобразовательных организациях, обеспечение дополнительного образования детей в муниципальных общеобразовательных организациях (КЦ 24219)
A95: Заработная плата | B95: 07 | C95: 01 | D95: 0220142190 | E95: 111 | F95: 211000 | G95: 23424219000219
A96: Начисления на выплаты по оплате труда | B96: 07 | C96: 01 | D96: 0220142190 | E96: 119 | F96: 213000 | G96: 23424219000219
A97: Услуги связи (интернет) | B97: 07 | C97: 01 | D97: 0220142190 | E97: 244 | F97: 221200 | G97: 23424219000219
A98: Итого субвенция 0701 (КЦ 24219) | H98: =SUM(H95:H97) -> 0.00 | K98: =SUM(K95:K97) -> 0.00 | N98: 0.00
A99: Заработная плата | B99: 07 | C99: 02 | D99: 0220242190 | E99: 111 | F99: 211000 | G99: 23424219000219
A100: Начисления на выплаты по оплате труда | B100: 07 | C100: 02 | D100: 0220242190 | E100: 119 | F100: 213000 | G100: 23424219000219
A101: Услуги связи (интернет) | B101: 07 | C101: 02 | D101: 0220242190 | E101: 244 | F101: 221200 | G101: 23424219000219
A102: Мероприятия по переподготовке и повышению квалификации кадров | B102: 07 | C102: 05 | D102: 0220242190 | E102: 244 | F102: 226700 | G102: 23424219000219
A103: Итого субвенция 0702 (КЦ 24219) | H103: =SUM(H99:H102) -> 0.00 | K103: =SUM(K99:K102) -> 0.00 | N103: 0.00
A104: Итого по КЦ 24219 | H104: =H98+H103 -> 0.00 | K104: =K98+K103 -> 0.00 | N104: 0.00
A105: Субсидии на проведение мероприятий по обеспечению деятельности советников директора по воспитанию и взаимодействию с детским общественными объединениями в образовательных организациях
A106: Заработная плата | B106: 07 | C106: 02 | D106: 022EВ51790 | E106: 111 | F106: 211000 | G106: 23-51790-00000-00000
A107: Начисления на выплаты по оплате труда | B107: 07 | C107: 02 | D107: 022EВ51790 | E107: 119 | F107: 213000 | G107: 23-51790-00000-00000
A108: Итого по КЦ 24320, 1000 | H108: =SUM(H106:H107) -> 0.00 | K108: =SUM(K106:K107) -> 0.00 | N108: 0.00
A109: Всего | H109: =H60+H89+H92+H104+H108 -> 29,362,514.64 | I109: =I60+I89+I92+I104+I108 -> 0.00 | J109: 29,362,514.64 | K109: 33,521,479.18 | L109: 0.00 | M109: 33,521,479.18 | N109: 34,259,965.64 | O109: 0.00 | P109: 34,259,965.64
A111: Директор | E111: О.В. Высоцкая
A112: (уполномоченное лицо) | B112: (подпись) | E112: (расшифровка подписи)
A114: Главный бухгалтер МУ "ЦБ № 1" | F114: И.В. Ананьева
A115: (уполномоченное лицо) | B115: (подпись) | F115: (расшифровка подписи)
A117: Главный экономист ПЭО | F117: И.В. Пружинина
A118: (исполнитель) | B118: (подпись) | F118: (расшифровка подписи)

Sheet 15.01
N1: Приложение №2
N2: к Порядку составления, утверждения
N3: и ведения бюджетных смет Администрации
N4: Прионежского муниципального района
N5: и казенных учреждений, находящихся
N6: в ведении Администрации Прионежского
N7: муниципального района
N8: от 30 декабря 2022 № 1390
F9: УТВЕРЖДАЮ
F10: Глава Администрации Прионежского муниципального района
F11: (наименование должности лица, согласующего бюджетную смету)
F13: Администрация Прионежского муниципального района
F14: (наименование главного распорядителя (распорядителя) бюджетных средств; учреждения)
K16: Г.Н. Шемет
F17: (подпись) (расшифровка подписи)
H19: 15 января 2025 года
B21: ИЗМЕНЕНИЯ К БЮДЖЕТНОЙ СМЕТЕ НА 2025 ФИНАНСОВЫЙ ГОД И ПЛАНОВЫЙ ПЕРИОД 2026 и 2027 ГОДОВ
E24: СПРАВКА №№015/00406/006, 015/00406/007, 015/00406/008 от | J24: =H19 -> 15 января 2025 года | P24: КОДЫ
O25: Форма по ОКУД | P25: 0501012
O26: Дата | P26: =H19 -> 15 января 2025 года
B27: Муниципальное общеобразовательное учреждение Шуйская средняя общеобразовательная школа №1 | O27: по ОКПО | P27: 77446968
A28: Получатель бюджетных средств
A29: Распорядитель бюджетных средств | B29: Администрация Прионежского муниципального района
A30: Главный распорядитель бюджетных средств | B30: Администрация Прионежского муниципального района | O30: Глава по БК | P30: 015
A31: Наименование бюджета | B31: Бюджет Прионежского муниципального района | O31: по ОКТМО | P31: 86636470
A32: Единица измерения: | B32: руб. | O32: по ОКЕЙ | P32: 383
A33: Наименование показателя (детализация кода бюджетной классификации) | B33: РЗ | C33: ПР | D33: ЦСР | E33: Вид расхода | F33: Детализация | G33: Вид целевых средств | H33: Сумма на текущий год | K33: Сумма на первый год планового периода (руб) | N33: Сумма на второй год планового периода (руб.)
H34: 2025-01-14 | I34: изменения (+/-) | J34: ИТОГО | K34: =H34 -> 2025-01-14 | L34: изменения (+/-) | M34: ИТОГО | N34: =H34 -> 2025-01-14 | O34: изменения (+/-) | P34: ИТОГО
A35: 1 | B35: =SUM(A35+1) -> 2 | C35: 3 | D35: 4 | E35: 5 | F35: 6 | G35: 7 | H35: 8 | I35: 9 | J35: 10 | K35: 11 | L35: 12 | M35: 13 | N35: 14 | O35: 15 | P35: 16
A36: Средства местного бюджета (КЦ 1000)
A37: Заработная плата | B37: 07 | C37: 01 | D37: 0220170200 | E37: 111 | F37: 211000 | G37: 1000 | H37: 3,118,153.92 | J37: =H37+I37 -> 3,118,153.92 | K37: 3,118,153.92 | M37: =K37+L37 -> 3,118,153.92 | N37: 3,118,153.92 | P37: =N37+O37 -> 3,118,153.92
A38: Расходы по оплате проезда к месту отпуска и обратно отдельным категориям лиц (для лиц, работающих в районах Крайнего Севера и приравненных к ним местностях, и членов их семей) | B38: 07 | C38: 01 | D38: 0220170200 | E38: 112 | F38: 214000 | G38: 1000 | H38: 30,000.00 | J38: =H38+I38 -> 30,000.00 | K38: 20,000.00 | M38: =K38+L38 -> 20,000.00 | N38: 20,000.00 | P38: =N38+O38 -> 20,000.00
A39: Начисления на выплаты по оплате труда | B39: 07 | C39: 01 | D39: 0220170200 | E39: 119 | F39: 213000 | G39: 1000 | H39: 941,682.48 | J39: 941,682.48 | K39: 941,682.48 | M39: 941,682.48 | N39: 941,682.48 | P39: 941,682.48
A40: Услуги связи (телефон) | B40: 07 | C40: 01 | D40: 0220170200 | E40: 244 | F40: 221100 | G40: 1000 | H40: 13,200.00 | J40: 13,200.00 | K40: 13,200.00 | M40: 13,200.00 | N40: 14,400.00 | P40: 14,400.00
A41: Услуги связи (почта) | B41: 07 | C41: 01 | D41: 0220170200 | E41: 244 | F41: 221300 | G41: 1000 | J41: 0.00 | M41: 0.00 | P41: 0.00
A42: Отопление, горячее водоснабжение и газоснабжение | B42: 07 | C42: 01 | D42: 0220170200 | E42: 247 | F42: 223100 | G42: 1000 | H42: 1,128,402.16 | J42: 1,128,402.16 | K42: 1,663,178.53 | M42: 1,663,178.53 | N42: 1,742,199.20 | P42: 1,742,199.20
A43: Электроэнергия | B43: 07 | C43: 01 | D43: 0220170200 | E43: 247 | F43: 223200 | G43: 1000 | H43: 2,603,931.30 | J43: 2,603,931.30 | K43: 3,686,539.68 | M43: 3,686,539.68 | N43: 3,858,393.83 | P43: 3,858,393.83
A44: Холодное водоснабжение | B44: 07 | C44: 01 | D44: 0220170200 | E44: 247 | F44: 223300 | G44: 1000 | H44: 191,606.53 | J44: 191,606.53 | K44: 272,469.54 | M44: 272,469.54 | N44: 287,640.02 | P44: 287,640.02
A45: Водоотведение | B45: 07 | C45: 01 | D45: 0220170200 | E45: 247 | F45: 223400 | G45: 1000 | H45: 251,490.90 | J45: 251,490.90 | K45: 536,497.88 | M45: 536,497.88 | N45: 562,394.55 | P45: 562,394.55
A46: Вывоз бытовых отходов | B46: 07 | C46: 01 | D46: 0220170200 | E46: 244 | F46: 223500 | G46: 1000 | H46: 91,133.73 | J46: 91,133.73 | K46: 129,337.08 | M46: 129,337.08 | N46: 131,873.02 | P46: 131,873.02
A47: Санитарная и противопожарная (дезинфекция, дезинсекция, дератизация, газация, огнезащитная) обработка помещений | B47: 07 | C47: 01 | D47: 0220170200 | E47: 244 | F47: 225600 | G47: 1000 | H47: 185,400.00 | J47: 185,400.00 | K47: 35,400.00 | M47: 35,400.00 | N47: 39,000.00 | P47: 39,000.00
A48: Содержание и обслуживание помещений | B48: 07 | C48: 01 | D48: 0220170200 | E48: 244 | F48: 225700 | G48: 1000 | H48: 223,750.00 | J48: 223,750.00 | K48: 249,550.00 | M48: 249,550.00 | N48: 263,500.00 | P48: 263,500.00
A49: Другие расходы | B49: 07 | C49: 01 | D49: 0220170200 | E49: 244 | F49: 225900 | G49: 1000 | H49: 50,000.00 | I49: 40,000.00 | J49: 90,000.00 | K49: 50,000.00 | M49: 50,000.00 | N49: 50,000.00 | P49: 50,000.00
A50: Аттестация | B50: 07 | C50: 01 | D50: 0220170200 | E50: 244 | F50: 226200 | G50: 1000 | H50: 10,000.00 | J50: 10,000.00 | K50: 10,000.00 | M50: 10,000.00 | N50: 10,000.00 | P50: 10,000.00
A51: Ведомственная, вневедомственная, пожарная охрана | B51: 07 | C51: 01 | D51: 0220170200 | E51: 244 | F51: 226400 | G51: 1000 | H51: 73,700.00 | J51: 73,700.00 | K51: 78,564.20 | M51: 78,564.20 | N51: 83,749.44 | P51: 83,749.44
A52: Медицинский осмотр работников учрежждений, за исключением водителей транспортных средств | B52: 07 | C52: 01 | D52: 0220170200 | E52: 244 | F52: 226800 | G52: 1000 | H52: 222,129.84 | J52: 222,129.84 | K52: 233,902.72 | M52: 233,902.72 | N52: 243,492.73 | P52: 243,492.73
A53: Другие расходы | B53: 07 | C53: 01 | D53: 0220170200 | E53: 244 | F53: 226900 | G53: 1000 | H53: 50,000.00 | J53: 50,000.00 | K53: 50,000.00 | M53: 50,000.00 | N53: 50,000.00 | P53: 50,000.00
A54: Приобретение предметов длительного пользования (оборудование, мебель,компьютерная техника и т.п.) стоимостью свыше 3000 рублей | B54: 07 | C54: 01 | D54: 0220170200 | E54: 244 | F54: 310100 | G54: 1000 | H54: 40,000.00 | J54: 40,000.00 | K54: 40,000.00 | M54: 40,000.00 | N54: 40,000.00 | P54: 40,000.00
A55: Другие расходы стоимостью до 3000,00 рублей | B55: 07 | C55: 01 | D55: 0220170200 | E55: 244 | F55: 310900 | G55: 1000 | H55: 30,000.00 | J55: 30,000.00 | K55: 30,000.00 | M55: 30,000.00 | N55: 30,000.00 | P55: 30,000.00
A56: Продукты питания | B56: 07 | C56: 01 | D56: 0220170200 | E56: 244 | F56: 342000 | G56: 1000 | H56: 1,330,236.00 | J56: 1,330,236.00 | K56: 1,330,236.00 | M56: 1,330,236.00 | N56: 1,330,236.00 | P56: 1,330,236.00
A57: Увеличение стоимости прочих оборотных запасов (материалов) | B57: 07 | C57: 01 | D57: 0220170200 | E57: 244 | F57: 346000 | G57: 1000 | H57: 80,000.00 | J57: 80,000.00 | K57: 80,000.00 | M57: 80,000.00 | N57: 80,000.00 | P57: 80,000.00
A58: Налог на имущество | B58: 07 | C58: 01 | D58: 0220170200 | E58: 851 | F58: 291200 | G58: 1000 | H58: 1,256,402.00 | J58: 1,256,402.00 | K58: 1,256,402.00 | M58: 1,256,402.00 | N58: 1,256,402.00 | P58: 1,256,402.00
A59: Земельный налог | B59: 07 | C59: 01 | D59: 0220170200 | E59: 851 | F59: 291300 | G59: 1000 | H59: 16,817.00 | J59: 16,817.00 | K59: 16,817.00 | M59: 16,817.00 | N59: 16,817.00 | P59: 16,817.00
A60: Итого по КЦ 1000 | H60: =SUM(H37:H59) -> 11,938,035.86 | I60: =SUM(I37:I59) -> 40,000.00 | J60: 11,978,035.86 | K60: 13,841,931.03 | L60: 0.00 | M60: 13,841,931.03 | N60: 14,169,934.19 | O60: 0.00 | P60: 14,169,934.19
A61: Средства местного бюджета (КЦ 1000)
A62: Заработная плата | B62: 07 | C62: 02 | D62: 0220270210 | E62: 111 | F62: 211000 | G62: 1000 | H62: 4,488,786.72 | J62: =H62+I62 -> 4,488,786.72 | K62: 4,488,786.72 | M62: =K62+L62 -> 4,488,786.72 | N62: 4,488,786.72 | P62: =N62+O62 -> 4,488,786.72
A63: Расходы по оплате проезда к месту отпуска и обратно отдельным категориям лиц (для лиц, работающих в районах Крайнего Севера и приравненных к ним местностях, и членов их семей) | B63: 07 | C63: 02 | D63: 0220270210 | E63: 112 | F63: 214000 | G63: 1000 | H63: 30,000.00 | J63: =H63+I63 -> 30,000.00 | K63: 20,000.00 | M63: =K63+L63 -> 20,000.00 | N63: 20,000.00 | P63: =N63+O63 -> 20,000.00
A64: Начисления на выплаты по оплате труда | B64: 07 | C64: 02 | D64: 0220270210 | E64: 119 | F64: 213000 | G64: 1000 | H64: 1,355,613.59 | J64: 1,355,613.59 | K64: 1,355,613.59 | M64: 1,355,613.59 | N64: 1,355,613.59 | P64: 1,355,613.59
A65: Услуги связи (телефон) | B65: 07 | C65: 02 | D65: 0220270210 | E65: 244 | F65: 221100 | G65: 1000 | J65: 0.00 | M65: 0.00 | P65: 0.00
A66: Услуги связи (почта) | B66: 07 | C66: 02 | D66: 0220270210 | E66: 244 | F66: 221300 | G66: 1000 | J66: 0.00 | M66: 0.00 | P66: 0.00
A67: Отопление, горячее водоснабжение и газоснабжение | B67: 07 | C67: 02 | D67: 0220270210 | E67: 247 | F67: 223100 | G67: 1000 | H67: 3,576,721.75 | I67: 44,414.58 | J67: 3,621,136.33 | K67: 4,226,794.10 | M67: 4,226,794.10 | N67: 4,420,314.89 | P67: 4,420,314.89
A68: Электроэнергия | B68: 07 | C68: 02 | D68: 0220270210 | E68: 247 | F68: 223200 | G68: 1000 | H68: 1,343,722.52 | J68: 1,343,722.52 | K68: 1,902,380.60 | M68: 1,902,380.60 | N68: 1,983,351.63 | P68: 1,983,351.63
A69: Холодное водоснабжение | B69: 07 | C69: 02 | D69: 0220270210 | E69: 247 | F69: 223300 | G69: 1000 | H69: 121,057.60 | J69: 121,057.60 | K69: 172,092.96 | M69: 172,092.96 | N69: 179,678.20 | P69: 179,678.20
A70: Водоотведение | B70: 07 | C70: 02 | D70: 0220270210 | E70: 247 | F70: 223400 | G70: 1000 | H70: 182,131.20 | J70: 182,131.20 | K70: 295,668.96 | M70: 295,668.96 | N70: 308,699.12 | P70: 308,699.12
A71: Вывоз бытовых отходов | B71: 07 | C71: 02 | D71: 0220270210 | E71: 244 | F71: 223500 | G71: 1000 | H71: 59,536.40 | J71: 59,536.40 | K71: 84,527.22 | M71: 84,527.22 | N71: 86,184.55 | P71: 86,184.55
A72: Санитарная и противопожарная (дезинфекция, дезинсекция, дератизация, газация, огнезащитная) обработка помещений | B72: 07 | C72: 02 | D72: 0220270210 | E72: 244 | F72: 225600 | G72: 1000 | H72: 13,200.00 | J72: 13,200.00 | K72: 18,000.00 | M72: 18,000.00 | N72: 22,500.00 | P72: 22,500.00
A73: Содержание, обслуживание помещений и сетей инженерно-технического обеспечения | B73: 07 | C73: 02 | D73: 0220270210 | E73: 244 | F73: 225700 | G73: 1000 | H73: 94,200.00 | J73: 94,200.00 | K73: 85,500.00 | M73: 85,500.00 | N73: 106,875.00 | P73: 106,875.00
A74: Другие расходы | B74: 07 | C74: 02 | D74: 0220270210 | E74: 244 | F74: 225900 | G74: 1000 | H74: 100,000.00 | I74: 20,000.00 | J74: 120,000.00 | K74: 100,000.00 | M74: 100,000.00 | N74: 100,000.00 | P74: 100,000.00
A75: Аттестация | B75: 07 | C75: 02 | D75: 0220270210 | E75: 244 | F75: 226200 | G75: 1000 | J75: 0.00 | M75: 0.00 | P75: 0.00
A76: Ведомственная, вневедомственная, пожарная охрана | B76: 07 | C76: 02 | D76: 0220270210 | E76: 244 | F76: 226400 | G76: 1000 | H76: 79,400.00 | J76: 79,400.00 | K76: 99,250.00 | M76: 99,250.00 | N76: 124,062.50 | P76: 124,062.50
A77: Медицинский осмотр водителей транспортных средств | B77: 07 | C77: 02 | D77: 0220270210 | E77: 244 | F77: 226500 | G77: 1000 | H77: 195,300.00 | J77: 195,300.00 | K77: 244,125.00 | M77: 244,125.00 | N77: 305,156.25 | P77: 305,156.25
A78: Медицинский осмотр работников учрежждений, за исключением водителей транспортных средств | B78: 07 | C78: 02 | D78: 0220270210 | E78: 244 | F78: 226800 | G78: 1000 | H78: 335,000.00 | J78: 335,000.00 | K78: 337,000.00 | M78: 337,000.00 | N78: 337,000.00 | P78: 337,000.00
A79: Другие расходы | B79: 07 | C79: 02 | D79: 0220270210 | E79: 244 | F79: 226900 | G79: 1000 | H79: 100,000.00 | J79: 100,000.00 | K79: 100,000.00 | M79: 100,000.00 | N79: 100,000.00 | P79: 100,000.00
A80: Обязательное страхование автогражданской ответственности | B80: 07 | C80: 02 | D80: 0220270210 | E80: 244 | F80: 227200 | G80: 1000 | H80: 14,000.00 | J80: 14,000.00 | K80: 14,000.00 | M80: 14,000.00 | N80: 16,000.00 | P80: 16,000.00
A81: Приобретение предметов длительного пользования (оборудование, мебель,компьютерная техника и т.п.) стоимостью свыше 3000 рублей | B81: 07 | C81: 02 | D81: 0220270210 | E81: 244 | F81: 310100 | G81: 1000 | H81: 40,000.00 | J81: 40,000.00 | K81: 40,000.00 | M81: 40,000.00 | N81: 40,000.00 | P81: 40,000.00
A82: Другие расходы стоимостью до 3000,00 рублей | B82: 07 | C82: 02 | D82: 0220270210 | E82: 244 | F82: 310900 | G82: 1000 | H82: 30,000.00 | J82: 30,000.00 | K82: 30,000.00 | M82: 30,000.00 | N82: 30,000.00 | P82: 30,000.00
A83: Приобретение строительных материалов | B83: 07 | C83: 02 | D83: 0220270210 | E83: 244 | F83: 344000 | G83: 1000 | H83: 40,000.00 | J83: 40,000.00 | K83: 40,000.00 | M83: 40,000.00 | N83: 40,000.00 | P83: 40,000.00
A84: Мягкий инвентарь | B84: 07 | C84: 02 | D84: 0220270210 | E84: 244 | F84: 345000 | G84: 1000 | H84: 22,500.00 | J84: 22,500.00 | K84: 22,500.00 | M84: 22,500.00 | N84: 22,500.00 | P84: 22,500.00
A85: Увеличение стоимости прочих оборотных запасов (материалов) | B85: 07 | C85: 02 | D85: 0220270210 | E85: 244 | F85: 346000 | G85: 1000 | H85: 80,000.00 | I85: -44,414.58 | J85: 35,585.42 | K85: 80,000.00 | M85: 80,000.00 | N85: 80,000.00 | P85: 80,000.00
A86: Налог на имущество | B86: 07 | C86: 02 | D86: 0220270210 | E86: 851 | F86: 291200 | G86: 1000 | H86: 60,238.00 | J86: 60,238.00 | K86: 60,238.00 | M86: 60,238.00 | N86: 60,238.00 | P86: 60,238.00
A87: Земельный залог | B87: 07 | C87: 02 | D87: 0220270210 | E87: 851 | F87: 291300 | G87: 1000 | H87: 25,281.00 | J87: 25,281.00 | K87: 25,281.00 | M87: 25,281.00 | N87: 25,281.00 | P87: 25,281.00
A88: Транспотный налог | B88: 07 | C88: 02 | D88: 0220270210 | E88: 852 | F88: 291400 | G88: 1000 | H88: 37,790.00 | J88: 37,790.00 | K88: 37,790.00 | M88: 37,790.00 | N88: 37,790.00 | P88: 37,790.00
A89: Итого по КЦ 1000 | H89: =SUM(H62:H88) -> 12,424,478.78 | I89: =SUM(I62:I88) -> 20,000.00 | J89: 12,444,478.78 | K89: 13,879,548.15 | L89: 0.00 | M89: 13,879,548.15 | N89: 14,290,031.45 | O89: 0.00 | P89: 14,290,031.45
A90: Средства, полученные от оказания платных услуг, безвозмездных поступлений (КЦ 8000)
A91: Продукты питания | B91: 07 | C91: 01 | D91: 0220170200 | E91: 244 | F91: 342000 | G91: 8000 | H91: 5,000,000.00 | J91: =H91+I91 -> 5,000,000.00 | K91: 5,800,000.00 | M91: =K91+L91 -> 5,800,000.00 | N91: 5,800,000.00 | P91: =N91+O91 -> 5,800,000.00
A92: Итого по КЦ 8000 | H92: =SUM(H91) -> 5,000,000.00 | I92: =SUM(I91) -> 0.00 | J92: 5,000,000.00 | K92: 5,800,000.00 | L92: 0.00 | M92: 5,800,000.00 | N92: 5,800,000.00 | O92: 0.00 | P92: 5,800,000.00
A93: Субвенции на обеспечение гос.гарантий реализации прав на получение общедоступного и бесплатного дошкольного образования в муниципальных дошкольных образовательных организациях, общедоступного и бесплатного дошкольного, начального общего, основного общего, среднего общего образования в муниципальных общеобразовательных организациях, обеспечение дополнительного образования детей в муниципальных общеобразовательных организациях (КЦ 24219)
A95: Заработная плата | B95: 07 | C95: 01 | D95: 0220142190 | E95: 111 | F95: 211000 | G95: 23424219000219
A96: Начисления на выплаты по оплате труда | B96: 07 | C96: 01 | D96: 0220142190 | E96: 119 | F96: 213000 | G96: 23424219000219
A97: Услуги связи (интернет) | B97: 07 | C97: 01 | D97: 0220142190 | E97: 244 | F97: 221200 | G97: 23424219000219
A98: Итого субвенция 0701 (КЦ 24219) | H98: =SUM(H95:H97) -> 0.00 | K98: =SUM(K95:K97) -> 0.00 | N98: 0.00
A99: Заработная плата | B99: 07 | C99: 02 | D99: 0220242190 | E99: 111 | F99: 211000 | G99: 23424219000219
A100: Начисления на выплаты по оплате труда | B100: 07 | C100: 02 | D100: 0220242190 | E100: 119 | F100: 213000 | G100: 23424219000219
A101: Услуги связи (интернет) | B101: 07 | C101: 02 | D101: 0220242190 | E101: 244 | F101: 221200 | G101: 23424219000219
A102: Мероприятия по переподготовке и повышению квалификации кадров | B102: 07 | C102: 05 | D102: 0220242190 | E102: 244 | F102: 226700 | G102: 23424219000219
A103: Итого субвенция 0702 (КЦ 24219) | H103: =SUM(H99:H102) -> 0.00 | K103: =SUM(K99:K102) -> 0.00 | N103: 0.00
A104: Итого по КЦ 24219 | H104: =H98+H103 -> 0.00 | K104: =K98+K103 -> 0.00 | N104: 0.00
A105: Субсидии на проведение мероприятий по обеспечению деятельности советников директора по воспитанию и взаимодействию с детским общественными объединениями в образовательных организациях
A106: Заработная плата | B106: 07 | C106: 02 | D106: 022EВ51790 | E106: 111 | F106: 211000 | G106: 23-51790-00000-00000
A107: Начисления на выплаты по оплате труда | B107: 07 | C107: 02 | D107: 022EВ51790 | E107: 119 | F107: 213000 | G107: 23-51790-00000-00000
A108: Итого по КЦ 24320, 1000 | H108: =SUM(H106:H107) -> 0.00 | K108: =SUM(K106:K107) -> 0.00 | N108: 0.00
A109: Всего | H109: =H60+H89+H92+H104+H108 -> 29,362,514.64 | I109: =I60+I89+I92+I104+I108 -> 60,000.00 | J109: 29,422,514.64 | K109: 33,521,479.18 | L109: 0.00 | M109: 33,521,479.18 | N109: 34,259,965.64 | O109: 0.00 | P109: 34,259,965.64
A111: Директор | E111: О.В. Высоцкая
A112: (уполномоченное лицо) | B112: (подпись) | E112: (расшифровка подписи)
A114: Главный бухгалтер МУ "ЦБ № 1" | F114: И.В. Ананьева
A115: (уполномоченное лицо) | B115: (подпись) | F115: (расшифровка подписи)
A117: Главный экономист ПЭО | F117: И.В. Пружинина
A118: (исполнитель) | B118: (подпись) | F118: (расшифровка подписи)

Sheet 16.01
N1: Приложение №2
N2: к Порядку составления, утверждения
N3: и ведения бюджетных смет Администрации
N4: Прионежского муниципального района
N5: и казенных учреждений, находящихся
N6: в ведении Администрации Прионежского
N7: муниципального района
N8: от 30 декабря 2022 № 1390
F9: УТВЕРЖДАЮ
F10: Глава Администрации Прионежского муниципального района
F11: (наименование должности лица, согласующего бюджетную смету)
F13: Администрация Прионежского муниципального района
F14: (наименование главного распорядителя (распорядителя) бюджетных средств; учреждения)
K16: Г.Н. Шемет
F17: (подпись) (расшифровка подписи)
H19: 16 января 2025 года
B21: ИЗМЕНЕНИЯ К БЮДЖЕТНОЙ СМЕТЕ НА 2025 ФИНАНСОВЫЙ ГОД И ПЛАНОВЫЙ ПЕРИОД 2026 и 2027 ГОДОВ
E24: СПРАВКА №№015/00406/006, 015/00406/009, 015/00406/010 от | J24: =H19 -> 16 января 2025 года | P24: КОДЫ
O25: Форма по ОКУД | P25: 0501012
O26: Дата | P26: =H19 -> 16 января 2025 года
B27: Муниципальное общеобразовательное учреждение Шуйская средняя общеобразовательная школа №1 | O27: по ОКПО | P27: 77446968
A28: Получатель бюджетных средств
A29: Распорядитель бюджетных средств | B29: Администрация Прионежского муниципального района
A30: Главный распорядитель бюджетных средств | B30: Администрация Прионежского муниципального района | O30: Глава по БК | P30: 015
A31: Наименование бюджета | B31: Бюджет Прионежского муниципального района | O31: по ОКТМО | P31: 86636470
A32: Единица измерения: | B32: руб. | O32: по ОКЕЙ | P32: 383
A33: Наименование показателя (детализация кода бюджетной классификации) | B33: РЗ | C33: ПР | D33: ЦСР | E33: Вид расхода | F33: Детализация | G33: Вид целевых средств | H33: Сумма на текущий год | K33: Сумма на первый год планового периода (руб) | N33: Сумма на второй год планового периода (руб.)
H34: 2025-01-15 | I34: изменения (+/-) | J34: ИТОГО | K34: =H34 -> 2025-01-15 | L34: изменения (+/-) | M34: ИТОГО | N34: =H34 -> 2025-01-15 | O34: изменения (+/-) | P34: ИТОГО
A35: 1 | B35: =SUM(A35+1) -> 2 | C35: 3 | D35: 4 | E35: 5 | F35: 6 | G35: 7 | H35: 8 | I35: 9 | J35: 10 | K35: 11 | L35: 12 | M35: 13 | N35: 14 | O35: 15 | P35: 16
A36: Средства местного бюджета (КЦ 1000)
A37: Заработная плата | B37: 07 | C37: 01 | D37: 0220170200 | E37: 111 | F37: 211000 | G37: 1000 | H37: 3,118,153.92 | J37: =H37+I37 -> 3,118,153.92 | K37: 3,118,153.92 | M37: =K37+L37 -> 3,118,153.92 | N37: 3,118,153.92 | P37: =N37+O37 -> 3,118,153.92
A38: Расходы по оплате проезда к месту отпуска и обратно отдельным категориям лиц (для лиц, работающих в районах Крайнего Севера и приравненных к ним местностях, и членов их семей) | B38: 07 | C38: 01 | D38: 0220170200 | E38: 112 | F38: 214000 | G38: 1000 | H38: 30,000.00 | J38: =H38+I38 -> 30,000.00 | K38: 20,000.00 | M38: =K38+L38 -> 20,000.00 | N38: 20,000.00 | P38: =N38+O38 -> 20,000.00
A39: Начисления на выплаты по оплате труда | B39: 07 | C39: 01 | D39: 0220170200 | E39: 119 | F39: 213000 | G39: 1000 | H39: 941,682.48 | J39: 941,682.48 | K39: 941,682.48 | M39: 941,682.48 | N39: 941,682.48 | P39: 941,682.48
A40: Услуги связи (телефон) | B40: 07 | C40: 01 | D40: 0220170200 | E40: 244 | F40: 221100 | G40: 1000 | H40: 13,200.00 | J40: 13,200.00 | K40: 13,200.00 | M40: 13,200.00 | N40: 14,400.00 | P40: 14,400.00
A41: Услуги связи (почта) | B41: 07 | C41: 01 | D41: 0220170200 | E41: 244 | F41: 221300 | G41: 1000 | J41: 0.00 | M41: 0.00 | P41: 0.00
A42: Отопление, горячее водоснабжение и газоснабжение | B42: 07 | C42: 01 | D42: 0220170200 | E42: 247 | F42: 223100 | G42: 1000 | H42: 1,128,402.16 | J42: 1,128,402.16 | K42: 1,663,178.53 | M42: 1,663,178.53 | N42: 1,742,199.20 | P42: 1,742,199.20
A43: Электроэнергия | B43: 07 | C43: 01 | D43: 0220170200 | E43: 247 | F43: 223200 | G43: 1000 | H43: 2,603,931.30 | J43: 2,603,931.30 | K43: 3,686,539.68 | M43: 3,686,539.68 | N43: 3,858,393.83 | P43: 3,858,393.83
A44: Холодное водоснабжение | B44: 07 | C44: 01 | D44: 0220170200 | E44: 247 | F44: 223300 | G44: 1000 | H44: 191,606.53 | J44: 191,606.53 | K44: 272,469.54 | M44: 272,469.54 | N44: 287,640.02 | P44: 287,640.02
A45: Водоотведение | B45: 07 | C45: 01 | D45: 0220170200 | E45: 247 | F45: 223400 | G45: 1000 | H45: 251,490.90 | J45: 251,490.90 | K45: 536,497.88 | M45: 536,497.88 | N45: 562,394.55 | P45: 562,394.55
A46: Вывоз бытовых отходов | B46: 07 | C46: 01 | D46: 0220170200 | E46: 244 | F46: 223500 | G46: 1000 | H46: 91,133.73 | J46: 91,133.73 | K46: 129,337.08 | M46: 129,337.08 | N46: 131,873.02 | P46: 131,873.02
A47: Санитарная и противопожарная (дезинфекция, дезинсекция, дератизация, газация, огнезащитная) обработка помещений | B47: 07 | C47: 01 | D47: 0220170200 | E47: 244 | F47: 225600 | G47: 1000 | H47: 185,400.00 | J47: 185,400.00 | K47: 35,400.00 | M47: 35,400.00 | N47: 39,000.00 | P47: 39,000.00
A48: Содержание и обслуживание помещений | B48: 07 | C48: 01 | D48: 0220170200 | E48: 244 | F48: 225700 | G48: 1000 | H48: 223,750.00 | J48: 223,750.00 | K48: 249,550.00 | M48: 249,550.00 | N48: 263,500.00 | P48: 263,500.00
A49: Другие расходы | B49: 07 | C49: 01 | D49: 0220170200 | E49: 244 | F49: 225900 | G49: 1000 | H49: 90,000.00 | J49: 90,000.00 | K49: 50,000.00 | M49: 50,000.00 | N49: 50,000.00 | P49: 50,000.00
A50: Аттестация | B50: 07 | C50: 01 | D50: 0220170200 | E50: 244 | F50: 226200 | G50: 1000 | H50: 10,000.00 | J50: 10,000.00 | K50: 10,000.00 | M50: 10,000.00 | N50: 10,000.00 | P50: 10,000.00
A51: Ведомственная, вневедомственная, пожарная охрана | B51: 07 | C51: 01 | D51: 0220170200 | E51: 244 | F51: 226400 | G51: 1000 | H51: 73,700.00 | J51: 73,700.00 | K51: 78,564.20 | M51: 78,564.20 | N51: 83,749.44 | P51: 83,749.44
A52: Медицинский осмотр работников учрежждений, за исключением водителей транспортных средств | B52: 07 | C52: 01 | D52: 0220170200 | E52: 244 | F52: 226800 | G52: 1000 | H52: 222,129.84 | J52: 222,129.84 | K52: 233,902.72 | M52: 233,902.72 | N52: 243,492.73 | P52: 243,492.73
A53: Другие расходы | B53: 07 | C53: 01 | D53: 0220170200 | E53: 244 | F53: 226900 | G53: 1000 | H53: 50,000.00 | J53: 50,000.00 | K53: 50,000.00 | M53: 50,000.00 | N53: 50,000.00 | P53: 50,000.00
A54: Приобретение предметов длительного пользования (оборудование, мебель,компьютерная техника и т.п.) стоимостью свыше 3000 рублей | B54: 07 | C54: 01 | D54: 0220170200 | E54: 244 | F54: 310100 | G54: 1000 | H54: 40,000.00 | J54: 40,000.00 | K54: 40,000.00 | M54: 40,000.00 | N54: 40,000.00 | P54: 40,000.00
A55: Другие расходы стоимостью до 3000,00 рублей | B55: 07 | C55: 01 | D55: 0220170200 | E55: 244 | F55: 310900 | G55: 1000 | H55: 30,000.00 | J55: 30,000.00 | K55: 30,000.00 | M55: 30,000.00 | N55: 30,000.00 | P55: 30,000.00
A56: Продукты питания | B56: 07 | C56: 01 | D56: 0220170200 | E56: 244 | F56: 342000 | G56: 1000 | H56: 1,330,236.00 | J56: 1,330,236.00 | K56: 1,330,236.00 | M56: 1,330,236.00 | N56: 1,330,236.00 | P56: 1,330,236.00
A57: Увеличение стоимости прочих оборотных запасов (материалов) | B57: 07 | C57: 01 | D57: 0220170200 | E57: 244 | F57: 346000 | G57: 1000 | H57: 80,000.00 | J57: 80,000.00 | K57: 80,000.00 | M57: 80,000.00 | N57: 80,000.00 | P57: 80,000.00
A58: Налог на имущество | B58: 07 | C58: 01 | D58: 0220170200 | E58: 851 | F58: 291200 | G58: 1000 | H58: 1,256,402.00 | J58: 1,256,402.00 | K58: 1,256,402.00 | M58: 1,256,402.00 | N58: 1,256,402.00 | P58: 1,256,402.00
A59: Земельный налог | B59: 07 | C59: 01 | D59: 0220170200 | E59: 851 | F59: 291300 | G59: 1000 | H59: 16,817.00 | J59: 16,817.00 | K59: 16,817.00 | M59: 16,817.00 | N59: 16,817.00 | P59: 16,817.00
A60: Итого по КЦ 1000 | H60: =SUM(H37:H59) -> 11,978,035.86 | I60: =SUM(I37:I59) -> 0.00 | J60: 11,978,035.86 | K60: 13,841,931.03 | L60: 0.00 | M60: 13,841,931.03 | N60: 14,169,934.19 | O60: 0.00 | P60: 14,169,934.19
A61: Средства местного бюджета (КЦ 1000)
A62: Заработная плата | B62: 07 | C62: 02 | D62: 0220270210 | E62: 111 | F62: 211000 | G62: 1000 | H62: 4,488,786.72 | J62: =H62+I62 -> 4,488,786.72 | K62: 4,488,786.72 | M62: =K62+L62 -> 4,488,786.72 | N62: 4,488,786.72 | P62: =N62+O62 -> 4,488,786.72
A63: Расходы по оплате проезда к месту отпуска и обратно отдельным категориям лиц (для лиц, работающих в районах Крайнего Севера и приравненных к ним местностях, и членов их семей) | B63: 07 | C63: 02 | D63: 0220270210 | E63: 112 | F63: 214000 | G63: 1000 | H63: 30,000.00 | J63: =H63+I63 -> 30,000.00 | K63: 20,000.00 | M63: =K63+L63 -> 20,000.00 | N63: 20,000.00 | P63: =N63+O63 -> 20,000.00
A64: Начисления на выплаты по оплате труда | B64: 07 | C64: 02 | D64: 0220270210 | E64: 119 | F64: 213000 | G64: 1000 | H64: 1,355,613.59 | J64: 1,355,613.59 | K64: 1,355,613.59 | M64: 1,355,613.59 | N64: 1,355,613.59 | P64: 1,355,613.59
A65: Услуги связи (телефон) | B65: 07 | C65: 02 | D65: 0220270210 | E65: 244 | F65: 221100 | G65: 1000 | J65: 0.00 | M65: 0.00 | P65: 0.00
A66: Услуги связи (почта) | B66: 07 | C66: 02 | D66: 0220270210 | E66: 244 | F66: 221300 | G66: 1000 | J66: 0.00 | M66: 0.00 | P66: 0.00
A67: Отопление, горячее водоснабжение и газоснабжение | B67: 07 | C67: 02 | D67: 0220270210 | E67: 247 | F67: 223100 | G67: 1000 | H67: 3,621,136.33 | I67: -44,414.58 | J67: 3,576,721.75 | K67: 4,226,794.10 | M67: 4,226,794.10 | N67: 4,420,314.89 | P67: 4,420,314.89
A68: Электроэнергия | B68: 07 | C68: 02 | D68: 0220270210 | E68: 247 | F68: 223200 | G68: 1000 | H68: 1,343,722.52 | J68: 1,343,722.52 | K68: 1,902,380.60 | M68: 1,902,380.60 | N68: 1,983,351.63 | P68: 1,983,351.63
A69: Холодное водоснабжение | B69: 07 | C69: 02 | D69: 0220270210 | E69: 247 | F69: 223300 | G69: 1000 | H69: 121,057.60 | J69: 121,057.60 | K69: 172,092.96 | M69: 172,092.96 | N69: 179,678.20 | P69: 179,678.20
A70: Водоотведение | B70: 07 | C70: 02 | D70: 0220270210 | E70: 247 | F70: 223400 | G70: 1000 | H70: 182,131.20 | J70: 182,131.20 | K70: 295,668.96 | M70: 295,668.96 | N70: 308,699.12 | P70: 308,699.12
A71: Вывоз бытовых отходов | B71: 07 | C71: 02 | D71: 0220270210 | E71: 244 | F71: 223500 | G71: 1000 | H71: 59,536.40 | J71: 59,536.40 | K71: 84,527.22 | M71: 84,527.22 | N71: 86,184.55 | P71: 86,184.55
A72: Санитарная и противопожарная (дезинфекция, дезинсекция, дератизация, газация, огнезащитная) обработка помещений | B72: 07 | C72: 02 | D72: 0220270210 | E72: 244 | F72: 225600 | G72: 1000 | H72: 13,200.00 | J72: 13,200.00 | K72: 18,000.00 | M72: 18,000.00 | N72: 22,500.00 | P72: 22,500.00
A73: Содержание, обслуживание помещений и сетей инженерно-технического обеспечения | B73: 07 | C73: 02 | D73: 0220270210 | E73: 244 | F73: 225700 | G73: 1000 | H73: 94,200.00 | J73: 94,200.00 | K73: 85,500.00 | M73: 85,500.00 | N73: 106,875.00 | P73: 106,875.00
A74: Другие расходы | B74: 07 | C74: 02 | D74: 0220270210 | E74: 244 | F74: 225900 | G74: 1000 | H74: 120,000.00 | J74: 120,000.00 | K74: 100,000.00 | M74: 100,000.00 | N74: 100,000.00 | P74: 100,000.00
A75: Аттестация | B75: 07 | C75: 02 | D75: 0220270210 | E75: 244 | F75: 226200 | G75: 1000 | J75: 0.00 | M75: 0.00 | P75: 0.00
A76: Ведомственная, вневедомственная, пожарная охрана | B76: 07 | C76: 02 | D76: 0220270210 | E76: 244 | F76: 226400 | G76: 1000 | H76: 79,400.00 | J76: 79,400.00 | K76: 99,250.00 | M76: 99,250.00 | N76: 124,062.50 | P76: 124,062.50
A77: Медицинский осмотр водителей транспортных средств | B77: 07 | C77: 02 | D77: 0220270210 | E77: 244 | F77: 226500 | G77: 1000 | H77: 195,300.00 | J77: 195,300.00 | K77: 244,125.00 | M77: 244,125.00 | N77: 305,156.25 | P77: 305,156.25
A78: Медицинский осмотр работников учрежждений, за исключением водителей транспортных средств | B78: 07 | C78: 02 | D78: 0220270210 | E78: 244 | F78: 226800 | G78: 1000 | H78: 335,000.00 | J78: 335,000.00 | K78: 337,000.00 | M78: 337,000.00 | N78: 337,000.00 | P78: 337,000.00
A79: Другие расходы | B79: 07 | C79: 02 | D79: 0220270210 | E79: 244 | F79: 226900 | G79: 1000 | H79: 100,000.00 | J79: 100,000.00 | K79: 100,000.00 | M79: 100,000.00 | N79: 100,000.00 | P79: 100,000.00
A80: Обязательное страхование автогражданской ответственности | B80: 07 | C80: 02 | D80: 0220270210 | E80: 244 | F80: 227200 | G80: 1000 | H80: 14,000.00 | J80: 14,000.00 | K80: 14,000.00 | M80: 14,000.00 | N80: 16,000.00 | P80: 16,000.00
A81: Приобретение предметов длительного пользования (оборудование, мебель,компьютерная техника и т.п.) стоимостью свыше 3000 рублей | B81: 07 | C81: 02 | D81: 0220270210 | E81: 244 | F81: 310100 | G81: 1000 | H81: 40,000.00 | J81: 40,000.00 | K81: 40,000.00 | M81: 40,000.00 | N81: 40,000.00 | P81: 40,000.00
A82: Другие расходы стоимостью до 3000,00 рублей | B82: 07 | C82: 02 | D82: 0220270210 | E82: 244 | F82: 310900 | G82: 1000 | H82: 30,000.00 | J82: 30,000.00 | K82: 30,000.00 | M82: 30,000.00 | N82: 30,000.00 | P82: 30,000.00
A83: Приобретение строительных материалов | B83: 07 | C83: 02 | D83: 0220270210 | E83: 244 | F83: 344000 | G83: 1000 | H83: 40,000.00 | J83: 40,000.00 | K83: 40,000.00 | M83: 40,000.00 | N83: 40,000.00 | P83: 40,000.00
A84: Мягкий инвентарь | B84: 07 | C84: 02 | D84: 0220270210 | E84: 244 | F84: 345000 | G84: 1000 | H84: 22,500.00 | J84: 22,500.00 | K84: 22,500.00 | M84: 22,500.00 | N84: 22,500.00 | P84: 22,500.00
A85: Увеличение стоимости прочих оборотных запасов (материалов) | B85: 07 | C85: 02 | D85: 0220270210 | E85: 244 | F85: 346000 | G85: 1000 | H85: 35,585.42 | I85: 44,414.58 | J85: 80,000.00 | K85: 80,000.00 | M85: 80,000.00 | N85: 80,000.00 | P85: 80,000.00
A86: Налог на имущество | B86: 07 | C86: 02 | D86: 0220270210 | E86: 851 | F86: 291200 | G86: 1000 | H86: 60,238.00 | J86: 60,238.00 | K86: 60,238.00 | M86: 60,238.00 | N86: 60,238.00 | P86: 60,238.00
A87: Земельный залог | B87: 07 | C87: 02 | D87: 0220270210 | E87: 851 | F87: 291300 | G87: 1000 | H87: 25,281.00 | J87: 25,281.00 | K87: 25,281.00 | M87: 25,281.00 | N87: 25,281.00 | P87: 25,281.00
A88: Транспотный налог | B88: 07 | C88: 02 | D88: 0220270210 | E88: 852 | F88: 291400 | G88: 1000 | H88: 37,790.00 | J88: 37,790.00 | K88: 37,790.00 | M88: 37,790.00 | N88: 37,790.00 | P88: 37,790.00
A89: Итого по КЦ 1000 | H89: =SUM(H62:H88) -> 12,444,478.78 | I89: =SUM(I62:I88) -> 0.00 | J89: 12,444,478.78 | K89: 13,879,548.15 | L89: 0.00 | M89: 13,879,548.15 | N89: 14,290,031.45 | O89: 0.00 | P89: 14,290,031.45
A90: Средства, полученные от оказания платных услуг, безвозмездных поступлений (КЦ 8000)
A91: Продукты питания | B91: 07 | C91: 01 | D91: 0220170200 | E91: 244 | F91: 342000 | G91: 8000 | H91: 5,000,000.00 | J91: =H91+I91 -> 5,000,000.00 | K91: 5,800,000.00 | M91: =K91+L91 -> 5,800,000.00 | N91: 5,800,000.00 | P91: =N91+O91 -> 5,800,000.00
A92: Итого по КЦ 8000 | H92: =SUM(H91) -> 5,000,000.00 | I92: =SUM(I91) -> 0.00 | J92: 5,000,000.00 | K92: 5,800,000.00 | L92: 0.00 | M92: 5,800,000.00 | N92: 5,800,000.00 | O92: 0.00 | P92: 5,800,000.00
A93: Субвенции на обеспечение гос.гарантий реализации прав на получение общедоступного и бесплатного дошкольного образования в муниципальных дошкольных образовательных организациях, общедоступного и бесплатного дошкольного, начального общего, основного общего, среднего общего образования в муниципальных общеобразовательных организациях, обеспечение дополнительного образования детей в муниципальных общеобразовательных организациях (КЦ 24219)
A95: Заработная плата | B95: 07 | C95: 01 | D95: 0220142190 | E95: 111 | F95: 211000 | G95: 23424219000219
A96: Начисления на выплаты по оплате труда | B96: 07 | C96: 01 | D96: 0220142190 | E96: 119 | F96: 213000 | G96: 23424219000219
A97: Услуги связи (интернет) | B97: 07 | C97: 01 | D97: 0220142190 | E97: 244 | F97: 221200 | G97: 23424219000219
A98: Итого субвенция 0701 (КЦ 24219) | H98: =SUM(H95:H97) -> 0.00 | K98: =SUM(K95:K97) -> 0.00 | N98: 0.00
A99: Заработная плата | B99: 07 | C99: 02 | D99: 0220242190 | E99: 111 | F99: 211000 | G99: 23424219000219
A100: Начисления на выплаты по оплате труда | B100: 07 | C100: 02 | D100: 0220242190 | E100: 119 | F100: 213000 | G100: 23424219000219
A101: Услуги связи (интернет) | B101: 07 | C101: 02 | D101: 0220242190 | E101: 244 | F101: 221200 | G101: 23424219000219
A102: Мероприятия по переподготовке и повышению квалификации кадров | B102: 07 | C102: 05 | D102: 0220242190 | E102: 244 | F102: 226700 | G102: 23424219000219
A103: Итого субвенция 0702 (КЦ 24219) | H103: =SUM(H99:H102) -> 0.00 | K103: =SUM(K99:K102) -> 0.00 | N103: 0.00
A104: Итого по КЦ 24219 | H104: =H98+H103 -> 0.00 | K104: =K98+K103 -> 0.00 | N104: 0.00
A105: Субсидии на проведение мероприятий по обеспечению деятельности советников директора по воспитанию и взаимодействию с детским общественными объединениями в образовательных организациях
A106: Заработная плата | B106: 07 | C106: 02 | D106: 022EВ51790 | E106: 111 | F106: 211000 | G106: 23-51790-00000-00000
A107: Начисления на выплаты по оплате труда | B107: 07 | C107: 02 | D107: 022EВ51790 | E107: 119 | F107: 213000 | G107: 23-51790-00000-00000
A108: Итого по КЦ 24320, 1000 | H108: =SUM(H106:H107) -> 0.00 | K108: =SUM(K106:K107) -> 0.00 | N108: 0.00
A109: Всего | H109: =H60+H89+H92+H104+H108 -> 29,422,514.64 | I109: =I60+I89+I92+I104+I108 -> 0.00 | J109: 29,422,514.64 | K109: 33,521,479.18 | L109: 0.00 | M109: 33,521,479.18 | N109: 34,259,965.64 | O109: 0.00 | P109: 34,259,965.64
A111: Директор | E111: О.В. Высоцкая
A112: (уполномоченное лицо) | B112: (подпись) | E112: (расшифровка подписи)
A114: Главный бухгалтер МУ "ЦБ № 1" | F114: И.В. Ананьева
A115: (уполномоченное лицо) | B115: (подпись) | F115: (расшифровка подписи)
A117: Главный экономист ПЭО | F117: И.В. Пружинина
A118: (исполнитель) | B118: (подпись) | F118: (расшифровка подписи)

Sheet 17.01
N1: Приложение №2
N2: к Порядку составления, утверждения
N3: и ведения бюджетных смет Администрации
N4: Прионежского муниципального района
N5: и казенных учреждений, находящихся
N6: в ведении Администрации Прионежского
N7: муниципального района
N8: от 30 декабря 2022 № 1390
F9: УТВЕРЖДАЮ
F10: Глава Администрации Прионежского муниципального района
F11: (наименование должности лица, согласующего бюджетную смету)
F13: Администрация Прионежского муниципального района
F14: (наименование главного распорядителя (распорядителя) бюджетных средств; учреждения)
K16: Г.Н. Шемет
F17: (подпись) (расшифровка подписи)
H19: 17 января 2025 года
B21: ИЗМЕНЕНИЯ К БЮДЖЕТНОЙ СМЕТЕ НА 2025 ФИНАНСОВЫЙ ГОД И ПЛАНОВЫЙ ПЕРИОД 2026 и 2027 ГОДОВ
B24: СПРАВКА №№015/00406/011, 015/00406/012, 015/00406/013, 015/00406/014, 015/00406/015 от | J24: =H19 -> 17 января 2025 года | P24: КОДЫ
O25: Форма по ОКУД | P25: 0501012
O26: Дата | P26: =H19 -> 17 января 2025 года
B27: Муниципальное общеобразовательное учреждение Шуйская средняя общеобразовательная школа №1 | O27: по ОКПО | P27: 77446968
A28: Получатель бюджетных средств
A29: Распорядитель бюджетных средств | B29: Администрация Прионежского муниципального района
A30: Главный распорядитель бюджетных средств | B30: Администрация Прионежского муниципального района | O30: Глава по БК | P30: 015
A31: Наименование бюджета | B31: Бюджет Прионежского муниципального района | O31: по ОКТМО | P31: 86636470
A32: Единица измерения: | B32: руб. | O32: по ОКЕЙ | P32: 383
A33: Наименование показателя (детализация кода бюджетной классификации) | B33: РЗ | C33: ПР | D33: ЦСР | E33: Вид расхода | F33: Детализация | G33: Вид целевых средств | H33: Сумма на текущий год | K33: Сумма на первый год планового периода (руб) | N33: Сумма на второй год планового периода (руб.)
H34: 2025-01-16 | I34: изменения (+/-) | J34: ИТОГО | K34: =H34 -> 2025-01-16 | L34: изменения (+/-) | M34: ИТОГО | N34: =H34 -> 2025-01-16 | O34: изменения (+/-) | P34: ИТОГО
A35: 1 | B35: =SUM(A35+1) -> 2 | C35: 3 | D35: 4 | E35: 5 | F35: 6 | G35: 7 | H35: 8 | I35: 9 | J35: 10 | K35: 11 | L35: 12 | M35: 13 | N35: 14 | O35: 15 | P35: 16
A36: Средства местного бюджета (КЦ 1000)
A37: Заработная плата | B37: 07 | C37: 01 | D37: 0220170200 | E37: 111 | F37: 211000 | G37: 1000 | H37: 3,118,153.92 | J37: =H37+I37 -> 3,118,153.92 | K37: 3,118,153.92 | M37: =K37+L37 -> 3,118,153.92 | N37: 3,118,153.92 | P37: =N37+O37 -> 3,118,153.92
A38: Расходы по оплате проезда к месту отпуска и обратно отдельным категориям лиц (для лиц, работающих в районах Крайнего Севера и приравненных к ним местностях, и членов их семей) | B38: 07 | C38: 01 | D38: 0220170200 | E38: 112 | F38: 214000 | G38: 1000 | H38: 30,000.00 | J38: =H38+I38 -> 30,000.00 | K38: 20,000.00 | M38: =K38+L38 -> 20,000.00 | N38: 20,000.00 | P38: =N38+O38 -> 20,000.00
A39: Начисления на выплаты по оплате труда | B39: 07 | C39: 01 | D39: 0220170200 | E39: 119 | F39: 213000 | G39: 1000 | H39: 941,682.48 | J39: 941,682.48 | K39: 941,682.48 | M39: 941,682.48 | N39: 941,682.48 | P39: 941,682.48
A40: Услуги связи (телефон) | B40: 07 | C40: 01 | D40: 0220170200 | E40: 244 | F40: 221100 | G40: 1000 | H40: 13,200.00 | I40: 694.08 | J40: 13,894.08 | K40: 13,200.00 | M40: 13,200.00 | N40: 14,400.00 | P40: 14,400.00
A41: Услуги связи (почта) | B41: 07 | C41: 01 | D41: 0220170200 | E41: 244 | F41: 221300 | G41: 1000 | H41: 0.00 | J41: 0.00 | M41: 0.00 | P41: 0.00
A42: Отопление, горячее водоснабжение и газоснабжение | B42: 07 | C42: 01 | D42: 0220170200 | E42: 247 | F42: 223100 | G42: 1000 | H42: 1,128,402.16 | J42: 1,128,402.16 | K42: 1,663,178.53 | M42: 1,663,178.53 | N42: 1,742,199.20 | P42: 1,742,199.20
A43: Электроэнергия | B43: 07 | C43: 01 | D43: 0220170200 | E43: 247 | F43: 223200 | G43: 1000 | H43: 2,603,931.30 | J43: 2,603,931.30 | K43: 3,686,539.68 | M43: 3,686,539.68 | N43: 3,858,393.83 | P43: 3,858,393.83
A44: Холодное водоснабжение | B44: 07 | C44: 01 | D44: 0220170200 | E44: 247 | F44: 223300 | G44: 1000 | H44: 191,606.53 | J44: 191,606.53 | K44: 272,469.54 | M44: 272,469.54 | N44: 287,640.02 | P44: 287,640.02
A45: Водоотведение | B45: 07 | C45: 01 | D45: 0220170200 | E45: 247 | F45: 223400 | G45: 1000 | H45: 251,490.90 | J45: 251,490.90 | K45: 536,497.88 | M45: 536,497.88 | N45: 562,394.55 | P45: 562,394.55
A46: Вывоз бытовых отходов | B46: 07 | C46: 01 | D46: 0220170200 | E46: 244 | F46: 223500 | G46: 1000 | H46: 91,133.73 | J46: 91,133.73 | K46: 129,337.08 | M46: 129,337.08 | N46: 131,873.02 | P46: 131,873.02
A47: Санитарная и противопожарная (дезинфекция, дезинсекция, дератизация, газация, огнезащитная) обработка помещений | B47: 07 | C47: 01 | D47: 0220170200 | E47: 244 | F47: 225600 | G47: 1000 | H47: 185,400.00 | J47: 185,400.00 | K47: 35,400.00 | M47: 35,400.00 | N47: 39,000.00 | P47: 39,000.00
A48: Содержание и обслуживание помещений | B48: 07 | C48: 01 | D48: 0220170200 | E48: 244 | F48: 225700 | G48: 1000 | H48: 223,750.00 | J48: 223,750.00 | K48: 249,550.00 | M48: 249,550.00 | N48: 263,500.00 | P48: 263,500.00
A49: Другие расходы | B49: 07 | C49: 01 | D49: 0220170200 | E49: 244 | F49: 225900 | G49: 1000 | H49: 90,000.00 | J49: 90,000.00 | K49: 50,000.00 | M49: 50,000.00 | N49: 50,000.00 | P49: 50,000.00
A50: Аттестация | B50: 07 | C50: 01 | D50: 0220170200 | E50: 244 | F50: 226200 | G50: 1000 | H50: 10,000.00 | J50: 10,000.00 | K50: 10,000.00 | M50: 10,000.00 | N50: 10,000.00 | P50: 10,000.00
A51: Ведомственная, вневедомственная, пожарная охрана | B51: 07 | C51: 01 | D51: 0220170200 | E51: 244 | F51: 226400 | G51: 1000 | H51: 73,700.00 | J51: 73,700.00 | K51: 78,564.20 | M51: 78,564.20 | N51: 83,749.44 | P51: 83,749.44
A52: Медицинский осмотр работников учрежждений, за исключением водителей транспортных средств | B52: 07 | C52: 01 | D52: 0220170200 | E52: 244 | F52: 226800 | G52: 1000 | H52: 222,129.84 | J52: 222,129.84 | K52: 233,902.72 | M52: 233,902.72 | N52: 243,492.73 | P52: 243,492.73
A53: Другие расходы | B53: 07 | C53: 01 | D53: 0220170200 | E53: 244 | F53: 226900 | G53: 1000 | H53: 50,000.00 | I53: -694.08 | J53: 49,305.92 | K53: 50,000.00 | M53: 50,000.00 | N53: 50,000.00 | P53: 50,000.00
A54: Приобретение предметов длительного пользования (оборудование, мебель,компьютерная техника и т.п.) стоимостью свыше 3000 рублей | B54: 07 | C54: 01 | D54: 0220170200 | E54: 244 | F54: 310100 | G54: 1000 | H54: 40,000.00 | J54: 40,000.00 | K54: 40,000.00 | M54: 40,000.00 | N54: 40,000.00 | P54: 40,000.00
A55: Другие расходы стоимостью до 3000,00 рублей | B55: 07 | C55: 01 | D55: 0220170200 | E55: 244 | F55: 310900 | G55: 1000 | H55: 30,000.00 | J55: 30,000.00 | K55: 30,000.00 | M55: 30,000.00 | N55: 30,000.00 | P55: 30,000.00
A56: Продукты питания | B56: 07 | C56: 01 | D56: 0220170200 | E56: 244 | F56: 342000 | G56: 1000 | H56: 1,330,236.00 | J56: 1,330,236.00 | K56: 1,330,236.00 | M56: 1,330,236.00 | N56: 1,330,236.00 | P56: 1,330,236.00
A57: Увеличение стоимости прочих оборотных запасов (материалов) | B57: 07 | C57: 01 | D57: 0220170200 | E57: 244 | F57: 346000 | G57: 1000 | H57: 80,000.00 | J57: 80,000.00 | K57: 80,000.00 | M57: 80,000.00 | N57: 80,000.00 | P57: 80,000.00
A58: Налог на имущество | B58: 07 | C58: 01 | D58: 0220170200 | E58: 851 | F58: 291200 | G58: 1000 | H58: 1,256,402.00 | J58: 1,256,402.00 | K58: 1,256,402.00 | M58: 1,256,402.00 | N58: 1,256,402.00 | P58: 1,256,402.00
A59: Земельный налог | B59: 07 | C59: 01 | D59: 0220170200 | E59: 851 | F59: 291300 | G59: 1000 | H59: 16,817.00 | J59: 16,817.00 | K59: 16,817.00 | M59: 16,817.00 | N59: 16,817.00 | P59: 16,817.00
A60: Итого по КЦ 1000 | H60: =SUM(H37:H59) -> 11,978,035.86 | I60: =SUM(I37:I59) -> 0.00 | J60: 11,978,035.86 | K60: 13,841,931.03 | L60: 0.00 | M60: 13,841,931.03 | N60: 14,169,934.19 | O60: 0.00 | P60: 14,169,934.19
A61: Средства местного бюджета (КЦ 1000)
A62: Заработная плата | B62: 07 | C62: 02 | D62: 0220270210 | E62: 111 | F62: 211000 | G62: 1000 | H62: 4,488,786.72 | J62: =H62+I62 -> 4,488,786.72 | K62: 4,488,786.72 | M62: =K62+L62 -> 4,488,786.72 | N62: 4,488,786.72 | P62: =N62+O62 -> 4,488,786.72
A63: Расходы по оплате проезда к месту отпуска и обратно отдельным категориям лиц (для лиц, работающих в районах Крайнего Севера и приравненных к ним местностях, и членов их семей) | B63: 07 | C63: 02 | D63: 0220270210 | E63: 112 | F63: 214000 | G63: 1000 | H63: 30,000.00 | J63: =H63+I63 -> 30,000.00 | K63: 20,000.00 | M63: =K63+L63 -> 20,000.00 | N63: 20,000.00 | P63: =N63+O63 -> 20,000.00
A64: Начисления на выплаты по оплате труда | B64: 07 | C64: 02 | D64: 0220270210 | E64: 119 | F64: 213000 | G64: 1000 | H64: 1,355,613.59 | J64: 1,355,613.59 | K64: 1,355,613.59 | M64: 1,355,613.59 | N64: 1,355,613.59 | P64: 1,355,613.59
A65: Услуги связи (телефон) | B65: 07 | C65: 02 | D65: 0220270210 | E65: 244 | F65: 221100 | G65: 1000 | J65: 0.00 | M65: 0.00 | P65: 0.00
A66: Услуги связи (почта) | B66: 07 | C66: 02 | D66: 0220270210 | E66: 244 | F66: 221300 | G66: 1000 | J66: 0.00 | M66: 0.00 | P66: 0.00
A67: Отопление, горячее водоснабжение и газоснабжение | B67: 07 | C67: 02 | D67: 0220270210 | E67: 247 | F67: 223100 | G67: 1000 | H67: 3,576,721.75 | J67: 3,576,721.75 | K67: 4,226,794.10 | M67: 4,226,794.10 | N67: 4,420,314.89 | P67: 4,420,314.89
A68: Электроэнергия | B68: 07 | C68: 02 | D68: 0220270210 | E68: 247 | F68: 223200 | G68: 1000 | H68: 1,343,722.52 | J68: 1,343,722.52 | K68: 1,902,380.60 | M68: 1,902,380.60 | N68: 1,983,351.63 | P68: 1,983,351.63
A69: Холодное водоснабжение | B69: 07 | C69: 02 | D69: 0220270210 | E69: 247 | F69: 223300 | G69: 1000 | H69: 121,057.60 | J69: 121,057.60 | K69: 172,092.96 | M69: 172,092.96 | N69: 179,678.20 | P69: 179,678.20
A70: Водоотведение | B70: 07 | C70: 02 | D70: 0220270210 | E70: 247 | F70: 223400 | G70: 1000 | H70: 182,131.20 | J70: 182,131.20 | K70: 295,668.96 | M70: 295,668.96 | N70: 308,699.12 | P70: 308,699.12
A71: Вывоз бытовых отходов | B71: 07 | C71: 02 | D71: 0220270210 | E71: 244 | F71: 223500 | G71: 1000 | H71: 59,536.40 | J71: 59,536.40 | K71: 84,527.22 | M71: 84,527.22 | N71: 86,184.55 | P71: 86,184.55
A72: Санитарная и противопожарная (дезинфекция, дезинсекция, дератизация, газация, огнезащитная) обработка помещений | B72: 07 | C72: 02 | D72: 0220270210 | E72: 244 | F72: 225600 | G72: 1000 | H72: 13,200.00 | J72: 13,200.00 | K72: 18,000.00 | M72: 18,000.00 | N72: 22,500.00 | P72: 22,500.00
A73: Содержание, обслуживание помещений и сетей инженерно-технического обеспечения | B73: 07 | C73: 02 | D73: 0220270210 | E73: 244 | F73: 225700 | G73: 1000 | H73: 94,200.00 | J73: 94,200.00 | K73: 85,500.00 | M73: 85,500.00 | N73: 106,875.00 | P73: 106,875.00
A74: Другие расходы | B74: 07 | C74: 02 | D74: 0220270210 | E74: 244 | F74: 225900 | G74: 1000 | H74: 120,000.00 | J74: 120,000.00 | K74: 100,000.00 | M74: 100,000.00 | N74: 100,000.00 | P74: 100,000.00
A75: Аттестация | B75: 07 | C75: 02 | D75: 0220270210 | E75: 244 | F75: 226200 | G75: 1000 | J75: 0.00 | M75: 0.00 | P75: 0.00
A76: Ведомственная, вневедомственная, пожарная охрана | B76: 07 | C76: 02 | D76: 0220270210 | E76: 244 | F76: 226400 | G76: 1000 | H76: 79,400.00 | I76: 41,600.00 | J76: 121,000.00 | K76: 99,250.00 | M76: 99,250.00 | N76: 124,062.50 | P76: 124,062.50
A77: Медицинский осмотр водителей транспортных средств | B77: 07 | C77: 02 | D77: 0220270210 | E77: 244 | F77: 226500 | G77: 1000 | H77: 195,300.00 | J77: 195,300.00 | K77: 244,125.00 | M77: 244,125.00 | N77: 305,156.25 | P77: 305,156.25
A78: Медицинский осмотр работников учрежждений, за исключением водителей транспортных средств | B78: 07 | C78: 02 | D78: 0220270210 | E78: 244 | F78: 226800 | G78: 1000 | H78: 335,000.00 | J78: 335,000.00 | K78: 337,000.00 | M78: 337,000.00 | N78: 337,000.00 | P78: 337,000.00
A79: Другие расходы | B79: 07 | C79: 02 | D79: 0220270210 | E79: 244 | F79: 226900 | G79: 1000 | H79: 100,000.00 | J79: 100,000.00 | K79: 100,000.00 | M79: 100,000.00 | N79: 100,000.00 | P79: 100,000.00
A80: Обязательное страхование автогражданской ответственности | B80: 07 | C80: 02 | D80: 0220270210 | E80: 244 | F80: 227200 | G80: 1000 | H80: 14,000.00 | J80: 14,000.00 | K80: 14,000.00 | M80: 14,000.00 | N80: 16,000.00 | P80: 16,000.00
A81: Приобретение предметов длительного пользования (оборудование, мебель,компьютерная техника и т.п.) стоимостью свыше 3000 рублей | B81: 07 | C81: 02 | D81: 0220270210 | E81: 244 | F81: 310100 | G81: 1000 | H81: 40,000.00 | J81: 40,000.00 | K81: 40,000.00 | M81: 40,000.00 | N81: 40,000.00 | P81: 40,000.00
A82: Другие расходы стоимостью до 3000,00 рублей | B82: 07 | C82: 02 | D82: 0220270210 | E82: 244 | F82: 310900 | G82: 1000 | H82: 30,000.00 | J82: 30,000.00 | K82: 30,000.00 | M82: 30,000.00 | N82: 30,000.00 | P82: 30,000.00
A83: Приобретение строительных материалов | B83: 07 | C83: 02 | D83: 0220270210 | E83: 244 | F83: 344000 | G83: 1000 | H83: 40,000.00 | J83: 40,000.00 | K83: 40,000.00 | M83: 40,000.00 | N83: 40,000.00 | P83: 40,000.00
A84: Мягкий инвентарь | B84: 07 | C84: 02 | D84: 0220270210 | E84: 244 | F84: 345000 | G84: 1000 | H84: 22,500.00 | J84: 22,500.00 | K84: 22,500.00 | M84: 22,500.00 | N84: 22,500.00 | P84: 22,500.00
A85: Увеличение стоимости прочих оборотных запасов (материалов) | B85: 07 | C85: 02 | D85: 0220270210 | E85: 244 | F85: 346000 | G85: 1000 | H85: 80,000.00 | J85: 80,000.00 | K85: 80,000.00 | M85: 80,000.00 | N85: 80,000.00 | P85: 80,000.00
A86: Налог на имущество | B86: 07 | C86: 02 | D86: 0220270210 | E86: 851 | F86: 291200 | G86: 1000 | H86: 60,238.00 | J86: 60,238.00 | K86: 60,238.00 | M86: 60,238.00 | N86: 60,238.00 | P86: 60,238.00
A87: Земельный залог | B87: 07 | C87: 02 | D87: 0220270210 | E87: 851 | F87: 291300 | G87: 1000 | H87: 25,281.00 | J87: 25,281.00 | K87: 25,281.00 | M87: 25,281.00 | N87: 25,281.00 | P87: 25,281.00
A88: Транспотный налог | B88: 07 | C88: 02 | D88: 0220270210 | E88: 852 | F88: 291400 | G88: 1000 | H88: 37,790.00 | J88: 37,790.00 | K88: 37,790.00 | M88: 37,790.00 | N88: 37,790.00 | P88: 37,790.00
A89: Итого по КЦ 1000 | H89: =SUM(H62:H88) -> 12,444,478.78 | I89: =SUM(I62:I88) -> 41,600.00 | J89: 12,486,078.78 | K89: 13,879,548.15 | L89: 0.00 | M89: 13,879,548.15 | N89: 14,290,031.45 | O89: 0.00 | P89: 14,290,031.45
A90: Средства, полученные от оказания платных услуг, безвозмездных поступлений (КЦ 8000)
A91: Продукты питания | B91: 07 | C91: 01 | D91: 0220170200 | E91: 244 | F91: 342000 | G91: 8000 | H91: 5,000,000.00 | J91: =H91+I91 -> 5,000,000.00 | K91: 5,800,000.00 | M91: =K91+L91 -> 5,800,000.00 | N91: 5,800,000.00 | P91: =N91+O91 -> 5,800,000.00
A92: Итого по КЦ 8000 | H92: =SUM(H91) -> 5,000,000.00 | I92: =SUM(I91) -> 0.00 | J92: 5,000,000.00 | K92: 5,800,000.00 | L92: 0.00 | M92: 5,800,000.00 | N92: 5,800,000.00 | O92: 0.00 | P92: 5,800,000.00
A93: Субвенции на обеспечение гос.гарантий реализации прав на получение общедоступного и бесплатного дошкольного образования в муниципальных дошкольных образовательных организациях, общедоступного и бесплатного дошкольного, начального общего, основного общего, среднего общего образования в муниципальных общеобразовательных организациях, обеспечение дополнительного образования детей в муниципальных общеобразовательных организациях (КЦ 24219)
A95: Заработная плата | B95: 07 | C95: 01 | D95: 0220142190 | E95: 111 | F95: 211000 | G95: 23424219000219
A96: Начисления на выплаты по оплате труда | B96: 07 | C96: 01 | D96: 0220142190 | E96: 119 | F96: 213000 | G96: 23424219000219
A97: Услуги связи (интернет) | B97: 07 | C97: 01 | D97: 0220142190 | E97: 244 | F97: 221200 | G97: 23424219000219
A98: Итого субвенция 0701 (КЦ 24219) | H98: =SUM(H95:H97) -> 0.00 | K98: =SUM(K95:K97) -> 0.00 | N98: 0.00
A99: Заработная плата | B99: 07 | C99: 02 | D99: 0220242190 | E99: 111 | F99: 211000 | G99: 23424219000219
A100: Начисления на выплаты по оплате труда | B100: 07 | C100: 02 | D100: 0220242190 | E100: 119 | F100: 213000 | G100: 23424219000219
A101: Услуги связи (интернет) | B101: 07 | C101: 02 | D101: 0220242190 | E101: 244 | F101: 221200 | G101: 23424219000219
A102: Мероприятия по переподготовке и повышению квалификации кадров | B102: 07 | C102: 05 | D102: 0220242190 | E102: 244 | F102: 226700 | G102: 23424219000219
A103: Итого субвенция 0702 (КЦ 24219) | H103: =SUM(H99:H102) -> 0.00 | K103: =SUM(K99:K102) -> 0.00 | N103: 0.00
A104: Итого по КЦ 24219 | H104: =H98+H103 -> 0.00 | K104: =K98+K103 -> 0.00 | N104: 0.00
A105: Субсидии на проведение мероприятий по обеспечению деятельности советников директора по воспитанию и взаимодействию с детским общественными объединениями в образовательных организациях
A106: Заработная плата | B106: 07 | C106: 02 | D106: 022EВ51790 | E106: 111 | F106: 211000 | G106: 23-51790-00000-00000
A107: Начисления на выплаты по оплате труда | B107: 07 | C107: 02 | D107: 022EВ51790 | E107: 119 | F107: 213000 | G107: 23-51790-00000-00000
A108: Итого по КЦ 24320, 1000 | H108: =SUM(H106:H107) -> 0.00 | K108: =SUM(K106:K107) -> 0.00 | N108: 0.00
A109: Субвенция на осуществление государственных полномочий РК по выплате компенсации платы, взимаемой с родителей (законных представителей) за присмотр и уход за детьми, осваивающими образовательные программы дошкольного образования в организациях, осуществляющих образовательную деятельности, за исключением государственных образовательных организаций РК.
A110: Пособия по социальной помощи населению в натуральной форме | B110: 10 | C110: 04 | D110: 0220142030 | E110: 323 | F110: 263000 | G110: 25424203000203 | H110: 0.00 | I110: 2,216,000.00 | J110: =H110+I110 -> 2,216,000.00 | K110: 0.00 | M110: =K110+L110 -> 0.00 | N110: 0.00 | P110: =N110+O110 -> 0.00
A111: Итого по КЦ 254242030000203 | H111: =SUM(H110) -> 0.00 | I111: =SUM(I110) -> 2,216,000.00 | J111: 2,216,000.00 | K111: 0.00 | L111: 0.00 | M111: 0.00 | N111: 0.00 | O111: 0.00 | P111: 0.00
A112: Субвенция на осуществление государственных полномочий РК по предоставлению предусмотренных п.5 ч.1 ст.9 Заона от 20.12.2013 №1755-ЗРК "Об образовании" мер социальной поддержски и социального обслуживания обучающимся с ОВЗ, за искл.обучающихся (воспитываемы) в государтсвенных образовательных организациях РК
A113: Пособия по социальной помощи населению в натуральной форме | B113: 07 | C113: 02 | D113: 0220242100 | E113: 323 | F113: 263000 | G113: 254242100000210 | H113: 0.00 | I113: 876,245.00 | J113: =H113+I113 -> 876,245.00 | K113: 0.00 | M113: =K113+L113 -> 0.00 | N113: 0.00 | P113: =N113+O113 -> 0.00
A114: Пособия по социальной помощи населению в денежной форме | B114: 10 | C114: 03 | D114: 0220242100 | E114: 321 | F114: 262000 | G114: 254242100000210 | H114: 0.00 | I114: 93,777.00 | J114: =H114+I114 -> 93,777.00 | K114: 0.00 | M114: 0.00 | N114: 0.00 | P114: 0.00
A115: Итого по КЦ 254242100000210 | H115: =SUM(H113:H114) -> 0.00 | I115: =SUM(I113:I114) -> 970,022.00 | J115: 970,022.00 | K115: 0.00 | L115: 0.00 | M115: 0.00 | N115: 0.00 | O115: 0.00 | P115: 0.00
A116: Всего | H116: =H60+H89+H92+H104+H108+H111+H115 -> 29,422,514.64 | I116: =I60+I89+I92+I104+I108+I111+I115 -> 3,227,622.00 | J116: 32,650,136.64 | K116: 33,521,479.18 | L116: 0.00 | M116: 33,521,479.18 | N116: 34,259,965.64 | O116: 0.00 | P116: 34,259,965.64
A118: Директор | E118: О.В. Высоцкая
A119: (уполномоченное лицо) | B119: (подпись) | E119: (расшифровка подписи)
A121: Главный бухгалтер МУ "ЦБ № 1" | F121: И.В. Ананьева
A122: (уполномоченное лицо) | B122: (подпись) | F122: (расшифровка подписи)
A124: Главный экономист ПЭО | F124: И.В. Пружинина
A125: (исполнитель) | B125: (подпись) | F125: (расшифровка подписи)

Sheet 21.01
N1: Приложение №2
N2: к Порядку составления, утверждения
N3: и ведения бюджетных смет Администрации
N4: Прионежского муниципального района
N5: и казенных учреждений, находящихся
N6: в ведении Администрации Прионежского
N7: муниципального района
N8: от 30 декабря 2022 № 1390
F9: УТВЕРЖДАЮ
F10: Глава Администрации Прионежского муниципального района
F11: (наименование должности лица, согласующего бюджетную смету)
F13: Администрация Прионежского муниципального района
F14: (наименование главного распорядителя (распорядителя) бюджетных средств; учреждения)
K16: Г.Н. Шемет
F17: (подпись) (расшифровка подписи)
H19: 21 января 2025 года
B21: ИЗМЕНЕНИЯ К БЮДЖЕТНОЙ СМЕТЕ НА 2025 ФИНАНСОВЫЙ ГОД И ПЛАНОВЫЙ ПЕРИОД 2026 и 2027 ГОДОВ
B24: СПРАВКА №№015/00406/017, 015/00406/018, 015/00406/019, 015/00406/020, 015/00406/021, 015/00406/022, 015/00406/023 от | J24: =H19 -> 21 января 2025 года | P24: КОДЫ
O25: Форма по ОКУД | P25: 0501012
O26: Дата | P26: =H19 -> 21 января 2025 года
B27: Муниципальное общеобразовательное учреждение Шуйская средняя общеобразовательная школа №1 | O27: по ОКПО | P27: 77446968
A28: Получатель бюджетных средств
A29: Распорядитель бюджетных средств | B29: Администрация Прионежского муниципального района
A30: Главный распорядитель бюджетных средств | B30: Администрация Прионежского муниципального района | O30: Глава по БК | P30: 015
A31: Наименование бюджета | B31: Бюджет Прионежского муниципального района | O31: по ОКТМО | P31: 86636470
A32: Единица измерения: | B32: руб. | O32: по ОКЕЙ | P32: 383
A33: Наименование показателя (детализация кода бюджетной классификации) | B33: РЗ | C33: ПР | D33: ЦСР | E33: Вид расхода | F33: Детализация | G33: Вид целевых средств | H33: Сумма на текущий год | K33: Сумма на первый год планового периода (руб) | N33: Сумма на второй год планового периода (руб.)
H34: 2025-01-17 | I34: изменения (+/-) | J34: ИТОГО | K34: =H34 -> 2025-01-17 | L34: изменения (+/-) | M34: ИТОГО | N34: =H34 -> 2025-01-17 | O34: изменения (+/-) | P34: ИТОГО
A35: 1 | B35: =SUM(A35+1) -> 2 | C35: 3 | D35: 4 | E35: 5 | F35: 6 | G35: 7 | H35: 8 | I35: 9 | J35: 10 | K35: 11 | L35: 12 | M35: 13 | N35: 14 | O35: 15 | P35: 16
A36: Средства местного бюджета (КЦ 1000)
A37: Заработная плата | B37: 07 | C37: 01 | D37: 0220170200 | E37: 111 | F37: 211000 | G37: 1000 | H37: 3,118,153.92 | J37: =H37+I37 -> 3,118,153.92 | K37: 3,118,153.92 | M37: =K37+L37 -> 3,118,153.92 | N37: 3,118,153.92 | P37: =N37+O37 -> 3,118,153.92
A38: Расходы по оплате проезда к месту отпуска и обратно отдельным категориям лиц (для лиц, работающих в районах Крайнего Севера и приравненных к ним местностях, и членов их семей) | B38: 07 | C38: 01 | D38: 0220170200 | E38: 112 | F38: 214000 | G38: 1000 | H38: 30,000.00 | J38: =H38+I38 -> 30,000.00 | K38: 20,000.00 | M38: =K38+L38 -> 20,000.00 | N38: 20,000.00 | P38: =N38+O38 -> 20,000.00
A39: Начисления на выплаты по оплате труда | B39: 07 | C39: 01 | D39: 0220170200 | E39: 119 | F39: 213000 | G39: 1000 | H39: 941,682.48 | J39: 941,682.48 | K39: 941,682.48 | M39: 941,682.48 | N39: 941,682.48 | P39: 941,682.48
A40: Услуги связи (телефон) | B40: 07 | C40: 01 | D40: 0220170200 | E40: 244 | F40: 221100 | G40: 1000 | H40: 13,894.08 | J40: 13,894.08 | K40: 13,200.00 | M40: 13,200.00 | N40: 14,400.00 | P40: 14,400.00
A41: Услуги связи (почта) | B41: 07 | C41: 01 | D41: 0220170200 | E41: 244 | F41: 221300 | G41: 1000 | H41: 0.00 | J41: 0.00 | M41: 0.00 | P41: 0.00
A42: Отопление, горячее водоснабжение и газоснабжение | B42: 07 | C42: 01 | D42: 0220170200 | E42: 247 | F42: 223100 | G42: 1000 | H42: 1,128,402.16 | J42: 1,128,402.16 | K42: 1,663,178.53 | M42: 1,663,178.53 | N42: 1,742,199.20 | P42: 1,742,199.20
A43: Электроэнергия | B43: 07 | C43: 01 | D43: 0220170200 | E43: 247 | F43: 223200 | G43: 1000 | H43: 2,603,931.30 | J43: 2,603,931.30 | K43: 3,686,539.68 | M43: 3,686,539.68 | N43: 3,858,393.83 | P43: 3,858,393.83
A44: Холодное водоснабжение | B44: 07 | C44: 01 | D44: 0220170200 | E44: 247 | F44: 223300 | G44: 1000 | H44: 191,606.53 | J44: 191,606.53 | K44: 272,469.54 | M44: 272,469.54 | N44: 287,640.02 | P44: 287,640.02
A45: Водоотведение | B45: 07 | C45: 01 | D45: 0220170200 | E45: 247 | F45: 223400 | G45: 1000 | H45: 251,490.90 | J45: 251,490.90 | K45: 536,497.88 | M45: 536,497.88 | N45: 562,394.55 | P45: 562,394.55
A46: Вывоз бытовых отходов | B46: 07 | C46: 01 | D46: 0220170200 | E46: 244 | F46: 223500 | G46: 1000 | H46: 91,133.73 | J46: 91,133.73 | K46: 129,337.08 | M46: 129,337.08 | N46: 131,873.02 | P46: 131,873.02
A47: Санитарная и противопожарная (дезинфекция, дезинсекция, дератизация, газация, огнезащитная) обработка помещений | B47: 07 | C47: 01 | D47: 0220170200 | E47: 244 | F47: 225600 | G47: 1000 | H47: 185,400.00 | J47: 185,400.00 | K47: 35,400.00 | M47: 35,400.00 | N47: 39,000.00 | P47: 39,000.00
A48: Содержание и обслуживание помещений | B48: 07 | C48: 01 | D48: 0220170200 | E48: 244 | F48: 225700 | G48: 1000 | H48: 223,750.00 | J48: 223,750.00 | K48: 249,550.00 | M48: 249,550.00 | N48: 263,500.00 | P48: 263,500.00
A49: Другие расходы | B49: 07 | C49: 01 | D49: 0220170200 | E49: 244 | F49: 225900 | G49: 1000 | H49: 90,000.00 | J49: 90,000.00 | K49: 50,000.00 | M49: 50,000.00 | N49: 50,000.00 | P49: 50,000.00
A50: Аттестация | B50: 07 | C50: 01 | D50: 0220170200 | E50: 244 | F50: 226200 | G50: 1000 | H50: 10,000.00 | J50: 10,000.00 | K50: 10,000.00 | M50: 10,000.00 | N50: 10,000.00 | P50: 10,000.00
A51: Ведомственная, вневедомственная, пожарная охрана | B51: 07 | C51: 01 | D51: 0220170200 | E51: 244 | F51: 226400 | G51: 1000 | H51: 73,700.00 | I51: 41,600.00 | J51: 115,300.00 | K51: 78,564.20 | M51: 78,564.20 | N51: 83,749.44 | P51: 83,749.44
A52: Медицинский осмотр работников учрежждений, за исключением водителей транспортных средств | B52: 07 | C52: 01 | D52: 0220170200 | E52: 244 | F52: 226800 | G52: 1000 | H52: 222,129.84 | J52: 222,129.84 | K52: 233,902.72 | M52: 233,902.72 | N52: 243,492.73 | P52: 243,492.73
A53: Другие расходы | B53: 07 | C53: 01 | D53: 0220170200 | E53: 244 | F53: 226900 | G53: 1000 | H53: 49,305.92 | J53: 49,305.92 | K53: 50,000.00 | M53: 50,000.00 | N53: 50,000.00 | P53: 50,000.00
A54: Приобретение предметов длительного пользования (оборудование, мебель,компьютерная техника и т.п.) стоимостью свыше 3000 рублей | B54: 07 | C54: 01 | D54: 0220170200 | E54: 244 | F54: 310100 | G54: 1000 | H54: 40,000.00 | J54: 40,000.00 | K54: 40,000.00 | M54: 40,000.00 | N54: 40,000.00 | P54: 40,000.00
A55: Другие расходы стоимостью до 3000,00 рублей | B55: 07 | C55: 01 | D55: 0220170200 | E55: 244 | F55: 310900 | G55: 1000 | H55: 30,000.00 | J55: 30,000.00 | K55: 30,000.00 | M55: 30,000.00 | N55: 30,000.00 | P55: 30,000.00
A56: Продукты питания | B56: 07 | C56: 01 | D56: 0220170200 | E56: 244 | F56: 342000 | G56: 1000 | H56: 1,330,236.00 | J56: 1,330,236.00 | K56: 1,330,236.00 | M56: 1,330,236.00 | N56: 1,330,236.00 | P56: 1,330,236.00
A57: Увеличение стоимости прочих оборотных запасов (материалов) | B57: 07 | C57: 01 | D57: 0220170200 | E57: 244 | F57: 346000 | G57: 1000 | H57: 80,000.00 | J57: 80,000.00 | K57: 80,000.00 | M57: 80,000.00 | N57: 80,000.00 | P57: 80,000.00
A58: Налог на имущество | B58: 07 | C58: 01 | D58: 0220170200 | E58: 851 | F58: 291200 | G58: 1000 | H58: 1,256,402.00 | J58: 1,256,402.00 | K58: 1,256,402.00 | M58: 1,256,402.00 | N58: 1,256,402.00 | P58: 1,256,402.00
A59: Земельный налог | B59: 07 | C59: 01 | D59: 0220170200 | E59: 851 | F59: 291300 | G59: 1000 | H59: 16,817.00 | J59: 16,817.00 | K59: 16,817.00 | M59: 16,817.00 | N59: 16,817.00 | P59: 16,817.00
A60: Итого по КЦ 1000 | H60: =SUM(H37:H59) -> 11,978,035.86 | I60: =SUM(I37:I59) -> 41,600.00 | J60: 12,019,635.86 | K60: 13,841,931.03 | L60: 0.00 | M60: 13,841,931.03 | N60: 14,169,934.19 | O60: 0.00 | P60: 14,169,934.19
A61: Средства местного бюджета (КЦ 1000)
A62: Заработная плата | B62: 07 | C62: 02 | D62: 0220270210 | E62: 111 | F62: 211000 | G62: 1000 | H62: 4,488,786.72 | J62: =H62+I62 -> 4,488,786.72 | K62: 4,488,786.72 | M62: =K62+L62 -> 4,488,786.72 | N62: 4,488,786.72 | P62: =N62+O62 -> 4,488,786.72
A63: Расходы по оплате проезда к месту отпуска и обратно отдельным категориям лиц (для лиц, работающих в районах Крайнего Севера и приравненных к ним местностях, и членов их семей) | B63: 07 | C63: 02 | D63: 0220270210 | E63: 112 | F63: 214000 | G63: 1000 | H63: 30,000.00 | J63: =H63+I63 -> 30,000.00 | K63: 20,000.00 | M63: =K63+L63 -> 20,000.00 | N63: 20,000.00 | P63: =N63+O63 -> 20,000.00
A64: Начисления на выплаты по оплате труда | B64: 07 | C64: 02 | D64: 0220270210 | E64: 119 | F64: 213000 | G64: 1000 | H64: 1,355,613.59 | J64: 1,355,613.59 | K64: 1,355,613.59 | M64: 1,355,613.59 | N64: 1,355,613.59 | P64: 1,355,613.59
A65: Услуги связи (телефон) | B65: 07 | C65: 02 | D65: 0220270210 | E65: 244 | F65: 221100 | G65: 1000 | H65: 0.00 | I65: 300.00 | J65: 300.00 | K65: 0.00 | M65: 0.00 | N65: 0.00 | P65: 0.00
A66: Отопление, горячее водоснабжение и газоснабжение | B66: 07 | C66: 02 | D66: 0220270210 | E66: 247 | F66: 223100 | G66: 1000 | H66: 3,576,721.75 | J66: 3,576,721.75 | K66: 4,226,794.10 | M66: 4,226,794.10 | N66: 4,420,314.89 | P66: 4,420,314.89
A67: Электроэнергия | B67: 07 | C67: 02 | D67: 0220270210 | E67: 247 | F67: 223200 | G67: 1000 | H67: 1,343,722.52 | J67: 1,343,722.52 | K67: 1,902,380.60 | M67: 1,902,380.60 | N67: 1,983,351.63 | P67: 1,983,351.63
A68: Холодное водоснабжение | B68: 07 | C68: 02 | D68: 0220270210 | E68: 247 | F68: 223300 | G68: 1000 | H68: 121,057.60 | J68: 121,057.60 | K68: 172,092.96 | M68: 172,092.96 | N68: 179,678.20 | P68: 179,678.20
A69: Водоотведение | B69: 07 | C69: 02 | D69: 0220270210 | E69: 247 | F69: 223400 | G69: 1000 | H69: 182,131.20 | J69: 182,131.20 | K69: 295,668.96 | M69: 295,668.96 | N69: 308,699.12 | P69: 308,699.12
A70: Вывоз бытовых отходов | B70: 07 | C70: 02 | D70: 0220270210 | E70: 244 | F70: 223500 | G70: 1000 | H70: 59,536.40 | J70: 59,536.40 | K70: 84,527.22 | M70: 84,527.22 | N70: 86,184.55 | P70: 86,184.55
A71: Санитарная и противопожарная (дезинфекция, дезинсекция, дератизация, газация, огнезащитная) обработка помещений | B71: 07 | C71: 02 | D71: 0220270210 | E71: 244 | F71: 225600 | G71: 1000 | H71: 13,200.00 | J71: 13,200.00 | K71: 18,000.00 | M71: 18,000.00 | N71: 22,500.00 | P71: 22,500.00
A72: Содержание, обслуживание помещений и сетей инженерно-технического обеспечения | B72: 07 | C72: 02 | D72: 0220270210 | E72: 244 | F72: 225700 | G72: 1000 | H72: 94,200.00 | J72: 94,200.00 | K72: 85,500.00 | M72: 85,500.00 | N72: 106,875.00 | P72: 106,875.00
A73: Другие расходы | B73: 07 | C73: 02 | D73: 0220270210 | E73: 244 | F73: 225900 | G73: 1000 | H73: 120,000.00 | J73: 120,000.00 | K73: 100,000.00 | M73: 100,000.00 | N73: 100,000.00 | P73: 100,000.00
A74: Аттестация | B74: 07 | C74: 02 | D74: 0220270210 | E74: 244 | F74: 226200 | G74: 1000 | J74: 0.00 | M74: 0.00 | P74: 0.00
A75: Ведомственная, вневедомственная, пожарная охрана | B75: 07 | C75: 02 | D75: 0220270210 | E75: 244 | F75: 226400 | G75: 1000 | H75: 121,000.00 | I75: -41,600.00 | J75: 79,400.00 | K75: 99,250.00 | M75: 99,250.00 | N75: 124,062.50 | P75: 124,062.50
A76: Медицинский осмотр водителей транспортных средств | B76: 07 | C76: 02 | D76: 0220270210 | E76: 244 | F76: 226500 | G76: 1000 | H76: 195,300.00 | J76: 195,300.00 | K76: 244,125.00 | M76: 244,125.00 | N76: 305,156.25 | P76: 305,156.25
A77: Медицинский осмотр работников учрежждений, за исключением водителей транспортных средств | B77: 07 | C77: 02 | D77: 0220270210 | E77: 244 | F77: 226800 | G77: 1000 | H77: 335,000.00 | J77: 335,000.00 | K77: 337,000.00 | M77: 337,000.00 | N77: 337,000.00 | P77: 337,000.00
A78: Другие расходы | B78: 07 | C78: 02 | D78: 0220270210 | E78: 244 | F78: 226900 | G78: 1000 | H78: 100,000.00 | I78: -300.00 | J78: 99,700.00 | K78: 100,000.00 | M78: 100,000.00 | N78: 100,000.00 | P78: 100,000.00
A79: Обязательное страхование автогражданской ответственности | B79: 07 | C79: 02 | D79: 0220270210 | E79: 244 | F79: 227200 | G79: 1000 | H79: 14,000.00 | J79: 14,000.00 | K79: 14,000.00 | M79: 14,000.00 | N79: 16,000.00 | P79: 16,000.00
A80: Приобретение предметов длительного пользования (оборудование, мебель,компьютерная техника и т.п.) стоимостью свыше 3000 рублей | B80: 07 | C80: 02 | D80: 0220270210 | E80: 244 | F80: 310100 | G80: 1000 | H80: 40,000.00 | J80: 40,000.00 | K80: 40,000.00 | M80: 40,000.00 | N80: 40,000.00 | P80: 40,000.00
A81: Другие расходы стоимостью до 3000,00 рублей | B81: 07 | C81: 02 | D81: 0220270210 | E81: 244 | F81: 310900 | G81: 1000 | H81: 30,000.00 | J81: 30,000.00 | K81: 30,000.00 | M81: 30,000.00 | N81: 30,000.00 | P81: 30,000.00
A82: Приобретение строительных материалов | B82: 07 | C82: 02 | D82: 0220270210 | E82: 244 | F82: 344000 | G82: 1000 | H82: 40,000.00 | J82: 40,000.00 | K82: 40,000.00 | M82: 40,000.00 | N82: 40,000.00 | P82: 40,000.00
A83: Мягкий инвентарь | B83: 07 | C83: 02 | D83: 0220270210 | E83: 244 | F83: 345000 | G83: 1000 | H83: 22,500.00 | J83: 22,500.00 | K83: 22,500.00 | M83: 22,500.00 | N83: 22,500.00 | P83: 22,500.00
A84: Увеличение стоимости прочих оборотных запасов (материалов) | B84: 07 | C84: 02 | D84: 0220270210 | E84: 244 | F84: 346000 | G84: 1000 | H84: 80,000.00 | J84: 80,000.00 | K84: 80,000.00 | M84: 80,000.00 | N84: 80,000.00 | P84: 80,000.00
A85: Налог на имущество | B85: 07 | C85: 02 | D85: 0220270210 | E85: 851 | F85: 291200 | G85: 1000 | H85: 60,238.00 | J85: 60,238.00 | K85: 60,238.00 | M85: 60,238.00 | N85: 60,238.00 | P85: 60,238.00
A86: Земельный залог | B86: 07 | C86: 02 | D86: 0220270210 | E86: 851 | F86: 291300 | G86: 1000 | H86: 25,281.00 | J86: 25,281.00 | K86: 25,281.00 | M86: 25,281.00 | N86: 25,281.00 | P86: 25,281.00
A87: Транспотный налог | B87: 07 | C87: 02 | D87: 0220270210 | E87: 852 | F87: 291400 | G87: 1000 | H87: 37,790.00 | J87: 37,790.00 | K87: 37,790.00 | M87: 37,790.00 | N87: 37,790.00 | P87: 37,790.00
A88: Итого по КЦ 1000 | H88: =SUM(H62:H87) -> 12,486,078.78 | I88: =SUM(I62:I87) -> -41,600.00 | J88: 12,444,478.78 | K88: 13,879,548.15 | L88: 0.00 | M88: 13,879,548.15 | N88: 14,290,031.45 | O88: 0.00 | P88: 14,290,031.45
A89: Средства, полученные от оказания платных услуг, безвозмездных поступлений (КЦ 8000)
A90: Продукты питания | B90: 07 | C90: 01 | D90: 0220170200 | E90: 244 | F90: 342000 | G90: 8000 | H90: 5,000,000.00 | J90: =H90+I90 -> 5,000,000.00 | K90: 5,800,000.00 | M90: =K90+L90 -> 5,800,000.00 | N90: 5,800,000.00 | P90: =N90+O90 -> 5,800,000.00
A91: Итого по КЦ 8000 | H91: =SUM(H90) -> 5,000,000.00 | I91: =SUM(I90) -> 0.00 | J91: 5,000,000.00 | K91: 5,800,000.00 | L91: 0.00 | M91: 5,800,000.00 | N91: 5,800,000.00 | O91: 0.00 | P91: 5,800,000.00
A92: Субвенции на обеспечение гос.гарантий реализации прав на получение общедоступного и бесплатного дошкольного образования в муниципальных дошкольных образовательных организациях, общедоступного и бесплатного дошкольного, начального общего, основного общего, среднего общего образования в муниципальных общеобразовательных организациях, обеспечение дополнительного образования детей в муниципальных общеобразовательных организациях (КЦ 24219)
A94: Заработная плата | B94: 07 | C94: 01 | D94: 0220142190 | E94: 111 | F94: 211000 | G94: 23424219000219
A95: Начисления на выплаты по оплате труда | B95: 07 | C95: 01 | D95: 0220142190 | E95: 119 | F95: 213000 | G95: 23424219000219
A96: Услуги связи (интернет) | B96: 07 | C96: 01 | D96: 0220142190 | E96: 244 | F96: 221200 | G96: 23424219000219
A97: Итого субвенция 0701 (КЦ 24219) | H97: =SUM(H94:H96) -> 0.00 | K97: =SUM(K94:K96) -> 0.00 | N97: 0.00
A98: Заработная плата | B98: 07 | C98: 02 | D98: 0220242190 | E98: 111 | F98: 211000 | G98: 23424219000219
A99: Начисления на выплаты по оплате труда | B99: 07 | C99: 02 | D99: 0220242190 | E99: 119 | F99: 213000 | G99: 23424219000219
A100: Услуги связи (интернет) | B100: 07 | C100: 02 | D100: 0220242190 | E100: 244 | F100: 221200 | G100: 23424219000219
A101: Мероприятия по переподготовке и повышению квалификации кадров | B101: 07 | C101: 05 | D101: 0220242190 | E101: 244 | F101: 226700 | G101: 23424219000219
A102: Итого субвенция 0702 (КЦ 24219) | H102: =SUM(H98:H101) -> 0.00 | K102: =SUM(K98:K101) -> 0.00 | N102: 0.00
A103: Итого по КЦ 24219 | H103: =H97+H102 -> 0.00 | K103: =K97+K102 -> 0.00 | N103: 0.00
A104: Субсидии на проведение мероприятий по обеспечению деятельности советников директора по воспитанию и взаимодействию с детским общественными объединениями в образовательных организациях
A105: Заработная плата | B105: 07 | C105: 02 | D105: 022EВ51790 | E105: 111 | F105: 211000 | G105: 23-51790-00000-00000
A106: Начисления на выплаты по оплате труда | B106: 07 | C106: 02 | D106: 022EВ51790 | E106: 119 | F106: 213000 | G106: 23-51790-00000-00000
A107: Итого по КЦ 24320, 1000 | H107: =SUM(H105:H106) -> 0.00 | K107: =SUM(K105:K106) -> 0.00 | N107: 0.00
A108: Субвенции на обеспечение гос.гарантий реализации прав на получение общедоступного и бесплатного дошкольного образования в муниципальных дошкольных образовательных организациях, общедоступного и бесплатного дошкольного, начального общего, основного общего, среднего общего образования в муниципальных общеобразовательных организациях, обеспечение дополнительного образования детей в муниципальных общеобразовательных организациях (КЦ 24219)
A110: Заработная плата | B110: 07 | C110: 01 | D110: 0220142190 | E110: 111 | F110: 211000 | G110: 254242190000219 | H110: 0.00 | I110: 22,542,173.76 | J110: =H110+I110 -> 22,542,173.76 | K110: 0.00 | M110: =K110+L110 -> 0.00 | N110: 0.00 | P110: =N110+O110 -> 0.00
A111: Начисления на выплаты по оплате труда | B111: 07 | C111: 01 | D111: 0220142190 | E111: 119 | F111: 213000 | G111: 254242190000219 | H111: 0.00 | I111: 5,105,802.36 | J111: 5,105,802.36 | K111: 0.00 | M111: 0.00 | N111: 0.00 | P111: 0.00
A112: Услуги связи (интернет) | B112: 07 | C112: 01 | D112: 0220142190 | E112: 244 | F112: 221200 | G112: 254242190000219 | H112: 0.00 | I112: 47,000.00 | J112: 47,000.00 | K112: 0.00 | M112: 0.00 | N112: 0.00 | P112: 0.00
A113: Итого субвенция 0701 (КЦ 254242190000219) | H113: =SUM(H110:H112) -> 0.00 | I113: =SUM(I110:I112) -> 27,694,976.12 | J113: 27,694,976.12 | K113: 0.00 | L113: 0.00 | M113: 0.00 | N113: 0.00 | O113: 0.00 | P113: 0.00
A114: Заработная плата | B114: 07 | C114: 02 | D114: 0220242190 | E114: 111 | F114: 211000 | G114: 254242190000219 | H114: 0.00 | I114: 39,662,990.40 | J114: =H114+I114 -> 39,662,990.40 | K114: 0.00 | M114: =K114+L114 -> 0.00 | N114: 0.00 | P114: 0.00
A115: Начисления на выплаты по оплате труда | B115: 07 | C115: 02 | D115: 0220242190 | E115: 119 | F115: 213000 | G115: 254242190000219 | H115: 0.00 | I115: 8,983,667.33 | J115: 8,983,667.33 | K115: 0.00 | M115: 0.00 | N115: 0.00 | P115: 0.00
A116: Услуги связи (интернет) | B116: 07 | C116: 02 | D116: 0220242190 | E116: 244 | F116: 221200 | G116: 254242190000219 | H116: 0.00 | I116: 54,991.59 | J116: 54,991.59 | K116: 0.00 | M116: 0.00 | N116: 0.00 | P116: 0.00
A117: Итого субвенция 0701 (КЦ 254242190000219) | H117: =SUM(H114:H116) -> 0.00 | I117: =SUM(I114:I116) -> 48,701,649.32 | J117: 48,701,649.32 | K117: 0.00 | L117: 0.00 | M117: 0.00 | N117: 0.00 | O117: 0.00 | P117: 0.00
A118: Итого по КЦ 254242190000219 | H118: =H113+H117 -> 0.00 | I118: =I113+I117 -> 76,396,625.44 | J118: 76,396,625.44 | K118: 0.00 | L118: 0.00 | M118: 0.00 | N118: 0.00 | O118: 0.00 | P118: 0.00
A119: Субвенция на осуществление государственных полномочий РК по выплате компенсации платы, взимаемой с родителей (законных представителей) за присмотр и уход за детьми, осваивающими образовательные программы дошкольного образования в организациях, осуществляющих образовательную деятельности, за исключением государственных образовательных организаций РК.
A120: Пособия по социальной помощи населению в натуральной форме | B120: 10 | C120: 04 | D120: 0220142030 | E120: 323 | F120: 263000 | G120: 254242030000203 | H120: 2,216,000.00 | I120: -2,216,000.00 | J120: =H120+I120 -> 0.00 | K120: 0.00 | M120: =K120+L120 -> 0.00 | N120: 0.00 | P120: =N120+O120 -> 0.00
A121: Пособия по социальной помощи населению в натуральной форме | B121: 10 | C121: 04 | D121: 0220142030 | E121: 321 | F121: 263000 | G121: 254242030000203 | H121: 0.00 | I121: 2,216,000.00 | J121: =H121+I121 -> 2,216,000.00 | K121: 0.00 | M121: =K121+L121 -> 0.00 | N121: 0.00 | P121: =N121+O121 -> 0.00
A122: Итого по КЦ 254242030000203 | H122: =SUM(H120:H121) -> 2,216,000.00 | I122: =SUM(I120:I121) -> 0.00 | J122: 2,216,000.00 | K122: 0.00 | L122: 0.00 | M122: 0.00 | N122: 0.00 | O122: 0.00 | P122: 0.00
A123: Субвенция на осуществление государственных полномочий РК по предоставлению предусмотренных п.5 ч.1 ст.9 Заона от 20.12.2013 №1755-ЗРК "Об образовании" мер социальной поддержски и социального обслуживания обучающимся с ОВЗ, за искл.обучающихся (воспитываемы) в государтсвенных образовательных организациях РК
A124: Пособия по социальной помощи населению в натуральной форме | B124: 07 | C124: 02 | D124: 0220242100 | E124: 323 | F124: 263000 | G124: 254242100000210 | H124: 876,245.00 | J124: =H124+I124 -> 876,245.00 | K124: 0.00 | M124: =K124+L124 -> 0.00 | N124: 0.00 | P124: =N124+O124 -> 0.00
A125: Пособия по социальной помощи населению в денежной форме | B125: 10 | C125: 03 | D125: 0220242100 | E125: 321 | F125: 262000 | G125: 254242100000210 | H125: 93,777.00 | J125: =H125+I125 -> 93,777.00 | K125: 0.00 | M125: 0.00 | N125: 0.00 | P125: 0.00
A126: Итого по КЦ 254242100000210 | H126: =SUM(H124:H125) -> 970,022.00 | I126: =SUM(I124:I125) -> 0.00 | J126: 970,022.00 | K126: 0.00 | L126: 0.00 | M126: 0.00 | N126: 0.00 | O126: 0.00 | P126: 0.00
A127: Всего | H127: =H60+H88+H91+H103+H107+H122+H126+H118 -> 32,650,136.64 | I127: =I60+I88+I91+I103+I107+I122+I126+I118 -> 76,396,625.44 | J127: 109,046,762.08 | K127: 33,521,479.18 | L127: 0.00 | M127: 33,521,479.18 | N127: 34,259,965.64 | O127: 0.00 | P127: 34,259,965.64
A129: Директор | E129: О.В. Высоцкая
A130: (уполномоченное лицо) | B130: (подпись) | E130: (расшифровка подписи)
A132: Главный бухгалтер МУ "ЦБ № 1" | F132: И.В. Ананьева
A133: (уполномоченное лицо) | B133: (подпись) | F133: (расшифровка подписи)
A135: Главный экономист ПЭО | F135: И.В. Пружинина
A136: (исполнитель) | B136: (подпись) | F136: (расшифровка подписи)

Sheet 27.01
N1: Приложение №2
N2: к Порядку составления, утверждения
N3: и ведения бюджетных смет Администрации
N4: Прионежского муниципального района
N5: и казенных учреждений, находящихся
N6: в ведении Администрации Прионежского
N7: муниципального района
N8: от 30 декабря 2022 № 1390
F9: УТВЕРЖДАЮ
F10: Глава Администрации Прионежского муниципального района
F11: (наименование должности лица, согласующего бюджетную смету)
F13: Администрация Прионежского муниципального района
F14: (наименование главного распорядителя (распорядителя) бюджетных средств; учреждения)
K16: Г.Н. Шемет
F17: (подпись) (расшифровка подписи)
H19: 27 января 2025 года
B21: ИЗМЕНЕНИЯ К БЮДЖЕТНОЙ СМЕТЕ НА 2025 ФИНАНСОВЫЙ ГОД И ПЛАНОВЫЙ ПЕРИОД 2026 и 2027 ГОДОВ
B24: СПРАВКА №№015/00406/025 от | J24: =H19 -> 27 января 2025 года | P24: КОДЫ
O25: Форма по ОКУД | P25: 0501012
O26: Дата | P26: =H19 -> 27 января 2025 года
B27: Муниципальное общеобразовательное учреждение Шуйская средняя общеобразовательная школа №1 | O27: по ОКПО | P27: 77446968
A28: Получатель бюджетных средств
A29: Распорядитель бюджетных средств | B29: Администрация Прионежского муниципального района
A30: Главный распорядитель бюджетных средств | B30: Администрация Прионежского муниципального района | O30: Глава по БК | P30: 015
A31: Наименование бюджета | B31: Бюджет Прионежского муниципального района | O31: по ОКТМО | P31: 86636470
A32: Единица измерения: | B32: руб. | O32: по ОКЕЙ | P32: 383
A33: Наименование показателя (детализация кода бюджетной классификации) | B33: РЗ | C33: ПР | D33: ЦСР | E33: Вид расхода | F33: Детализация | G33: Вид целевых средств | H33: Сумма на текущий год | K33: Сумма на первый год планового периода (руб) | N33: Сумма на второй год планового периода (руб.)
H34: 2025-01-21 | I34: изменения (+/-) | J34: ИТОГО | K34: =H34 -> 2025-01-21 | L34: изменения (+/-) | M34: ИТОГО | N34: =H34 -> 2025-01-21 | O34: изменения (+/-) | P34: ИТОГО
A35: 1 | B35: =SUM(A35+1) -> 2 | C35: 3 | D35: 4 | E35: 5 | F35: 6 | G35: 7 | H35: 8 | I35: 9 | J35: 10 | K35: 11 | L35: 12 | M35: 13 | N35: 14 | O35: 15 | P35: 16
A36: Средства местного бюджета (КЦ 1000)
A37: Заработная плата | B37: 07 | C37: 01 | D37: 0220170200 | E37: 111 | F37: 211000 | G37: 1000 | H37: 3,118,153.92 | J37: =H37+I37 -> 3,118,153.92 | K37: 3,118,153.92 | M37: =K37+L37 -> 3,118,153.92 | N37: 3,118,153.92 | P37: =N37+O37 -> 3,118,153.92
A38: Расходы по оплате проезда к месту отпуска и обратно отдельным категориям лиц (для лиц, работающих в районах Крайнего Севера и приравненных к ним местностях, и членов их семей) | B38: 07 | C38: 01 | D38: 0220170200 | E38: 112 | F38: 214000 | G38: 1000 | H38: 30,000.00 | J38: =H38+I38 -> 30,000.00 | K38: 20,000.00 | M38: =K38+L38 -> 20,000.00 | N38: 20,000.00 | P38: =N38+O38 -> 20,000.00
A39: Начисления на выплаты по оплате труда | B39: 07 | C39: 01 | D39: 0220170200 | E39: 119 | F39: 213000 | G39: 1000 | H39: 941,682.48 | J39: 941,682.48 | K39: 941,682.48 | M39: 941,682.48 | N39: 941,682.48 | P39: 941,682.48
A40: Услуги связи (телефон) | B40: 07 | C40: 01 | D40: 0220170200 | E40: 244 | F40: 221100 | G40: 1000 | H40: 13,894.08 | J40: 13,894.08 | K40: 13,200.00 | M40: 13,200.00 | N40: 14,400.00 | P40: 14,400.00
A41: Услуги связи (почта) | B41: 07 | C41: 01 | D41: 0220170200 | E41: 244 | F41: 221300 | G41: 1000 | H41: 0.00 | J41: 0.00 | M41: 0.00 | P41: 0.00
A42: Отопление, горячее водоснабжение и газоснабжение | B42: 07 | C42: 01 | D42: 0220170200 | E42: 247 | F42: 223100 | G42: 1000 | H42: 1,128,402.16 | J42: 1,128,402.16 | K42: 1,663,178.53 | M42: 1,663,178.53 | N42: 1,742,199.20 | P42: 1,742,199.20
A43: Электроэнергия | B43: 07 | C43: 01 | D43: 0220170200 | E43: 247 | F43: 223200 | G43: 1000 | H43: 2,603,931.30 | J43: 2,603,931.30 | K43: 3,686,539.68 | M43: 3,686,539.68 | N43: 3,858,393.83 | P43: 3,858,393.83
A44: Холодное водоснабжение | B44: 07 | C44: 01 | D44: 0220170200 | E44: 247 | F44: 223300 | G44: 1000 | H44: 191,606.53 | J44: 191,606.53 | K44: 272,469.54 | M44: 272,469.54 | N44: 287,640.02 | P44: 287,640.02
A45: Водоотведение | B45: 07 | C45: 01 | D45: 0220170200 | E45: 247 | F45: 223400 | G45: 1000 | H45: 251,490.90 | J45: 251,490.90 | K45: 536,497.88 | M45: 536,497.88 | N45: 562,394.55 | P45: 562,394.55
A46: Вывоз бытовых отходов | B46: 07 | C46: 01 | D46: 0220170200 | E46: 244 | F46: 223500 | G46: 1000 | H46: 91,133.73 | J46: 91,133.73 | K46: 129,337.08 | M46: 129,337.08 | N46: 131,873.02 | P46: 131,873.02
A47: Санитарная и противопожарная (дезинфекция, дезинсекция, дератизация, газация, огнезащитная) обработка помещений | B47: 07 | C47: 01 | D47: 0220170200 | E47: 244 | F47: 225600 | G47: 1000 | H47: 185,400.00 | J47: 185,400.00 | K47: 35,400.00 | M47: 35,400.00 | N47: 39,000.00 | P47: 39,000.00
A48: Содержание и обслуживание помещений | B48: 07 | C48: 01 | D48: 0220170200 | E48: 244 | F48: 225700 | G48: 1000 | H48: 223,750.00 | J48: 223,750.00 | K48: 249,550.00 | M48: 249,550.00 | N48: 263,500.00 | P48: 263,500.00
A49: Другие расходы | B49: 07 | C49: 01 | D49: 0220170200 | E49: 244 | F49: 225900 | G49: 1000 | H49: 90,000.00 | J49: 90,000.00 | K49: 50,000.00 | M49: 50,000.00 | N49: 50,000.00 | P49: 50,000.00
A50: Аттестация | B50: 07 | C50: 01 | D50: 0220170200 | E50: 244 | F50: 226200 | G50: 1000 | H50: 10,000.00 | J50: 10,000.00 | K50: 10,000.00 | M50: 10,000.00 | N50: 10,000.00 | P50: 10,000.00
A51: Ведомственная, вневедомственная, пожарная охрана | B51: 07 | C51: 01 | D51: 0220170200 | E51: 244 | F51: 226400 | G51: 1000 | H51: 115,300.00 | I51: 38,197.52 | J51: 153,497.52 | K51: 78,564.20 | M51: 78,564.20 | N51: 83,749.44 | P51: 83,749.44
A52: Медицинский осмотр работников учрежждений, за исключением водителей транспортных средств | B52: 07 | C52: 01 | D52: 0220170200 | E52: 244 | F52: 226800 | G52: 1000 | H52: 222,129.84 | J52: 222,129.84 | K52: 233,902.72 | M52: 233,902.72 | N52: 243,492.73 | P52: 243,492.73
A53: Другие расходы | B53: 07 | C53: 01 | D53: 0220170200 | E53: 244 | F53: 226900 | G53: 1000 | H53: 49,305.92 | J53: 49,305.92 | K53: 50,000.00 | M53: 50,000.00 | N53: 50,000.00 | P53: 50,000.00
A54: Приобретение предметов длительного пользования (оборудование, мебель,компьютерная техника и т.п.) стоимостью свыше 3000 рублей | B54: 07 | C54: 01 | D54: 0220170200 | E54: 244 | F54: 310100 | G54: 1000 | H54: 40,000.00 | J54: 40,000.00 | K54: 40,000.00 | M54: 40,000.00 | N54: 40,000.00 | P54: 40,000.00
A55: Другие расходы стоимостью до 3000,00 рублей | B55: 07 | C55: 01 | D55: 0220170200 | E55: 244 | F55: 310900 | G55: 1000 | H55: 30,000.00 | J55: 30,000.00 | K55: 30,000.00 | M55: 30,000.00 | N55: 30,000.00 | P55: 30,000.00
A56: Продукты питания | B56: 07 | C56: 01 | D56: 0220170200 | E56: 244 | F56: 342000 | G56: 1000 | H56: 1,330,236.00 | J56: 1,330,236.00 | K56: 1,330,236.00 | M56: 1,330,236.00 | N56: 1,330,236.00 | P56: 1,330,236.00
A57: Увеличение стоимости прочих оборотных запасов (материалов) | B57: 07 | C57: 01 | D57: 0220170200 | E57: 244 | F57: 346000 | G57: 1000 | H57: 80,000.00 | J57: 80,000.00 | K57: 80,000.00 | M57: 80,000.00 | N57: 80,000.00 | P57: 80,000.00
A58: Налог на имущество | B58: 07 | C58: 01 | D58: 0220170200 | E58: 851 | F58: 291200 | G58: 1000 | H58: 1,256,402.00 | J58: 1,256,402.00 | K58: 1,256,402.00 | M58: 1,256,402.00 | N58: 1,256,402.00 | P58: 1,256,402.00
A59: Земельный налог | B59: 07 | C59: 01 | D59: 0220170200 | E59: 851 | F59: 291300 | G59: 1000 | H59: 16,817.00 | J59: 16,817.00 | K59: 16,817.00 | M59: 16,817.00 | N59: 16,817.00 | P59: 16,817.00
A60: Итого по КЦ 1000 | H60: =SUM(H37:H59) -> 12,019,635.86 | I60: =SUM(I37:I59) -> 38,197.52 | J60: 12,057,833.38 | K60: 13,841,931.03 | L60: 0.00 | M60: 13,841,931.03 | N60: 14,169,934.19 | O60: 0.00 | P60: 14,169,934.19
A61: Средства местного бюджета (КЦ 1000)
A62: Заработная плата | B62: 07 | C62: 02 | D62: 0220270210 | E62: 111 | F62: 211000 | G62: 1000 | H62: 4,488,786.72 | J62: =H62+I62 -> 4,488,786.72 | K62: 4,488,786.72 | M62: =K62+L62 -> 4,488,786.72 | N62: 4,488,786.72 | P62: =N62+O62 -> 4,488,786.72
A63: Расходы по оплате проезда к месту отпуска и обратно отдельным категориям лиц (для лиц, работающих в районах Крайнего Севера и приравненных к ним местностях, и членов их семей) | B63: 07 | C63: 02 | D63: 0220270210 | E63: 112 | F63: 214000 | G63: 1000 | H63: 30,000.00 | J63: =H63+I63 -> 30,000.00 | K63: 20,000.00 | M63: =K63+L63 -> 20,000.00 | N63: 20,000.00 | P63: =N63+O63 -> 20,000.00
A64: Начисления на выплаты по оплате труда | B64: 07 | C64: 02 | D64: 0220270210 | E64: 119 | F64: 213000 | G64: 1000 | H64: 1,355,613.59 | J64: 1,355,613.59 | K64: 1,355,613.59 | M64: 1,355,613.59 | N64: 1,355,613.59 | P64: 1,355,613.59
A65: Услуги связи (телефон) | B65: 07 | C65: 02 | D65: 0220270210 | E65: 244 | F65: 221100 | G65: 1000 | H65: 300.00 | J65: 300.00 | K65: 0.00 | M65: 0.00 | N65: 0.00 | P65: 0.00
A66: Отопление, горячее водоснабжение и газоснабжение | B66: 07 | C66: 02 | D66: 0220270210 | E66: 247 | F66: 223100 | G66: 1000 | H66: 3,576,721.75 | J66: 3,576,721.75 | K66: 4,226,794.10 | M66: 4,226,794.10 | N66: 4,420,314.89 | P66: 4,420,314.89
A67: Электроэнергия | B67: 07 | C67: 02 | D67: 0220270210 | E67: 247 | F67: 223200 | G67: 1000 | H67: 1,343,722.52 | J67: 1,343,722.52 | K67: 1,902,380.60 | M67: 1,902,380.60 | N67: 1,983,351.63 | P67: 1,983,351.63
A68: Холодное водоснабжение | B68: 07 | C68: 02 | D68: 0220270210 | E68: 247 | F68: 223300 | G68: 1000 | H68: 121,057.60 | J68: 121,057.60 | K68: 172,092.96 | M68: 172,092.96 | N68: 179,678.20 | P68: 179,678.20
A69: Водоотведение | B69: 07 | C69: 02 | D69: 0220270210 | E69: 247 | F69: 223400 | G69: 1000 | H69: 182,131.20 | J69: 182,131.20 | K69: 295,668.96 | M69: 295,668.96 | N69: 308,699.12 | P69: 308,699.12
A70: Вывоз бытовых отходов | B70: 07 | C70: 02 | D70: 0220270210 | E70: 244 | F70: 223500 | G70: 1000 | H70: 59,536.40 | J70: 59,536.40 | K70: 84,527.22 | M70: 84,527.22 | N70: 86,184.55 | P70: 86,184.55
A71: Санитарная и противопожарная (дезинфекция, дезинсекция, дератизация, газация, огнезащитная) обработка помещений | B71: 07 | C71: 02 | D71: 0220270210 | E71: 244 | F71: 225600 | G71: 1000 | H71: 13,200.00 | J71: 13,200.00 | K71: 18,000.00 | M71: 18,000.00 | N71: 22,500.00 | P71: 22,500.00
A72: Содержание, обслуживание помещений и сетей инженерно-технического обеспечения | B72: 07 | C72: 02 | D72: 0220270210 | E72: 244 | F72: 225700 | G72: 1000 | H72: 94,200.00 | J72: 94,200.00 | K72: 85,500.00 | M72: 85,500.00 | N72: 106,875.00 | P72: 106,875.00
A73: Другие расходы | B73: 07 | C73: 02 | D73: 0220270210 | E73: 244 | F73: 225900 | G73: 1000 | H73: 120,000.00 | J73: 120,000.00 | K73: 100,000.00 | M73: 100,000.00 | N73: 100,000.00 | P73: 100,000.00
A74: Аттестация | B74: 07 | C74: 02 | D74: 0220270210 | E74: 244 | F74: 226200 | G74: 1000 | H74: 0.00 | J74: 0.00 | M74: 0.00 | P74: 0.00
A75: Ведомственная, вневедомственная, пожарная охрана | B75: 07 | C75: 02 | D75: 0220270210 | E75: 244 | F75: 226400 | G75: 1000 | H75: 79,400.00 | J75: 79,400.00 | K75: 99,250.00 | M75: 99,250.00 | N75: 124,062.50 | P75: 124,062.50
A76: Медицинский осмотр водителей транспортных средств | B76: 07 | C76: 02 | D76: 0220270210 | E76: 244 | F76: 226500 | G76: 1000 | H76: 195,300.00 | J76: 195,300.00 | K76: 244,125.00 | M76: 244,125.00 | N76: 305,156.25 | P76: 305,156.25
A77: Медицинский осмотр работников учрежждений, за исключением водителей транспортных средств | B77: 07 | C77: 02 | D77: 0220270210 | E77: 244 | F77: 226800 | G77: 1000 | H77: 335,000.00 | J77: 335,000.00 | K77: 337,000.00 | M77: 337,000.00 | N77: 337,000.00 | P77: 337,000.00
A78: Другие расходы | B78: 07 | C78: 02 | D78: 0220270210 | E78: 244 | F78: 226900 | G78: 1000 | H78: 99,700.00 | J78: 99,700.00 | K78: 100,000.00 | M78: 100,000.00 | N78: 100,000.00 | P78: 100,000.00
A79: Обязательное страхование автогражданской ответственности | B79: 07 | C79: 02 | D79: 0220270210 | E79: 244 | F79: 227200 | G79: 1000 | H79: 14,000.00 | J79: 14,000.00 | K79: 14,000.00 | M79: 14,000.00 | N79: 16,000.00 | P79: 16,000.00
A80: Приобретение предметов длительного пользования (оборудование, мебель,компьютерная техника и т.п.) стоимостью свыше 3000 рублей | B80: 07 | C80: 02 | D80: 0220270210 | E80: 244 | F80: 310100 | G80: 1000 | H80: 40,000.00 | J80: 40,000.00 | K80: 40,000.00 | M80: 40,000.00 | N80: 40,000.00 | P80: 40,000.00
A81: Другие расходы стоимостью до 3000,00 рублей | B81: 07 | C81: 02 | D81: 0220270210 | E81: 244 | F81: 310900 | G81: 1000 | H81: 30,000.00 | J81: 30,000.00 | K81: 30,000.00 | M81: 30,000.00 | N81: 30,000.00 | P81: 30,000.00
A82: Приобретение строительных материалов | B82: 07 | C82: 02 | D82: 0220270210 | E82: 244 | F82: 344000 | G82: 1000 | H82: 40,000.00 | J82: 40,000.00 | K82: 40,000.00 | M82: 40,000.00 | N82: 40,000.00 | P82: 40,000.00
A83: Мягкий инвентарь | B83: 07 | C83: 02 | D83: 0220270210 | E83: 244 | F83: 345000 | G83: 1000 | H83: 22,500.00 | J83: 22,500.00 | K83: 22,500.00 | M83: 22,500.00 | N83: 22,500.00 | P83: 22,500.00
A84: Увеличение стоимости прочих оборотных запасов (материалов) | B84: 07 | C84: 02 | D84: 0220270210 | E84: 244 | F84: 346000 | G84: 1000 | H84: 80,000.00 | J84: 80,000.00 | K84: 80,000.00 | M84: 80,000.00 | N84: 80,000.00 | P84: 80,000.00
A85: Налог на имущество | B85: 07 | C85: 02 | D85: 0220270210 | E85: 851 | F85: 291200 | G85: 1000 | H85: 60,238.00 | J85: 60,238.00 | K85: 60,238.00 | M85: 60,238.00 | N85: 60,238.00 | P85: 60,238.00
A86: Земельный залог | B86: 07 | C86: 02 | D86: 0220270210 | E86: 851 | F86: 291300 | G86: 1000 | H86: 25,281.00 | J86: 25,281.00 | K86: 25,281.00 | M86: 25,281.00 | N86: 25,281.00 | P86: 25,281.00
A87: Транспотный налог | B87: 07 | C87: 02 | D87: 0220270210 | E87: 852 | F87: 291400 | G87: 1000 | H87: 37,790.00 | J87: 37,790.00 | K87: 37,790.00 | M87: 37,790.00 | N87: 37,790.00 | P87: 37,790.00
A88: Итого по КЦ 1000 | H88: =SUM(H62:H87) -> 12,444,478.78 | I88: =SUM(I62:I87) -> 0.00 | J88: 12,444,478.78 | K88: 13,879,548.15 | L88: 0.00 | M88: 13,879,548.15 | N88: 14,290,031.45 | O88: 0.00 | P88: 14,290,031.45
A89: Средства, полученные от оказания платных услуг, безвозмездных поступлений (КЦ 8000)
A90: Продукты питания | B90: 07 | C90: 01 | D90: 0220170200 | E90: 244 | F90: 342000 | G90: 8000 | H90: 5,000,000.00 | J90: =H90+I90 -> 5,000,000.00 | K90: 5,800,000.00 | M90: =K90+L90 -> 5,800,000.00 | N90: 5,800,000.00 | P90: =N90+O90 -> 5,800,000.00
A91: Итого по КЦ 8000 | H91: =SUM(H90) -> 5,000,000.00 | I91: =SUM(I90) -> 0.00 | J91: 5,000,000.00 | K91: 5,800,000.00 | L91: 0.00 | M91: 5,800,000.00 | N91: 5,800,000.00 | O91: 0.00 | P91: 5,800,000.00
A92: Субвенции на обеспечение гос.гарантий реализации прав на получение общедоступного и бесплатного дошкольного образования в муниципальных дошкольных образовательных организациях, общедоступного и бесплатного дошкольного, начального общего, основного общего, среднего общего образования в муниципальных общеобразовательных организациях, обеспечение дополнительного образования детей в муниципальных общеобразовательных организациях (КЦ 24219)
A94: Заработная плата | B94: 07 | C94: 01 | D94: 0220142190 | E94: 111 | F94: 211000 | G94: 23424219000219
A95: Начисления на выплаты по оплате труда | B95: 07 | C95: 01 | D95: 0220142190 | E95: 119 | F95: 213000 | G95: 23424219000219
A96: Услуги связи (интернет) | B96: 07 | C96: 01 | D96: 0220142190 | E96: 244 | F96: 221200 | G96: 23424219000219
A97: Итого субвенция 0701 (КЦ 24219) | H97: =SUM(H94:H96) -> 0.00 | K97: =SUM(K94:K96) -> 0.00 | N97: 0.00
A98: Заработная плата | B98: 07 | C98: 02 | D98: 0220242190 | E98: 111 | F98: 211000 | G98: 23424219000219
A99: Начисления на выплаты по оплате труда | B99: 07 | C99: 02 | D99: 0220242190 | E99: 119 | F99: 213000 | G99: 23424219000219
A100: Услуги связи (интернет) | B100: 07 | C100: 02 | D100: 0220242190 | E100: 244 | F100: 221200 | G100: 23424219000219
A101: Мероприятия по переподготовке и повышению квалификации кадров | B101: 07 | C101: 05 | D101: 0220242190 | E101: 244 | F101: 226700 | G101: 23424219000219
A102: Итого субвенция 0702 (КЦ 24219) | H102: =SUM(H98:H101) -> 0.00 | K102: =SUM(K98:K101) -> 0.00 | N102: 0.00
A103: Итого по КЦ 24219 | H103: =H97+H102 -> 0.00 | K103: =K97+K102 -> 0.00 | N103: 0.00
A104: Субсидии на проведение мероприятий по обеспечению деятельности советников директора по воспитанию и взаимодействию с детским общественными объединениями в образовательных организациях
A105: Заработная плата | B105: 07 | C105: 02 | D105: 022EВ51790 | E105: 111 | F105: 211000 | G105: 23-51790-00000-00000
A106: Начисления на выплаты по оплате труда | B106: 07 | C106: 02 | D106: 022EВ51790 | E106: 119 | F106: 213000 | G106: 23-51790-00000-00000
A107: Итого по КЦ 24320, 1000 | H107: =SUM(H105:H106) -> 0.00 | K107: =SUM(K105:K106) -> 0.00 | N107: 0.00
A108: Субвенции на обеспечение гос.гарантий реализации прав на получение общедоступного и бесплатного дошкольного образования в муниципальных дошкольных образовательных организациях, общедоступного и бесплатного дошкольного, начального общего, основного общего, среднего общего образования в муниципальных общеобразовательных организациях, обеспечение дополнительного образования детей в муниципальных общеобразовательных организациях (КЦ 24219)
A110: Заработная плата | B110: 07 | C110: 01 | D110: 0220142190 | E110: 111 | F110: 211000 | G110: 254242190000219 | H110: 22,542,173.76 | J110: =H110+I110 -> 22,542,173.76 | K110: 0.00 | M110: =K110+L110 -> 0.00 | N110: 0.00 | P110: =N110+O110 -> 0.00
A111: Начисления на выплаты по оплате труда | B111: 07 | C111: 01 | D111: 0220142190 | E111: 119 | F111: 213000 | G111: 254242190000219 | H111: 5,105,802.36 | J111: 5,105,802.36 | K111: 0.00 | M111: 0.00 | N111: 0.00 | P111: 0.00
A112: Услуги связи (интернет) | B112: 07 | C112: 01 | D112: 0220142190 | E112: 244 | F112: 221200 | G112: 254242190000219 | H112: 47,000.00 | J112: 47,000.00 | K112: 0.00 | M112: 0.00 | N112: 0.00 | P112: 0.00
A113: Итого субвенция 0701 (КЦ 254242190000219) | H113: =SUM(H110:H112) -> 27,694,976.12 | I113: =SUM(I110:I112) -> 0.00 | J113: 27,694,976.12 | K113: 0.00 | L113: 0.00 | M113: 0.00 | N113: 0.00 | O113: 0.00 | P113: 0.00
A114: Заработная плата | B114: 07 | C114: 02 | D114: 0220242190 | E114: 111 | F114: 211000 | G114: 254242190000219 | H114: 39,662,990.40 | J114: =H114+I114 -> 39,662,990.40 | K114: 0.00 | M114: =K114+L114 -> 0.00 | N114: 0.00 | P114: 0.00
A115: Начисления на выплаты по оплате труда | B115: 07 | C115: 02 | D115: 0220242190 | E115: 119 | F115: 213000 | G115: 254242190000219 | H115: 8,983,667.33 | J115: 8,983,667.33 | K115: 0.00 | M115: 0.00 | N115: 0.00 | P115: 0.00
A116: Услуги связи (интернет) | B116: 07 | C116: 02 | D116: 0220242190 | E116: 244 | F116: 221200 | G116: 254242190000219 | H116: 54,991.59 | J116: 54,991.59 | K116: 0.00 | M116: 0.00 | N116: 0.00 | P116: 0.00
A117: Итого субвенция 0701 (КЦ 254242190000219) | H117: =SUM(H114:H116) -> 48,701,649.32 | I117: =SUM(I114:I116) -> 0.00 | J117: 48,701,649.32 | K117: 0.00 | L117: 0.00 | M117: 0.00 | N117: 0.00 | O117: 0.00 | P117: 0.00
A118: Итого по КЦ 254242190000219 | H118: =H113+H117 -> 76,396,625.44 | I118: =I113+I117 -> 0.00 | J118: 76,396,625.44 | K118: 0.00 | L118: 0.00 | M118: 0.00 | N118: 0.00 | O118: 0.00 | P118: 0.00
A119: Субвенция на осуществление государственных полномочий РК по выплате компенсации платы, взимаемой с родителей (законных представителей) за присмотр и уход за детьми, осваивающими образовательные программы дошкольного образования в организациях, осуществляющих образовательную деятельности, за исключением государственных образовательных организаций РК.
A120: Пособия по социальной помощи населению в натуральной форме | B120: 10 | C120: 04 | D120: 0220142030 | E120: 321 | F120: 263000 | G120: 254242030000203 | H120: 2,216,000.00 | J120: =H120+I120 -> 2,216,000.00 | K120: 0.00 | M120: =K120+L120 -> 0.00 | N120: 0.00 | P120: =N120+O120 -> 0.00
A121: Итого по КЦ 254242030000203 | H121: =SUM(H120:H120) -> 2,216,000.00 | I121: 0.00 | J121: 2,216,000.00 | K121: 0.00 | L121: 0.00 | M121: 0.00 | N121: 0.00 | O121: 0.00 | P121: 0.00
A122: Субвенция на осуществление государственных полномочий РК по предоставлению предусмотренных п.5 ч.1 ст.9 Заона от 20.12.2013 №1755-ЗРК "Об образовании" мер социальной поддержски и социального обслуживания обучающимся с ОВЗ, за искл.обучающихся (воспитываемы) в государтсвенных образовательных организациях РК
A123: Пособия по социальной помощи населению в натуральной форме | B123: 07 | C123: 02 | D123: 0220242100 | E123: 323 | F123: 263000 | G123: 254242100000210 | H123: 876,245.00 | J123: =H123+I123 -> 876,245.00 | K123: 0.00 | M123: =K123+L123 -> 0.00 | N123: 0.00 | P123: =N123+O123 -> 0.00
A124: Пособия по социальной помощи населению в денежной форме | B124: 10 | C124: 03 | D124: 0220242100 | E124: 321 | F124: 262000 | G124: 254242100000210 | H124: 93,777.00 | J124: =H124+I124 -> 93,777.00 | K124: 0.00 | M124: 0.00 | N124: 0.00 | P124: 0.00
A125: Итого по КЦ 254242100000210 | H125: =SUM(H123:H124) -> 970,022.00 | I125: =SUM(I123:I124) -> 0.00 | J125: 970,022.00 | K125: 0.00 | L125: 0.00 | M125: 0.00 | N125: 0.00 | O125: 0.00 | P125: 0.00
A126: Всего | H126: =H60+H88+H91+H103+H107+H121+H125+H118 -> 109,046,762.08 | I126: 38,197.52 | J126: 109,084,959.60 | K126: 33,521,479.18 | L126: 0.00 | M126: 33,521,479.18 | N126: 34,259,965.64 | O126: 0.00 | P126: 34,259,965.64
A128: Директор | E128: О.В. Высоцкая
A129: (уполномоченное лицо) | B129: (подпись) | E129: (расшифровка подписи)
A131: Главный бухгалтер МУ "ЦБ № 1" | F131: И.В. Ананьева
A132: (уполномоченное лицо) | B132: (подпись) | F132: (расшифровка подписи)
A134: Главный экономист ПЭО | F134: И.В. Пружинина
A135: (исполнитель) | B135: (подпись) | F135: (расшифровка подписи)

Sheet 29.01
N1: Приложение №2
N2: к Порядку составления, утверждения
N3: и ведения бюджетных смет Администрации
N4: Прионежского муниципального района
N5: и казенных учреждений, находящихся
N6: в ведении Администрации Прионежского
N7: муниципального района
N8: от 30 декабря 2022 № 1390
F9: УТВЕРЖДАЮ
F10: Глава Администрации Прионежского муниципального района
F11: (наименование должности лица, согласующего бюджетную смету)
F13: Администрация Прионежского муниципального района
F14: (наименование главного распорядителя (распорядителя) бюджетных средств; учреждения)
K16: Г.Н. Шемет
F17: (подпись) (расшифровка подписи)
H19: 29 января 2025 года
B21: ИЗМЕНЕНИЯ К БЮДЖЕТНОЙ СМЕТЕ НА 2025 ФИНАНСОВЫЙ ГОД И ПЛАНОВЫЙ ПЕРИОД 2026 и 2027 ГОДОВ
B24: СПРАВКА №№015/00406/026, 015/00406/027 от | J24: =H19 -> 29 января 2025 года | P24: КОДЫ
O25: Форма по ОКУД | P25: 0501012
O26: Дата | P26: =H19 -> 29 января 2025 года
B27: Муниципальное общеобразовательное учреждение Шуйская средняя общеобразовательная школа №1 | O27: по ОКПО | P27: 77446968
A28: Получатель бюджетных средств
A29: Распорядитель бюджетных средств | B29: Администрация Прионежского муниципального района
A30: Главный распорядитель бюджетных средств | B30: Администрация Прионежского муниципального района | O30: Глава по БК | P30: 015
A31: Наименование бюджета | B31: Бюджет Прионежского муниципального района | O31: по ОКТМО | P31: 86636470
A32: Единица измерения: | B32: руб. | O32: по ОКЕЙ | P32: 383
A33: Наименование показателя (детализация кода бюджетной классификации) | B33: РЗ | C33: ПР | D33: ЦСР | E33: Вид расхода | F33: Детализация | G33: Вид целевых средств | H33: Сумма на текущий год | K33: Сумма на первый год планового периода (руб) | N33: Сумма на второй год планового периода (руб.)
H34: 2025-01-27 | I34: изменения (+/-) | J34: ИТОГО | K34: =H34 -> 2025-01-27 | L34: изменения (+/-) | M34: ИТОГО | N34: =H34 -> 2025-01-27 | O34: изменения (+/-) | P34: ИТОГО
A35: 1 | B35: =SUM(A35+1) -> 2 | C35: 3 | D35: 4 | E35: 5 | F35: 6 | G35: 7 | H35: 8 | I35: 9 | J35: 10 | K35: 11 | L35: 12 | M35: 13 | N35: 14 | O35: 15 | P35: 16
A36: Средства местного бюджета (КЦ 1000)
A37: Заработная плата | B37: 07 | C37: 01 | D37: 0220170200 | E37: 111 | F37: 211000 | G37: 1000 | H37: 3,118,153.92 | J37: =H37+I37 -> 3,118,153.92 | K37: 3,118,153.92 | M37: =K37+L37 -> 3,118,153.92 | N37: 3,118,153.92 | P37: =N37+O37 -> 3,118,153.92
A38: Расходы по оплате проезда к месту отпуска и обратно отдельным категориям лиц (для лиц, работающих в районах Крайнего Севера и приравненных к ним местностях, и членов их семей) | B38: 07 | C38: 01 | D38: 0220170200 | E38: 112 | F38: 214000 | G38: 1000 | H38: 30,000.00 | J38: =H38+I38 -> 30,000.00 | K38: 20,000.00 | M38: =K38+L38 -> 20,000.00 | N38: 20,000.00 | P38: =N38+O38 -> 20,000.00
A39: Начисления на выплаты по оплате труда | B39: 07 | C39: 01 | D39: 0220170200 | E39: 119 | F39: 213000 | G39: 1000 | H39: 941,682.48 | J39: 941,682.48 | K39: 941,682.48 | M39: 941,682.48 | N39: 941,682.48 | P39: 941,682.48
A40: Услуги связи (телефон) | B40: 07 | C40: 01 | D40: 0220170200 | E40: 244 | F40: 221100 | G40: 1000 | H40: 13,894.08 | J40: 13,894.08 | K40: 13,200.00 | M40: 13,200.00 | N40: 14,400.00 | P40: 14,400.00
A41: Услуги связи (почта) | B41: 07 | C41: 01 | D41: 0220170200 | E41: 244 | F41: 221300 | G41: 1000 | H41: 0.00 | J41: 0.00 | M41: 0.00 | P41: 0.00
A42: Отопление, горячее водоснабжение и газоснабжение | B42: 07 | C42: 01 | D42: 0220170200 | E42: 247 | F42: 223100 | G42: 1000 | H42: 1,128,402.16 | J42: 1,128,402.16 | K42: 1,663,178.53 | M42: 1,663,178.53 | N42: 1,742,199.20 | P42: 1,742,199.20
A43: Электроэнергия | B43: 07 | C43: 01 | D43: 0220170200 | E43: 247 | F43: 223200 | G43: 1000 | H43: 2,603,931.30 | J43: 2,603,931.30 | K43: 3,686,539.68 | M43: 3,686,539.68 | N43: 3,858,393.83 | P43: 3,858,393.83
A44: Холодное водоснабжение | B44: 07 | C44: 01 | D44: 0220170200 | E44: 247 | F44: 223300 | G44: 1000 | H44: 191,606.53 | J44: 191,606.53 | K44: 272,469.54 | M44: 272,469.54 | N44: 287,640.02 | P44: 287,640.02
A45: Водоотведение | B45: 07 | C45: 01 | D45: 0220170200 | E45: 247 | F45: 223400 | G45: 1000 | H45: 251,490.90 | J45: 251,490.90 | K45: 536,497.88 | M45: 536,497.88 | N45: 562,394.55 | P45: 562,394.55
A46: Вывоз бытовых отходов | B46: 07 | C46: 01 | D46: 0220170200 | E46: 244 | F46: 223500 | G46: 1000 | H46: 91,133.73 | J46: 91,133.73 | K46: 129,337.08 | M46: 129,337.08 | N46: 131,873.02 | P46: 131,873.02
A47: Санитарная и противопожарная (дезинфекция, дезинсекция, дератизация, газация, огнезащитная) обработка помещений | B47: 07 | C47: 01 | D47: 0220170200 | E47: 244 | F47: 225600 | G47: 1000 | H47: 185,400.00 | J47: 185,400.00 | K47: 35,400.00 | M47: 35,400.00 | N47: 39,000.00 | P47: 39,000.00
A48: Содержание и обслуживание помещений | B48: 07 | C48: 01 | D48: 0220170200 | E48: 244 | F48: 225700 | G48: 1000 | H48: 223,750.00 | J48: 223,750.00 | K48: 249,550.00 | M48: 249,550.00 | N48: 263,500.00 | P48: 263,500.00
A49: Другие расходы | B49: 07 | C49: 01 | D49: 0220170200 | E49: 244 | F49: 225900 | G49: 1000 | H49: 90,000.00 | J49: 90,000.00 | K49: 50,000.00 | M49: 50,000.00 | N49: 50,000.00 | P49: 50,000.00
A50: Аттестация | B50: 07 | C50: 01 | D50: 0220170200 | E50: 244 | F50: 226200 | G50: 1000 | H50: 10,000.00 | J50: 10,000.00 | K50: 10,000.00 | M50: 10,000.00 | N50: 10,000.00 | P50: 10,000.00
A51: Ведомственная, вневедомственная, пожарная охрана | B51: 07 | C51: 01 | D51: 0220170200 | E51: 244 | F51: 226400 | G51: 1000 | H51: 153,497.52 | J51: 153,497.52 | K51: 78,564.20 | M51: 78,564.20 | N51: 83,749.44 | P51: 83,749.44
A52: Медицинский осмотр работников учрежждений, за исключением водителей транспортных средств | B52: 07 | C52: 01 | D52: 0220170200 | E52: 244 | F52: 226800 | G52: 1000 | H52: 222,129.84 | J52: 222,129.84 | K52: 233,902.72 | M52: 233,902.72 | N52: 243,492.73 | P52: 243,492.73
A53: Другие расходы | B53: 07 | C53: 01 | D53: 0220170200 | E53: 244 | F53: 226900 | G53: 1000 | H53: 49,305.92 | J53: 49,305.92 | K53: 50,000.00 | M53: 50,000.00 | N53: 50,000.00 | P53: 50,000.00
A54: Приобретение предметов длительного пользования (оборудование, мебель,компьютерная техника и т.п.) стоимостью свыше 3000 рублей | B54: 07 | C54: 01 | D54: 0220170200 | E54: 244 | F54: 310100 | G54: 1000 | H54: 40,000.00 | J54: 40,000.00 | K54: 40,000.00 | M54: 40,000.00 | N54: 40,000.00 | P54: 40,000.00
A55: Другие расходы стоимостью до 3000,00 рублей | B55: 07 | C55: 01 | D55: 0220170200 | E55: 244 | F55: 310900 | G55: 1000 | H55: 30,000.00 | J55: 30,000.00 | K55: 30,000.00 | M55: 30,000.00 | N55: 30,000.00 | P55: 30,000.00
A56: Продукты питания | B56: 07 | C56: 01 | D56: 0220170200 | E56: 244 | F56: 342000 | G56: 1000 | H56: 1,330,236.00 | J56: 1,330,236.00 | K56: 1,330,236.00 | M56: 1,330,236.00 | N56: 1,330,236.00 | P56: 1,330,236.00
A57: Увеличение стоимости прочих оборотных запасов (материалов) | B57: 07 | C57: 01 | D57: 0220170200 | E57: 244 | F57: 346000 | G57: 1000 | H57: 80,000.00 | J57: 80,000.00 | K57: 80,000.00 | M57: 80,000.00 | N57: 80,000.00 | P57: 80,000.00
A58: Налог на имущество | B58: 07 | C58: 01 | D58: 0220170200 | E58: 851 | F58: 291200 | G58: 1000 | H58: 1,256,402.00 | J58: 1,256,402.00 | K58: 1,256,402.00 | M58: 1,256,402.00 | N58: 1,256,402.00 | P58: 1,256,402.00
A59: Земельный налог | B59: 07 | C59: 01 | D59: 0220170200 | E59: 851 | F59: 291300 | G59: 1000 | H59: 16,817.00 | J59: 16,817.00 | K59: 16,817.00 | M59: 16,817.00 | N59: 16,817.00 | P59: 16,817.00
A60: Итого по КЦ 1000 | H60: =SUM(H37:H59) -> 12,057,833.38 | I60: =SUM(I37:I59) -> 0.00 | J60: 12,057,833.38 | K60: 13,841,931.03 | L60: 0.00 | M60: 13,841,931.03 | N60: 14,169,934.19 | O60: 0.00 | P60: 14,169,934.19
A61: Средства местного бюджета (КЦ 1000)
A62: Заработная плата | B62: 07 | C62: 02 | D62: 0220270210 | E62: 111 | F62: 211000 | G62: 1000 | H62: 4,488,786.72 | J62: =H62+I62 -> 4,488,786.72 | K62: 4,488,786.72 | M62: =K62+L62 -> 4,488,786.72 | N62: 4,488,786.72 | P62: =N62+O62 -> 4,488,786.72
A63: Расходы по оплате проезда к месту отпуска и обратно отдельным категориям лиц (для лиц, работающих в районах Крайнего Севера и приравненных к ним местностях, и членов их семей) | B63: 07 | C63: 02 | D63: 0220270210 | E63: 112 | F63: 214000 | G63: 1000 | H63: 30,000.00 | J63: =H63+I63 -> 30,000.00 | K63: 20,000.00 | M63: =K63+L63 -> 20,000.00 | N63: 20,000.00 | P63: =N63+O63 -> 20,000.00
A64: Начисления на выплаты по оплате труда | B64: 07 | C64: 02 | D64: 0220270210 | E64: 119 | F64: 213000 | G64: 1000 | H64: 1,355,613.59 | J64: 1,355,613.59 | K64: 1,355,613.59 | M64: 1,355,613.59 | N64: 1,355,613.59 | P64: 1,355,613.59
A65: Услуги связи (телефон) | B65: 07 | C65: 02 | D65: 0220270210 | E65: 244 | F65: 221100 | G65: 1000 | H65: 300.00 | J65: 300.00 | K65: 0.00 | M65: 0.00 | N65: 0.00 | P65: 0.00
A66: Отопление, горячее водоснабжение и газоснабжение | B66: 07 | C66: 02 | D66: 0220270210 | E66: 247 | F66: 223100 | G66: 1000 | H66: 3,576,721.75 | J66: 3,576,721.75 | K66: 4,226,794.10 | M66: 4,226,794.10 | N66: 4,420,314.89 | P66: 4,420,314.89
A67: Электроэнергия | B67: 07 | C67: 02 | D67: 0220270210 | E67: 247 | F67: 223200 | G67: 1000 | H67: 1,343,722.52 | J67: 1,343,722.52 | K67: 1,902,380.60 | M67: 1,902,380.60 | N67: 1,983,351.63 | P67: 1,983,351.63
A68: Холодное водоснабжение | B68: 07 | C68: 02 | D68: 0220270210 | E68: 247 | F68: 223300 | G68: 1000 | H68: 121,057.60 | J68: 121,057.60 | K68: 172,092.96 | M68: 172,092.96 | N68: 179,678.20 | P68: 179,678.20
A69: Водоотведение | B69: 07 | C69: 02 | D69: 0220270210 | E69: 247 | F69: 223400 | G69: 1000 | H69: 182,131.20 | J69: 182,131.20 | K69: 295,668.96 | M69: 295,668.96 | N69: 308,699.12 | P69: 308,699.12
A70: Вывоз бытовых отходов | B70: 07 | C70: 02 | D70: 0220270210 | E70: 244 | F70: 223500 | G70: 1000 | H70: 59,536.40 | J70: 59,536.40 | K70: 84,527.22 | M70: 84,527.22 | N70: 86,184.55 | P70: 86,184.55
A71: Санитарная и противопожарная (дезинфекция, дезинсекция, дератизация, газация, огнезащитная) обработка помещений | B71: 07 | C71: 02 | D71: 0220270210 | E71: 244 | F71: 225600 | G71: 1000 | H71: 13,200.00 | J71: 13,200.00 | K71: 18,000.00 | M71: 18,000.00 | N71: 22,500.00 | P71: 22,500.00
A72: Содержание, обслуживание помещений и сетей инженерно-технического обеспечения | B72: 07 | C72: 02 | D72: 0220270210 | E72: 244 | F72: 225700 | G72: 1000 | H72: 94,200.00 | J72: 94,200.00 | K72: 85,500.00 | M72: 85,500.00 | N72: 106,875.00 | P72: 106,875.00
A73: Другие расходы | B73: 07 | C73: 02 | D73: 0220270210 | E73: 244 | F73: 225900 | G73: 1000 | H73: 120,000.00 | J73: 120,000.00 | K73: 100,000.00 | M73: 100,000.00 | N73: 100,000.00 | P73: 100,000.00
A74: Аттестация | B74: 07 | C74: 02 | D74: 0220270210 | E74: 244 | F74: 226200 | G74: 1000 | H74: 0.00 | J74: 0.00 | M74: 0.00 | P74: 0.00
A75: Ведомственная, вневедомственная, пожарная охрана | B75: 07 | C75: 02 | D75: 0220270210 | E75: 244 | F75: 226400 | G75: 1000 | H75: 79,400.00 | J75: 79,400.00 | K75: 99,250.00 | M75: 99,250.00 | N75: 124,062.50 | P75: 124,062.50
A76: Медицинский осмотр водителей транспортных средств | B76: 07 | C76: 02 | D76: 0220270210 | E76: 244 | F76: 226500 | G76: 1000 | H76: 195,300.00 | J76: 195,300.00 | K76: 244,125.00 | M76: 244,125.00 | N76: 305,156.25 | P76: 305,156.25
A77: Медицинский осмотр работников учрежждений, за исключением водителей транспортных средств | B77: 07 | C77: 02 | D77: 0220270210 | E77: 244 | F77: 226800 | G77: 1000 | H77: 335,000.00 | J77: 335,000.00 | K77: 337,000.00 | M77: 337,000.00 | N77: 337,000.00 | P77: 337,000.00
A78: Другие расходы | B78: 07 | C78: 02 | D78: 0220270210 | E78: 244 | F78: 226900 | G78: 1000 | H78: 99,700.00 | J78: 99,700.00 | K78: 100,000.00 | M78: 100,000.00 | N78: 100,000.00 | P78: 100,000.00
A79: Обязательное страхование автогражданской ответственности | B79: 07 | C79: 02 | D79: 0220270210 | E79: 244 | F79: 227200 | G79: 1000 | H79: 14,000.00 | J79: 14,000.00 | K79: 14,000.00 | M79: 14,000.00 | N79: 16,000.00 | P79: 16,000.00
A80: Приобретение предметов длительного пользования (оборудование, мебель,компьютерная техника и т.п.) стоимостью свыше 3000 рублей | B80: 07 | C80: 02 | D80: 0220270210 | E80: 244 | F80: 310100 | G80: 1000 | H80: 40,000.00 | J80: 40,000.00 | K80: 40,000.00 | M80: 40,000.00 | N80: 40,000.00 | P80: 40,000.00
A81: Другие расходы стоимостью до 3000,00 рублей | B81: 07 | C81: 02 | D81: 0220270210 | E81: 244 | F81: 310900 | G81: 1000 | H81: 30,000.00 | J81: 30,000.00 | K81: 30,000.00 | M81: 30,000.00 | N81: 30,000.00 | P81: 30,000.00
A82: Приобретение строительных материалов | B82: 07 | C82: 02 | D82: 0220270210 | E82: 244 | F82: 344000 | G82: 1000 | H82: 40,000.00 | J82: 40,000.00 | K82: 40,000.00 | M82: 40,000.00 | N82: 40,000.00 | P82: 40,000.00
A83: Мягкий инвентарь | B83: 07 | C83: 02 | D83: 0220270210 | E83: 244 | F83: 345000 | G83: 1000 | H83: 22,500.00 | J83: 22,500.00 | K83: 22,500.00 | M83: 22,500.00 | N83: 22,500.00 | P83: 22,500.00
A84: Увеличение стоимости прочих оборотных запасов (материалов) | B84: 07 | C84: 02 | D84: 0220270210 | E84: 244 | F84: 346000 | G84: 1000 | H84: 80,000.00 | J84: 80,000.00 | K84: 80,000.00 | M84: 80,000.00 | N84: 80,000.00 | P84: 80,000.00
A85: Налог на имущество | B85: 07 | C85: 02 | D85: 0220270210 | E85: 851 | F85: 291200 | G85: 1000 | H85: 60,238.00 | J85: 60,238.00 | K85: 60,238.00 | M85: 60,238.00 | N85: 60,238.00 | P85: 60,238.00
A86: Земельный залог | B86: 07 | C86: 02 | D86: 0220270210 | E86: 851 | F86: 291300 | G86: 1000 | H86: 25,281.00 | J86: 25,281.00 | K86: 25,281.00 | M86: 25,281.00 | N86: 25,281.00 | P86: 25,281.00
A87: Транспотный налог | B87: 07 | C87: 02 | D87: 0220270210 | E87: 852 | F87: 291400 | G87: 1000 | H87: 37,790.00 | J87: 37,790.00 | K87: 37,790.00 | M87: 37,790.00 | N87: 37,790.00 | P87: 37,790.00
A88: Итого по КЦ 1000 | H88: =SUM(H62:H87) -> 12,444,478.78 | I88: =SUM(I62:I87) -> 0.00 | J88: 12,444,478.78 | K88: 13,879,548.15 | L88: 0.00 | M88: 13,879,548.15 | N88: 14,290,031.45 | O88: 0.00 | P88: 14,290,031.45
A89: Средства, полученные от оказания платных услуг, безвозмездных поступлений (КЦ 8000)
A90: Продукты питания | B90: 07 | C90: 01 | D90: 0220170200 | E90: 244 | F90: 342000 | G90: 8000 | H90: 5,000,000.00 | J90: =H90+I90 -> 5,000,000.00 | K90: 5,800,000.00 | M90: =K90+L90 -> 5,800,000.00 | N90: 5,800,000.00 | P90: =N90+O90 -> 5,800,000.00
A91: Итого по КЦ 8000 | H91: =SUM(H90) -> 5,000,000.00 | I91: =SUM(I90) -> 0.00 | J91: 5,000,000.00 | K91: 5,800,000.00 | L91: 0.00 | M91: 5,800,000.00 | N91: 5,800,000.00 | O91: 0.00 | P91: 5,800,000.00
A92: Субвенции на обеспечение гос.гарантий реализации прав на получение общедоступного и бесплатного дошкольного образования в муниципальных дошкольных образовательных организациях, общедоступного и бесплатного дошкольного, начального общего, основного общего, среднего общего образования в муниципальных общеобразовательных организациях, обеспечение дополнительного образования детей в муниципальных общеобразовательных организациях (КЦ 24219)
A94: Заработная плата | B94: 07 | C94: 01 | D94: 0220142190 | E94: 111 | F94: 211000 | G94: 23424219000219
A95: Начисления на выплаты по оплате труда | B95: 07 | C95: 01 | D95: 0220142190 | E95: 119 | F95: 213000 | G95: 23424219000219
A96: Услуги связи (интернет) | B96: 07 | C96: 01 | D96: 0220142190 | E96: 244 | F96: 221200 | G96: 23424219000219
A97: Итого субвенция 0701 (КЦ 24219) | H97: =SUM(H94:H96) -> 0.00 | K97: =SUM(K94:K96) -> 0.00 | N97: 0.00
A98: Заработная плата | B98: 07 | C98: 02 | D98: 0220242190 | E98: 111 | F98: 211000 | G98: 23424219000219
A99: Начисления на выплаты по оплате труда | B99: 07 | C99: 02 | D99: 0220242190 | E99: 119 | F99: 213000 | G99: 23424219000219
A100: Услуги связи (интернет) | B100: 07 | C100: 02 | D100: 0220242190 | E100: 244 | F100: 221200 | G100: 23424219000219
A101: Мероприятия по переподготовке и повышению квалификации кадров | B101: 07 | C101: 05 | D101: 0220242190 | E101: 244 | F101: 226700 | G101: 23424219000219
A102: Итого субвенция 0702 (КЦ 24219) | H102: =SUM(H98:H101) -> 0.00 | K102: =SUM(K98:K101) -> 0.00 | N102: 0.00
A103: Итого по КЦ 24219 | H103: =H97+H102 -> 0.00 | K103: =K97+K102 -> 0.00 | N103: 0.00
A104: Субсидии на проведение мероприятий по обеспечению деятельности советников директора по воспитанию и взаимодействию с детским общественными объединениями в образовательных организациях
A105: Заработная плата | B105: 07 | C105: 02 | D105: 022EВ51790 | E105: 111 | F105: 211000 | G105: 23-51790-00000-00000
A106: Начисления на выплаты по оплате труда | B106: 07 | C106: 02 | D106: 022EВ51790 | E106: 119 | F106: 213000 | G106: 23-51790-00000-00000
A107: Итого по КЦ 24320, 1000 | H107: =SUM(H105:H106) -> 0.00 | K107: =SUM(K105:K106) -> 0.00 | N107: 0.00
A108: Субвенции на обеспечение гос.гарантий реализации прав на получение общедоступного и бесплатного дошкольного образования в муниципальных дошкольных образовательных организациях, общедоступного и бесплатного дошкольного, начального общего, основного общего, среднего общего образования в муниципальных общеобразовательных организациях, обеспечение дополнительного образования детей в муниципальных общеобразовательных организациях (КЦ 24219)
A110: Заработная плата | B110: 07 | C110: 01 | D110: 0220142190 | E110: 111 | F110: 211000 | G110: 254242190000219 | H110: 22,542,173.76 | J110: =H110+I110 -> 22,542,173.76 | K110: 0.00 | M110: =K110+L110 -> 0.00 | N110: 0.00 | P110: =N110+O110 -> 0.00
A111: Начисления на выплаты по оплате труда | B111: 07 | C111: 01 | D111: 0220142190 | E111: 119 | F111: 213000 | G111: 254242190000219 | H111: 5,105,802.36 | J111: 5,105,802.36 | K111: 0.00 | M111: 0.00 | N111: 0.00 | P111: 0.00
A112: Услуги связи (интернет) | B112: 07 | C112: 01 | D112: 0220142190 | E112: 244 | F112: 221200 | G112: 254242190000219 | H112: 47,000.00 | J112: 47,000.00 | K112: 0.00 | M112: 0.00 | N112: 0.00 | P112: 0.00
A113: Итого субвенция 0701 (КЦ 254242190000219) | H113: =SUM(H110:H112) -> 27,694,976.12 | I113: =SUM(I110:I112) -> 0.00 | J113: 27,694,976.12 | K113: 0.00 | L113: 0.00 | M113: 0.00 | N113: 0.00 | O113: 0.00 | P113: 0.00
A114: Заработная плата | B114: 07 | C114: 02 | D114: 0220242190 | E114: 111 | F114: 211000 | G114: 254242190000219 | H114: 39,662,990.40 | J114: =H114+I114 -> 39,662,990.40 | K114: 0.00 | M114: =K114+L114 -> 0.00 | N114: 0.00 | P114: 0.00
A115: Начисления на выплаты по оплате труда | B115: 07 | C115: 02 | D115: 0220242190 | E115: 119 | F115: 213000 | G115: 254242190000219 | H115: 8,983,667.33 | J115: 8,983,667.33 | K115: 0.00 | M115: 0.00 | N115: 0.00 | P115: 0.00
A116: Услуги связи (интернет) | B116: 07 | C116: 02 | D116: 0220242190 | E116: 244 | F116: 221200 | G116: 254242190000219 | H116: 54,991.59 | J116: 54,991.59 | K116: 0.00 | M116: 0.00 | N116: 0.00 | P116: 0.00
A117: Итого субвенция 0701 (КЦ 254242190000219) | H117: =SUM(H114:H116) -> 48,701,649.32 | I117: =SUM(I114:I116) -> 0.00 | J117: 48,701,649.32 | K117: 0.00 | L117: 0.00 | M117: 0.00 | N117: 0.00 | O117: 0.00 | P117: 0.00
A118: Итого по КЦ 254242190000219 | H118: =H113+H117 -> 76,396,625.44 | I118: =I113+I117 -> 0.00 | J118: 76,396,625.44 | K118: 0.00 | L118: 0.00 | M118: 0.00 | N118: 0.00 | O118: 0.00 | P118: 0.00
A119: Субвенция на осуществление государственных полномочий РК по выплате компенсации платы, взимаемой с родителей (законных представителей) за присмотр и уход за детьми, осваивающими образовательные программы дошкольного образования в организациях, осуществляющих образовательную деятельности, за исключением государственных образовательных организаций РК.
A120: Пособия по социальной помощи населению в натуральной форме | B120: 10 | C120: 04 | D120: 0220142030 | E120: 321 | F120: 263000 | G120: 254242030000203 | H120: 2,216,000.00 | J120: =H120+I120 -> 2,216,000.00 | K120: 0.00 | M120: =K120+L120 -> 0.00 | N120: 0.00 | P120: =N120+O120 -> 0.00
A121: Итого по КЦ 254242030000203 | H121: =SUM(H120:H120) -> 2,216,000.00 | I121: 0.00 | J121: 2,216,000.00 | K121: 0.00 | L121: 0.00 | M121: 0.00 | N121: 0.00 | O121: 0.00 | P121: 0.00
A122: Субвенция на осуществление государственных полномочий РК по предоставлению предусмотренных п.5 ч.1 ст.9 Заона от 20.12.2013 №1755-ЗРК "Об образовании" мер социальной поддержски и социального обслуживания обучающимся с ОВЗ, за искл.обучающихся (воспитываемы) в государтсвенных образовательных организациях РК
A123: Пособия по социальной помощи населению в натуральной форме | B123: 07 | C123: 02 | D123: 0220242100 | E123: 323 | F123: 263000 | G123: 254242100000210 | H123: 876,245.00 | J123: =H123+I123 -> 876,245.00 | K123: 0.00 | M123: =K123+L123 -> 0.00 | N123: 0.00 | P123: =N123+O123 -> 0.00
A124: Пособия по социальной помощи населению в денежной форме | B124: 10 | C124: 03 | D124: 0220242100 | E124: 321 | F124: 262000 | G124: 254242100000210 | H124: 93,777.00 | J124: =H124+I124 -> 93,777.00 | K124: 0.00 | M124: 0.00 | N124: 0.00 | P124: 0.00
A125: Итого по КЦ 254242100000210 | H125: =SUM(H123:H124) -> 970,022.00 | I125: =SUM(I123:I124) -> 0.00 | J125: 970,022.00 | K125: 0.00 | L125: 0.00 | M125: 0.00 | N125: 0.00 | O125: 0.00 | P125: 0.00
A126: Субсидии на организацию бесплатного горячего питания обучающихся, получающих начальное общее образование в государственных и муниципальных образовательных организациях
A127: Другие расходы | B127: 07 | C127: 02 | D127: 02202L3040 | E127: 244 | F127: 226900 | G127: 25-53040-00000-00000 | H127: 0.00 | I127: 3,150,000.00 | J127: =H127+I127 -> 3,150,000.00 | K127: 0.00 | M127: =K127+L127 -> 0.00 | N127: 0.00 | P127: =N127+O127 -> 0.00
A128: Итого по КЦ 25-53040-00000-00000 | H128: =SUM(H127) -> 0.00 | I128: =SUM(I127) -> 3,150,000.00 | J128: 3,150,000.00 | K128: 0.00 | L128: 0.00 | M128: 0.00 | N128: 0.00 | O128: 0.00 | P128: 0.00
A129: Субсидия на реализацию мероприятий государственной программы РК "Совершенствование социальной защиты граждан" в целях организации адресной социальной помощи семьям, имеющим детей
A130: Пособия по социальной помощи населению в натуральной форме | B130: 10 | C130: 03 | D130: 0320243210 | E130: 323 | F130: 263000 | G130: 254343210000316 | H130: 0.00 | I130: 1,260,000.00 | J130: =H130+I130 -> 1,260,000.00 | K130: 0.00 | M130: =K130+L130 -> 0.00 | N130: 0.00 | P130: =N130+O130 -> 0.00
A131: Пособия по социальной помощи населению в натуральной форме | B131: 10 | C131: 03 | D131: 03202S3210 | E131: 323 | F131: 263000 | G131: 1000 | H131: 0.00 | I131: 540,000.00 | J131: 540,000.00 | K131: 0.00 | M131: 0.00 | N131: 0.00 | P131: 0.00
A132: Итого по КЦ 254343210000316 | H132: =SUM(H130:H131) -> 0.00 | I132: =SUM(I130:I131) -> 1,800,000.00 | J132: 1,800,000.00 | K132: 0.00 | L132: 0.00 | M132: 0.00 | N132: 0.00 | O132: 0.00 | P132: 0.00
A133: Всего | H133: =H60+H88+H91+H103+H107+H121+H125+H118+H128+H132 -> 109,084,959.60 | I133: =I60+I88+I91+I103+I107+I121+I125+I118+I128+I132 -> 4,950,000.00 | J133: 114,034,959.60 | K133: 33,521,479.18 | L133: 0.00 | M133: 33,521,479.18 | N133: 34,259,965.64 | O133: 0.00 | P133: 34,259,965.64
A135: Директор | E135: О.В. Высоцкая
A136: (уполномоченное лицо) | B136: (подпись) | E136: (расшифровка подписи)
A138: Главный бухгалтер МУ "ЦБ № 1" | F138: И.В. Ананьева
A139: (уполномоченное лицо) | B139: (подпись) | F139: (расшифровка подписи)
A141: Главный экономист ПЭО | F141: И.В. Пружинина
A142: (исполнитель) | B142: (подпись) | F142: (расшифровка подписи)

Sheet 30.01
N1: Приложение №2
N2: к Порядку составления, утверждения
N3: и ведения бюджетных смет Администрации
N4: Прионежского муниципального района
N5: и казенных учреждений, находящихся
N6: в ведении Администрации Прионежского
N7: муниципального района
N8: от 30 декабря 2022 № 1390
F9: УТВЕРЖДАЮ
F10: Глава Администрации Прионежского муниципального района
F11: (наименование должности лица, согласующего бюджетную смету)
F13: Администрация Прионежского муниципального района
F14: (наименование главного распорядителя (распорядителя) бюджетных средств; учреждения)
K16: Г.Н. Шемет
F17: (подпись) (расшифровка подписи)
H19: 30 января 2025 года
B21: ИЗМЕНЕНИЯ К БЮДЖЕТНОЙ СМЕТЕ НА 2025 ФИНАНСОВЫЙ ГОД И ПЛАНОВЫЙ ПЕРИОД 2026 и 2027 ГОДОВ
B24: СПРАВКА №№015/00406/029, 015/00406/030 от | J24: =H19 -> 30 января 2025 года | P24: КОДЫ
O25: Форма по ОКУД | P25: 0501012
O26: Дата | P26: =H19 -> 30 января 2025 года
B27: Муниципальное общеобразовательное учреждение Шуйская средняя общеобразовательная школа №1 | O27: по ОКПО | P27: 77446968
A28: Получатель бюджетных средств
A29: Распорядитель бюджетных средств | B29: Администрация Прионежского муниципального района
A30: Главный распорядитель бюджетных средств | B30: Администрация Прионежского муниципального района | O30: Глава по БК | P30: 015
A31: Наименование бюджета | B31: Бюджет Прионежского муниципального района | O31: по ОКТМО | P31: 86636470
A32: Единица измерения: | B32: руб. | O32: по ОКЕЙ | P32: 383
A33: Наименование показателя (детализация кода бюджетной классификации) | B33: РЗ | C33: ПР | D33: ЦСР | E33: Вид расхода | F33: Детализация | G33: Вид целевых средств | H33: Сумма на текущий год | K33: Сумма на первый год планового периода (руб) | N33: Сумма на второй год планового периода (руб.)
H34: 2025-01-29 | I34: изменения (+/-) | J34: ИТОГО | K34: =H34 -> 2025-01-29 | L34: изменения (+/-) | M34: ИТОГО | N34: =H34 -> 2025-01-29 | O34: изменения (+/-) | P34: ИТОГО
A35: 1 | B35: =SUM(A35+1) -> 2 | C35: 3 | D35: 4 | E35: 5 | F35: 6 | G35: 7 | H35: 8 | I35: 9 | J35: 10 | K35: 11 | L35: 12 | M35: 13 | N35: 14 | O35: 15 | P35: 16
A36: Средства местного бюджета (КЦ 1000)
A37: Заработная плата | B37: 07 | C37: 01 | D37: 0220170200 | E37: 111 | F37: 211000 | G37: 1000 | H37: 3,118,153.92 | J37: =H37+I37 -> 3,118,153.92 | K37: 3,118,153.92 | M37: =K37+L37 -> 3,118,153.92 | N37: 3,118,153.92 | P37: =N37+O37 -> 3,118,153.92
A38: Расходы по оплате проезда к месту отпуска и обратно отдельным категориям лиц (для лиц, работающих в районах Крайнего Севера и приравненных к ним местностях, и членов их семей) | B38: 07 | C38: 01 | D38: 0220170200 | E38: 112 | F38: 214000 | G38: 1000 | H38: 30,000.00 | J38: =H38+I38 -> 30,000.00 | K38: 20,000.00 | M38: =K38+L38 -> 20,000.00 | N38: 20,000.00 | P38: =N38+O38 -> 20,000.00
A39: Начисления на выплаты по оплате труда | B39: 07 | C39: 01 | D39: 0220170200 | E39: 119 | F39: 213000 | G39: 1000 | H39: 941,682.48 | J39: 941,682.48 | K39: 941,682.48 | M39: 941,682.48 | N39: 941,682.48 | P39: 941,682.48
A40: Услуги связи (телефон) | B40: 07 | C40: 01 | D40: 0220170200 | E40: 244 | F40: 221100 | G40: 1000 | H40: 13,894.08 | J40: 13,894.08 | K40: 13,200.00 | M40: 13,200.00 | N40: 14,400.00 | P40: 14,400.00
A41: Услуги связи (почта) | B41: 07 | C41: 01 | D41: 0220170200 | E41: 244 | F41: 221300 | G41: 1000 | H41: 0.00 | J41: 0.00 | M41: 0.00 | P41: 0.00
A42: Отопление, горячее водоснабжение и газоснабжение | B42: 07 | C42: 01 | D42: 0220170200 | E42: 247 | F42: 223100 | G42: 1000 | H42: 1,128,402.16 | J42: 1,128,402.16 | K42: 1,663,178.53 | M42: 1,663,178.53 | N42: 1,742,199.20 | P42: 1,742,199.20
A43: Электроэнергия | B43: 07 | C43: 01 | D43: 0220170200 | E43: 247 | F43: 223200 | G43: 1000 | H43: 2,603,931.30 | J43: 2,603,931.30 | K43: 3,686,539.68 | M43: 3,686,539.68 | N43: 3,858,393.83 | P43: 3,858,393.83
A44: Холодное водоснабжение | B44: 07 | C44: 01 | D44: 0220170200 | E44: 247 | F44: 223300 | G44: 1000 | H44: 191,606.53 | J44: 191,606.53 | K44: 272,469.54 | M44: 272,469.54 | N44: 287,640.02 | P44: 287,640.02
A45: Водоотведение | B45: 07 | C45: 01 | D45: 0220170200 | E45: 247 | F45: 223400 | G45: 1000 | H45: 251,490.90 | J45: 251,490.90 | K45: 536,497.88 | M45: 536,497.88 | N45: 562,394.55 | P45: 562,394.55
A46: Вывоз бытовых отходов | B46: 07 | C46: 01 | D46: 0220170200 | E46: 244 | F46: 223500 | G46: 1000 | H46: 91,133.73 | J46: 91,133.73 | K46: 129,337.08 | M46: 129,337.08 | N46: 131,873.02 | P46: 131,873.02
A47: Санитарная и противопожарная (дезинфекция, дезинсекция, дератизация, газация, огнезащитная) обработка помещений | B47: 07 | C47: 01 | D47: 0220170200 | E47: 244 | F47: 225600 | G47: 1000 | H47: 185,400.00 | J47: 185,400.00 | K47: 35,400.00 | M47: 35,400.00 | N47: 39,000.00 | P47: 39,000.00
A48: Содержание и обслуживание помещений | B48: 07 | C48: 01 | D48: 0220170200 | E48: 244 | F48: 225700 | G48: 1000 | H48: 223,750.00 | J48: 223,750.00 | K48: 249,550.00 | M48: 249,550.00 | N48: 263,500.00 | P48: 263,500.00
A49: Другие расходы | B49: 07 | C49: 01 | D49: 0220170200 | E49: 244 | F49: 225900 | G49: 1000 | H49: 90,000.00 | J49: 90,000.00 | K49: 50,000.00 | M49: 50,000.00 | N49: 50,000.00 | P49: 50,000.00
A50: Аттестация | B50: 07 | C50: 01 | D50: 0220170200 | E50: 244 | F50: 226200 | G50: 1000 | H50: 10,000.00 | J50: 10,000.00 | K50: 10,000.00 | M50: 10,000.00 | N50: 10,000.00 | P50: 10,000.00
A51: Ведомственная, вневедомственная, пожарная охрана | B51: 07 | C51: 01 | D51: 0220170200 | E51: 244 | F51: 226400 | G51: 1000 | H51: 153,497.52 | I51: 15,634.16 | J51: 169,131.68 | K51: 78,564.20 | M51: 78,564.20 | N51: 83,749.44 | P51: 83,749.44
A52: Медицинский осмотр работников учрежждений, за исключением водителей транспортных средств | B52: 07 | C52: 01 | D52: 0220170200 | E52: 244 | F52: 226800 | G52: 1000 | H52: 222,129.84 | J52: 222,129.84 | K52: 233,902.72 | M52: 233,902.72 | N52: 243,492.73 | P52: 243,492.73
A53: Другие расходы | B53: 07 | C53: 01 | D53: 0220170200 | E53: 244 | F53: 226900 | G53: 1000 | H53: 49,305.92 | J53: 49,305.92 | K53: 50,000.00 | M53: 50,000.00 | N53: 50,000.00 | P53: 50,000.00
A54: Приобретение предметов длительного пользования (оборудование, мебель,компьютерная техника и т.п.) стоимостью свыше 3000 рублей | B54: 07 | C54: 01 | D54: 0220170200 | E54: 244 | F54: 310100 | G54: 1000 | H54: 40,000.00 | J54: 40,000.00 | K54: 40,000.00 | M54: 40,000.00 | N54: 40,000.00 | P54: 40,000.00
A55: Другие расходы стоимостью до 3000,00 рублей | B55: 07 | C55: 01 | D55: 0220170200 | E55: 244 | F55: 310900 | G55: 1000 | H55: 30,000.00 | J55: 30,000.00 | K55: 30,000.00 | M55: 30,000.00 | N55: 30,000.00 | P55: 30,000.00
A56: Продукты питания | B56: 07 | C56: 01 | D56: 0220170200 | E56: 244 | F56: 342000 | G56: 1000 | H56: 1,330,236.00 | J56: 1,330,236.00 | K56: 1,330,236.00 | M56: 1,330,236.00 | N56: 1,330,236.00 | P56: 1,330,236.00
A57: Увеличение стоимости прочих оборотных запасов (материалов) | B57: 07 | C57: 01 | D57: 0220170200 | E57: 244 | F57: 346000 | G57: 1000 | H57: 80,000.00 | J57: 80,000.00 | K57: 80,000.00 | M57: 80,000.00 | N57: 80,000.00 | P57: 80,000.00
A58: Налог на имущество | B58: 07 | C58: 01 | D58: 0220170200 | E58: 851 | F58: 291200 | G58: 1000 | H58: 1,256,402.00 | J58: 1,256,402.00 | K58: 1,256,402.00 | M58: 1,256,402.00 | N58: 1,256,402.00 | P58: 1,256,402.00
A59: Земельный налог | B59: 07 | C59: 01 | D59: 0220170200 | E59: 851 | F59: 291300 | G59: 1000 | H59: 16,817.00 | J59: 16,817.00 | K59: 16,817.00 | M59: 16,817.00 | N59: 16,817.00 | P59: 16,817.00
A60: Итого по КЦ 1000 | H60: =SUM(H37:H59) -> 12,057,833.38 | I60: =SUM(I37:I59) -> 15,634.16 | J60: 12,073,467.54 | K60: 13,841,931.03 | L60: 0.00 | M60: 13,841,931.03 | N60: 14,169,934.19 | O60: 0.00 | P60: 14,169,934.19
A61: Средства местного бюджета (КЦ 1000)
A62: Заработная плата | B62: 07 | C62: 02 | D62: 0220270210 | E62: 111 | F62: 211000 | G62: 1000 | H62: 4,488,786.72 | J62: =H62+I62 -> 4,488,786.72 | K62: 4,488,786.72 | M62: =K62+L62 -> 4,488,786.72 | N62: 4,488,786.72 | P62: =N62+O62 -> 4,488,786.72
A63: Расходы по оплате проезда к месту отпуска и обратно отдельным категориям лиц (для лиц, работающих в районах Крайнего Севера и приравненных к ним местностях, и членов их семей) | B63: 07 | C63: 02 | D63: 0220270210 | E63: 112 | F63: 214000 | G63: 1000 | H63: 30,000.00 | J63: =H63+I63 -> 30,000.00 | K63: 20,000.00 | M63: =K63+L63 -> 20,000.00 | N63: 20,000.00 | P63: =N63+O63 -> 20,000.00
A64: Начисления на выплаты по оплате труда | B64: 07 | C64: 02 | D64: 0220270210 | E64: 119 | F64: 213000 | G64: 1000 | H64: 1,355,613.59 | J64: 1,355,613.59 | K64: 1,355,613.59 | M64: 1,355,613.59 | N64: 1,355,613.59 | P64: 1,355,613.59
A65: Услуги связи (телефон) | B65: 07 | C65: 02 | D65: 0220270210 | E65: 244 | F65: 221100 | G65: 1000 | H65: 300.00 | J65: 300.00 | K65: 0.00 | M65: 0.00 | N65: 0.00 | P65: 0.00
A66: Отопление, горячее водоснабжение и газоснабжение | B66: 07 | C66: 02 | D66: 0220270210 | E66: 247 | F66: 223100 | G66: 1000 | H66: 3,576,721.75 | J66: 3,576,721.75 | K66: 4,226,794.10 | M66: 4,226,794.10 | N66: 4,420,314.89 | P66: 4,420,314.89
A67: Электроэнергия | B67: 07 | C67: 02 | D67: 0220270210 | E67: 247 | F67: 223200 | G67: 1000 | H67: 1,343,722.52 | J67: 1,343,722.52 | K67: 1,902,380.60 | M67: 1,902,380.60 | N67: 1,983,351.63 | P67: 1,983,351.63
A68: Холодное водоснабжение | B68: 07 | C68: 02 | D68: 0220270210 | E68: 247 | F68: 223300 | G68: 1000 | H68: 121,057.60 | J68: 121,057.60 | K68: 172,092.96 | M68: 172,092.96 | N68: 179,678.20 | P68: 179,678.20
A69: Водоотведение | B69: 07 | C69: 02 | D69: 0220270210 | E69: 247 | F69: 223400 | G69: 1000 | H69: 182,131.20 | J69: 182,131.20 | K69: 295,668.96 | M69: 295,668.96 | N69: 308,699.12 | P69: 308,699.12
A70: Вывоз бытовых отходов | B70: 07 | C70: 02 | D70: 0220270210 | E70: 244 | F70: 223500 | G70: 1000 | H70: 59,536.40 | J70: 59,536.40 | K70: 84,527.22 | M70: 84,527.22 | N70: 86,184.55 | P70: 86,184.55
A71: Санитарная и противопожарная (дезинфекция, дезинсекция, дератизация, газация, огнезащитная) обработка помещений | B71: 07 | C71: 02 | D71: 0220270210 | E71: 244 | F71: 225600 | G71: 1000 | H71: 13,200.00 | J71: 13,200.00 | K71: 18,000.00 | M71: 18,000.00 | N71: 22,500.00 | P71: 22,500.00
A72: Содержание, обслуживание помещений и сетей инженерно-технического обеспечения | B72: 07 | C72: 02 | D72: 0220270210 | E72: 244 | F72: 225700 | G72: 1000 | H72: 94,200.00 | J72: 94,200.00 | K72: 85,500.00 | M72: 85,500.00 | N72: 106,875.00 | P72: 106,875.00
A73: Другие расходы | B73: 07 | C73: 02 | D73: 0220270210 | E73: 244 | F73: 225900 | G73: 1000 | H73: 120,000.00 | J73: 120,000.00 | K73: 100,000.00 | M73: 100,000.00 | N73: 100,000.00 | P73: 100,000.00
A74: Аттестация | B74: 07 | C74: 02 | D74: 0220270210 | E74: 244 | F74: 226200 | G74: 1000 | H74: 0.00 | J74: 0.00 | M74: 0.00 | P74: 0.00
A75: Ведомственная, вневедомственная, пожарная охрана | B75: 07 | C75: 02 | D75: 0220270210 | E75: 244 | F75: 226400 | G75: 1000 | H75: 79,400.00 | I75: -15,634.16 | J75: 63,765.84 | K75: 99,250.00 | M75: 99,250.00 | N75: 124,062.50 | P75: 124,062.50
A76: Медицинский осмотр водителей транспортных средств | B76: 07 | C76: 02 | D76: 0220270210 | E76: 244 | F76: 226500 | G76: 1000 | H76: 195,300.00 | J76: 195,300.00 | K76: 244,125.00 | M76: 244,125.00 | N76: 305,156.25 | P76: 305,156.25
A77: Медицинский осмотр работников учрежждений, за исключением водителей транспортных средств | B77: 07 | C77: 02 | D77: 0220270210 | E77: 244 | F77: 226800 | G77: 1000 | H77: 335,000.00 | J77: 335,000.00 | K77: 337,000.00 | M77: 337,000.00 | N77: 337,000.00 | P77: 337,000.00
A78: Другие расходы | B78: 07 | C78: 02 | D78: 0220270210 | E78: 244 | F78: 226900 | G78: 1000 | H78: 99,700.00 | J78: 99,700.00 | K78: 100,000.00 | M78: 100,000.00 | N78: 100,000.00 | P78: 100,000.00
A79: Обязательное страхование автогражданской ответственности | B79: 07 | C79: 02 | D79: 0220270210 | E79: 244 | F79: 227200 | G79: 1000 | H79: 14,000.00 | J79: 14,000.00 | K79: 14,000.00 | M79: 14,000.00 | N79: 16,000.00 | P79: 16,000.00
A80: Приобретение предметов длительного пользования (оборудование, мебель,компьютерная техника и т.п.) стоимостью свыше 3000 рублей | B80: 07 | C80: 02 | D80: 0220270210 | E80: 244 | F80: 310100 | G80: 1000 | H80: 40,000.00 | J80: 40,000.00 | K80: 40,000.00 | M80: 40,000.00 | N80: 40,000.00 | P80: 40,000.00
A81: Другие расходы стоимостью до 3000,00 рублей | B81: 07 | C81: 02 | D81: 0220270210 | E81: 244 | F81: 310900 | G81: 1000 | H81: 30,000.00 | J81: 30,000.00 | K81: 30,000.00 | M81: 30,000.00 | N81: 30,000.00 | P81: 30,000.00
A82: Приобретение строительных материалов | B82: 07 | C82: 02 | D82: 0220270210 | E82: 244 | F82: 344000 | G82: 1000 | H82: 40,000.00 | J82: 40,000.00 | K82: 40,000.00 | M82: 40,000.00 | N82: 40,000.00 | P82: 40,000.00
A83: Мягкий инвентарь | B83: 07 | C83: 02 | D83: 0220270210 | E83: 244 | F83: 345000 | G83: 1000 | H83: 22,500.00 | J83: 22,500.00 | K83: 22,500.00 | M83: 22,500.00 | N83: 22,500.00 | P83: 22,500.00
A84: Увеличение стоимости прочих оборотных запасов (материалов) | B84: 07 | C84: 02 | D84: 0220270210 | E84: 244 | F84: 346000 | G84: 1000 | H84: 80,000.00 | J84: 80,000.00 | K84: 80,000.00 | M84: 80,000.00 | N84: 80,000.00 | P84: 80,000.00
A85: Налог на имущество | B85: 07 | C85: 02 | D85: 0220270210 | E85: 851 | F85: 291200 | G85: 1000 | H85: 60,238.00 | J85: 60,238.00 | K85: 60,238.00 | M85: 60,238.00 | N85: 60,238.00 | P85: 60,238.00
A86: Земельный залог | B86: 07 | C86: 02 | D86: 0220270210 | E86: 851 | F86: 291300 | G86: 1000 | H86: 25,281.00 | J86: 25,281.00 | K86: 25,281.00 | M86: 25,281.00 | N86: 25,281.00 | P86: 25,281.00
A87: Транспотный налог | B87: 07 | C87: 02 | D87: 0220270210 | E87: 852 | F87: 291400 | G87: 1000 | H87: 37,790.00 | J87: 37,790.00 | K87: 37,790.00 | M87: 37,790.00 | N87: 37,790.00 | P87: 37,790.00
A88: Итого по КЦ 1000 | H88: =SUM(H62:H87) -> 12,444,478.78 | I88: =SUM(I62:I87) -> -15,634.16 | J88: 12,428,844.62 | K88: 13,879,548.15 | L88: 0.00 | M88: 13,879,548.15 | N88: 14,290,031.45 | O88: 0.00 | P88: 14,290,031.45
A89: Средства, полученные от оказания платных услуг, безвозмездных поступлений (КЦ 8000)
A90: Продукты питания | B90: 07 | C90: 01 | D90: 0220170200 | E90: 244 | F90: 342000 | G90: 8000 | H90: 5,000,000.00 | J90: =H90+I90 -> 5,000,000.00 | K90: 5,800,000.00 | M90: =K90+L90 -> 5,800,000.00 | N90: 5,800,000.00 | P90: =N90+O90 -> 5,800,000.00
A91: Итого по КЦ 8000 | H91: =SUM(H90) -> 5,000,000.00 | I91: =SUM(I90) -> 0.00 | J91: 5,000,000.00 | K91: 5,800,000.00 | L91: 0.00 | M91: 5,800,000.00 | N91: 5,800,000.00 | O91: 0.00 | P91: 5,800,000.00
A92: Субвенции на обеспечение гос.гарантий реализации прав на получение общедоступного и бесплатного дошкольного образования в муниципальных дошкольных образовательных организациях, общедоступного и бесплатного дошкольного, начального общего, основного общего, среднего общего образования в муниципальных общеобразовательных организациях, обеспечение дополнительного образования детей в муниципальных общеобразовательных организациях (КЦ 24219)
A94: Заработная плата | B94: 07 | C94: 01 | D94: 0220142190 | E94: 111 | F94: 211000 | G94: 23424219000219
A95: Начисления на выплаты по оплате труда | B95: 07 | C95: 01 | D95: 0220142190 | E95: 119 | F95: 213000 | G95: 23424219000219
A96: Услуги связи (интернет) | B96: 07 | C96: 01 | D96: 0220142190 | E96: 244 | F96: 221200 | G96: 23424219000219
A97: Итого субвенция 0701 (КЦ 24219) | H97: =SUM(H94:H96) -> 0.00 | K97: =SUM(K94:K96) -> 0.00 | N97: 0.00
A98: Заработная плата | B98: 07 | C98: 02 | D98: 0220242190 | E98: 111 | F98: 211000 | G98: 23424219000219
A99: Начисления на выплаты по оплате труда | B99: 07 | C99: 02 | D99: 0220242190 | E99: 119 | F99: 213000 | G99: 23424219000219
A100: Услуги связи (интернет) | B100: 07 | C100: 02 | D100: 0220242190 | E100: 244 | F100: 221200 | G100: 23424219000219
A101: Мероприятия по переподготовке и повышению квалификации кадров | B101: 07 | C101: 05 | D101: 0220242190 | E101: 244 | F101: 226700 | G101: 23424219000219
A102: Итого субвенция 0702 (КЦ 24219) | H102: =SUM(H98:H101) -> 0.00 | K102: =SUM(K98:K101) -> 0.00 | N102: 0.00
A103: Итого по КЦ 24219 | H103: =H97+H102 -> 0.00 | K103: =K97+K102 -> 0.00 | N103: 0.00
A104: Субсидии на проведение мероприятий по обеспечению деятельности советников директора по воспитанию и взаимодействию с детским общественными объединениями в образовательных организациях
A105: Заработная плата | B105: 07 | C105: 02 | D105: 022EВ51790 | E105: 111 | F105: 211000 | G105: 23-51790-00000-00000
A106: Начисления на выплаты по оплате труда | B106: 07 | C106: 02 | D106: 022EВ51790 | E106: 119 | F106: 213000 | G106: 23-51790-00000-00000
A107: Итого по КЦ 24320, 1000 | H107: =SUM(H105:H106) -> 0.00 | K107: =SUM(K105:K106) -> 0.00 | N107: 0.00
A108: Субвенции на обеспечение гос.гарантий реализации прав на получение общедоступного и бесплатного дошкольного образования в муниципальных дошкольных образовательных организациях, общедоступного и бесплатного дошкольного, начального общего, основного общего, среднего общего образования в муниципальных общеобразовательных организациях, обеспечение дополнительного образования детей в муниципальных общеобразовательных организациях (КЦ 24219)
A110: Заработная плата | B110: 07 | C110: 01 | D110: 0220142190 | E110: 111 | F110: 211000 | G110: 254242190000219 | H110: 22,542,173.76 | J110: =H110+I110 -> 22,542,173.76 | K110: 0.00 | M110: =K110+L110 -> 0.00 | N110: 0.00 | P110: =N110+O110 -> 0.00
A111: Начисления на выплаты по оплате труда | B111: 07 | C111: 01 | D111: 0220142190 | E111: 119 | F111: 213000 | G111: 254242190000219 | H111: 5,105,802.36 | J111: 5,105,802.36 | K111: 0.00 | M111: 0.00 | N111: 0.00 | P111: 0.00
A112: Услуги связи (интернет) | B112: 07 | C112: 01 | D112: 0220142190 | E112: 244 | F112: 221200 | G112: 254242190000219 | H112: 47,000.00 | J112: 47,000.00 | K112: 0.00 | M112: 0.00 | N112: 0.00 | P112: 0.00
A113: Итого субвенция 0701 (КЦ 254242190000219) | H113: =SUM(H110:H112) -> 27,694,976.12 | I113: =SUM(I110:I112) -> 0.00 | J113: 27,694,976.12 | K113: 0.00 | L113: 0.00 | M113: 0.00 | N113: 0.00 | O113: 0.00 | P113: 0.00
A114: Заработная плата | B114: 07 | C114: 02 | D114: 0220242190 | E114: 111 | F114: 211000 | G114: 254242190000219 | H114: 39,662,990.40 | J114: =H114+I114 -> 39,662,990.40 | K114: 0.00 | M114: =K114+L114 -> 0.00 | N114: 0.00 | P114: 0.00
A115: Начисления на выплаты по оплате труда | B115: 07 | C115: 02 | D115: 0220242190 | E115: 119 | F115: 213000 | G115: 254242190000219 | H115: 8,983,667.33 | J115: 8,983,667.33 | K115: 0.00 | M115: 0.00 | N115: 0.00 | P115: 0.00
A116: Услуги связи (интернет) | B116: 07 | C116: 02 | D116: 0220242190 | E116: 244 | F116: 221200 | G116: 254242190000219 | H116: 54,991.59 | J116: 54,991.59 | K116: 0.00 | M116: 0.00 | N116: 0.00 | P116: 0.00
A117: Итого субвенция 0701 (КЦ 254242190000219) | H117: =SUM(H114:H116) -> 48,701,649.32 | I117: =SUM(I114:I116) -> 0.00 | J117: 48,701,649.32 | K117: 0.00 | L117: 0.00 | M117: 0.00 | N117: 0.00 | O117: 0.00 | P117: 0.00
A118: Итого по КЦ 254242190000219 | H118: =H113+H117 -> 76,396,625.44 | I118: =I113+I117 -> 0.00 | J118: 76,396,625.44 | K118: 0.00 | L118: 0.00 | M118: 0.00 | N118: 0.00 | O118: 0.00 | P118: 0.00
A119: Субвенция на осуществление государственных полномочий РК по выплате компенсации платы, взимаемой с родителей (законных представителей) за присмотр и уход за детьми, осваивающими образовательные программы дошкольного образования в организациях, осуществляющих образовательную деятельности, за исключением государственных образовательных организаций РК.
A120: Пособия по социальной помощи населению в натуральной форме | B120: 10 | C120: 04 | D120: 0220142030 | E120: 321 | F120: 263000 | G120: 254242030000203 | H120: 2,216,000.00 | J120: =H120+I120 -> 2,216,000.00 | K120: 0.00 | M120: =K120+L120 -> 0.00 | N120: 0.00 | P120: =N120+O120 -> 0.00
A121: Итого по КЦ 254242030000203 | H121: =SUM(H120:H120) -> 2,216,000.00 | I121: 0.00 | J121: 2,216,000.00 | K121: 0.00 | L121: 0.00 | M121: 0.00 | N121: 0.00 | O121: 0.00 | P121: 0.00
A122: Субвенция на осуществление государственных полномочий РК по предоставлению предусмотренных п.5 ч.1 ст.9 Заона от 20.12.2013 №1755-ЗРК "Об образовании" мер социальной поддержски и социального обслуживания обучающимся с ОВЗ, за искл.обучающихся (воспитываемы) в государтсвенных образовательных организациях РК
A123: Пособия по социальной помощи населению в натуральной форме | B123: 07 | C123: 02 | D123: 0220242100 | E123: 323 | F123: 263000 | G123: 254242100000210 | H123: 876,245.00 | J123: =H123+I123 -> 876,245.00 | K123: 0.00 | M123: =K123+L123 -> 0.00 | N123: 0.00 | P123: =N123+O123 -> 0.00
A124: Пособия по социальной помощи населению в денежной форме | B124: 10 | C124: 03 | D124: 0220242100 | E124: 321 | F124: 262000 | G124: 254242100000210 | H124: 93,777.00 | J124: =H124+I124 -> 93,777.00 | K124: 0.00 | M124: 0.00 | N124: 0.00 | P124: 0.00
A125: Итого по КЦ 254242100000210 | H125: =SUM(H123:H124) -> 970,022.00 | I125: =SUM(I123:I124) -> 0.00 | J125: 970,022.00 | K125: 0.00 | L125: 0.00 | M125: 0.00 | N125: 0.00 | O125: 0.00 | P125: 0.00
A126: Субсидии на организацию бесплатного горячего питания обучающихся, получающих начальное общее образование в государственных и муниципальных образовательных организациях
A127: Другие расходы | B127: 07 | C127: 02 | D127: 02202L3040 | E127: 244 | F127: 226900 | G127: 25-53040-00000-00000 | H127: 3,150,000.00 | J127: =H127+I127 -> 3,150,000.00 | K127: 0.00 | M127: =K127+L127 -> 0.00 | N127: 0.00 | P127: =N127+O127 -> 0.00
A128: Итого по КЦ 25-53040-00000-00000 | H128: =SUM(H127) -> 3,150,000.00 | I128: =SUM(I127) -> 0.00 | J128: 3,150,000.00 | K128: 0.00 | L128: 0.00 | M128: 0.00 | N128: 0.00 | O128: 0.00 | P128: 0.00
A129: Субсидия на реализацию мероприятий государственной программы РК "Совершенствование социальной защиты граждан" в целях организации адресной социальной помощи семьям, имеющим детей
A130: Пособия по социальной помощи населению в натуральной форме | B130: 10 | C130: 03 | D130: 0320243210 | E130: 323 | F130: 263000 | G130: 254343210000316 | H130: 1,260,000.00 | J130: =H130+I130 -> 1,260,000.00 | K130: 0.00 | M130: =K130+L130 -> 0.00 | N130: 0.00 | P130: =N130+O130 -> 0.00
A131: Пособия по социальной помощи населению в натуральной форме | B131: 10 | C131: 03 | D131: 03202S3210 | E131: 323 | F131: 263000 | G131: 1000 | H131: 540,000.00 | J131: 540,000.00 | K131: 0.00 | M131: 0.00 | N131: 0.00 | P131: 0.00
A132: Итого по КЦ 254343210000316 | H132: =SUM(H130:H131) -> 1,800,000.00 | I132: =SUM(I130:I131) -> 0.00 | J132: 1,800,000.00 | K132: 0.00 | L132: 0.00 | M132: 0.00 | N132: 0.00 | O132: 0.00 | P132: 0.00
A133: Всего | H133: =H60+H88+H91+H103+H107+H121+H125+H118+H128+H132 -> 114,034,959.60 | I133: =I60+I88+I91+I103+I107+I121+I125+I118+I128+I132 -> 0.00 | J133: 114,034,959.60 | K133: 33,521,479.18 | L133: 0.00 | M133: 33,521,479.18 | N133: 34,259,965.64 | O133: 0.00 | P133: 34,259,965.64
A135: Директор | E135: О.В. Высоцкая
A136: (уполномоченное лицо) | B136: (подпись) | E136: (расшифровка подписи)
A138: Главный бухгалтер МУ "ЦБ № 1" | F138: И.В. Ананьева
A139: (уполномоченное лицо) | B139: (подпись) | F139: (расшифровка подписи)
A141: Главный экономист ПЭО | F141: И.В. Пружинина
A142: (исполнитель) | B142: (подпись) | F142: (расшифровка подписи)

Sheet 03.02
N1: Приложение №2
N2: к Порядку составления, утверждения
N3: и ведения бюджетных смет Администрации
N4: Прионежского муниципального района
N5: и казенных учреждений, находящихся
N6: в ведении Администрации Прионежского
N7: муниципального района
N8: от 30 декабря 2022 № 1390
F9: УТВЕРЖДАЮ
F10: Глава Администрации Прионежского муниципального района
F11: (наименование должности лица, согласующего бюджетную смету)
F13: Администрация Прионежского муниципального района
F14: (наименование главного распорядителя (распорядителя) бюджетных средств; учреждения)
K16: Г.Н. Шемет
F17: (подпись) (расшифровка подписи)
H19: 03 февраля 2025 года
B21: ИЗМЕНЕНИЯ К БЮДЖЕТНОЙ СМЕТЕ НА 2025 ФИНАНСОВЫЙ ГОД И ПЛАНОВЫЙ ПЕРИОД 2026 и 2027 ГОДОВ
B24: СПРАВКА №№015/00406/032, 015/00406/033, 015/00406/034, 015/00406/035 от | J24: =H19 -> 03 февраля 2025 года | P24: КОДЫ
O25: Форма по ОКУД | P25: 0501012
O26: Дата | P26: =H19 -> 03 февраля 2025 года
B27: Муниципальное общеобразовательное учреждение Шуйская средняя общеобразовательная школа №1 | O27: по ОКПО | P27: 77446968
A28: Получатель бюджетных средств
A29: Распорядитель бюджетных средств | B29: Администрация Прионежского муниципального района
A30: Главный распорядитель бюджетных средств | B30: Администрация Прионежского муниципального района | O30: Глава по БК | P30: 015
A31: Наименование бюджета | B31: Бюджет Прионежского муниципального района | O31: по ОКТМО | P31: 86636470
A32: Единица измерения: | B32: руб. | O32: по ОКЕЙ | P32: 383
A33: Наименование показателя (детализация кода бюджетной классификации) | B33: РЗ | C33: ПР | D33: ЦСР | E33: Вид расхода | F33: Детализация | G33: Вид целевых средств | H33: Сумма на текущий год | K33: Сумма на первый год планового периода (руб) | N33: Сумма на второй год планового периода (руб.)
H34: 2025-01-29 | I34: изменения (+/-) | J34: ИТОГО | K34: =H34 -> 2025-01-29 | L34: изменения (+/-) | M34: ИТОГО | N34: =H34 -> 2025-01-29 | O34: изменения (+/-) | P34: ИТОГО
A35: 1 | B35: =SUM(A35+1) -> 2 | C35: 3 | D35: 4 | E35: 5 | F35: 6 | G35: 7 | H35: 8 | I35: 9 | J35: 10 | K35: 11 | L35: 12 | M35: 13 | N35: 14 | O35: 15 | P35: 16
A36: Средства местного бюджета (КЦ 1000)
A37: Заработная плата | B37: 07 | C37: 01 | D37: 0220170200 | E37: 111 | F37: 211000 | G37: 1000 | H37: 3,118,153.92 | J37: =H37+I37 -> 3,118,153.92 | K37: 3,118,153.92 | M37: =K37+L37 -> 3,118,153.92 | N37: 3,118,153.92 | P37: =N37+O37 -> 3,118,153.92
A38: Расходы по оплате проезда к месту отпуска и обратно отдельным категориям лиц (для лиц, работающих в районах Крайнего Севера и приравненных к ним местностях, и членов их семей) | B38: 07 | C38: 01 | D38: 0220170200 | E38: 112 | F38: 214000 | G38: 1000 | H38: 30,000.00 | J38: =H38+I38 -> 30,000.00 | K38: 20,000.00 | M38: =K38+L38 -> 20,000.00 | N38: 20,000.00 | P38: =N38+O38 -> 20,000.00
A39: Начисления на выплаты по оплате труда | B39: 07 | C39: 01 | D39: 0220170200 | E39: 119 | F39: 213000 | G39: 1000 | H39: 941,682.48 | J39: 941,682.48 | K39: 941,682.48 | M39: 941,682.48 | N39: 941,682.48 | P39: 941,682.48
A40: Услуги связи (телефон) | B40: 07 | C40: 01 | D40: 0220170200 | E40: 244 | F40: 221100 | G40: 1000 | H40: 13,894.08 | J40: 13,894.08 | K40: 13,200.00 | M40: 13,200.00 | N40: 14,400.00 | P40: 14,400.00
A41: Услуги связи (почта) | B41: 07 | C41: 01 | D41: 0220170200 | E41: 244 | F41: 221300 | G41: 1000 | H41: 0.00 | J41: 0.00 | M41: 0.00 | P41: 0.00
A42: Отопление, горячее водоснабжение и газоснабжение | B42: 07 | C42: 01 | D42: 0220170200 | E42: 247 | F42: 223100 | G42: 1000 | H42: 1,128,402.16 | J42: 1,128,402.16 | K42: 1,663,178.53 | M42: 1,663,178.53 | N42: 1,742,199.20 | P42: 1,742,199.20
A43: Электроэнергия | B43: 07 | C43: 01 | D43: 0220170200 | E43: 247 | F43: 223200 | G43: 1000 | H43: 2,603,931.30 | J43: 2,603,931.30 | K43: 3,686,539.68 | M43: 3,686,539.68 | N43: 3,858,393.83 | P43: 3,858,393.83
A44: Холодное водоснабжение | B44: 07 | C44: 01 | D44: 0220170200 | E44: 247 | F44: 223300 | G44: 1000 | H44: 191,606.53 | J44: 191,606.53 | K44: 272,469.54 | M44: 272,469.54 | N44: 287,640.02 | P44: 287,640.02
A45: Водоотведение | B45: 07 | C45: 01 | D45: 0220170200 | E45: 247 | F45: 223400 | G45: 1000 | H45: 251,490.90 | J45: 251,490.90 | K45: 536,497.88 | M45: 536,497.88 | N45: 562,394.55 | P45: 562,394.55
A46: Вывоз бытовых отходов | B46: 07 | C46: 01 | D46: 0220170200 | E46: 244 | F46: 223500 | G46: 1000 | H46: 91,133.73 | J46: 91,133.73 | K46: 129,337.08 | M46: 129,337.08 | N46: 131,873.02 | P46: 131,873.02
A47: Санитарная и противопожарная (дезинфекция, дезинсекция, дератизация, газация, огнезащитная) обработка помещений | B47: 07 | C47: 01 | D47: 0220170200 | E47: 244 | F47: 225600 | G47: 1000 | H47: 185,400.00 | J47: 185,400.00 | K47: 35,400.00 | M47: 35,400.00 | N47: 39,000.00 | P47: 39,000.00
A48: Содержание и обслуживание помещений | B48: 07 | C48: 01 | D48: 0220170200 | E48: 244 | F48: 225700 | G48: 1000 | H48: 223,750.00 | J48: 223,750.00 | K48: 249,550.00 | M48: 249,550.00 | N48: 263,500.00 | P48: 263,500.00
A49: Другие расходы | B49: 07 | C49: 01 | D49: 0220170200 | E49: 244 | F49: 225900 | G49: 1000 | H49: 90,000.00 | J49: 90,000.00 | K49: 50,000.00 | M49: 50,000.00 | N49: 50,000.00 | P49: 50,000.00
A50: Аттестация | B50: 07 | C50: 01 | D50: 0220170200 | E50: 244 | F50: 226200 | G50: 1000 | H50: 10,000.00 | J50: 10,000.00 | K50: 10,000.00 | M50: 10,000.00 | N50: 10,000.00 | P50: 10,000.00
A51: Ведомственная, вневедомственная, пожарная охрана | B51: 07 | C51: 01 | D51: 0220170200 | E51: 244 | F51: 226400 | G51: 1000 | H51: 169,131.68 | J51: 169,131.68 | K51: 78,564.20 | M51: 78,564.20 | N51: 83,749.44 | P51: 83,749.44
A52: Медицинский осмотр работников учрежждений, за исключением водителей транспортных средств | B52: 07 | C52: 01 | D52: 0220170200 | E52: 244 | F52: 226800 | G52: 1000 | H52: 222,129.84 | J52: 222,129.84 | K52: 233,902.72 | M52: 233,902.72 | N52: 243,492.73 | P52: 243,492.73
A53: Другие расходы | B53: 07 | C53: 01 | D53: 0220170200 | E53: 244 | F53: 226900 | G53: 1000 | H53: 49,305.92 | J53: 49,305.92 | K53: 50,000.00 | M53: 50,000.00 | N53: 50,000.00 | P53: 50,000.00
A54: Приобретение предметов длительного пользования (оборудование, мебель,компьютерная техника и т.п.) стоимостью свыше 3000 рублей | B54: 07 | C54: 01 | D54: 0220170200 | E54: 244 | F54: 310100 | G54: 1000 | H54: 40,000.00 | J54: 40,000.00 | K54: 40,000.00 | M54: 40,000.00 | N54: 40,000.00 | P54: 40,000.00
A55: Другие расходы стоимостью до 3000,00 рублей | B55: 07 | C55: 01 | D55: 0220170200 | E55: 244 | F55: 310900 | G55: 1000 | H55: 30,000.00 | J55: 30,000.00 | K55: 30,000.00 | M55: 30,000.00 | N55: 30,000.00 | P55: 30,000.00
A56: Продукты питания | B56: 07 | C56: 01 | D56: 0220170200 | E56: 244 | F56: 342000 | G56: 1000 | H56: 1,330,236.00 | J56: 1,330,236.00 | K56: 1,330,236.00 | M56: 1,330,236.00 | N56: 1,330,236.00 | P56: 1,330,236.00
A57: Увеличение стоимости прочих оборотных запасов (материалов) | B57: 07 | C57: 01 | D57: 0220170200 | E57: 244 | F57: 346000 | G57: 1000 | H57: 80,000.00 | J57: 80,000.00 | K57: 80,000.00 | M57: 80,000.00 | N57: 80,000.00 | P57: 80,000.00
A58: Налог на имущество | B58: 07 | C58: 01 | D58: 0220170200 | E58: 851 | F58: 291200 | G58: 1000 | H58: 1,256,402.00 | J58: 1,256,402.00 | K58: 1,256,402.00 | M58: 1,256,402.00 | N58: 1,256,402.00 | P58: 1,256,402.00
A59: Земельный налог | B59: 07 | C59: 01 | D59: 0220170200 | E59: 851 | F59: 291300 | G59: 1000 | H59: 16,817.00 | J59: 16,817.00 | K59: 16,817.00 | M59: 16,817.00 | N59: 16,817.00 | P59: 16,817.00
A60: Итого по КЦ 1000 | H60: =SUM(H37:H59) -> 12,073,467.54 | I60: =SUM(I37:I59) -> 0.00 | J60: 12,073,467.54 | K60: 13,841,931.03 | L60: 0.00 | M60: 13,841,931.03 | N60: 14,169,934.19 | O60: 0.00 | P60: 14,169,934.19
A61: Средства местного бюджета (КЦ 1000)
A62: Заработная плата | B62: 07 | C62: 02 | D62: 0220270210 | E62: 111 | F62: 211000 | G62: 1000 | H62: 4,488,786.72 | I62: -2,669.13 | J62: =H62+I62 -> 4,486,117.59 | K62: 4,488,786.72 | M62: =K62+L62 -> 4,488,786.72 | N62: 4,488,786.72 | P62: =N62+O62 -> 4,488,786.72
A63: Социальные пособия и компенсации персоналу в денежной форме (пособие за первые три дня временной нетрудоспособности за счет средств работодателя) | B63: 07 | C63: 02 | D63: 0220270210 | E63: 111 | F63: 266100 | G63: 1000 | H63: 0.00 | I63: 2,669.13 | J63: =H63+I63 -> 2,669.13
A64: Расходы по оплате проезда к месту отпуска и обратно отдельным категориям лиц (для лиц, работающих в районах Крайнего Севера и приравненных к ним местностях, и членов их семей) | B64: 07 | C64: 02 | D64: 0220270210 | E64: 112 | F64: 214000 | G64: 1000 | H64: 30,000.00 | J64: =H64+I64 -> 30,000.00 | K64: 20,000.00 | M64: =K64+L64 -> 20,000.00 | N64: 20,000.00 | P64: =N64+O64 -> 20,000.00
A65: Начисления на выплаты по оплате труда | B65: 07 | C65: 02 | D65: 0220270210 | E65: 119 | F65: 213000 | G65: 1000 | H65: 1,355,613.59 | J65: 1,355,613.59 | K65: 1,355,613.59 | M65: 1,355,613.59 | N65: 1,355,613.59 | P65: 1,355,613.59
A66: Услуги связи (телефон) | B66: 07 | C66: 02 | D66: 0220270210 | E66: 244 | F66: 221100 | G66: 1000 | H66: 300.00 | J66: 300.00 | K66: 0.00 | M66: 0.00 | N66: 0.00 | P66: 0.00
A67: Отопление, горячее водоснабжение и газоснабжение | B67: 07 | C67: 02 | D67: 0220270210 | E67: 247 | F67: 223100 | G67: 1000 | H67: 3,576,721.75 | J67: 3,576,721.75 | K67: 4,226,794.10 | M67: 4,226,794.10 | N67: 4,420,314.89 | P67: 4,420,314.89
A68: Электроэнергия | B68: 07 | C68: 02 | D68: 0220270210 | E68: 247 | F68: 223200 | G68: 1000 | H68: 1,343,722.52 | J68: 1,343,722.52 | K68: 1,902,380.60 | M68: 1,902,380.60 | N68: 1,983,351.63 | P68: 1,983,351.63
A69: Холодное водоснабжение | B69: 07 | C69: 02 | D69: 0220270210 | E69: 247 | F69: 223300 | G69: 1000 | H69: 121,057.60 | J69: 121,057.60 | K69: 172,092.96 | M69: 172,092.96 | N69: 179,678.20 | P69: 179,678.20
A70: Водоотведение | B70: 07 | C70: 02 | D70: 0220270210 | E70: 247 | F70: 223400 | G70: 1000 | H70: 182,131.20 | J70: 182,131.20 | K70: 295,668.96 | M70: 295,668.96 | N70: 308,699.12 | P70: 308,699.12
A71: Вывоз бытовых отходов | B71: 07 | C71: 02 | D71: 0220270210 | E71: 244 | F71: 223500 | G71: 1000 | H71: 59,536.40 | J71: 59,536.40 | K71: 84,527.22 | M71: 84,527.22 | N71: 86,184.55 | P71: 86,184.55
A72: Санитарная и противопожарная (дезинфекция, дезинсекция, дератизация, газация, огнезащитная) обработка помещений | B72: 07 | C72: 02 | D72: 0220270210 | E72: 244 | F72: 225600 | G72: 1000 | H72: 13,200.00 | J72: 13,200.00 | K72: 18,000.00 | M72: 18,000.00 | N72: 22,500.00 | P72: 22,500.00
A73: Содержание, обслуживание помещений и сетей инженерно-технического обеспечения | B73: 07 | C73: 02 | D73: 0220270210 | E73: 244 | F73: 225700 | G73: 1000 | H73: 94,200.00 | J73: 94,200.00 | K73: 85,500.00 | M73: 85,500.00 | N73: 106,875.00 | P73: 106,875.00
A74: Другие расходы | B74: 07 | C74: 02 | D74: 0220270210 | E74: 244 | F74: 225900 | G74: 1000 | H74: 120,000.00 | J74: 120,000.00 | K74: 100,000.00 | M74: 100,000.00 | N74: 100,000.00 | P74: 100,000.00
A75: Аттестация | B75: 07 | C75: 02 | D75: 0220270210 | E75: 244 | F75: 226200 | G75: 1000 | H75: 0.00 | J75: 0.00 | M75: 0.00 | P75: 0.00
A76: Ведомственная, вневедомственная, пожарная охрана | B76: 07 | C76: 02 | D76: 0220270210 | E76: 244 | F76: 226400 | G76: 1000 | H76: 63,765.84 | J76: 63,765.84 | K76: 99,250.00 | M76: 99,250.00 | N76: 124,062.50 | P76: 124,062.50
A77: Медицинский осмотр водителей транспортных средств | B77: 07 | C77: 02 | D77: 0220270210 | E77: 244 | F77: 226500 | G77: 1000 | H77: 195,300.00 | J77: 195,300.00 | K77: 244,125.00 | M77: 244,125.00 | N77: 305,156.25 | P77: 305,156.25
A78: Медицинский осмотр работников учрежждений, за исключением водителей транспортных средств | B78: 07 | C78: 02 | D78: 0220270210 | E78: 244 | F78: 226800 | G78: 1000 | H78: 335,000.00 | J78: 335,000.00 | K78: 337,000.00 | M78: 337,000.00 | N78: 337,000.00 | P78: 337,000.00
A79: Другие расходы | B79: 07 | C79: 02 | D79: 0220270210 | E79: 244 | F79: 226900 | G79: 1000 | H79: 99,700.00 | J79: 99,700.00 | K79: 100,000.00 | M79: 100,000.00 | N79: 100,000.00 | P79: 100,000.00
A80: Обязательное страхование автогражданской ответственности | B80: 07 | C80: 02 | D80: 0220270210 | E80: 244 | F80: 227200 | G80: 1000 | H80: 14,000.00 | J80: 14,000.00 | K80: 14,000.00 | M80: 14,000.00 | N80: 16,000.00 | P80: 16,000.00
A81: Приобретение предметов длительного пользования (оборудование, мебель,компьютерная техника и т.п.) стоимостью свыше 3000 рублей | B81: 07 | C81: 02 | D81: 0220270210 | E81: 244 | F81: 310100 | G81: 1000 | H81: 40,000.00 | J81: 40,000.00 | K81: 40,000.00 | M81: 40,000.00 | N81: 40,000.00 | P81: 40,000.00
A82: Другие расходы стоимостью до 3000,00 рублей | B82: 07 | C82: 02 | D82: 0220270210 | E82: 244 | F82: 310900 | G82: 1000 | H82: 30,000.00 | J82: 30,000.00 | K82: 30,000.00 | M82: 30,000.00 | N82: 30,000.00 | P82: 30,000.00
A83: Приобретение строительных материалов | B83: 07 | C83: 02 | D83: 0220270210 | E83: 244 | F83: 344000 | G83: 1000 | H83: 40,000.00 | J83: 40,000.00 | K83: 40,000.00 | M83: 40,000.00 | N83: 40,000.00 | P83: 40,000.00
A84: Мягкий инвентарь | B84: 07 | C84: 02 | D84: 0220270210 | E84: 244 | F84: 345000 | G84: 1000 | H84: 22,500.00 | J84: 22,500.00 | K84: 22,500.00 | M84: 22,500.00 | N84: 22,500.00 | P84: 22,500.00
A85: Увеличение стоимости прочих оборотных запасов (материалов) | B85: 07 | C85: 02 | D85: 0220270210 | E85: 244 | F85: 346000 | G85: 1000 | H85: 80,000.00 | J85: 80,000.00 | K85: 80,000.00 | M85: 80,000.00 | N85: 80,000.00 | P85: 80,000.00
A86: Налог на имущество | B86: 07 | C86: 02 | D86: 0220270210 | E86: 851 | F86: 291200 | G86: 1000 | H86: 60,238.00 | J86: 60,238.00 | K86: 60,238.00 | M86: 60,238.00 | N86: 60,238.00 | P86: 60,238.00
A87: Земельный залог | B87: 07 | C87: 02 | D87: 0220270210 | E87: 851 | F87: 291300 | G87: 1000 | H87: 25,281.00 | J87: 25,281.00 | K87: 25,281.00 | M87: 25,281.00 | N87: 25,281.00 | P87: 25,281.00
A88: Транспотный налог | B88: 07 | C88: 02 | D88: 0220270210 | E88: 852 | F88: 291400 | G88: 1000 | H88: 37,790.00 | J88: 37,790.00 | K88: 37,790.00 | M88: 37,790.00 | N88: 37,790.00 | P88: 37,790.00
A89: Итого по КЦ 1000 | H89: =SUM(H62:H88) -> 12,428,844.62 | I89: =SUM(I62:I88) -> 0.00 | J89: 12,428,844.62 | K89: 13,879,548.15 | L89: 0.00 | M89: 13,879,548.15 | N89: 14,290,031.45 | O89: 0.00 | P89: 14,290,031.45
A90: Средства, полученные от оказания платных услуг, безвозмездных поступлений (КЦ 8000)
A91: Продукты питания | B91: 07 | C91: 01 | D91: 0220170200 | E91: 244 | F91: 342000 | G91: 8000 | H91: 5,000,000.00 | J91: =H91+I91 -> 5,000,000.00 | K91: 5,800,000.00 | M91: =K91+L91 -> 5,800,000.00 | N91: 5,800,000.00 | P91: =N91+O91 -> 5,800,000.00
A92: Итого по КЦ 8000 | H92: =SUM(H91) -> 5,000,000.00 | I92: =SUM(I91) -> 0.00 | J92: 5,000,000.00 | K92: 5,800,000.00 | L92: 0.00 | M92: 5,800,000.00 | N92: 5,800,000.00 | O92: 0.00 | P92: 5,800,000.00
A93: Субвенции на обеспечение гос.гарантий реализации прав на получение общедоступного и бесплатного дошкольного образования в муниципальных дошкольных образовательных организациях, общедоступного и бесплатного дошкольного, начального общего, основного общего, среднего общего образования в муниципальных общеобразовательных организациях, обеспечение дополнительного образования детей в муниципальных общеобразовательных организациях (КЦ 24219)
A95: Заработная плата | B95: 07 | C95: 01 | D95: 0220142190 | E95: 111 | F95: 211000 | G95: 23424219000219
A96: Начисления на выплаты по оплате труда | B96: 07 | C96: 01 | D96: 0220142190 | E96: 119 | F96: 213000 | G96: 23424219000219
A97: Услуги связи (интернет) | B97: 07 | C97: 01 | D97: 0220142190 | E97: 244 | F97: 221200 | G97: 23424219000219
A98: Итого субвенция 0701 (КЦ 24219) | H98: =SUM(H95:H97) -> 0.00 | K98: =SUM(K95:K97) -> 0.00 | N98: 0.00
A99: Заработная плата | B99: 07 | C99: 02 | D99: 0220242190 | E99: 111 | F99: 211000 | G99: 23424219000219
A100: Начисления на выплаты по оплате труда | B100: 07 | C100: 02 | D100: 0220242190 | E100: 119 | F100: 213000 | G100: 23424219000219
A101: Услуги связи (интернет) | B101: 07 | C101: 02 | D101: 0220242190 | E101: 244 | F101: 221200 | G101: 23424219000219
A102: Мероприятия по переподготовке и повышению квалификации кадров | B102: 07 | C102: 05 | D102: 0220242190 | E102: 244 | F102: 226700 | G102: 23424219000219
A103: Итого субвенция 0702 (КЦ 24219) | H103: =SUM(H99:H102) -> 0.00 | K103: =SUM(K99:K102) -> 0.00 | N103: 0.00
A104: Итого по КЦ 24219 | H104: =H98+H103 -> 0.00 | K104: =K98+K103 -> 0.00 | N104: 0.00
A105: Субсидии на проведение мероприятий по обеспечению деятельности советников директора по воспитанию и взаимодействию с детским общественными объединениями в образовательных организациях
A106: Заработная плата | B106: 07 | C106: 02 | D106: 022EВ51790 | E106: 111 | F106: 211000 | G106: 23-51790-00000-00000
A107: Начисления на выплаты по оплате труда | B107: 07 | C107: 02 | D107: 022EВ51790 | E107: 119 | F107: 213000 | G107: 23-51790-00000-00000
A108: Итого по КЦ 24320, 1000 | H108: =SUM(H106:H107) -> 0.00 | K108: =SUM(K106:K107) -> 0.00 | N108: 0.00
A109: Субвенции на обеспечение гос.гарантий реализации прав на получение общедоступного и бесплатного дошкольного образования в муниципальных дошкольных образовательных организациях, общедоступного и бесплатного дошкольного, начального общего, основного общего, среднего общего образования в муниципальных общеобразовательных организациях, обеспечение дополнительного образования детей в муниципальных общеобразовательных организациях (КЦ 24219)
A111: Заработная плата | B111: 07 | C111: 01 | D111: 0220142190 | E111: 111 | F111: 211000 | G111: 254242190000219 | H111: 22,542,173.76 | I111: -3,271.50 | J111: =H111+I111 -> 22,538,902.26 | K111: 0.00 | M111: =K111+L111 -> 0.00 | N111: 0.00 | P111: =N111+O111 -> 0.00
A112: Социальные пособия и компенсации персоналу в денежной форме (пособие за первые три дня временной нетрудоспособности за счет средств работодателя) | B112: 07 | C112: 01 | D112: 0220142190 | E112: 111 | F112: 266100 | G112: 254242190000219 | H112: 0.00 | I112: 3,271.50 | J112: 3,271.50
A113: Начисления на выплаты по оплате труда | B113: 07 | C113: 01 | D113: 0220142190 | E113: 119 | F113: 213000 | G113: 254242190000219 | H113: 5,105,802.36 | J113: 5,105,802.36 | K113: 0.00 | M113: 0.00 | N113: 0.00 | P113: 0.00
A114: Услуги связи (интернет) | B114: 07 | C114: 01 | D114: 0220142190 | E114: 244 | F114: 221200 | G114: 254242190000219 | H114: 47,000.00 | J114: 47,000.00 | K114: 0.00 | M114: 0.00 | N114: 0.00 | P114: 0.00
A115: Итого субвенция 0701 (КЦ 254242190000219) | H115: =SUM(H111:H114) -> 27,694,976.12 | I115: =SUM(I111:I114) -> 0.00 | J115: 27,694,976.12 | K115: 0.00 | L115: 0.00 | M115: 0.00 | N115: 0.00 | O115: 0.00 | P115: 0.00
A116: Заработная плата | B116: 07 | C116: 02 | D116: 0220242190 | E116: 111 | F116: 211000 | G116: 254242190000219 | H116: 39,662,990.40 | I116: -30,930.90 | J116: =H116+I116 -> 39,632,059.50 | K116: 0.00 | M116: =K116+L116 -> 0.00 | N116: 0.00 | P116: 0.00
A117: Социальные пособия и компенсации персоналу в денежной форме (пособие за первые три дня временной нетрудоспособности за счет средств работодателя) | B117: 07 | C117: 02 | D117: 0220242190 | E117: 111 | F117: 266100 | G117: 254242190000219 | I117: 30,930.90 | J117: 30,930.90
A118: Начисления на выплаты по оплате труда | B118: 07 | C118: 02 | D118: 0220242190 | E118: 119 | F118: 213000 | G118: 254242190000219 | H118: 8,983,667.33 | J118: 8,983,667.33 | K118: 0.00 | M118: 0.00 | N118: 0.00 | P118: 0.00
A119: Услуги связи (интернет) | B119: 07 | C119: 02 | D119: 0220242190 | E119: 244 | F119: 221200 | G119: 254242190000219 | H119: 54,991.59 | J119: 54,991.59 | K119: 0.00 | M119: 0.00 | N119: 0.00 | P119: 0.00
A120: Итого субвенция 0701 (КЦ 254242190000219) | H120: =SUM(H116:H119) -> 48,701,649.32 | I120: =SUM(I116:I119) -> 0.00 | J120: 48,701,649.32 | K120: 0.00 | L120: 0.00 | M120: 0.00 | N120: 0.00 | O120: 0.00 | P120: 0.00
A121: Итого по КЦ 254242190000219 | H121: =H115+H120 -> 76,396,625.44 | I121: =I115+I120 -> 0.00 | J121: 76,396,625.44 | K121: 0.00 | L121: 0.00 | M121: 0.00 | N121: 0.00 | O121: 0.00 | P121: 0.00
A122: Реализация мероприятий по ежемесячному денежному вознаграждению за класское руководство пед.работникам государственных и муниципальных образовательных организаций, реализующих образовательные программы основного общего образования
A123: Заработная плата | B123: 07 | C123: 02 | D123: 022Ю653030 | E123: 111 | F123: 211000 | G123: 2553030X298570000000 | H123: 0.00 | I123: 4,554,000.00 | J123: =H123+I123 -> 4,554,000.00 | K123: 0.00 | M123: =K123+L123 -> 0.00 | N123: 0.00 | P123: =N123+O123 -> 0.00
A124: Начисления на выплаты по оплате труда | B124: 07 | C124: 02 | D124: 022Ю653030 | E124: 119 | F124: 213000 | G124: 2553030X298570000000 | H124: 0.00 | I124: 1,375,308.00 | J124: 1,375,308.00 | K124: 0.00 | M124: 0.00 | N124: 0.00 | P124: 0.00
A125: Итого по КЦ 2553030X298570000000 | H125: =SUM(H123:H124) -> 0.00 | I125: =SUM(I123:I124) -> 5,929,308.00 | J125: 5,929,308.00 | K125: 0.00 | L125: 0.00 | M125: 0.00 | N125: 0.00 | O125: 0.00 | P125: 0.00
A126: Реализация мероприятий по обеспечению деятельности советников директора по воспитанию и взаимодействию с детскими общественными объединениями в общеобразовательных организациях
A127: Заработная плата | B127: 07 | C127: 02 | D127: 022Ю651790 | E127: 111 | F127: 211000 | G127: 25-51790-00000-00000 | H127: 0.00 | I127: 251,508.00 | J127: =H127+I127 -> 251,508.00 | K127: 0.00 | M127: =K127+L127 -> 0.00 | N127: 0.00 | P127: =N127+O127 -> 0.00
A128: Начисления на выплаты по оплате труда | B128: 07 | C128: 02 | D128: 022Ю651790 | E128: 119 | F128: 213000 | G128: 25-51790-00000-00000 | H128: 0.00 | I128: 75,955.42 | J128: 75,955.42 | K128: 0.00 | M128: 0.00 | N128: 0.00 | P128: 0.00
A129: Итого по КЦ 23-51790-00000-00000 | H129: =SUM(H127:H128) -> 0.00 | I129: =SUM(I127:I128) -> 327,463.42 | J129: =H129+I129 -> 327,463.42 | K129: =SUM(K127:K128) -> 0.00 | N129: =SUM(N127:N128) -> 0.00
A130: Субвенция на осуществление государственных полномочий РК по выплате компенсации платы, взимаемой с родителей (законных представителей) за присмотр и уход за детьми, осваивающими образовательные программы дошкольного образования в организациях, осуществляющих образовательную деятельности, за исключением государственных образовательных организаций РК.
A131: Пособия по социальной помощи населению в натуральной форме | B131: 10 | C131: 04 | D131: 0220142030 | E131: 321 | F131: 263000 | G131: 254242030000203 | H131: 2,216,000.00 | J131: =H131+I131 -> 2,216,000.00 | K131: 0.00 | M131: =K131+L131 -> 0.00 | N131: 0.00 | P131: =N131+O131 -> 0.00
A132: Итого по КЦ 254242030000203 | H132: =SUM(H131:H131) -> 2,216,000.00 | I132: 0.00 | J132: 2,216,000.00 | K132: 0.00 | L132: 0.00 | M132: 0.00 | N132: 0.00 | O132: 0.00 | P132: 0.00
A133: Субвенция на осуществление государственных полномочий РК по предоставлению предусмотренных п.5 ч.1 ст.9 Заона от 20.12.2013 №1755-ЗРК "Об образовании" мер социальной поддержски и социального обслуживания обучающимся с ОВЗ, за искл.обучающихся (воспитываемы) в государтсвенных образовательных организациях РК
A134: Пособия по социальной помощи населению в натуральной форме | B134: 07 | C134: 02 | D134: 0220242100 | E134: 323 | F134: 263000 | G134: 254242100000210 | H134: 876,245.00 | J134: =H134+I134 -> 876,245.00 | K134: 0.00 | M134: =K134+L134 -> 0.00 | N134: 0.00 | P134: =N134+O134 -> 0.00
A135: Пособия по социальной помощи населению в денежной форме | B135: 10 | C135: 03 | D135: 0220242100 | E135: 321 | F135: 262000 | G135: 254242100000210 | H135: 93,777.00 | J135: =H135+I135 -> 93,777.00 | K135: 0.00 | M135: 0.00 | N135: 0.00 | P135: 0.00
A136: Итого по КЦ 254242100000210 | H136: =SUM(H134:H135) -> 970,022.00 | I136: =SUM(I134:I135) -> 0.00 | J136: 970,022.00 | K136: 0.00 | L136: 0.00 | M136: 0.00 | N136: 0.00 | O136: 0.00 | P136: 0.00
A137: Субсидии на организацию бесплатного горячего питания обучающихся, получающих начальное общее образование в государственных и муниципальных образовательных организациях
A138: Другие расходы | B138: 07 | C138: 02 | D138: 02202L3040 | E138: 244 | F138: 226900 | G138: 25-53040-00000-00000 | H138: 3,150,000.00 | J138: =H138+I138 -> 3,150,000.00 | K138: 0.00 | M138: =K138+L138 -> 0.00 | N138: 0.00 | P138: =N138+O138 -> 0.00
A139: Итого по КЦ 25-53040-00000-00000 | H139: =SUM(H138) -> 3,150,000.00 | I139: =SUM(I138) -> 0.00 | J139: 3,150,000.00 | K139: 0.00 | L139: 0.00 | M139: 0.00 | N139: 0.00 | O139: 0.00 | P139: 0.00
A140: Субсидия на реализацию мероприятий государственной программы РК "Совершенствование социальной защиты граждан" в целях организации адресной социальной помощи семьям, имеющим детей
A141: Пособия по социальной помощи населению в натуральной форме | B141: 10 | C141: 03 | D141: 0320243210 | E141: 323 | F141: 263000 | G141: 254343210000316 | H141: 1,260,000.00 | J141: =H141+I141 -> 1,260,000.00 | K141: 0.00 | M141: =K141+L141 -> 0.00 | N141: 0.00 | P141: =N141+O141 -> 0.00
A142: Пособия по социальной помощи населению в натуральной форме | B142: 10 | C142: 03 | D142: 03202S3210 | E142: 323 | F142: 263000 | G142: 1000 | H142: 540,000.00 | J142: 540,000.00 | K142: 0.00 | M142: 0.00 | N142: 0.00 | P142: 0.00
A143: Итого по КЦ 254343210000316 | H143: =SUM(H141:H142) -> 1,800,000.00 | I143: =SUM(I141:I142) -> 0.00 | J143: 1,800,000.00 | K143: 0.00 | L143: 0.00 | M143: 0.00 | N143: 0.00 | O143: 0.00 | P143: 0.00
A144: Всего | H144: =H60+H89+H92+H104+H108+H132+H136+H121+H139+H143+H129+H125 -> 114,034,959.60 | I144: =I60+I89+I92+I104+I108+I132+I136+I121+I139+I143+I129+I125 -> 6,256,771.42 | J144: 120,291,731.02 | K144: 33,521,479.18 | L144: 0.00 | M144: 33,521,479.18 | N144: 34,259,965.64 | O144: 0.00 | P144: 34,259,965.64
A146: Директор | E146: О.В. Высоцкая
A147: (уполномоченное лицо) | B147: (подпись) | E147: (расшифровка подписи)
A149: Главный бухгалтер МУ "ЦБ № 1" | F149: И.В. Ананьева
A150: (уполномоченное лицо) | B150: (подпись) | F150: (расшифровка подписи)
A152: Главный экономист ПЭО | F152: И.В. Пружинина
A153: (исполнитель) | B153: (подпись) | F153: (расшифровка подписи)

Sheet 12.02
N1: Приложение №2
N2: к Порядку составления, утверждения
N3: и ведения бюджетных смет Администрации
N4: Прионежского муниципального района
N5: и казенных учреждений, находящихся
N6: в ведении Администрации Прионежского
N7: муниципального района
N8: от 30 декабря 2022 № 1390
F9: УТВЕРЖДАЮ
F10: Глава Администрации Прионежского муниципального района
F11: (наименование должности лица, согласующего бюджетную смету)
F13: Администрация Прионежского муниципального района
F14: (наименование главного распорядителя (распорядителя) бюджетных средств; учреждения)
K16: Г.Н. Шемет
F17: (подпись) (расшифровка подписи)
H19: 12 февраля 2025 года
B21: ИЗМЕНЕНИЯ К БЮДЖЕТНОЙ СМЕТЕ НА 2025 ФИНАНСОВЫЙ ГОД И ПЛАНОВЫЙ ПЕРИОД 2026 и 2027 ГОДОВ
B24: СПРАВКА №№015/00406/044, 015/00406/046, 015/00406/047 от | J24: =H19 -> 12 февраля 2025 года | P24: КОДЫ
O25: Форма по ОКУД | P25: 0501012
O26: Дата | P26: =H19 -> 12 февраля 2025 года
B27: Муниципальное общеобразовательное учреждение Шуйская средняя общеобразовательная школа №1 | O27: по ОКПО | P27: 77446968
A28: Получатель бюджетных средств
A29: Распорядитель бюджетных средств | B29: Администрация Прионежского муниципального района
A30: Главный распорядитель бюджетных средств | B30: Администрация Прионежского муниципального района | O30: Глава по БК | P30: 015
A31: Наименование бюджета | B31: Бюджет Прионежского муниципального района | O31: по ОКТМО | P31: 86636470
A32: Единица измерения: | B32: руб. | O32: по ОКЕЙ | P32: 383
A33: Наименование показателя (детализация кода бюджетной классификации) | B33: РЗ | C33: ПР | D33: ЦСР | E33: Вид расхода | F33: Детализация | G33: Вид целевых средств | H33: Сумма на текущий год | K33: Сумма на первый год планового периода (руб) | N33: Сумма на второй год планового периода (руб.)
H34: 2025-02-03 | I34: изменения (+/-) | J34: ИТОГО | K34: =H34 -> 2025-02-03 | L34: изменения (+/-) | M34: ИТОГО | N34: =H34 -> 2025-02-03 | O34: изменения (+/-) | P34: ИТОГО
A35: 1 | B35: =SUM(A35+1) -> 2 | C35: 3 | D35: 4 | E35: 5 | F35: 6 | G35: 7 | H35: 8 | I35: 9 | J35: 10 | K35: 11 | L35: 12 | M35: 13 | N35: 14 | O35: 15 | P35: 16
A36: Средства местного бюджета (КЦ 1000)
A37: Заработная плата | B37: 07 | C37: 01 | D37: 0220170200 | E37: 111 | F37: 211000 | G37: 1000 | H37: 3,118,153.92 | J37: =H37+I37 -> 3,118,153.92 | K37: 3,118,153.92 | M37: =K37+L37 -> 3,118,153.92 | N37: 3,118,153.92 | P37: =N37+O37 -> 3,118,153.92
A38: Расходы по оплате проезда к месту отпуска и обратно отдельным категориям лиц (для лиц, работающих в районах Крайнего Севера и приравненных к ним местностях, и членов их семей) | B38: 07 | C38: 01 | D38: 0220170200 | E38: 112 | F38: 214000 | G38: 1000 | H38: 30,000.00 | J38: =H38+I38 -> 30,000.00 | K38: 20,000.00 | M38: =K38+L38 -> 20,000.00 | N38: 20,000.00 | P38: =N38+O38 -> 20,000.00
A39: Начисления на выплаты по оплате труда | B39: 07 | C39: 01 | D39: 0220170200 | E39: 119 | F39: 213000 | G39: 1000 | H39: 941,682.48 | J39: 941,682.48 | K39: 941,682.48 | M39: 941,682.48 | N39: 941,682.48 | P39: 941,682.48
A40: Услуги связи (телефон) | B40: 07 | C40: 01 | D40: 0220170200 | E40: 244 | F40: 221100 | G40: 1000 | H40: 13,894.08 | J40: 13,894.08 | K40: 13,200.00 | M40: 13,200.00 | N40: 14,400.00 | P40: 14,400.00
A41: Услуги связи (почта) | B41: 07 | C41: 01 | D41: 0220170200 | E41: 244 | F41: 221300 | G41: 1000 | H41: 0.00 | J41: 0.00 | M41: 0.00 | P41: 0.00
A42: Отопление, горячее водоснабжение и газоснабжение | B42: 07 | C42: 01 | D42: 0220170200 | E42: 247 | F42: 223100 | G42: 1000 | H42: 1,128,402.16 | J42: 1,128,402.16 | K42: 1,663,178.53 | M42: 1,663,178.53 | N42: 1,742,199.20 | P42: 1,742,199.20
A43: Электроэнергия | B43: 07 | C43: 01 | D43: 0220170200 | E43: 247 | F43: 223200 | G43: 1000 | H43: 2,603,931.30 | J43: 2,603,931.30 | K43: 3,686,539.68 | M43: 3,686,539.68 | N43: 3,858,393.83 | P43: 3,858,393.83
A44: Холодное водоснабжение | B44: 07 | C44: 01 | D44: 0220170200 | E44: 247 | F44: 223300 | G44: 1000 | H44: 191,606.53 | J44: 191,606.53 | K44: 272,469.54 | M44: 272,469.54 | N44: 287,640.02 | P44: 287,640.02
A45: Водоотведение | B45: 07 | C45: 01 | D45: 0220170200 | E45: 247 | F45: 223400 | G45: 1000 | H45: 251,490.90 | J45: 251,490.90 | K45: 536,497.88 | M45: 536,497.88 | N45: 562,394.55 | P45: 562,394.55
A46: Вывоз бытовых отходов | B46: 07 | C46: 01 | D46: 0220170200 | E46: 244 | F46: 223500 | G46: 1000 | H46: 91,133.73 | J46: 91,133.73 | K46: 129,337.08 | M46: 129,337.08 | N46: 131,873.02 | P46: 131,873.02
A47: Санитарная и противопожарная (дезинфекция, дезинсекция, дератизация, газация, огнезащитная) обработка помещений | B47: 07 | C47: 01 | D47: 0220170200 | E47: 244 | F47: 225600 | G47: 1000 | H47: 185,400.00 | J47: 185,400.00 | K47: 35,400.00 | M47: 35,400.00 | N47: 39,000.00 | P47: 39,000.00
A48: Содержание и обслуживание помещений | B48: 07 | C48: 01 | D48: 0220170200 | E48: 244 | F48: 225700 | G48: 1000 | H48: 223,750.00 | J48: 223,750.00 | K48: 249,550.00 | M48: 249,550.00 | N48: 263,500.00 | P48: 263,500.00
A49: Другие расходы | B49: 07 | C49: 01 | D49: 0220170200 | E49: 244 | F49: 225900 | G49: 1000 | H49: 90,000.00 | J49: 90,000.00 | K49: 50,000.00 | M49: 50,000.00 | N49: 50,000.00 | P49: 50,000.00
A50: Аттестация | B50: 07 | C50: 01 | D50: 0220170200 | E50: 244 | F50: 226200 | G50: 1000 | H50: 10,000.00 | J50: 10,000.00 | K50: 10,000.00 | M50: 10,000.00 | N50: 10,000.00 | P50: 10,000.00
A51: Ведомственная, вневедомственная, пожарная охрана | B51: 07 | C51: 01 | D51: 0220170200 | E51: 244 | F51: 226400 | G51: 1000 | H51: 169,131.68 | J51: 169,131.68 | K51: 78,564.20 | M51: 78,564.20 | N51: 83,749.44 | P51: 83,749.44
A52: Медицинский осмотр работников учрежждений, за исключением водителей транспортных средств | B52: 07 | C52: 01 | D52: 0220170200 | E52: 244 | F52: 226800 | G52: 1000 | H52: 222,129.84 | J52: 222,129.84 | K52: 233,902.72 | M52: 233,902.72 | N52: 243,492.73 | P52: 243,492.73
A53: Другие расходы | B53: 07 | C53: 01 | D53: 0220170200 | E53: 244 | F53: 226900 | G53: 1000 | H53: 49,305.92 | J53: 49,305.92 | K53: 50,000.00 | M53: 50,000.00 | N53: 50,000.00 | P53: 50,000.00
A54: Приобретение предметов длительного пользования (оборудование, мебель,компьютерная техника и т.п.) стоимостью свыше 3000 рублей | B54: 07 | C54: 01 | D54: 0220170200 | E54: 244 | F54: 310100 | G54: 1000 | H54: 40,000.00 | J54: 40,000.00 | K54: 40,000.00 | M54: 40,000.00 | N54: 40,000.00 | P54: 40,000.00
A55: Другие расходы стоимостью до 3000,00 рублей | B55: 07 | C55: 01 | D55: 0220170200 | E55: 244 | F55: 310900 | G55: 1000 | H55: 30,000.00 | J55: 30,000.00 | K55: 30,000.00 | M55: 30,000.00 | N55: 30,000.00 | P55: 30,000.00
A56: Продукты питания | B56: 07 | C56: 01 | D56: 0220170200 | E56: 244 | F56: 342000 | G56: 1000 | H56: 1,330,236.00 | J56: 1,330,236.00 | K56: 1,330,236.00 | M56: 1,330,236.00 | N56: 1,330,236.00 | P56: 1,330,236.00
A57: Увеличение стоимости прочих оборотных запасов (материалов) | B57: 07 | C57: 01 | D57: 0220170200 | E57: 244 | F57: 346000 | G57: 1000 | H57: 80,000.00 | J57: 80,000.00 | K57: 80,000.00 | M57: 80,000.00 | N57: 80,000.00 | P57: 80,000.00
A58: Налог на имущество | B58: 07 | C58: 01 | D58: 0220170200 | E58: 851 | F58: 291200 | G58: 1000 | H58: 1,256,402.00 | J58: 1,256,402.00 | K58: 1,256,402.00 | M58: 1,256,402.00 | N58: 1,256,402.00 | P58: 1,256,402.00
A59: Земельный налог | B59: 07 | C59: 01 | D59: 0220170200 | E59: 851 | F59: 291300 | G59: 1000 | H59: 16,817.00 | J59: 16,817.00 | K59: 16,817.00 | M59: 16,817.00 | N59: 16,817.00 | P59: 16,817.00
A60: Итого по КЦ 1000 | H60: =SUM(H37:H59) -> 12,073,467.54 | I60: =SUM(I37:I59) -> 0.00 | J60: 12,073,467.54 | K60: 13,841,931.03 | L60: 0.00 | M60: 13,841,931.03 | N60: 14,169,934.19 | O60: 0.00 | P60: 14,169,934.19
A61: Средства местного бюджета (КЦ 1000)
A62: Заработная плата | B62: 07 | C62: 02 | D62: 0220270210 | E62: 111 | F62: 211000 | G62: 1000 | H62: 4,486,117.59 | J62: =H62+I62 -> 4,486,117.59 | K62: 4,488,786.72 | M62: =K62+L62 -> 4,488,786.72 | N62: 4,488,786.72 | P62: =N62+O62 -> 4,488,786.72
A63: Социальные пособия и компенсации персоналу в денежной форме (пособие за первые три дня временной нетрудоспособности за счет средств работодателя) | B63: 07 | C63: 02 | D63: 0220270210 | E63: 111 | F63: 266100 | G63: 1000 | H63: 2,669.13 | J63: =H63+I63 -> 2,669.13
A64: Расходы по оплате проезда к месту отпуска и обратно отдельным категориям лиц (для лиц, работающих в районах Крайнего Севера и приравненных к ним местностях, и членов их семей) | B64: 07 | C64: 02 | D64: 0220270210 | E64: 112 | F64: 214000 | G64: 1000 | H64: 30,000.00 | I64: 61,882.99 | J64: =H64+I64 -> 91,882.99 | K64: 20,000.00 | M64: =K64+L64 -> 20,000.00 | N64: 20,000.00 | P64: =N64+O64 -> 20,000.00
A65: Начисления на выплаты по оплате труда | B65: 07 | C65: 02 | D65: 0220270210 | E65: 119 | F65: 213000 | G65: 1000 | H65: 1,355,613.59 | J65: 1,355,613.59 | K65: 1,355,613.59 | M65: 1,355,613.59 | N65: 1,355,613.59 | P65: 1,355,613.59
A66: Услуги связи (телефон) | B66: 07 | C66: 02 | D66: 0220270210 | E66: 244 | F66: 221100 | G66: 1000 | H66: 300.00 | J66: 300.00 | K66: 0.00 | M66: 0.00 | N66: 0.00 | P66: 0.00
A67: Отопление, горячее водоснабжение и газоснабжение | B67: 07 | C67: 02 | D67: 0220270210 | E67: 247 | F67: 223100 | G67: 1000 | H67: 3,576,721.75 | J67: 3,576,721.75 | K67: 4,226,794.10 | M67: 4,226,794.10 | N67: 4,420,314.89 | P67: 4,420,314.89
A68: Электроэнергия | B68: 07 | C68: 02 | D68: 0220270210 | E68: 247 | F68: 223200 | G68: 1000 | H68: 1,343,722.52 | J68: 1,343,722.52 | K68: 1,902,380.60 | M68: 1,902,380.60 | N68: 1,983,351.63 | P68: 1,983,351.63
A69: Холодное водоснабжение | B69: 07 | C69: 02 | D69: 0220270210 | E69: 247 | F69: 223300 | G69: 1000 | H69: 121,057.60 | J69: 121,057.60 | K69: 172,092.96 | M69: 172,092.96 | N69: 179,678.20 | P69: 179,678.20
A70: Водоотведение | B70: 07 | C70: 02 | D70: 0220270210 | E70: 247 | F70: 223400 | G70: 1000 | H70: 182,131.20 | J70: 182,131.20 | K70: 295,668.96 | M70: 295,668.96 | N70: 308,699.12 | P70: 308,699.12
A71: Вывоз бытовых отходов | B71: 07 | C71: 02 | D71: 0220270210 | E71: 244 | F71: 223500 | G71: 1000 | H71: 59,536.40 | J71: 59,536.40 | K71: 84,527.22 | M71: 84,527.22 | N71: 86,184.55 | P71: 86,184.55
A72: Санитарная и противопожарная (дезинфекция, дезинсекция, дератизация, газация, огнезащитная) обработка помещений | B72: 07 | C72: 02 | D72: 0220270210 | E72: 244 | F72: 225600 | G72: 1000 | H72: 13,200.00 | J72: 13,200.00 | K72: 18,000.00 | M72: 18,000.00 | N72: 22,500.00 | P72: 22,500.00
A73: Содержание, обслуживание помещений и сетей инженерно-технического обеспечения | B73: 07 | C73: 02 | D73: 0220270210 | E73: 244 | F73: 225700 | G73: 1000 | H73: 94,200.00 | J73: 94,200.00 | K73: 85,500.00 | M73: 85,500.00 | N73: 106,875.00 | P73: 106,875.00
A74: Другие расходы | B74: 07 | C74: 02 | D74: 0220270210 | E74: 244 | F74: 225900 | G74: 1000 | H74: 120,000.00 | J74: 120,000.00 | K74: 100,000.00 | M74: 100,000.00 | N74: 100,000.00 | P74: 100,000.00
A75: Аттестация | B75: 07 | C75: 02 | D75: 0220270210 | E75: 244 | F75: 226200 | G75: 1000 | H75: 0.00 | J75: 0.00 | M75: 0.00 | P75: 0.00
A76: Ведомственная, вневедомственная, пожарная охрана | B76: 07 | C76: 02 | D76: 0220270210 | E76: 244 | F76: 226400 | G76: 1000 | H76: 63,765.84 | J76: 63,765.84 | K76: 99,250.00 | M76: 99,250.00 | N76: 124,062.50 | P76: 124,062.50
A77: Медицинский осмотр водителей транспортных средств | B77: 07 | C77: 02 | D77: 0220270210 | E77: 244 | F77: 226500 | G77: 1000 | H77: 195,300.00 | J77: 195,300.00 | K77: 244,125.00 | M77: 244,125.00 | N77: 305,156.25 | P77: 305,156.25
A78: Медицинский осмотр работников учрежждений, за исключением водителей транспортных средств | B78: 07 | C78: 02 | D78: 0220270210 | E78: 244 | F78: 226800 | G78: 1000 | H78: 335,000.00 | J78: 335,000.00 | K78: 337,000.00 | M78: 337,000.00 | N78: 337,000.00 | P78: 337,000.00
A79: Другие расходы | B79: 07 | C79: 02 | D79: 0220270210 | E79: 244 | F79: 226900 | G79: 1000 | H79: 99,700.00 | J79: 99,700.00 | K79: 100,000.00 | M79: 100,000.00 | N79: 100,000.00 | P79: 100,000.00
A80: Обязательное страхование автогражданской ответственности | B80: 07 | C80: 02 | D80: 0220270210 | E80: 244 | F80: 227200 | G80: 1000 | H80: 14,000.00 | J80: 14,000.00 | K80: 14,000.00 | M80: 14,000.00 | N80: 16,000.00 | P80: 16,000.00
A81: Приобретение предметов длительного пользования (оборудование, мебель,компьютерная техника и т.п.) стоимостью свыше 3000 рублей | B81: 07 | C81: 02 | D81: 0220270210 | E81: 244 | F81: 310100 | G81: 1000 | H81: 40,000.00 | J81: 40,000.00 | K81: 40,000.00 | M81: 40,000.00 | N81: 40,000.00 | P81: 40,000.00
A82: Другие расходы стоимостью до 3000,00 рублей | B82: 07 | C82: 02 | D82: 0220270210 | E82: 244 | F82: 310900 | G82: 1000 | H82: 30,000.00 | J82: 30,000.00 | K82: 30,000.00 | M82: 30,000.00 | N82: 30,000.00 | P82: 30,000.00
A83: Топливо и ГСМ | B83: 07 | C83: 02 | D83: 0220270210 | E83: 244 | F83: 343000 | G83: 1000 | H83: 0.00 | I83: 150,000.00 | J83: 150,000.00 | K83: 0.00 | M83: 0.00 | N83: 0.00 | P83: 0.00
A84: Приобретение строительных материалов | B84: 07 | C84: 02 | D84: 0220270210 | E84: 244 | F84: 344000 | G84: 1000 | H84: 40,000.00 | J84: 40,000.00 | K84: 40,000.00 | M84: 40,000.00 | N84: 40,000.00 | P84: 40,000.00
A85: Мягкий инвентарь | B85: 07 | C85: 02 | D85: 0220270210 | E85: 244 | F85: 345000 | G85: 1000 | H85: 22,500.00 | J85: 22,500.00 | K85: 22,500.00 | M85: 22,500.00 | N85: 22,500.00 | P85: 22,500.00
A86: Увеличение стоимости прочих оборотных запасов (материалов) | B86: 07 | C86: 02 | D86: 0220270210 | E86: 244 | F86: 346000 | G86: 1000 | H86: 80,000.00 | J86: 80,000.00 | K86: 80,000.00 | M86: 80,000.00 | N86: 80,000.00 | P86: 80,000.00
A87: Налог на имущество | B87: 07 | C87: 02 | D87: 0220270210 | E87: 851 | F87: 291200 | G87: 1000 | H87: 60,238.00 | J87: 60,238.00 | K87: 60,238.00 | M87: 60,238.00 | N87: 60,238.00 | P87: 60,238.00
A88: Земельный залог | B88: 07 | C88: 02 | D88: 0220270210 | E88: 851 | F88: 291300 | G88: 1000 | H88: 25,281.00 | J88: 25,281.00 | K88: 25,281.00 | M88: 25,281.00 | N88: 25,281.00 | P88: 25,281.00
A89: Транспотный налог | B89: 07 | C89: 02 | D89: 0220270210 | E89: 852 | F89: 291400 | G89: 1000 | H89: 37,790.00 | J89: 37,790.00 | K89: 37,790.00 | M89: 37,790.00 | N89: 37,790.00 | P89: 37,790.00
A90: Итого по КЦ 1000 | H90: =SUM(H62:H89) -> 12,428,844.62 | I90: =SUM(I62:I89) -> 211,882.99 | J90: 12,640,727.61 | K90: 13,879,548.15 | L90: 0.00 | M90: 13,879,548.15 | N90: 14,290,031.45 | O90: 0.00 | P90: 14,290,031.45
A91: Средства, полученные от оказания платных услуг, безвозмездных поступлений (КЦ 8000)
A92: Продукты питания | B92: 07 | C92: 01 | D92: 0220170200 | E92: 244 | F92: 342000 | G92: 8000 | H92: 5,000,000.00 | J92: =H92+I92 -> 5,000,000.00 | K92: 5,800,000.00 | M92: =K92+L92 -> 5,800,000.00 | N92: 5,800,000.00 | P92: =N92+O92 -> 5,800,000.00
A93: Итого по КЦ 8000 | H93: =SUM(H92) -> 5,000,000.00 | I93: =SUM(I92) -> 0.00 | J93: 5,000,000.00 | K93: 5,800,000.00 | L93: 0.00 | M93: 5,800,000.00 | N93: 5,800,000.00 | O93: 0.00 | P93: 5,800,000.00
A94: Субвенции на обеспечение гос.гарантий реализации прав на получение общедоступного и бесплатного дошкольного образования в муниципальных дошкольных образовательных организациях, общедоступного и бесплатного дошкольного, начального общего, основного общего, среднего общего образования в муниципальных общеобразовательных организациях, обеспечение дополнительного образования детей в муниципальных общеобразовательных организациях (КЦ 24219)
A96: Заработная плата | B96: 07 | C96: 01 | D96: 0220142190 | E96: 111 | F96: 211000 | G96: 23424219000219
A97: Начисления на выплаты по оплате труда | B97: 07 | C97: 01 | D97: 0220142190 | E97: 119 | F97: 213000 | G97: 23424219000219
A98: Услуги связи (интернет) | B98: 07 | C98: 01 | D98: 0220142190 | E98: 244 | F98: 221200 | G98: 23424219000219
A99: Итого субвенция 0701 (КЦ 24219) | H99: =SUM(H96:H98) -> 0.00 | K99: =SUM(K96:K98) -> 0.00 | N99: 0.00
A100: Заработная плата | B100: 07 | C100: 02 | D100: 0220242190 | E100: 111 | F100: 211000 | G100: 23424219000219
A101: Начисления на выплаты по оплате труда | B101: 07 | C101: 02 | D101: 0220242190 | E101: 119 | F101: 213000 | G101: 23424219000219
A102: Услуги связи (интернет) | B102: 07 | C102: 02 | D102: 0220242190 | E102: 244 | F102: 221200 | G102: 23424219000219
A103: Мероприятия по переподготовке и повышению квалификации кадров | B103: 07 | C103: 05 | D103: 0220242190 | E103: 244 | F103: 226700 | G103: 23424219000219
A104: Итого субвенция 0702 (КЦ 24219) | H104: =SUM(H100:H103) -> 0.00 | K104: =SUM(K100:K103) -> 0.00 | N104: 0.00
A105: Итого по КЦ 24219 | H105: =H99+H104 -> 0.00 | K105: =K99+K104 -> 0.00 | N105: 0.00
A106: Субсидии на проведение мероприятий по обеспечению деятельности советников директора по воспитанию и взаимодействию с детским общественными объединениями в образовательных организациях
A107: Заработная плата | B107: 07 | C107: 02 | D107: 022EВ51790 | E107: 111 | F107: 211000 | G107: 23-51790-00000-00000
A108: Начисления на выплаты по оплате труда | B108: 07 | C108: 02 | D108: 022EВ51790 | E108: 119 | F108: 213000 | G108: 23-51790-00000-00000
A109: Итого по КЦ 24320, 1000 | H109: =SUM(H107:H108) -> 0.00 | K109: =SUM(K107:K108) -> 0.00 | N109: 0.00
A110: Субвенции на обеспечение гос.гарантий реализации прав на получение общедоступного и бесплатного дошкольного образования в муниципальных дошкольных образовательных организациях, общедоступного и бесплатного дошкольного, начального общего, основного общего, среднего общего образования в муниципальных общеобразовательных организациях, обеспечение дополнительного образования детей в муниципальных общеобразовательных организациях (КЦ 24219)
A112: Заработная плата | B112: 07 | C112: 01 | D112: 0220142190 | E112: 111 | F112: 211000 | G112: 254242190000219 | H112: 22,538,902.26 | J112: =H112+I112 -> 22,538,902.26 | K112: 0.00 | M112: =K112+L112 -> 0.00 | N112: 0.00 | P112: =N112+O112 -> 0.00
A113: Социальные пособия и компенсации персоналу в денежной форме (пособие за первые три дня временной нетрудоспособности за счет средств работодателя) | B113: 07 | C113: 01 | D113: 0220142190 | E113: 111 | F113: 266100 | G113: 254242190000219 | H113: 3,271.50 | J113: 3,271.50
A114: Начисления на выплаты по оплате труда | B114: 07 | C114: 01 | D114: 0220142190 | E114: 119 | F114: 213000 | G114: 254242190000219 | H114: 5,105,802.36 | J114: 5,105,802.36 | K114: 0.00 | M114: 0.00 | N114: 0.00 | P114: 0.00
A115: Услуги связи (интернет) | B115: 07 | C115: 01 | D115: 0220142190 | E115: 244 | F115: 221200 | G115: 254242190000219 | H115: 47,000.00 | J115: 47,000.00 | K115: 0.00 | M115: 0.00 | N115: 0.00 | P115: 0.00
A116: Итого субвенция 0701 (КЦ 254242190000219) | H116: =SUM(H112:H115) -> 27,694,976.12 | I116: =SUM(I112:I115) -> 0.00 | J116: 27,694,976.12 | K116: 0.00 | L116: 0.00 | M116: 0.00 | N116: 0.00 | O116: 0.00 | P116: 0.00
A117: Заработная плата | B117: 07 | C117: 02 | D117: 0220242190 | E117: 111 | F117: 211000 | G117: 254242190000219 | H117: 39,632,059.50 | J117: =H117+I117 -> 39,632,059.50 | K117: 0.00 | M117: =K117+L117 -> 0.00 | N117: 0.00 | P117: 0.00
A118: Социальные пособия и компенсации персоналу в денежной форме (пособие за первые три дня временной нетрудоспособности за счет средств работодателя) | B118: 07 | C118: 02 | D118: 0220242190 | E118: 111 | F118: 266100 | G118: 254242190000219 | H118: 30,930.90 | J118: 30,930.90
A119: Начисления на выплаты по оплате труда | B119: 07 | C119: 02 | D119: 0220242190 | E119: 119 | F119: 213000 | G119: 254242190000219 | H119: 8,983,667.33 | J119: 8,983,667.33 | K119: 0.00 | M119: 0.00 | N119: 0.00 | P119: 0.00
A120: Услуги связи (интернет) | B120: 07 | C120: 02 | D120: 0220242190 | E120: 244 | F120: 221200 | G120: 254242190000219 | H120: 54,991.59 | J120: 54,991.59 | K120: 0.00 | M120: 0.00 | N120: 0.00 | P120: 0.00
A121: Увеличение стоимости прочих материальных запасов однократного применения | B121: 07 | C121: 02 | D121: 0220242190 | E121: 244 | F121: 349100 | G121: 254242190000219 | H121: 0.00 | I121: 12,746.00 | J121: 12,746.00 | K121: 0.00 | M121: 0.00 | N121: 0.00 | P121: 0.00
A122: Мероприятия по переподготовке и повышению квалификации кадров | B122: 07 | C122: 05 | D122: 0220242190 | E122: 244 | F122: 226700 | G122: 254242190000219 | H122: 0.00 | I122: 48,000.00 | J122: 48,000.00 | K122: 0.00 | M122: 0.00 | N122: 0.00 | P122: 0.00
A123: Итого субвенция 0701 (КЦ 254242190000219) | H123: =SUM(H117:H122) -> 48,701,649.32 | I123: =SUM(I117:I122) -> 60,746.00 | J123: 48,762,395.32 | K123: 0.00 | L123: 0.00 | M123: 0.00 | N123: 0.00 | O123: 0.00 | P123: 0.00
A124: Итого по КЦ 254242190000219 | H124: =H116+H123 -> 76,396,625.44 | I124: =I116+I123 -> 60,746.00 | J124: 76,457,371.44 | K124: 0.00 | L124: 0.00 | M124: 0.00 | N124: 0.00 | O124: 0.00 | P124: 0.00
A125: Реализация мероприятий по ежемесячному денежному вознаграждению за класское руководство пед.работникам государственных и муниципальных образовательных организаций, реализующих образовательные программы основного общего образования
A126: Заработная плата | B126: 07 | C126: 02 | D126: 022Ю653030 | E126: 111 | F126: 211000 | G126: 2553030X298570000000 | H126: 4,554,000.00 | J126: =H126+I126 -> 4,554,000.00 | K126: 0.00 | M126: =K126+L126 -> 0.00 | N126: 0.00 | P126: =N126+O126 -> 0.00
A127: Начисления на выплаты по оплате труда | B127: 07 | C127: 02 | D127: 022Ю653030 | E127: 119 | F127: 213000 | G127: 2553030X298570000000 | H127: 1,375,308.00 | J127: 1,375,308.00 | K127: 0.00 | M127: 0.00 | N127: 0.00 | P127: 0.00
A128: Итого по КЦ 2553030X298570000000 | H128: =SUM(H126:H127) -> 5,929,308.00 | I128: =SUM(I126:I127) -> 0.00 | J128: 5,929,308.00 | K128: 0.00 | L128: 0.00 | M128: 0.00 | N128: 0.00 | O128: 0.00 | P128: 0.00
A129: Реализация мероприятий по обеспечению деятельности советников директора по воспитанию и взаимодействию с детскими общественными объединениями в общеобразовательных организациях
A130: Заработная плата | B130: 07 | C130: 02 | D130: 022Ю651790 | E130: 111 | F130: 211000 | G130: 25-51790-00000-00000 | H130: 251,508.00 | J130: =H130+I130 -> 251,508.00 | K130: 0.00 | M130: =K130+L130 -> 0.00 | N130: 0.00 | P130: =N130+O130 -> 0.00
A131: Начисления на выплаты по оплате труда | B131: 07 | C131: 02 | D131: 022Ю651790 | E131: 119 | F131: 213000 | G131: 25-51790-00000-00000 | H131: 75,955.42 | J131: 75,955.42 | K131: 0.00 | M131: 0.00 | N131: 0.00 | P131: 0.00
A132: Итого по КЦ 23-51790-00000-00000 | H132: =SUM(H130:H131) -> 327,463.42 | I132: =SUM(I130:I131) -> 0.00 | J132: =H132+I132 -> 327,463.42 | K132: =SUM(K130:K131) -> 0.00 | N132: =SUM(N130:N131) -> 0.00
A133: Иные межбюджетные трансферты на обеспечение выплат ежемесячного денежного вознаграждения советникам ждиректоров по воспитанию и взаимодействию с детскими общественными объединениями государственных образховательных организаций, муниципальных общеобразовательных организаций и профессиональных общеобразовательных организаций
A134: Заработная плата | B134: 07 | C134: 02 | D134: 022Ю650500 | E134: 111 | F134: 211000 | G134: 2550500X298320000000 | H134: 0.00 | I134: 99,000.00 | J134: =H134+I134 -> 99,000.00 | K134: 0.00 | M134: =K134+L134 -> 0.00 | N134: 0.00 | P134: =N134+O134 -> 0.00
A135: Начисления на выплаты по оплате труда | B135: 07 | C135: 02 | D135: 022Ю650500 | E135: 119 | F135: 213000 | G135: 2550500X298320000000 | H135: 0.00 | I135: 29,898.00 | J135: 29,898.00 | K135: 0.00 | M135: 0.00 | N135: 0.00 | P135: 0.00
A136: ИТОГО по КЦ 2550500X298320000000 | H136: =SUM(H134:H135) -> 0.00 | I136: =SUM(I134:I135) -> 128,898.00 | J136: 128,898.00 | K136: 0.00 | L136: 0.00 | M136: 0.00 | N136: 0.00 | O136: 0.00 | P136: 0.00
A137: Субвенция на осуществление государственных полномочий РК по выплате компенсации платы, взимаемой с родителей (законных представителей) за присмотр и уход за детьми, осваивающими образовательные программы дошкольного образования в организациях, осуществляющих образовательную деятельности, за исключением государственных образовательных организаций РК.
A138: Пособия по социальной помощи населению в натуральной форме | B138: 10 | C138: 04 | D138: 0220142030 | E138: 321 | F138: 263000 | G138: 254242030000203 | H138: 2,216,000.00 | J138: =H138+I138 -> 2,216,000.00 | K138: 0.00 | M138: =K138+L138 -> 0.00 | N138: 0.00 | P138: =N138+O138 -> 0.00
A139: Итого по КЦ 254242030000203 | H139: =SUM(H138:H138) -> 2,216,000.00 | I139: 0.00 | J139: 2,216,000.00 | K139: 0.00 | L139: 0.00 | M139: 0.00 | N139: 0.00 | O139: 0.00 | P139: 0.00
A140: Субвенция на осуществление государственных полномочий РК по предоставлению предусмотренных п.5 ч.1 ст.9 Заона от 20.12.2013 №1755-ЗРК "Об образовании" мер социальной поддержски и социального обслуживания обучающимся с ОВЗ, за искл.обучающихся (воспитываемы) в государтсвенных образовательных организациях РК
A141: Пособия по социальной помощи населению в натуральной форме | B141: 07 | C141: 02 | D141: 0220242100 | E141: 323 | F141: 263000 | G141: 254242100000210 | H141: 876,245.00 | J141: =H141+I141 -> 876,245.00 | K141: 0.00 | M141: =K141+L141 -> 0.00 | N141: 0.00 | P141: =N141+O141 -> 0.00
A142: Пособия по социальной помощи населению в денежной форме | B142: 10 | C142: 03 | D142: 0220242100 | E142: 321 | F142: 262000 | G142: 254242100000210 | H142: 93,777.00 | J142: =H142+I142 -> 93,777.00 | K142: 0.00 | M142: 0.00 | N142: 0.00 | P142: 0.00
A143: Итого по КЦ 254242100000210 | H143: =SUM(H141:H142) -> 970,022.00 | I143: =SUM(I141:I142) -> 0.00 | J143: 970,022.00 | K143: 0.00 | L143: 0.00 | M143: 0.00 | N143: 0.00 | O143: 0.00 | P143: 0.00
A144: Субсидии на организацию бесплатного горячего питания обучающихся, получающих начальное общее образование в государственных и муниципальных образовательных организациях
A145: Другие расходы | B145: 07 | C145: 02 | D145: 02202L3040 | E145: 244 | F145: 226900 | G145: 25-53040-00000-00000 | H145: 3,150,000.00 | J145: =H145+I145 -> 3,150,000.00 | K145: 0.00 | M145: =K145+L145 -> 0.00 | N145: 0.00 | P145: =N145+O145 -> 0.00
A146: Итого по КЦ 25-53040-00000-00000 | H146: =SUM(H145) -> 3,150,000.00 | I146: =SUM(I145) -> 0.00 | J146: 3,150,000.00 | K146: 0.00 | L146: 0.00 | M146: 0.00 | N146: 0.00 | O146: 0.00 | P146: 0.00
A147: Субсидия на реализацию мероприятий государственной программы РК "Совершенствование социальной защиты граждан" в целях организации адресной социальной помощи семьям, имеющим детей
A148: Пособия по социальной помощи населению в натуральной форме | B148: 10 | C148: 03 | D148: 0320243210 | E148: 323 | F148: 263000 | G148: 254343210000316 | H148: 1,260,000.00 | J148: =H148+I148 -> 1,260,000.00 | K148: 0.00 | M148: =K148+L148 -> 0.00 | N148: 0.00 | P148: =N148+O148 -> 0.00
A149: Пособия по социальной помощи населению в натуральной форме | B149: 10 | C149: 03 | D149: 03202S3210 | E149: 323 | F149: 263000 | G149: 1000 | H149: 540,000.00 | J149: 540,000.00 | K149: 0.00 | M149: 0.00 | N149: 0.00 | P149: 0.00
A150: Итого по КЦ 254343210000316 | H150: =SUM(H148:H149) -> 1,800,000.00 | I150: =SUM(I148:I149) -> 0.00 | J150: 1,800,000.00 | K150: 0.00 | L150: 0.00 | M150: 0.00 | N150: 0.00 | O150: 0.00 | P150: 0.00
A151: Всего | H151: =H60+H90+H93+H105+H109+H139+H143+H124+H146+H150+H132+H128+H136 -> 120,291,731.02 | I151: =I60+I90+I93+I105+I109+I139+I143+I124+I146+I150+I132+I128+I136 -> 401,526.99 | J151: 120,693,258.01 | K151: 33,521,479.18 | L151: 0.00 | M151: 33,521,479.18 | N151: 34,259,965.64 | O151: 0.00 | P151: =P60+P90+P93+P105+P109+P139+P143+P124+P146+P150+P132+P128+P136 -> 34,259,965.64
A153: Директор | E153: О.В. Высоцкая
A154: (уполномоченное лицо) | B154: (подпись) | E154: (расшифровка подписи)
A156: Главный бухгалтер МУ "ЦБ № 1" | F156: И.В. Ананьева
A157: (уполномоченное лицо) | B157: (подпись) | F157: (расшифровка подписи)
A159: Главный экономист ПЭО | F159: И.В. Пружинина
A160: (исполнитель) | B160: (подпись) | F160: (расшифровка подписи)

Sheet 14.02
N1: Приложение №2
N2: к Порядку составления, утверждения
N3: и ведения бюджетных смет Администрации
N4: Прионежского муниципального района
N5: и казенных учреждений, находящихся
N6: в ведении Администрации Прионежского
N7: муниципального района
N8: от 30 декабря 2022 № 1390
F9: УТВЕРЖДАЮ
F10: Глава Администрации Прионежского муниципального района
F11: (наименование должности лица, согласующего бюджетную смету)
F13: Администрация Прионежского муниципального района
F14: (наименование главного распорядителя (распорядителя) бюджетных средств; учреждения)
K16: Г.Н. Шемет
F17: (подпись) (расшифровка подписи)
H19: 14 февраля 2025 года
B21: ИЗМЕНЕНИЯ К БЮДЖЕТНОЙ СМЕТЕ НА 2025 ФИНАНСОВЫЙ ГОД И ПЛАНОВЫЙ ПЕРИОД 2026 и 2027 ГОДОВ
B24: СПРАВКА №№015/00406/051, 015/00406/052, 015/00406/053 от | J24: =H19 -> 14 февраля 2025 года | P24: КОДЫ
O25: Форма по ОКУД | P25: 0501012
O26: Дата | P26: =H19 -> 14 февраля 2025 года
B27: Муниципальное общеобразовательное учреждение Шуйская средняя общеобразовательная школа №1 | O27: по ОКПО | P27: 77446968
A28: Получатель бюджетных средств
A29: Распорядитель бюджетных средств | B29: Администрация Прионежского муниципального района
A30: Главный распорядитель бюджетных средств | B30: Администрация Прионежского муниципального района | O30: Глава по БК | P30: 015
A31: Наименование бюджета | B31: Бюджет Прионежского муниципального района | O31: по ОКТМО | P31: 86636470
A32: Единица измерения: | B32: руб. | O32: по ОКЕЙ | P32: 383
A33: Наименование показателя (детализация кода бюджетной классификации) | B33: РЗ | C33: ПР | D33: ЦСР | E33: Вид расхода | F33: Детализация | G33: Вид целевых средств | H33: Сумма на текущий год | K33: Сумма на первый год планового периода (руб) | N33: Сумма на второй год планового периода (руб.)
H34: 2025-02-12 | I34: изменения (+/-) | J34: ИТОГО | K34: =H34 -> 2025-02-12 | L34: изменения (+/-) | M34: ИТОГО | N34: =H34 -> 2025-02-12 | O34: изменения (+/-) | P34: ИТОГО
A35: 1 | B35: =SUM(A35+1) -> 2 | C35: 3 | D35: 4 | E35: 5 | F35: 6 | G35: 7 | H35: 8 | I35: 9 | J35: 10 | K35: 11 | L35: 12 | M35: 13 | N35: 14 | O35: 15 | P35: 16
A36: Средства местного бюджета (КЦ 1000)
A37: Заработная плата | B37: 07 | C37: 01 | D37: 0220170200 | E37: 111 | F37: 211000 | G37: 1000 | H37: 3,118,153.92 | J37: =H37+I37 -> 3,118,153.92 | K37: 3,118,153.92 | M37: =K37+L37 -> 3,118,153.92 | N37: 3,118,153.92 | P37: =N37+O37 -> 3,118,153.92
A38: Расходы по оплате проезда к месту отпуска и обратно отдельным категориям лиц (для лиц, работающих в районах Крайнего Севера и приравненных к ним местностях, и членов их семей) | B38: 07 | C38: 01 | D38: 0220170200 | E38: 112 | F38: 214000 | G38: 1000 | H38: 30,000.00 | J38: =H38+I38 -> 30,000.00 | K38: 20,000.00 | M38: =K38+L38 -> 20,000.00 | N38: 20,000.00 | P38: =N38+O38 -> 20,000.00
A39: Начисления на выплаты по оплате труда | B39: 07 | C39: 01 | D39: 0220170200 | E39: 119 | F39: 213000 | G39: 1000 | H39: 941,682.48 | J39: 941,682.48 | K39: 941,682.48 | M39: 941,682.48 | N39: 941,682.48 | P39: 941,682.48
A40: Услуги связи (телефон) | B40: 07 | C40: 01 | D40: 0220170200 | E40: 244 | F40: 221100 | G40: 1000 | H40: 13,894.08 | J40: 13,894.08 | K40: 13,200.00 | M40: 13,200.00 | N40: 14,400.00 | P40: 14,400.00
A41: Услуги связи (почта) | B41: 07 | C41: 01 | D41: 0220170200 | E41: 244 | F41: 221300 | G41: 1000 | H41: 0.00 | J41: 0.00 | M41: 0.00 | P41: 0.00
A42: Отопление, горячее водоснабжение и газоснабжение | B42: 07 | C42: 01 | D42: 0220170200 | E42: 247 | F42: 223100 | G42: 1000 | H42: 1,128,402.16 | J42: 1,128,402.16 | K42: 1,663,178.53 | M42: 1,663,178.53 | N42: 1,742,199.20 | P42: 1,742,199.20
A43: Электроэнергия | B43: 07 | C43: 01 | D43: 0220170200 | E43: 247 | F43: 223200 | G43: 1000 | H43: 2,603,931.30 | J43: 2,603,931.30 | K43: 3,686,539.68 | M43: 3,686,539.68 | N43: 3,858,393.83 | P43: 3,858,393.83
A44: Холодное водоснабжение | B44: 07 | C44: 01 | D44: 0220170200 | E44: 247 | F44: 223300 | G44: 1000 | H44: 191,606.53 | J44: 191,606.53 | K44: 272,469.54 | M44: 272,469.54 | N44: 287,640.02 | P44: 287,640.02
A45: Водоотведение | B45: 07 | C45: 01 | D45: 0220170200 | E45: 247 | F45: 223400 | G45: 1000 | H45: 251,490.90 | J45: 251,490.90 | K45: 536,497.88 | M45: 536,497.88 | N45: 562,394.55 | P45: 562,394.55
A46: Вывоз бытовых отходов | B46: 07 | C46: 01 | D46: 0220170200 | E46: 244 | F46: 223500 | G46: 1000 | H46: 91,133.73 | J46: 91,133.73 | K46: 129,337.08 | M46: 129,337.08 | N46: 131,873.02 | P46: 131,873.02
A47: Санитарная и противопожарная (дезинфекция, дезинсекция, дератизация, газация, огнезащитная) обработка помещений | B47: 07 | C47: 01 | D47: 0220170200 | E47: 244 | F47: 225600 | G47: 1000 | H47: 185,400.00 | J47: 185,400.00 | K47: 35,400.00 | M47: 35,400.00 | N47: 39,000.00 | P47: 39,000.00
A48: Содержание и обслуживание помещений | B48: 07 | C48: 01 | D48: 0220170200 | E48: 244 | F48: 225700 | G48: 1000 | H48: 223,750.00 | J48: 223,750.00 | K48: 249,550.00 | M48: 249,550.00 | N48: 263,500.00 | P48: 263,500.00
A49: Другие расходы | B49: 07 | C49: 01 | D49: 0220170200 | E49: 244 | F49: 225900 | G49: 1000 | H49: 90,000.00 | J49: 90,000.00 | K49: 50,000.00 | M49: 50,000.00 | N49: 50,000.00 | P49: 50,000.00
A50: Аттестация | B50: 07 | C50: 01 | D50: 0220170200 | E50: 244 | F50: 226200 | G50: 1000 | H50: 10,000.00 | J50: 10,000.00 | K50: 10,000.00 | M50: 10,000.00 | N50: 10,000.00 | P50: 10,000.00
A51: Ведомственная, вневедомственная, пожарная охрана | B51: 07 | C51: 01 | D51: 0220170200 | E51: 244 | F51: 226400 | G51: 1000 | H51: 169,131.68 | J51: 169,131.68 | K51: 78,564.20 | M51: 78,564.20 | N51: 83,749.44 | P51: 83,749.44
A52: Медицинский осмотр работников учрежждений, за исключением водителей транспортных средств | B52: 07 | C52: 01 | D52: 0220170200 | E52: 244 | F52: 226800 | G52: 1000 | H52: 222,129.84 | J52: 222,129.84 | K52: 233,902.72 | M52: 233,902.72 | N52: 243,492.73 | P52: 243,492.73
A53: Другие расходы | B53: 07 | C53: 01 | D53: 0220170200 | E53: 244 | F53: 226900 | G53: 1000 | H53: 49,305.92 | I53: -272.77 | J53: 49,033.15 | K53: 50,000.00 | M53: 50,000.00 | N53: 50,000.00 | P53: 50,000.00
A54: Приобретение предметов длительного пользования (оборудование, мебель,компьютерная техника и т.п.) стоимостью свыше 3000 рублей | B54: 07 | C54: 01 | D54: 0220170200 | E54: 244 | F54: 310100 | G54: 1000 | H54: 40,000.00 | J54: 40,000.00 | K54: 40,000.00 | M54: 40,000.00 | N54: 40,000.00 | P54: 40,000.00
A55: Другие расходы стоимостью до 3000,00 рублей | B55: 07 | C55: 01 | D55: 0220170200 | E55: 244 | F55: 310900 | G55: 1000 | H55: 30,000.00 | J55: 30,000.00 | K55: 30,000.00 | M55: 30,000.00 | N55: 30,000.00 | P55: 30,000.00
A56: Продукты питания | B56: 07 | C56: 01 | D56: 0220170200 | E56: 244 | F56: 342000 | G56: 1000 | H56: 1,330,236.00 | J56: 1,330,236.00 | K56: 1,330,236.00 | M56: 1,330,236.00 | N56: 1,330,236.00 | P56: 1,330,236.00
A57: Увеличение стоимости прочих оборотных запасов (материалов) | B57: 07 | C57: 01 | D57: 0220170200 | E57: 244 | F57: 346000 | G57: 1000 | H57: 80,000.00 | J57: 80,000.00 | K57: 80,000.00 | M57: 80,000.00 | N57: 80,000.00 | P57: 80,000.00
A58: Налог на имущество | B58: 07 | C58: 01 | D58: 0220170200 | E58: 851 | F58: 291200 | G58: 1000 | H58: 1,256,402.00 | J58: 1,256,402.00 | K58: 1,256,402.00 | M58: 1,256,402.00 | N58: 1,256,402.00 | P58: 1,256,402.00
A59: Земельный налог | B59: 07 | C59: 01 | D59: 0220170200 | E59: 851 | F59: 291300 | G59: 1000 | H59: 16,817.00 | J59: 16,817.00 | K59: 16,817.00 | M59: 16,817.00 | N59: 16,817.00 | P59: 16,817.00
A60: Иные выплаты текущего характера физическим лицам (Возмещение убытков, вреда и судебных издержек) | B60: 07 | C60: 01 | D60: 0220170200 | E60: 853 | F60: 296100 | G60: 1000 | H60: 0.00 | I60: 95.75 | J60: 95.75 | K60: 0.00 | M60: 0.00 | N60: 0.00 | P60: 0.00
A61: Итого по КЦ 1000 | H61: =SUM(H37:H60) -> 12,073,467.54 | I61: =SUM(I37:I60) -> -177.02 | J61: 12,073,290.52 | K61: 13,841,931.03 | L61: 0.00 | M61: 13,841,931.03 | N61: 14,169,934.19 | O61: 0.00 | P61: 14,169,934.19
A62: Средства местного бюджета (КЦ 1000)
A63: Заработная плата | B63: 07 | C63: 02 | D63: 0220270210 | E63: 111 | F63: 211000 | G63: 1000 | H63: 4,486,117.59 | J63: =H63+I63 -> 4,486,117.59 | K63: 4,488,786.72 | M63: =K63+L63 -> 4,488,786.72 | N63: 4,488,786.72 | P63: =N63+O63 -> 4,488,786.72
A64: Социальные пособия и компенсации персоналу в денежной форме (пособие за первые три дня временной нетрудоспособности за счет средств работодателя) | B64: 07 | C64: 02 | D64: 0220270210 | E64: 111 | F64: 266100 | G64: 1000 | H64: 2,669.13 | J64: =H64+I64 -> 2,669.13
A65: Расходы по оплате проезда к месту отпуска и обратно отдельным категориям лиц (для лиц, работающих в районах Крайнего Севера и приравненных к ним местностях, и членов их семей) | B65: 07 | C65: 02 | D65: 0220270210 | E65: 112 | F65: 214000 | G65: 1000 | H65: 91,882.99 | J65: =H65+I65 -> 91,882.99 | K65: 20,000.00 | M65: =K65+L65 -> 20,000.00 | N65: 20,000.00 | P65: =N65+O65 -> 20,000.00
A66: Начисления на выплаты по оплате труда | B66: 07 | C66: 02 | D66: 0220270210 | E66: 119 | F66: 213000 | G66: 1000 | H66: 1,355,613.59 | J66: 1,355,613.59 | K66: 1,355,613.59 | M66: 1,355,613.59 | N66: 1,355,613.59 | P66: 1,355,613.59
A67: Услуги связи (телефон) | B67: 07 | C67: 02 | D67: 0220270210 | E67: 244 | F67: 221100 | G67: 1000 | H67: 300.00 | J67: 300.00 | K67: 0.00 | M67: 0.00 | N67: 0.00 | P67: 0.00
A68: Отопление, горячее водоснабжение и газоснабжение | B68: 07 | C68: 02 | D68: 0220270210 | E68: 247 | F68: 223100 | G68: 1000 | H68: 3,576,721.75 | J68: 3,576,721.75 | K68: 4,226,794.10 | M68: 4,226,794.10 | N68: 4,420,314.89 | P68: 4,420,314.89
A69: Электроэнергия | B69: 07 | C69: 02 | D69: 0220270210 | E69: 247 | F69: 223200 | G69: 1000 | H69: 1,343,722.52 | J69: 1,343,722.52 | K69: 1,902,380.60 | M69: 1,902,380.60 | N69: 1,983,351.63 | P69: 1,983,351.63
A70: Холодное водоснабжение | B70: 07 | C70: 02 | D70: 0220270210 | E70: 247 | F70: 223300 | G70: 1000 | H70: 121,057.60 | J70: 121,057.60 | K70: 172,092.96 | M70: 172,092.96 | N70: 179,678.20 | P70: 179,678.20
A71: Водоотведение | B71: 07 | C71: 02 | D71: 0220270210 | E71: 247 | F71: 223400 | G71: 1000 | H71: 182,131.20 | J71: 182,131.20 | K71: 295,668.96 | M71: 295,668.96 | N71: 308,699.12 | P71: 308,699.12
A72: Вывоз бытовых отходов | B72: 07 | C72: 02 | D72: 0220270210 | E72: 244 | F72: 223500 | G72: 1000 | H72: 59,536.40 | J72: 59,536.40 | K72: 84,527.22 | M72: 84,527.22 | N72: 86,184.55 | P72: 86,184.55
A73: Санитарная и противопожарная (дезинфекция, дезинсекция, дератизация, газация, огнезащитная) обработка помещений | B73: 07 | C73: 02 | D73: 0220270210 | E73: 244 | F73: 225600 | G73: 1000 | H73: 13,200.00 | J73: 13,200.00 | K73: 18,000.00 | M73: 18,000.00 | N73: 22,500.00 | P73: 22,500.00
A74: Содержание, обслуживание помещений и сетей инженерно-технического обеспечения | B74: 07 | C74: 02 | D74: 0220270210 | E74: 244 | F74: 225700 | G74: 1000 | H74: 94,200.00 | J74: 94,200.00 | K74: 85,500.00 | M74: 85,500.00 | N74: 106,875.00 | P74: 106,875.00
A75: Другие расходы | B75: 07 | C75: 02 | D75: 0220270210 | E75: 244 | F75: 225900 | G75: 1000 | H75: 120,000.00 | J75: 120,000.00 | K75: 100,000.00 | M75: 100,000.00 | N75: 100,000.00 | P75: 100,000.00
A76: Аттестация | B76: 07 | C76: 02 | D76: 0220270210 | E76: 244 | F76: 226200 | G76: 1000 | H76: 0.00 | J76: 0.00 | M76: 0.00 | P76: 0.00
A77: Ведомственная, вневедомственная, пожарная охрана | B77: 07 | C77: 02 | D77: 0220270210 | E77: 244 | F77: 226400 | G77: 1000 | H77: 63,765.84 | J77: 63,765.84 | K77: 99,250.00 | M77: 99,250.00 | N77: 124,062.50 | P77: 124,062.50
A78: Медицинский осмотр водителей транспортных средств | B78: 07 | C78: 02 | D78: 0220270210 | E78: 244 | F78: 226500 | G78: 1000 | H78: 195,300.00 | J78: 195,300.00 | K78: 244,125.00 | M78: 244,125.00 | N78: 305,156.25 | P78: 305,156.25
A79: Медицинский осмотр работников учрежждений, за исключением водителей транспортных средств | B79: 07 | C79: 02 | D79: 0220270210 | E79: 244 | F79: 226800 | G79: 1000 | H79: 335,000.00 | J79: 335,000.00 | K79: 337,000.00 | M79: 337,000.00 | N79: 337,000.00 | P79: 337,000.00
A80: Другие расходы | B80: 07 | C80: 02 | D80: 0220270210 | E80: 244 | F80: 226900 | G80: 1000 | H80: 99,700.00 | J80: 99,700.00 | K80: 100,000.00 | M80: 100,000.00 | N80: 100,000.00 | P80: 100,000.00
A81: Обязательное страхование автогражданской ответственности | B81: 07 | C81: 02 | D81: 0220270210 | E81: 244 | F81: 227200 | G81: 1000 | H81: 14,000.00 | J81: 14,000.00 | K81: 14,000.00 | M81: 14,000.00 | N81: 16,000.00 | P81: 16,000.00
A82: Приобретение предметов длительного пользования (оборудование, мебель,компьютерная техника и т.п.) стоимостью свыше 3000 рублей | B82: 07 | C82: 02 | D82: 0220270210 | E82: 244 | F82: 310100 | G82: 1000 | H82: 40,000.00 | J82: 40,000.00 | K82: 40,000.00 | M82: 40,000.00 | N82: 40,000.00 | P82: 40,000.00
A83: Другие расходы стоимостью до 3000,00 рублей | B83: 07 | C83: 02 | D83: 0220270210 | E83: 244 | F83: 310900 | G83: 1000 | H83: 30,000.00 | J83: 30,000.00 | K83: 30,000.00 | M83: 30,000.00 | N83: 30,000.00 | P83: 30,000.00
A84: Топливо и ГСМ | B84: 07 | C84: 02 | D84: 0220270210 | E84: 244 | F84: 343000 | G84: 1000 | H84: 150,000.00 | J84: 150,000.00 | K84: 0.00 | M84: 0.00 | N84: 0.00 | P84: 0.00
A85: Приобретение строительных материалов | B85: 07 | C85: 02 | D85: 0220270210 | E85: 244 | F85: 344000 | G85: 1000 | H85: 40,000.00 | J85: 40,000.00 | K85: 40,000.00 | M85: 40,000.00 | N85: 40,000.00 | P85: 40,000.00
A86: Мягкий инвентарь | B86: 07 | C86: 02 | D86: 0220270210 | E86: 244 | F86: 345000 | G86: 1000 | H86: 22,500.00 | J86: 22,500.00 | K86: 22,500.00 | M86: 22,500.00 | N86: 22,500.00 | P86: 22,500.00
A87: Увеличение стоимости прочих оборотных запасов (материалов) | B87: 07 | C87: 02 | D87: 0220270210 | E87: 244 | F87: 346000 | G87: 1000 | H87: 80,000.00 | J87: 80,000.00 | K87: 80,000.00 | M87: 80,000.00 | N87: 80,000.00 | P87: 80,000.00
A88: Налог на имущество | B88: 07 | C88: 02 | D88: 0220270210 | E88: 851 | F88: 291200 | G88: 1000 | H88: 60,238.00 | J88: 60,238.00 | K88: 60,238.00 | M88: 60,238.00 | N88: 60,238.00 | P88: 60,238.00
A89: Земельный залог | B89: 07 | C89: 02 | D89: 0220270210 | E89: 851 | F89: 291300 | G89: 1000 | H89: 25,281.00 | J89: 25,281.00 | K89: 25,281.00 | M89: 25,281.00 | N89: 25,281.00 | P89: 25,281.00
A90: Транспотный налог | B90: 07 | C90: 02 | D90: 0220270210 | E90: 852 | F90: 291400 | G90: 1000 | H90: 37,790.00 | J90: 37,790.00 | K90: 37,790.00 | M90: 37,790.00 | N90: 37,790.00 | P90: 37,790.00
A91: Иные выплаты текущего характера физическим лицам (Возмещение убытков, вреда и судебных издержек) | B91: 07 | C91: 02 | D91: 0220270210 | E91: 853 | F91: 296100 | G91: 1000 | H91: 0.00 | I91: 177.02 | J91: 177.02 | K91: 0.00 | M91: 0.00 | N91: 0.00 | P91: 0.00
A92: Итого по КЦ 1000 | H92: =SUM(H63:H91) -> 12,640,727.61 | I92: =SUM(I63:I91) -> 177.02 | J92: 12,640,904.63 | K92: 13,879,548.15 | L92: 0.00 | M92: 13,879,548.15 | N92: 14,290,031.45 | O92: 0.00 | P92: 14,290,031.45
A93: Средства, полученные от оказания платных услуг, безвозмездных поступлений (КЦ 8000)
A94: Продукты питания | B94: 07 | C94: 01 | D94: 0220170200 | E94: 244 | F94: 342000 | G94: 8000 | H94: 5,000,000.00 | J94: =H94+I94 -> 5,000,000.00 | K94: 5,800,000.00 | M94: =K94+L94 -> 5,800,000.00 | N94: 5,800,000.00 | P94: =N94+O94 -> 5,800,000.00
A95: Итого по КЦ 8000 | H95: =SUM(H94) -> 5,000,000.00 | I95: =SUM(I94) -> 0.00 | J95: 5,000,000.00 | K95: 5,800,000.00 | L95: 0.00 | M95: 5,800,000.00 | N95: 5,800,000.00 | O95: 0.00 | P95: 5,800,000.00
A96: Субвенции на обеспечение гос.гарантий реализации прав на получение общедоступного и бесплатного дошкольного образования в муниципальных дошкольных образовательных организациях, общедоступного и бесплатного дошкольного, начального общего, основного общего, среднего общего образования в муниципальных общеобразовательных организациях, обеспечение дополнительного образования детей в муниципальных общеобразовательных организациях (КЦ 24219)
A98: Заработная плата | B98: 07 | C98: 01 | D98: 0220142190 | E98: 111 | F98: 211000 | G98: 23424219000219
A99: Начисления на выплаты по оплате труда | B99: 07 | C99: 01 | D99: 0220142190 | E99: 119 | F99: 213000 | G99: 23424219000219
A100: Услуги связи (интернет) | B100: 07 | C100: 01 | D100: 0220142190 | E100: 244 | F100: 221200 | G100: 23424219000219
A101: Итого субвенция 0701 (КЦ 24219) | H101: =SUM(H98:H100) -> 0.00 | K101: =SUM(K98:K100) -> 0.00 | N101: 0.00
A102: Заработная плата | B102: 07 | C102: 02 | D102: 0220242190 | E102: 111 | F102: 211000 | G102: 23424219000219
A103: Начисления на выплаты по оплате труда | B103: 07 | C103: 02 | D103: 0220242190 | E103: 119 | F103: 213000 | G103: 23424219000219
A104: Услуги связи (интернет) | B104: 07 | C104: 02 | D104: 0220242190 | E104: 244 | F104: 221200 | G104: 23424219000219
A105: Мероприятия по переподготовке и повышению квалификации кадров | B105: 07 | C105: 05 | D105: 0220242190 | E105: 244 | F105: 226700 | G105: 23424219000219
A106: Итого субвенция 0702 (КЦ 24219) | H106: =SUM(H102:H105) -> 0.00 | K106: =SUM(K102:K105) -> 0.00 | N106: 0.00
A107: Итого по КЦ 24219 | H107: =H101+H106 -> 0.00 | K107: =K101+K106 -> 0.00 | N107: 0.00
A108: Субсидии на проведение мероприятий по обеспечению деятельности советников директора по воспитанию и взаимодействию с детским общественными объединениями в образовательных организациях
A109: Заработная плата | B109: 07 | C109: 02 | D109: 022EВ51790 | E109: 111 | F109: 211000 | G109: 23-51790-00000-00000
A110: Начисления на выплаты по оплате труда | B110: 07 | C110: 02 | D110: 022EВ51790 | E110: 119 | F110: 213000 | G110: 23-51790-00000-00000
A111: Итого по КЦ 24320, 1000 | H111: =SUM(H109:H110) -> 0.00 | K111: =SUM(K109:K110) -> 0.00 | N111: 0.00
A112: Субвенции на обеспечение гос.гарантий реализации прав на получение общедоступного и бесплатного дошкольного образования в муниципальных дошкольных образовательных организациях, общедоступного и бесплатного дошкольного, начального общего, основного общего, среднего общего образования в муниципальных общеобразовательных организациях, обеспечение дополнительного образования детей в муниципальных общеобразовательных организациях (КЦ 24219)
A114: Заработная плата | B114: 07 | C114: 01 | D114: 0220142190 | E114: 111 | F114: 211000 | G114: 254242190000219 | H114: 22,538,902.26 | J114: =H114+I114 -> 22,538,902.26 | K114: 0.00 | M114: =K114+L114 -> 0.00 | N114: 0.00 | P114: =N114+O114 -> 0.00
A115: Социальные пособия и компенсации персоналу в денежной форме (пособие за первые три дня временной нетрудоспособности за счет средств работодателя) | B115: 07 | C115: 01 | D115: 0220142190 | E115: 111 | F115: 266100 | G115: 254242190000219 | H115: 3,271.50 | J115: 3,271.50
A116: Начисления на выплаты по оплате труда | B116: 07 | C116: 01 | D116: 0220142190 | E116: 119 | F116: 213000 | G116: 254242190000219 | H116: 5,105,802.36 | J116: 5,105,802.36 | K116: 0.00 | M116: 0.00 | N116: 0.00 | P116: 0.00
A117: Услуги связи (интернет) | B117: 07 | C117: 01 | D117: 0220142190 | E117: 244 | F117: 221200 | G117: 254242190000219 | H117: 47,000.00 | J117: 47,000.00 | K117: 0.00 | M117: 0.00 | N117: 0.00 | P117: 0.00
A118: Итого субвенция 0701 (КЦ 254242190000219) | H118: =SUM(H114:H117) -> 27,694,976.12 | I118: =SUM(I114:I117) -> 0.00 | J118: 27,694,976.12 | K118: 0.00 | L118: 0.00 | M118: 0.00 | N118: 0.00 | O118: 0.00 | P118: 0.00
A119: Заработная плата | B119: 07 | C119: 02 | D119: 0220242190 | E119: 111 | F119: 211000 | G119: 254242190000219 | H119: 39,632,059.50 | J119: =H119+I119 -> 39,632,059.50 | K119: 0.00 | M119: =K119+L119 -> 0.00 | N119: 0.00 | P119: 0.00
A120: Социальные пособия и компенсации персоналу в денежной форме (пособие за первые три дня временной нетрудоспособности за счет средств работодателя) | B120: 07 | C120: 02 | D120: 0220242190 | E120: 111 | F120: 266100 | G120: 254242190000219 | H120: 30,930.90 | J120: 30,930.90
A121: Начисления на выплаты по оплате труда | B121: 07 | C121: 02 | D121: 0220242190 | E121: 119 | F121: 213000 | G121: 254242190000219 | H121: 8,983,667.33 | J121: 8,983,667.33 | K121: 0.00 | M121: 0.00 | N121: 0.00 | P121: 0.00
A122: Услуги связи (интернет) | B122: 07 | C122: 02 | D122: 0220242190 | E122: 244 | F122: 221200 | G122: 254242190000219 | H122: 54,991.59 | J122: 54,991.59 | K122: 0.00 | M122: 0.00 | N122: 0.00 | P122: 0.00
A123: Увеличение стоимости прочих материальных запасов однократного применения | B123: 07 | C123: 02 | D123: 0220242190 | E123: 244 | F123: 349100 | G123: 254242190000219 | H123: 12,746.00 | J123: 12,746.00 | K123: 0.00 | M123: 0.00 | N123: 0.00 | P123: 0.00
A124: Мероприятия по переподготовке и повышению квалификации кадров | B124: 07 | C124: 05 | D124: 0220242190 | E124: 244 | F124: 226700 | G124: 254242190000219 | H124: 48,000.00 | J124: 48,000.00 | K124: 0.00 | M124: 0.00 | N124: 0.00 | P124: 0.00
A125: Итого субвенция 0701 (КЦ 254242190000219) | H125: =SUM(H119:H124) -> 48,762,395.32 | I125: =SUM(I119:I124) -> 0.00 | J125: 48,762,395.32 | K125: 0.00 | L125: 0.00 | M125: 0.00 | N125: 0.00 | O125: 0.00 | P125: 0.00
A126: Итого по КЦ 254242190000219 | H126: =H118+H125 -> 76,457,371.44 | I126: =I118+I125 -> 0.00 | J126: 76,457,371.44 | K126: 0.00 | L126: 0.00 | M126: 0.00 | N126: 0.00 | O126: 0.00 | P126: 0.00
A127: Реализация мероприятий по ежемесячному денежному вознаграждению за класское руководство пед.работникам государственных и муниципальных образовательных организаций, реализующих образовательные программы основного общего образования
A128: Заработная плата | B128: 07 | C128: 02 | D128: 022Ю653030 | E128: 111 | F128: 211000 | G128: 2553030X298570000000 | H128: 4,554,000.00 | J128: =H128+I128 -> 4,554,000.00 | K128: 0.00 | M128: =K128+L128 -> 0.00 | N128: 0.00 | P128: =N128+O128 -> 0.00
A129: Начисления на выплаты по оплате труда | B129: 07 | C129: 02 | D129: 022Ю653030 | E129: 119 | F129: 213000 | G129: 2553030X298570000000 | H129: 1,375,308.00 | J129: 1,375,308.00 | K129: 0.00 | M129: 0.00 | N129: 0.00 | P129: 0.00
A130: Итого по КЦ 2553030X298570000000 | H130: =SUM(H128:H129) -> 5,929,308.00 | I130: =SUM(I128:I129) -> 0.00 | J130: 5,929,308.00 | K130: 0.00 | L130: 0.00 | M130: 0.00 | N130: 0.00 | O130: 0.00 | P130: 0.00
A131: Реализация мероприятий по обеспечению деятельности советников директора по воспитанию и взаимодействию с детскими общественными объединениями в общеобразовательных организациях
A132: Заработная плата | B132: 07 | C132: 02 | D132: 022Ю651790 | E132: 111 | F132: 211000 | G132: 25-51790-00000-00000 | H132: 251,508.00 | J132: =H132+I132 -> 251,508.00 | K132: 0.00 | M132: =K132+L132 -> 0.00 | N132: 0.00 | P132: =N132+O132 -> 0.00
A133: Начисления на выплаты по оплате труда | B133: 07 | C133: 02 | D133: 022Ю651790 | E133: 119 | F133: 213000 | G133: 25-51790-00000-00000 | H133: 75,955.42 | J133: 75,955.42 | K133: 0.00 | M133: 0.00 | N133: 0.00 | P133: 0.00
A134: Итого по КЦ 23-51790-00000-00000 | H134: =SUM(H132:H133) -> 327,463.42 | I134: =SUM(I132:I133) -> 0.00 | J134: =H134+I134 -> 327,463.42 | K134: =SUM(K132:K133) -> 0.00 | N134: =SUM(N132:N133) -> 0.00
A135: Иные межбюджетные трансферты на обеспечение выплат ежемесячного денежного вознаграждения советникам ждиректоров по воспитанию и взаимодействию с детскими общественными объединениями государственных образховательных организаций, муниципальных общеобразовательных организаций и профессиональных общеобразовательных организаций
A136: Заработная плата | B136: 07 | C136: 02 | D136: 022Ю650500 | E136: 111 | F136: 211000 | G136: 2550500X298320000000 | H136: 99,000.00 | J136: =H136+I136 -> 99,000.00 | K136: 0.00 | M136: =K136+L136 -> 0.00 | N136: 0.00 | P136: =N136+O136 -> 0.00
A137: Начисления на выплаты по оплате труда | B137: 07 | C137: 02 | D137: 022Ю650500 | E137: 119 | F137: 213000 | G137: 2550500X298320000000 | H137: 29,898.00 | J137: 29,898.00 | K137: 0.00 | M137: 0.00 | N137: 0.00 | P137: 0.00
A138: ИТОГО по КЦ 2550500X298320000000 | H138: =SUM(H136:H137) -> 128,898.00 | I138: =SUM(I136:I137) -> 0.00 | J138: 128,898.00 | K138: 0.00 | L138: 0.00 | M138: 0.00 | N138: 0.00 | O138: 0.00 | P138: 0.00
A139: Субвенция на осуществление государственных полномочий РК по выплате компенсации платы, взимаемой с родителей (законных представителей) за присмотр и уход за детьми, осваивающими образовательные программы дошкольного образования в организациях, осуществляющих образовательную деятельности, за исключением государственных образовательных организаций РК.
A140: Пособия по социальной помощи населению в натуральной форме | B140: 10 | C140: 04 | D140: 0220142030 | E140: 321 | F140: 263000 | G140: 254242030000203 | H140: 2,216,000.00 | J140: =H140+I140 -> 2,216,000.00 | K140: 0.00 | M140: =K140+L140 -> 0.00 | N140: 0.00 | P140: =N140+O140 -> 0.00
A141: Итого по КЦ 254242030000203 | H141: =SUM(H140:H140) -> 2,216,000.00 | I141: 0.00 | J141: 2,216,000.00 | K141: 0.00 | L141: 0.00 | M141: 0.00 | N141: 0.00 | O141: 0.00 | P141: 0.00
A142: Субвенция на осуществление государственных полномочий РК по предоставлению предусмотренных п.5 ч.1 ст.9 Заона от 20.12.2013 №1755-ЗРК "Об образовании" мер социальной поддержски и социального обслуживания обучающимся с ОВЗ, за искл.обучающихся (воспитываемы) в государтсвенных образовательных организациях РК
A143: Пособия по социальной помощи населению в натуральной форме | B143: 07 | C143: 02 | D143: 0220242100 | E143: 323 | F143: 263000 | G143: 254242100000210 | H143: 876,245.00 | J143: =H143+I143 -> 876,245.00 | K143: 0.00 | M143: =K143+L143 -> 0.00 | N143: 0.00 | P143: =N143+O143 -> 0.00
A144: Пособия по социальной помощи населению в денежной форме | B144: 10 | C144: 03 | D144: 0220242100 | E144: 321 | F144: 262000 | G144: 254242100000210 | H144: 93,777.00 | J144: =H144+I144 -> 93,777.00 | K144: 0.00 | M144: 0.00 | N144: 0.00 | P144: 0.00
A145: Итого по КЦ 254242100000210 | H145: =SUM(H143:H144) -> 970,022.00 | I145: =SUM(I143:I144) -> 0.00 | J145: 970,022.00 | K145: 0.00 | L145: 0.00 | M145: 0.00 | N145: 0.00 | O145: 0.00 | P145: 0.00
A146: Субсидии на организацию бесплатного горячего питания обучающихся, получающих начальное общее образование в государственных и муниципальных образовательных организациях
A147: Другие расходы | B147: 07 | C147: 02 | D147: 02202L3040 | E147: 244 | F147: 226900 | G147: 25-53040-00000-00000 | H147: 3,150,000.00 | J147: =H147+I147 -> 3,150,000.00 | K147: 0.00 | M147: =K147+L147 -> 0.00 | N147: 0.00 | P147: =N147+O147 -> 0.00
A148: Итого по КЦ 25-53040-00000-00000 | H148: =SUM(H147) -> 3,150,000.00 | I148: =SUM(I147) -> 0.00 | J148: 3,150,000.00 | K148: 0.00 | L148: 0.00 | M148: 0.00 | N148: 0.00 | O148: 0.00 | P148: 0.00
A149: Субсидия на реализацию мероприятий государственной программы РК "Совершенствование социальной защиты граждан" в целях организации адресной социальной помощи семьям, имеющим детей
A150: Пособия по социальной помощи населению в натуральной форме | B150: 10 | C150: 03 | D150: 0320243210 | E150: 323 | F150: 263000 | G150: 254343210000316 | H150: 1,260,000.00 | J150: =H150+I150 -> 1,260,000.00 | K150: 0.00 | M150: =K150+L150 -> 0.00 | N150: 0.00 | P150: =N150+O150 -> 0.00
A151: Пособия по социальной помощи населению в натуральной форме | B151: 10 | C151: 03 | D151: 03202S3210 | E151: 323 | F151: 263000 | G151: 1000 | H151: 540,000.00 | J151: 540,000.00 | K151: 0.00 | M151: 0.00 | N151: 0.00 | P151: 0.00
A152: Итого по КЦ 254343210000316 | H152: =SUM(H150:H151) -> 1,800,000.00 | I152: =SUM(I150:I151) -> 0.00 | J152: 1,800,000.00 | K152: 0.00 | L152: 0.00 | M152: 0.00 | N152: 0.00 | O152: 0.00 | P152: 0.00
A153: Субсидия местным бюджетам на реализацию мероприятий государственной программы Республики Карелия ""Развитие образования""
A154: Другие расходы | B154: 07 | C154: 02 | D154: 0220243202 | E154: 244 | F154: 225900 | G154: 254343200000320 | H154: 0.00 | I154: 83,700.00 | J154: =H154+I154 -> 83,700.00 | K154: 0.00 | M154: =K154+L154 -> 0.00 | N154: 0.00 | P154: =N154+O154 -> 0.00
A155: Другие расходы | B155: 07 | C155: 02 | D155: 02202S3202 | E155: 244 | F155: 225900 | G155: 1000 | H155: 0.00 | I155: 9,300.00 | J155: 9,300.00 | K155: 0.00 | M155: 0.00 | N155: 0.00 | P155: 0.00
A156: Топливо и ГСМ | B156: 07 | C156: 02 | D156: 0220243202 | E156: 244 | F156: 343000 | G156: 254343200000320 | H156: 0.00 | I156: 1,620,000.00 | J156: 1,620,000.00 | K156: 0.00 | M156: 0.00 | N156: 0.00 | P156: 0.00
A157: Топливо и ГСМ | B157: 07 | C157: 02 | D157: 02202S3202 | E157: 244 | F157: 343000 | G157: 1000 | H157: 0.00 | I157: 180,000.00 | J157: 180,000.00 | K157: 0.00 | M157: 0.00 | N157: 0.00 | P157: 0.00
A158: Итого по КЦ 254343200000320 | H158: =SUM(H154:H157) -> 0.00 | I158: =SUM(I154:I157) -> 1,893,000.00 | J158: 1,893,000.00 | K158: 0.00 | L158: 0.00 | M158: 0.00 | N158: 0.00 | O158: 0.00 | P158: 0.00
A159: Всего | H159: =H61+H92+H95+H107+H111+H141+H145+H126+H148+H152+H134+H130+H138+H158 -> 120,693,258.01 | I159: =I61+I92+I95+I107+I111+I141+I145+I126+I148+I152+I134+I130+I138+I158 -> 1,893,000.00 | J159: 122,586,258.01 | K159: 33,521,479.18 | L159: 0.00 | M159: 33,521,479.18 | N159: 34,259,965.64 | O159: 0.00 | P159: 34,259,965.64
A161: Директор | E161: О.В. Высоцкая
A162: (уполномоченное лицо) | B162: (подпись) | E162: (расшифровка подписи)
A164: Главный бухгалтер МУ "ЦБ № 1" | F164: И.В. Ананьева
A165: (уполномоченное лицо) | B165: (подпись) | F165: (расшифровка подписи)
A167: Главный экономист ПЭО | F167: И.В. Пружинина
A168: (исполнитель) | B168: (подпись) | F168: (расшифровка подписи)

Sheet 17.02
N1: Приложение №2
N2: к Порядку составления, утверждения
N3: и ведения бюджетных смет Администрации
N4: Прионежского муниципального района
N5: и казенных учреждений, находящихся
N6: в ведении Администрации Прионежского
N7: муниципального района
N8: от 30 декабря 2022 № 1390
F9: УТВЕРЖДАЮ
F10: Глава Администрации Прионежского муниципального района
F11: (наименование должности лица, согласующего бюджетную смету)
F13: Администрация Прионежского муниципального района
F14: (наименование главного распорядителя (распорядителя) бюджетных средств; учреждения)
K16: Г.Н. Шемет
F17: (подпись) (расшифровка подписи)
H19: 17 февраля 2025 года
B21: ИЗМЕНЕНИЯ К БЮДЖЕТНОЙ СМЕТЕ НА 2025 ФИНАНСОВЫЙ ГОД И ПЛАНОВЫЙ ПЕРИОД 2026 и 2027 ГОДОВ
B24: СПРАВКА №№015/00406/054 от | J24: =H19 -> 17 февраля 2025 года | P24: КОДЫ
O25: Форма по ОКУД | P25: 0501012
O26: Дата | P26: =H19 -> 17 февраля 2025 года
B27: Муниципальное общеобразовательное учреждение Шуйская средняя общеобразовательная школа №1 | O27: по ОКПО | P27: 77446968
A28: Получатель бюджетных средств
A29: Распорядитель бюджетных средств | B29: Администрация Прионежского муниципального района
A30: Главный распорядитель бюджетных средств | B30: Администрация Прионежского муниципального района | O30: Глава по БК | P30: 015
A31: Наименование бюджета | B31: Бюджет Прионежского муниципального района | O31: по ОКТМО | P31: 86636470
A32: Единица измерения: | B32: руб. | O32: по ОКЕЙ | P32: 383
A33: Наименование показателя (детализация кода бюджетной классификации) | B33: РЗ | C33: ПР | D33: ЦСР | E33: Вид расхода | F33: Детализация | G33: Вид целевых средств | H33: Сумма на текущий год | K33: Сумма на первый год планового периода (руб) | N33: Сумма на второй год планового периода (руб.)
H34: 2025-02-14 | I34: изменения (+/-) | J34: ИТОГО | K34: =H34 -> 2025-02-14 | L34: изменения (+/-) | M34: ИТОГО | N34: =H34 -> 2025-02-14 | O34: изменения (+/-) | P34: ИТОГО
A35: 1 | B35: =SUM(A35+1) -> 2 | C35: 3 | D35: 4 | E35: 5 | F35: 6 | G35: 7 | H35: 8 | I35: 9 | J35: 10 | K35: 11 | L35: 12 | M35: 13 | N35: 14 | O35: 15 | P35: 16
A36: Средства местного бюджета (КЦ 1000)
A37: Заработная плата | B37: 07 | C37: 01 | D37: 0220170200 | E37: 111 | F37: 211000 | G37: 1000 | H37: 3,118,153.92 | J37: =H37+I37 -> 3,118,153.92 | K37: 3,118,153.92 | M37: =K37+L37 -> 3,118,153.92 | N37: 3,118,153.92 | P37: =N37+O37 -> 3,118,153.92
A38: Расходы по оплате проезда к месту отпуска и обратно отдельным категориям лиц (для лиц, работающих в районах Крайнего Севера и приравненных к ним местностях, и членов их семей) | B38: 07 | C38: 01 | D38: 0220170200 | E38: 112 | F38: 214000 | G38: 1000 | H38: 30,000.00 | J38: =H38+I38 -> 30,000.00 | K38: 20,000.00 | M38: =K38+L38 -> 20,000.00 | N38: 20,000.00 | P38: =N38+O38 -> 20,000.00
A39: Начисления на выплаты по оплате труда | B39: 07 | C39: 01 | D39: 0220170200 | E39: 119 | F39: 213000 | G39: 1000 | H39: 941,682.48 | J39: 941,682.48 | K39: 941,682.48 | M39: 941,682.48 | N39: 941,682.48 | P39: 941,682.48
A40: Услуги связи (телефон) | B40: 07 | C40: 01 | D40: 0220170200 | E40: 244 | F40: 221100 | G40: 1000 | H40: 13,894.08 | J40: 13,894.08 | K40: 13,200.00 | M40: 13,200.00 | N40: 14,400.00 | P40: 14,400.00
A41: Услуги связи (почта) | B41: 07 | C41: 01 | D41: 0220170200 | E41: 244 | F41: 221300 | G41: 1000 | H41: 0.00 | J41: 0.00 | M41: 0.00 | P41: 0.00
A42: Отопление, горячее водоснабжение и газоснабжение | B42: 07 | C42: 01 | D42: 0220170200 | E42: 247 | F42: 223100 | G42: 1000 | H42: 1,128,402.16 | J42: 1,128,402.16 | K42: 1,663,178.53 | M42: 1,663,178.53 | N42: 1,742,199.20 | P42: 1,742,199.20
A43: Электроэнергия | B43: 07 | C43: 01 | D43: 0220170200 | E43: 247 | F43: 223200 | G43: 1000 | H43: 2,603,931.30 | J43: 2,603,931.30 | K43: 3,686,539.68 | M43: 3,686,539.68 | N43: 3,858,393.83 | P43: 3,858,393.83
A44: Холодное водоснабжение | B44: 07 | C44: 01 | D44: 0220170200 | E44: 247 | F44: 223300 | G44: 1000 | H44: 191,606.53 | J44: 191,606.53 | K44: 272,469.54 | M44: 272,469.54 | N44: 287,640.02 | P44: 287,640.02
A45: Водоотведение | B45: 07 | C45: 01 | D45: 0220170200 | E45: 247 | F45: 223400 | G45: 1000 | H45: 251,490.90 | J45: 251,490.90 | K45: 536,497.88 | M45: 536,497.88 | N45: 562,394.55 | P45: 562,394.55
A46: Вывоз бытовых отходов | B46: 07 | C46: 01 | D46: 0220170200 | E46: 244 | F46: 223500 | G46: 1000 | H46: 91,133.73 | J46: 91,133.73 | K46: 129,337.08 | M46: 129,337.08 | N46: 131,873.02 | P46: 131,873.02
A47: Санитарная и противопожарная (дезинфекция, дезинсекция, дератизация, газация, огнезащитная) обработка помещений | B47: 07 | C47: 01 | D47: 0220170200 | E47: 244 | F47: 225600 | G47: 1000 | H47: 185,400.00 | J47: 185,400.00 | K47: 35,400.00 | M47: 35,400.00 | N47: 39,000.00 | P47: 39,000.00
A48: Содержание и обслуживание помещений | B48: 07 | C48: 01 | D48: 0220170200 | E48: 244 | F48: 225700 | G48: 1000 | H48: 223,750.00 | J48: 223,750.00 | K48: 249,550.00 | M48: 249,550.00 | N48: 263,500.00 | P48: 263,500.00
A49: Другие расходы | B49: 07 | C49: 01 | D49: 0220170200 | E49: 244 | F49: 225900 | G49: 1000 | H49: 90,000.00 | J49: 90,000.00 | K49: 50,000.00 | M49: 50,000.00 | N49: 50,000.00 | P49: 50,000.00
A50: Аттестация | B50: 07 | C50: 01 | D50: 0220170200 | E50: 244 | F50: 226200 | G50: 1000 | H50: 10,000.00 | J50: 10,000.00 | K50: 10,000.00 | M50: 10,000.00 | N50: 10,000.00 | P50: 10,000.00
A51: Ведомственная, вневедомственная, пожарная охрана | B51: 07 | C51: 01 | D51: 0220170200 | E51: 244 | F51: 226400 | G51: 1000 | H51: 169,131.68 | J51: 169,131.68 | K51: 78,564.20 | M51: 78,564.20 | N51: 83,749.44 | P51: 83,749.44
A52: Медицинский осмотр работников учрежждений, за исключением водителей транспортных средств | B52: 07 | C52: 01 | D52: 0220170200 | E52: 244 | F52: 226800 | G52: 1000 | H52: 222,129.84 | J52: 222,129.84 | K52: 233,902.72 | M52: 233,902.72 | N52: 243,492.73 | P52: 243,492.73
A53: Другие расходы | B53: 07 | C53: 01 | D53: 0220170200 | E53: 244 | F53: 226900 | G53: 1000 | H53: 49,033.15 | J53: 49,033.15 | K53: 50,000.00 | M53: 50,000.00 | N53: 50,000.00 | P53: 50,000.00
A54: Приобретение предметов длительного пользования (оборудование, мебель,компьютерная техника и т.п.) стоимостью свыше 3000 рублей | B54: 07 | C54: 01 | D54: 0220170200 | E54: 244 | F54: 310100 | G54: 1000 | H54: 40,000.00 | J54: 40,000.00 | K54: 40,000.00 | M54: 40,000.00 | N54: 40,000.00 | P54: 40,000.00
A55: Другие расходы стоимостью до 3000,00 рублей | B55: 07 | C55: 01 | D55: 0220170200 | E55: 244 | F55: 310900 | G55: 1000 | H55: 30,000.00 | J55: 30,000.00 | K55: 30,000.00 | M55: 30,000.00 | N55: 30,000.00 | P55: 30,000.00
A56: Продукты питания | B56: 07 | C56: 01 | D56: 0220170200 | E56: 244 | F56: 342000 | G56: 1000 | H56: 1,330,236.00 | J56: 1,330,236.00 | K56: 1,330,236.00 | M56: 1,330,236.00 | N56: 1,330,236.00 | P56: 1,330,236.00
A57: Увеличение стоимости прочих оборотных запасов (материалов) | B57: 07 | C57: 01 | D57: 0220170200 | E57: 244 | F57: 346000 | G57: 1000 | H57: 80,000.00 | J57: 80,000.00 | K57: 80,000.00 | M57: 80,000.00 | N57: 80,000.00 | P57: 80,000.00
A58: Налог на имущество | B58: 07 | C58: 01 | D58: 0220170200 | E58: 851 | F58: 291200 | G58: 1000 | H58: 1,256,402.00 | J58: 1,256,402.00 | K58: 1,256,402.00 | M58: 1,256,402.00 | N58: 1,256,402.00 | P58: 1,256,402.00
A59: Земельный налог | B59: 07 | C59: 01 | D59: 0220170200 | E59: 851 | F59: 291300 | G59: 1000 | H59: 16,817.00 | J59: 16,817.00 | K59: 16,817.00 | M59: 16,817.00 | N59: 16,817.00 | P59: 16,817.00
A60: Иные выплаты текущего характера физическим лицам (Возмещение убытков, вреда и судебных издержек) | B60: 07 | C60: 01 | D60: 0220170200 | E60: 853 | F60: 296100 | G60: 1000 | H60: 95.75 | J60: 95.75 | K60: 0.00 | M60: 0.00 | N60: 0.00 | P60: 0.00
A61: Итого по КЦ 1000 | H61: =SUM(H37:H60) -> 12,073,290.52 | I61: =SUM(I37:I60) -> 0.00 | J61: 12,073,290.52 | K61: 13,841,931.03 | L61: 0.00 | M61: 13,841,931.03 | N61: 14,169,934.19 | O61: 0.00 | P61: 14,169,934.19
A62: Средства местного бюджета (КЦ 1000)
A63: Заработная плата | B63: 07 | C63: 02 | D63: 0220270210 | E63: 111 | F63: 211000 | G63: 1000 | H63: 4,486,117.59 | J63: =H63+I63 -> 4,486,117.59 | K63: 4,488,786.72 | M63: =K63+L63 -> 4,488,786.72 | N63: 4,488,786.72 | P63: =N63+O63 -> 4,488,786.72
A64: Социальные пособия и компенсации персоналу в денежной форме (пособие за первые три дня временной нетрудоспособности за счет средств работодателя) | B64: 07 | C64: 02 | D64: 0220270210 | E64: 111 | F64: 266100 | G64: 1000 | H64: 2,669.13 | J64: =H64+I64 -> 2,669.13
A65: Расходы по оплате проезда к месту отпуска и обратно отдельным категориям лиц (для лиц, работающих в районах Крайнего Севера и приравненных к ним местностях, и членов их семей) | B65: 07 | C65: 02 | D65: 0220270210 | E65: 112 | F65: 214000 | G65: 1000 | H65: 91,882.99 | J65: =H65+I65 -> 91,882.99 | K65: 20,000.00 | M65: =K65+L65 -> 20,000.00 | N65: 20,000.00 | P65: =N65+O65 -> 20,000.00
A66: Начисления на выплаты по оплате труда | B66: 07 | C66: 02 | D66: 0220270210 | E66: 119 | F66: 213000 | G66: 1000 | H66: 1,355,613.59 | J66: 1,355,613.59 | K66: 1,355,613.59 | M66: 1,355,613.59 | N66: 1,355,613.59 | P66: 1,355,613.59
A67: Услуги связи (телефон) | B67: 07 | C67: 02 | D67: 0220270210 | E67: 244 | F67: 221100 | G67: 1000 | H67: 300.00 | J67: 300.00 | K67: 0.00 | M67: 0.00 | N67: 0.00 | P67: 0.00
A68: Отопление, горячее водоснабжение и газоснабжение | B68: 07 | C68: 02 | D68: 0220270210 | E68: 247 | F68: 223100 | G68: 1000 | H68: 3,576,721.75 | J68: 3,576,721.75 | K68: 4,226,794.10 | M68: 4,226,794.10 | N68: 4,420,314.89 | P68: 4,420,314.89
A69: Электроэнергия | B69: 07 | C69: 02 | D69: 0220270210 | E69: 247 | F69: 223200 | G69: 1000 | H69: 1,343,722.52 | J69: 1,343,722.52 | K69: 1,902,380.60 | M69: 1,902,380.60 | N69: 1,983,351.63 | P69: 1,983,351.63
A70: Холодное водоснабжение | B70: 07 | C70: 02 | D70: 0220270210 | E70: 247 | F70: 223300 | G70: 1000 | H70: 121,057.60 | J70: 121,057.60 | K70: 172,092.96 | M70: 172,092.96 | N70: 179,678.20 | P70: 179,678.20
A71: Водоотведение | B71: 07 | C71: 02 | D71: 0220270210 | E71: 247 | F71: 223400 | G71: 1000 | H71: 182,131.20 | J71: 182,131.20 | K71: 295,668.96 | M71: 295,668.96 | N71: 308,699.12 | P71: 308,699.12
A72: Вывоз бытовых отходов | B72: 07 | C72: 02 | D72: 0220270210 | E72: 244 | F72: 223500 | G72: 1000 | H72: 59,536.40 | J72: 59,536.40 | K72: 84,527.22 | M72: 84,527.22 | N72: 86,184.55 | P72: 86,184.55
A73: Санитарная и противопожарная (дезинфекция, дезинсекция, дератизация, газация, огнезащитная) обработка помещений | B73: 07 | C73: 02 | D73: 0220270210 | E73: 244 | F73: 225600 | G73: 1000 | H73: 13,200.00 | J73: 13,200.00 | K73: 18,000.00 | M73: 18,000.00 | N73: 22,500.00 | P73: 22,500.00
A74: Содержание, обслуживание помещений и сетей инженерно-технического обеспечения | B74: 07 | C74: 02 | D74: 0220270210 | E74: 244 | F74: 225700 | G74: 1000 | H74: 94,200.00 | J74: 94,200.00 | K74: 85,500.00 | M74: 85,500.00 | N74: 106,875.00 | P74: 106,875.00
A75: Другие расходы | B75: 07 | C75: 02 | D75: 0220270210 | E75: 244 | F75: 225900 | G75: 1000 | H75: 120,000.00 | J75: 120,000.00 | K75: 100,000.00 | M75: 100,000.00 | N75: 100,000.00 | P75: 100,000.00
A76: Аттестация | B76: 07 | C76: 02 | D76: 0220270210 | E76: 244 | F76: 226200 | G76: 1000 | H76: 0.00 | J76: 0.00 | M76: 0.00 | P76: 0.00
A77: Ведомственная, вневедомственная, пожарная охрана | B77: 07 | C77: 02 | D77: 0220270210 | E77: 244 | F77: 226400 | G77: 1000 | H77: 63,765.84 | J77: 63,765.84 | K77: 99,250.00 | M77: 99,250.00 | N77: 124,062.50 | P77: 124,062.50
A78: Медицинский осмотр водителей транспортных средств | B78: 07 | C78: 02 | D78: 0220270210 | E78: 244 | F78: 226500 | G78: 1000 | H78: 195,300.00 | J78: 195,300.00 | K78: 244,125.00 | M78: 244,125.00 | N78: 305,156.25 | P78: 305,156.25
A79: Медицинский осмотр работников учрежждений, за исключением водителей транспортных средств | B79: 07 | C79: 02 | D79: 0220270210 | E79: 244 | F79: 226800 | G79: 1000 | H79: 335,000.00 | J79: 335,000.00 | K79: 337,000.00 | M79: 337,000.00 | N79: 337,000.00 | P79: 337,000.00
A80: Другие расходы | B80: 07 | C80: 02 | D80: 0220270210 | E80: 244 | F80: 226900 | G80: 1000 | H80: 99,700.00 | J80: 99,700.00 | K80: 100,000.00 | M80: 100,000.00 | N80: 100,000.00 | P80: 100,000.00
A81: Обязательное страхование автогражданской ответственности | B81: 07 | C81: 02 | D81: 0220270210 | E81: 244 | F81: 227200 | G81: 1000 | H81: 14,000.00 | J81: 14,000.00 | K81: 14,000.00 | M81: 14,000.00 | N81: 16,000.00 | P81: 16,000.00
A82: Приобретение предметов длительного пользования (оборудование, мебель,компьютерная техника и т.п.) стоимостью свыше 3000 рублей | B82: 07 | C82: 02 | D82: 0220270210 | E82: 244 | F82: 310100 | G82: 1000 | H82: 40,000.00 | J82: 40,000.00 | K82: 40,000.00 | M82: 40,000.00 | N82: 40,000.00 | P82: 40,000.00
A83: Другие расходы стоимостью до 3000,00 рублей | B83: 07 | C83: 02 | D83: 0220270210 | E83: 244 | F83: 310900 | G83: 1000 | H83: 30,000.00 | J83: 30,000.00 | K83: 30,000.00 | M83: 30,000.00 | N83: 30,000.00 | P83: 30,000.00
A84: Топливо и ГСМ | B84: 07 | C84: 02 | D84: 0220270210 | E84: 244 | F84: 343000 | G84: 1000 | H84: 150,000.00 | J84: 150,000.00 | K84: 0.00 | M84: 0.00 | N84: 0.00 | P84: 0.00
A85: Приобретение строительных материалов | B85: 07 | C85: 02 | D85: 0220270210 | E85: 244 | F85: 344000 | G85: 1000 | H85: 40,000.00 | J85: 40,000.00 | K85: 40,000.00 | M85: 40,000.00 | N85: 40,000.00 | P85: 40,000.00
A86: Мягкий инвентарь | B86: 07 | C86: 02 | D86: 0220270210 | E86: 244 | F86: 345000 | G86: 1000 | H86: 22,500.00 | J86: 22,500.00 | K86: 22,500.00 | M86: 22,500.00 | N86: 22,500.00 | P86: 22,500.00
A87: Увеличение стоимости прочих оборотных запасов (материалов) | B87: 07 | C87: 02 | D87: 0220270210 | E87: 244 | F87: 346000 | G87: 1000 | H87: 80,000.00 | J87: 80,000.00 | K87: 80,000.00 | M87: 80,000.00 | N87: 80,000.00 | P87: 80,000.00
A88: Налог на имущество | B88: 07 | C88: 02 | D88: 0220270210 | E88: 851 | F88: 291200 | G88: 1000 | H88: 60,238.00 | J88: 60,238.00 | K88: 60,238.00 | M88: 60,238.00 | N88: 60,238.00 | P88: 60,238.00
A89: Земельный залог | B89: 07 | C89: 02 | D89: 0220270210 | E89: 851 | F89: 291300 | G89: 1000 | H89: 25,281.00 | J89: 25,281.00 | K89: 25,281.00 | M89: 25,281.00 | N89: 25,281.00 | P89: 25,281.00
A90: Транспотный налог | B90: 07 | C90: 02 | D90: 0220270210 | E90: 852 | F90: 291400 | G90: 1000 | H90: 37,790.00 | J90: 37,790.00 | K90: 37,790.00 | M90: 37,790.00 | N90: 37,790.00 | P90: 37,790.00
A91: Иные выплаты текущего характера физическим лицам (Возмещение убытков, вреда и судебных издержек) | B91: 07 | C91: 02 | D91: 0220270210 | E91: 853 | F91: 296100 | G91: 1000 | H91: 177.02 | J91: 177.02 | K91: 0.00 | M91: 0.00 | N91: 0.00 | P91: 0.00
A92: Итого по КЦ 1000 | H92: =SUM(H63:H91) -> 12,640,904.63 | I92: =SUM(I63:I91) -> 0.00 | J92: 12,640,904.63 | K92: 13,879,548.15 | L92: 0.00 | M92: 13,879,548.15 | N92: 14,290,031.45 | O92: 0.00 | P92: 14,290,031.45
A93: Средства, полученные от оказания платных услуг, безвозмездных поступлений (КЦ 8000)
A94: Продукты питания | B94: 07 | C94: 01 | D94: 0220170200 | E94: 244 | F94: 342000 | G94: 8000 | H94: 5,000,000.00 | J94: =H94+I94 -> 5,000,000.00 | K94: 5,800,000.00 | M94: =K94+L94 -> 5,800,000.00 | N94: 5,800,000.00 | P94: =N94+O94 -> 5,800,000.00
A95: Итого по КЦ 8000 | H95: =SUM(H94) -> 5,000,000.00 | I95: =SUM(I94) -> 0.00 | J95: 5,000,000.00 | K95: 5,800,000.00 | L95: 0.00 | M95: 5,800,000.00 | N95: 5,800,000.00 | O95: 0.00 | P95: 5,800,000.00
A96: Субвенции на обеспечение гос.гарантий реализации прав на получение общедоступного и бесплатного дошкольного образования в муниципальных дошкольных образовательных организациях, общедоступного и бесплатного дошкольного, начального общего, основного общего, среднего общего образования в муниципальных общеобразовательных организациях, обеспечение дополнительного образования детей в муниципальных общеобразовательных организациях (КЦ 24219)
A98: Заработная плата | B98: 07 | C98: 01 | D98: 0220142190 | E98: 111 | F98: 211000 | G98: 23424219000219
A99: Начисления на выплаты по оплате труда | B99: 07 | C99: 01 | D99: 0220142190 | E99: 119 | F99: 213000 | G99: 23424219000219
A100: Услуги связи (интернет) | B100: 07 | C100: 01 | D100: 0220142190 | E100: 244 | F100: 221200 | G100: 23424219000219
A101: Итого субвенция 0701 (КЦ 24219) | H101: =SUM(H98:H100) -> 0.00 | K101: =SUM(K98:K100) -> 0.00 | N101: 0.00
A102: Заработная плата | B102: 07 | C102: 02 | D102: 0220242190 | E102: 111 | F102: 211000 | G102: 23424219000219
A103: Начисления на выплаты по оплате труда | B103: 07 | C103: 02 | D103: 0220242190 | E103: 119 | F103: 213000 | G103: 23424219000219
A104: Услуги связи (интернет) | B104: 07 | C104: 02 | D104: 0220242190 | E104: 244 | F104: 221200 | G104: 23424219000219
A105: Мероприятия по переподготовке и повышению квалификации кадров | B105: 07 | C105: 05 | D105: 0220242190 | E105: 244 | F105: 226700 | G105: 23424219000219
A106: Итого субвенция 0702 (КЦ 24219) | H106: =SUM(H102:H105) -> 0.00 | K106: =SUM(K102:K105) -> 0.00 | N106: 0.00
A107: Итого по КЦ 24219 | H107: =H101+H106 -> 0.00 | K107: =K101+K106 -> 0.00 | N107: 0.00
A108: Субсидии на проведение мероприятий по обеспечению деятельности советников директора по воспитанию и взаимодействию с детским общественными объединениями в образовательных организациях
A109: Заработная плата | B109: 07 | C109: 02 | D109: 022EВ51790 | E109: 111 | F109: 211000 | G109: 23-51790-00000-00000
A110: Начисления на выплаты по оплате труда | B110: 07 | C110: 02 | D110: 022EВ51790 | E110: 119 | F110: 213000 | G110: 23-51790-00000-00000
A111: Итого по КЦ 24320, 1000 | H111: =SUM(H109:H110) -> 0.00 | K111: =SUM(K109:K110) -> 0.00 | N111: 0.00
A112: Субвенции на обеспечение гос.гарантий реализации прав на получение общедоступного и бесплатного дошкольного образования в муниципальных дошкольных образовательных организациях, общедоступного и бесплатного дошкольного, начального общего, основного общего, среднего общего образования в муниципальных общеобразовательных организациях, обеспечение дополнительного образования детей в муниципальных общеобразовательных организациях (КЦ 24219)
A114: Заработная плата | B114: 07 | C114: 01 | D114: 0220142190 | E114: 111 | F114: 211000 | G114: 254242190000219 | H114: 22,538,902.26 | J114: =H114+I114 -> 22,538,902.26 | K114: 0.00 | M114: =K114+L114 -> 0.00 | N114: 0.00 | P114: =N114+O114 -> 0.00
A115: Социальные пособия и компенсации персоналу в денежной форме (пособие за первые три дня временной нетрудоспособности за счет средств работодателя) | B115: 07 | C115: 01 | D115: 0220142190 | E115: 111 | F115: 266100 | G115: 254242190000219 | H115: 3,271.50 | J115: 3,271.50
A116: Начисления на выплаты по оплате труда | B116: 07 | C116: 01 | D116: 0220142190 | E116: 119 | F116: 213000 | G116: 254242190000219 | H116: 5,105,802.36 | J116: 5,105,802.36 | K116: 0.00 | M116: 0.00 | N116: 0.00 | P116: 0.00
A117: Услуги связи (интернет) | B117: 07 | C117: 01 | D117: 0220142190 | E117: 244 | F117: 221200 | G117: 254242190000219 | H117: 47,000.00 | J117: 47,000.00 | K117: 0.00 | M117: 0.00 | N117: 0.00 | P117: 0.00
A118: Итого субвенция 0701 (КЦ 254242190000219) | H118: =SUM(H114:H117) -> 27,694,976.12 | I118: =SUM(I114:I117) -> 0.00 | J118: 27,694,976.12 | K118: 0.00 | L118: 0.00 | M118: 0.00 | N118: 0.00 | O118: 0.00 | P118: 0.00
A119: Заработная плата | B119: 07 | C119: 02 | D119: 0220242190 | E119: 111 | F119: 211000 | G119: 254242190000219 | H119: 39,632,059.50 | J119: =H119+I119 -> 39,632,059.50 | K119: 0.00 | M119: =K119+L119 -> 0.00 | N119: 0.00 | P119: 0.00
A120: Социальные пособия и компенсации персоналу в денежной форме (пособие за первые три дня временной нетрудоспособности за счет средств работодателя) | B120: 07 | C120: 02 | D120: 0220242190 | E120: 111 | F120: 266100 | G120: 254242190000219 | H120: 30,930.90 | J120: 30,930.90
A121: Начисления на выплаты по оплате труда | B121: 07 | C121: 02 | D121: 0220242190 | E121: 119 | F121: 213000 | G121: 254242190000219 | H121: 8,983,667.33 | J121: 8,983,667.33 | K121: 0.00 | M121: 0.00 | N121: 0.00 | P121: 0.00
A122: Услуги связи (интернет) | B122: 07 | C122: 02 | D122: 0220242190 | E122: 244 | F122: 221200 | G122: 254242190000219 | H122: 54,991.59 | J122: 54,991.59 | K122: 0.00 | M122: 0.00 | N122: 0.00 | P122: 0.00
A123: Увеличение стоимости прочих материальных запасов однократного применения | B123: 07 | C123: 02 | D123: 0220242190 | E123: 244 | F123: 349100 | G123: 254242190000219 | H123: 12,746.00 | J123: 12,746.00 | K123: 0.00 | M123: 0.00 | N123: 0.00 | P123: 0.00
A124: Мероприятия по переподготовке и повышению квалификации кадров | B124: 07 | C124: 05 | D124: 0220242190 | E124: 244 | F124: 226700 | G124: 254242190000219 | H124: 48,000.00 | I124: -48,000.00 | J124: 0.00 | K124: 0.00 | M124: 0.00 | N124: 0.00 | P124: 0.00
A125: Итого субвенция 0701 (КЦ 254242190000219) | H125: =SUM(H119:H124) -> 48,762,395.32 | I125: =SUM(I119:I124) -> -48,000.00 | J125: 48,714,395.32 | K125: 0.00 | L125: 0.00 | M125: 0.00 | N125: 0.00 | O125: 0.00 | P125: 0.00
A126: Итого по КЦ 254242190000219 | H126: =H118+H125 -> 76,457,371.44 | I126: =I118+I125 -> -48,000.00 | J126: 76,409,371.44 | K126: 0.00 | L126: 0.00 | M126: 0.00 | N126: 0.00 | O126: 0.00 | P126: 0.00
A127: Реализация мероприятий по ежемесячному денежному вознаграждению за класское руководство пед.работникам государственных и муниципальных образовательных организаций, реализующих образовательные программы основного общего образования
A128: Заработная плата | B128: 07 | C128: 02 | D128: 022Ю653030 | E128: 111 | F128: 211000 | G128: 2553030X298570000000 | H128: 4,554,000.00 | J128: =H128+I128 -> 4,554,000.00 | K128: 0.00 | M128: =K128+L128 -> 0.00 | N128: 0.00 | P128: =N128+O128 -> 0.00
A129: Начисления на выплаты по оплате труда | B129: 07 | C129: 02 | D129: 022Ю653030 | E129: 119 | F129: 213000 | G129: 2553030X298570000000 | H129: 1,375,308.00 | J129: 1,375,308.00 | K129: 0.00 | M129: 0.00 | N129: 0.00 | P129: 0.00
A130: Итого по КЦ 2553030X298570000000 | H130: =SUM(H128:H129) -> 5,929,308.00 | I130: =SUM(I128:I129) -> 0.00 | J130: 5,929,308.00 | K130: 0.00 | L130: 0.00 | M130: 0.00 | N130: 0.00 | O130: 0.00 | P130: 0.00
A131: Реализация мероприятий по обеспечению деятельности советников директора по воспитанию и взаимодействию с детскими общественными объединениями в общеобразовательных организациях
A132: Заработная плата | B132: 07 | C132: 02 | D132: 022Ю651790 | E132: 111 | F132: 211000 | G132: 25-51790-00000-00000 | H132: 251,508.00 | J132: =H132+I132 -> 251,508.00 | K132: 0.00 | M132: =K132+L132 -> 0.00 | N132: 0.00 | P132: =N132+O132 -> 0.00
A133: Начисления на выплаты по оплате труда | B133: 07 | C133: 02 | D133: 022Ю651790 | E133: 119 | F133: 213000 | G133: 25-51790-00000-00000 | H133: 75,955.42 | J133: 75,955.42 | K133: 0.00 | M133: 0.00 | N133: 0.00 | P133: 0.00
A134: Итого по КЦ 23-51790-00000-00000 | H134: =SUM(H132:H133) -> 327,463.42 | I134: =SUM(I132:I133) -> 0.00 | J134: =H134+I134 -> 327,463.42 | K134: =SUM(K132:K133) -> 0.00 | N134: =SUM(N132:N133) -> 0.00
A135: Иные межбюджетные трансферты на обеспечение выплат ежемесячного денежного вознаграждения советникам ждиректоров по воспитанию и взаимодействию с детскими общественными объединениями государственных образховательных организаций, муниципальных общеобразовательных организаций и профессиональных общеобразовательных организаций
A136: Заработная плата | B136: 07 | C136: 02 | D136: 022Ю650500 | E136: 111 | F136: 211000 | G136: 2550500X298320000000 | H136: 99,000.00 | J136: =H136+I136 -> 99,000.00 | K136: 0.00 | M136: =K136+L136 -> 0.00 | N136: 0.00 | P136: =N136+O136 -> 0.00
A137: Начисления на выплаты по оплате труда | B137: 07 | C137: 02 | D137: 022Ю650500 | E137: 119 | F137: 213000 | G137: 2550500X298320000000 | H137: 29,898.00 | J137: 29,898.00 | K137: 0.00 | M137: 0.00 | N137: 0.00 | P137: 0.00
A138: ИТОГО по КЦ 2550500X298320000000 | H138: =SUM(H136:H137) -> 128,898.00 | I138: =SUM(I136:I137) -> 0.00 | J138: 128,898.00 | K138: 0.00 | L138: 0.00 | M138: 0.00 | N138: 0.00 | O138: 0.00 | P138: 0.00
A139: Субвенция на осуществление государственных полномочий РК по выплате компенсации платы, взимаемой с родителей (законных представителей) за присмотр и уход за детьми, осваивающими образовательные программы дошкольного образования в организациях, осуществляющих образовательную деятельности, за исключением государственных образовательных организаций РК.
A140: Пособия по социальной помощи населению в натуральной форме | B140: 10 | C140: 04 | D140: 0220142030 | E140: 321 | F140: 263000 | G140: 254242030000203 | H140: 2,216,000.00 | J140: =H140+I140 -> 2,216,000.00 | K140: 0.00 | M140: =K140+L140 -> 0.00 | N140: 0.00 | P140: =N140+O140 -> 0.00
A141: Итого по КЦ 254242030000203 | H141: =SUM(H140:H140) -> 2,216,000.00 | I141: 0.00 | J141: 2,216,000.00 | K141: 0.00 | L141: 0.00 | M141: 0.00 | N141: 0.00 | O141: 0.00 | P141: 0.00
A142: Субвенция на осуществление государственных полномочий РК по предоставлению предусмотренных п.5 ч.1 ст.9 Заона от 20.12.2013 №1755-ЗРК "Об образовании" мер социальной поддержски и социального обслуживания обучающимся с ОВЗ, за искл.обучающихся (воспитываемы) в государтсвенных образовательных организациях РК
A143: Пособия по социальной помощи населению в натуральной форме | B143: 07 | C143: 02 | D143: 0220242100 | E143: 323 | F143: 263000 | G143: 254242100000210 | H143: 876,245.00 | J143: =H143+I143 -> 876,245.00 | K143: 0.00 | M143: =K143+L143 -> 0.00 | N143: 0.00 | P143: =N143+O143 -> 0.00
A144: Пособия по социальной помощи населению в денежной форме | B144: 10 | C144: 03 | D144: 0220242100 | E144: 321 | F144: 262000 | G144: 254242100000210 | H144: 93,777.00 | J144: =H144+I144 -> 93,777.00 | K144: 0.00 | M144: 0.00 | N144: 0.00 | P144: 0.00
A145: Итого по КЦ 254242100000210 | H145: =SUM(H143:H144) -> 970,022.00 | I145: =SUM(I143:I144) -> 0.00 | J145: 970,022.00 | K145: 0.00 | L145: 0.00 | M145: 0.00 | N145: 0.00 | O145: 0.00 | P145: 0.00
A146: Субсидии на организацию бесплатного горячего питания обучающихся, получающих начальное общее образование в государственных и муниципальных образовательных организациях
A147: Другие расходы | B147: 07 | C147: 02 | D147: 02202L3040 | E147: 244 | F147: 226900 | G147: 25-53040-00000-00000 | H147: 3,150,000.00 | J147: =H147+I147 -> 3,150,000.00 | K147: 0.00 | M147: =K147+L147 -> 0.00 | N147: 0.00 | P147: =N147+O147 -> 0.00
A148: Итого по КЦ 25-53040-00000-00000 | H148: =SUM(H147) -> 3,150,000.00 | I148: =SUM(I147) -> 0.00 | J148: 3,150,000.00 | K148: 0.00 | L148: 0.00 | M148: 0.00 | N148: 0.00 | O148: 0.00 | P148: 0.00
A149: Субсидия на реализацию мероприятий государственной программы РК "Совершенствование социальной защиты граждан" в целях организации адресной социальной помощи семьям, имеющим детей
A150: Пособия по социальной помощи населению в натуральной форме | B150: 10 | C150: 03 | D150: 0320243210 | E150: 323 | F150: 263000 | G150: 254343210000316 | H150: 1,260,000.00 | J150: =H150+I150 -> 1,260,000.00 | K150: 0.00 | M150: =K150+L150 -> 0.00 | N150: 0.00 | P150: =N150+O150 -> 0.00
A151: Пособия по социальной помощи населению в натуральной форме | B151: 10 | C151: 03 | D151: 03202S3210 | E151: 323 | F151: 263000 | G151: 1000 | H151: 540,000.00 | J151: 540,000.00 | K151: 0.00 | M151: 0.00 | N151: 0.00 | P151: 0.00
A152: Итого по КЦ 254343210000316 | H152: =SUM(H150:H151) -> 1,800,000.00 | I152: =SUM(I150:I151) -> 0.00 | J152: 1,800,000.00 | K152: 0.00 | L152: 0.00 | M152: 0.00 | N152: 0.00 | O152: 0.00 | P152: 0.00
A153: Субсидия местным бюджетам на реализацию мероприятий государственной программы Республики Карелия ""Развитие образования""
A154: Другие расходы | B154: 07 | C154: 02 | D154: 0220243202 | E154: 244 | F154: 225900 | G154: 254343200000320 | H154: 83,700.00 | J154: =H154+I154 -> 83,700.00 | K154: 0.00 | M154: =K154+L154 -> 0.00 | N154: 0.00 | P154: =N154+O154 -> 0.00
A155: Другие расходы | B155: 07 | C155: 02 | D155: 02202S3202 | E155: 244 | F155: 225900 | G155: 1000 | H155: 9,300.00 | J155: 9,300.00 | K155: 0.00 | M155: 0.00 | N155: 0.00 | P155: 0.00
A156: Топливо и ГСМ | B156: 07 | C156: 02 | D156: 0220243202 | E156: 244 | F156: 343000 | G156: 254343200000320 | H156: 1,620,000.00 | J156: 1,620,000.00 | K156: 0.00 | M156: 0.00 | N156: 0.00 | P156: 0.00
A157: Топливо и ГСМ | B157: 07 | C157: 02 | D157: 02202S3202 | E157: 244 | F157: 343000 | G157: 1000 | H157: 180,000.00 | J157: 180,000.00 | K157: 0.00 | M157: 0.00 | N157: 0.00 | P157: 0.00
A158: Итого по КЦ 254343200000320 | H158: =SUM(H154:H157) -> 1,893,000.00 | I158: =SUM(I154:I157) -> 0.00 | J158: 1,893,000.00 | K158: 0.00 | L158: 0.00 | M158: 0.00 | N158: 0.00 | O158: 0.00 | P158: 0.00
A159: Всего | H159: =H61+H92+H95+H107+H111+H141+H145+H126+H148+H152+H134+H130+H138+H158 -> 122,586,258.01 | I159: =I61+I92+I95+I107+I111+I141+I145+I126+I148+I152+I134+I130+I138+I158 -> -48,000.00 | J159: 122,538,258.01 | K159: 33,521,479.18 | L159: 0.00 | M159: 33,521,479.18 | N159: 34,259,965.64 | O159: 0.00 | P159: 34,259,965.64
A161: Директор | E161: О.В. Высоцкая
A162: (уполномоченное лицо) | B162: (подпись) | E162: (расшифровка подписи)
A164: Главный бухгалтер МУ "ЦБ № 1" | F164: И.В. Ананьева
A165: (уполномоченное лицо) | B165: (подпись) | F165: (расшифровка подписи)
A167: Главный экономист ПЭО | F167: И.В. Пружинина
A168: (исполнитель) | B168: (подпись) | F168: (расшифровка подписи)

Sheet 18.02
N1: Приложение №2
N2: к Порядку составления, утверждения
N3: и ведения бюджетных смет Администрации
N4: Прионежского муниципального района
N5: и казенных учреждений, находящихся
N6: в ведении Администрации Прионежского
N7: муниципального района
N8: от 30 декабря 2022 № 1390
F9: УТВЕРЖДАЮ
F10: Глава Администрации Прионежского муниципального района
F11: (наименование должности лица, согласующего бюджетную смету)
F13: Администрация Прионежского муниципального района
F14: (наименование главного распорядителя (распорядителя) бюджетных средств; учреждения)
K16: Г.Н. Шемет
F17: (подпись) (расшифровка подписи)
H19: 18 февраля 2025 года
B21: ИЗМЕНЕНИЯ К БЮДЖЕТНОЙ СМЕТЕ НА 2025 ФИНАНСОВЫЙ ГОД И ПЛАНОВЫЙ ПЕРИОД 2026 и 2027 ГОДОВ
B24: СПРАВКА №№015/00406/058 от | J24: =H19 -> 18 февраля 2025 года | P24: КОДЫ
O25: Форма по ОКУД | P25: 0501012
O26: Дата | P26: =H19 -> 18 февраля 2025 года
B27: Муниципальное общеобразовательное учреждение Шуйская средняя общеобразовательная школа №1 | O27: по ОКПО | P27: 77446968
A28: Получатель бюджетных средств
A29: Распорядитель бюджетных средств | B29: Администрация Прионежского муниципального района
A30: Главный распорядитель бюджетных средств | B30: Администрация Прионежского муниципального района | O30: Глава по БК | P30: 015
A31: Наименование бюджета | B31: Бюджет Прионежского муниципального района | O31: по ОКТМО | P31: 86636470
A32: Единица измерения: | B32: руб. | O32: по ОКЕЙ | P32: 383
A33: Наименование показателя (детализация кода бюджетной классификации) | B33: РЗ | C33: ПР | D33: ЦСР | E33: Вид расхода | F33: Детализация | G33: Вид целевых средств | H33: Сумма на текущий год | K33: Сумма на первый год планового периода (руб) | N33: Сумма на второй год планового периода (руб.)
H34: 2025-02-17 | I34: изменения (+/-) | J34: ИТОГО | K34: =H34 -> 2025-02-17 | L34: изменения (+/-) | M34: ИТОГО | N34: =H34 -> 2025-02-17 | O34: изменения (+/-) | P34: ИТОГО
A35: 1 | B35: =SUM(A35+1) -> 2 | C35: 3 | D35: 4 | E35: 5 | F35: 6 | G35: 7 | H35: 8 | I35: 9 | J35: 10 | K35: 11 | L35: 12 | M35: 13 | N35: 14 | O35: 15 | P35: 16
A36: Средства местного бюджета (КЦ 1000)
A37: Заработная плата | B37: 07 | C37: 01 | D37: 0220170200 | E37: 111 | F37: 211000 | G37: 1000 | H37: 3,118,153.92 | J37: =H37+I37 -> 3,118,153.92 | K37: 3,118,153.92 | M37: =K37+L37 -> 3,118,153.92 | N37: 3,118,153.92 | P37: =N37+O37 -> 3,118,153.92
A38: Расходы по оплате проезда к месту отпуска и обратно отдельным категориям лиц (для лиц, работающих в районах Крайнего Севера и приравненных к ним местностях, и членов их семей) | B38: 07 | C38: 01 | D38: 0220170200 | E38: 112 | F38: 214000 | G38: 1000 | H38: 30,000.00 | J38: =H38+I38 -> 30,000.00 | K38: 20,000.00 | M38: =K38+L38 -> 20,000.00 | N38: 20,000.00 | P38: =N38+O38 -> 20,000.00
A39: Начисления на выплаты по оплате труда | B39: 07 | C39: 01 | D39: 0220170200 | E39: 119 | F39: 213000 | G39: 1000 | H39: 941,682.48 | J39: 941,682.48 | K39: 941,682.48 | M39: 941,682.48 | N39: 941,682.48 | P39: 941,682.48
A40: Услуги связи (телефон) | B40: 07 | C40: 01 | D40: 0220170200 | E40: 244 | F40: 221100 | G40: 1000 | H40: 13,894.08 | J40: 13,894.08 | K40: 13,200.00 | M40: 13,200.00 | N40: 14,400.00 | P40: 14,400.00
A41: Услуги связи (почта) | B41: 07 | C41: 01 | D41: 0220170200 | E41: 244 | F41: 221300 | G41: 1000 | H41: 0.00 | J41: 0.00 | M41: 0.00 | P41: 0.00
A42: Отопление, горячее водоснабжение и газоснабжение | B42: 07 | C42: 01 | D42: 0220170200 | E42: 247 | F42: 223100 | G42: 1000 | H42: 1,128,402.16 | J42: 1,128,402.16 | K42: 1,663,178.53 | M42: 1,663,178.53 | N42: 1,742,199.20 | P42: 1,742,199.20
A43: Электроэнергия | B43: 07 | C43: 01 | D43: 0220170200 | E43: 247 | F43: 223200 | G43: 1000 | H43: 2,603,931.30 | J43: 2,603,931.30 | K43: 3,686,539.68 | M43: 3,686,539.68 | N43: 3,858,393.83 | P43: 3,858,393.83
A44: Холодное водоснабжение | B44: 07 | C44: 01 | D44: 0220170200 | E44: 247 | F44: 223300 | G44: 1000 | H44: 191,606.53 | J44: 191,606.53 | K44: 272,469.54 | M44: 272,469.54 | N44: 287,640.02 | P44: 287,640.02
A45: Водоотведение | B45: 07 | C45: 01 | D45: 0220170200 | E45: 247 | F45: 223400 | G45: 1000 | H45: 251,490.90 | J45: 251,490.90 | K45: 536,497.88 | M45: 536,497.88 | N45: 562,394.55 | P45: 562,394.55
A46: Вывоз бытовых отходов | B46: 07 | C46: 01 | D46: 0220170200 | E46: 244 | F46: 223500 | G46: 1000 | H46: 91,133.73 | J46: 91,133.73 | K46: 129,337.08 | M46: 129,337.08 | N46: 131,873.02 | P46: 131,873.02
A47: Санитарная и противопожарная (дезинфекция, дезинсекция, дератизация, газация, огнезащитная) обработка помещений | B47: 07 | C47: 01 | D47: 0220170200 | E47: 244 | F47: 225600 | G47: 1000 | H47: 185,400.00 | J47: 185,400.00 | K47: 35,400.00 | M47: 35,400.00 | N47: 39,000.00 | P47: 39,000.00
A48: Содержание и обслуживание помещений | B48: 07 | C48: 01 | D48: 0220170200 | E48: 244 | F48: 225700 | G48: 1000 | H48: 223,750.00 | J48: 223,750.00 | K48: 249,550.00 | M48: 249,550.00 | N48: 263,500.00 | P48: 263,500.00
A49: Другие расходы | B49: 07 | C49: 01 | D49: 0220170200 | E49: 244 | F49: 225900 | G49: 1000 | H49: 90,000.00 | J49: 90,000.00 | K49: 50,000.00 | M49: 50,000.00 | N49: 50,000.00 | P49: 50,000.00
A50: Аттестация | B50: 07 | C50: 01 | D50: 0220170200 | E50: 244 | F50: 226200 | G50: 1000 | H50: 10,000.00 | J50: 10,000.00 | K50: 10,000.00 | M50: 10,000.00 | N50: 10,000.00 | P50: 10,000.00
A51: Ведомственная, вневедомственная, пожарная охрана | B51: 07 | C51: 01 | D51: 0220170200 | E51: 244 | F51: 226400 | G51: 1000 | H51: 169,131.68 | J51: 169,131.68 | K51: 78,564.20 | M51: 78,564.20 | N51: 83,749.44 | P51: 83,749.44
A52: Медицинский осмотр работников учрежждений, за исключением водителей транспортных средств | B52: 07 | C52: 01 | D52: 0220170200 | E52: 244 | F52: 226800 | G52: 1000 | H52: 222,129.84 | J52: 222,129.84 | K52: 233,902.72 | M52: 233,902.72 | N52: 243,492.73 | P52: 243,492.73
A53: Другие расходы | B53: 07 | C53: 01 | D53: 0220170200 | E53: 244 | F53: 226900 | G53: 1000 | H53: 49,033.15 | J53: 49,033.15 | K53: 50,000.00 | M53: 50,000.00 | N53: 50,000.00 | P53: 50,000.00
A54: Приобретение предметов длительного пользования (оборудование, мебель,компьютерная техника и т.п.) стоимостью свыше 3000 рублей | B54: 07 | C54: 01 | D54: 0220170200 | E54: 244 | F54: 310100 | G54: 1000 | H54: 40,000.00 | J54: 40,000.00 | K54: 40,000.00 | M54: 40,000.00 | N54: 40,000.00 | P54: 40,000.00
A55: Другие расходы стоимостью до 3000,00 рублей | B55: 07 | C55: 01 | D55: 0220170200 | E55: 244 | F55: 310900 | G55: 1000 | H55: 30,000.00 | J55: 30,000.00 | K55: 30,000.00 | M55: 30,000.00 | N55: 30,000.00 | P55: 30,000.00
A56: Продукты питания | B56: 07 | C56: 01 | D56: 0220170200 | E56: 244 | F56: 342000 | G56: 1000 | H56: 1,330,236.00 | J56: 1,330,236.00 | K56: 1,330,236.00 | M56: 1,330,236.00 | N56: 1,330,236.00 | P56: 1,330,236.00
A57: Увеличение стоимости прочих оборотных запасов (материалов) | B57: 07 | C57: 01 | D57: 0220170200 | E57: 244 | F57: 346000 | G57: 1000 | H57: 80,000.00 | J57: 80,000.00 | K57: 80,000.00 | M57: 80,000.00 | N57: 80,000.00 | P57: 80,000.00
A58: Налог на имущество | B58: 07 | C58: 01 | D58: 0220170200 | E58: 851 | F58: 291200 | G58: 1000 | H58: 1,256,402.00 | J58: 1,256,402.00 | K58: 1,256,402.00 | M58: 1,256,402.00 | N58: 1,256,402.00 | P58: 1,256,402.00
A59: Земельный налог | B59: 07 | C59: 01 | D59: 0220170200 | E59: 851 | F59: 291300 | G59: 1000 | H59: 16,817.00 | J59: 16,817.00 | K59: 16,817.00 | M59: 16,817.00 | N59: 16,817.00 | P59: 16,817.00
A60: Иные выплаты текущего характера физическим лицам (Возмещение убытков, вреда и судебных издержек) | B60: 07 | C60: 01 | D60: 0220170200 | E60: 853 | F60: 296100 | G60: 1000 | H60: 95.75 | J60: 95.75 | K60: 0.00 | M60: 0.00 | N60: 0.00 | P60: 0.00
A61: Итого по КЦ 1000 | H61: =SUM(H37:H60) -> 12,073,290.52 | I61: =SUM(I37:I60) -> 0.00 | J61: 12,073,290.52 | K61: 13,841,931.03 | L61: 0.00 | M61: 13,841,931.03 | N61: 14,169,934.19 | O61: 0.00 | P61: 14,169,934.19
A62: Средства местного бюджета (КЦ 1000)
A63: Заработная плата | B63: 07 | C63: 02 | D63: 0220270210 | E63: 111 | F63: 211000 | G63: 1000 | H63: 4,486,117.59 | J63: =H63+I63 -> 4,486,117.59 | K63: 4,488,786.72 | M63: =K63+L63 -> 4,488,786.72 | N63: 4,488,786.72 | P63: =N63+O63 -> 4,488,786.72
A64: Социальные пособия и компенсации персоналу в денежной форме (пособие за первые три дня временной нетрудоспособности за счет средств работодателя) | B64: 07 | C64: 02 | D64: 0220270210 | E64: 111 | F64: 266100 | G64: 1000 | H64: 2,669.13 | J64: =H64+I64 -> 2,669.13
A65: Расходы по оплате проезда к месту отпуска и обратно отдельным категориям лиц (для лиц, работающих в районах Крайнего Севера и приравненных к ним местностях, и членов их семей) | B65: 07 | C65: 02 | D65: 0220270210 | E65: 112 | F65: 214000 | G65: 1000 | H65: 91,882.99 | J65: =H65+I65 -> 91,882.99 | K65: 20,000.00 | M65: =K65+L65 -> 20,000.00 | N65: 20,000.00 | P65: =N65+O65 -> 20,000.00
A66: Начисления на выплаты по оплате труда | B66: 07 | C66: 02 | D66: 0220270210 | E66: 119 | F66: 213000 | G66: 1000 | H66: 1,355,613.59 | J66: 1,355,613.59 | K66: 1,355,613.59 | M66: 1,355,613.59 | N66: 1,355,613.59 | P66: 1,355,613.59
A67: Услуги связи (телефон) | B67: 07 | C67: 02 | D67: 0220270210 | E67: 244 | F67: 221100 | G67: 1000 | H67: 300.00 | J67: 300.00 | K67: 0.00 | M67: 0.00 | N67: 0.00 | P67: 0.00
A68: Отопление, горячее водоснабжение и газоснабжение | B68: 07 | C68: 02 | D68: 0220270210 | E68: 247 | F68: 223100 | G68: 1000 | H68: 3,576,721.75 | J68: 3,576,721.75 | K68: 4,226,794.10 | M68: 4,226,794.10 | N68: 4,420,314.89 | P68: 4,420,314.89
A69: Электроэнергия | B69: 07 | C69: 02 | D69: 0220270210 | E69: 247 | F69: 223200 | G69: 1000 | H69: 1,343,722.52 | J69: 1,343,722.52 | K69: 1,902,380.60 | M69: 1,902,380.60 | N69: 1,983,351.63 | P69: 1,983,351.63
A70: Холодное водоснабжение | B70: 07 | C70: 02 | D70: 0220270210 | E70: 247 | F70: 223300 | G70: 1000 | H70: 121,057.60 | J70: 121,057.60 | K70: 172,092.96 | M70: 172,092.96 | N70: 179,678.20 | P70: 179,678.20
A71: Водоотведение | B71: 07 | C71: 02 | D71: 0220270210 | E71: 247 | F71: 223400 | G71: 1000 | H71: 182,131.20 | J71: 182,131.20 | K71: 295,668.96 | M71: 295,668.96 | N71: 308,699.12 | P71: 308,699.12
A72: Вывоз бытовых отходов | B72: 07 | C72: 02 | D72: 0220270210 | E72: 244 | F72: 223500 | G72: 1000 | H72: 59,536.40 | J72: 59,536.40 | K72: 84,527.22 | M72: 84,527.22 | N72: 86,184.55 | P72: 86,184.55
A73: Санитарная и противопожарная (дезинфекция, дезинсекция, дератизация, газация, огнезащитная) обработка помещений | B73: 07 | C73: 02 | D73: 0220270210 | E73: 244 | F73: 225600 | G73: 1000 | H73: 13,200.00 | J73: 13,200.00 | K73: 18,000.00 | M73: 18,000.00 | N73: 22,500.00 | P73: 22,500.00
A74: Содержание, обслуживание помещений и сетей инженерно-технического обеспечения | B74: 07 | C74: 02 | D74: 0220270210 | E74: 244 | F74: 225700 | G74: 1000 | H74: 94,200.00 | J74: 94,200.00 | K74: 85,500.00 | M74: 85,500.00 | N74: 106,875.00 | P74: 106,875.00
